Workbook

Sheet Read Me
A7: GUIDANCE ON USING THIS CALCULATION TOOL
A9: 1 | B9: Complete the 'Job Input' and 'Design Input' tabs.
A11: 2 | B11: Data should be entered into blue shaded cells only.
A13: 3 | B13: Resolve any red error messages that may appear.
A15: 4 | B15: On the 'Publish Report' tab - check there are no outstanding error messages and click on the 'Publish Report' button.
A18: 5 | B18: The 'Earthing Report' will be published in pdf format in the same folder as this Excel spreadsheet.

Sheet Disclaimer
A2: DISCLAIMER
B4: This spreadsheet calculation tool (Excel Workbook) has been prepared in order to analyse the performance of a proposed earthing system without having to employ specialist consultants or advanced earthing software packages.
B8: The tool uses data derived from CDEGS studies of the proposed substation arrangement. It also uses the formulae and guidelines contained within ENA Engineering Recommendation S34 and ENA Technical Specification 41-24.
B12: [CDEGS is "Current Distribution Electromagnetic Interference Grounding and Soil Structure Analysis" software from Safe Engineering Services & Technologies Ltd]
B15: This spreadsheet calculation tool has been prepared for use on the National Grid Electricity Distribution (NGED) network only.
B18: The spreadsheet calculation tool and the associated data and calculations are provided "as is" and for use at your own risk. NGED makes no warranties as to performance, fitness for purpose, or any other warranties, whether expressed or implied. Under no circumstances will NGED be liable for direct, indirect, special, incidental, or consequential damages resulting from the use, misuse, or inability to use the spreadsheet calculation tool and the data and calculations.
B47: This spreadsheet calculation tool is: | E47: ='Data-General'!A2 -> TP21G_EDT_VERSION 2b
A50: © National Grid Electricity Distribution 2022

Sheet User Guide

Sheet Job Input
B2: Select whether this is a NGED or ICP designed project
A4: Job Input 1
B5: =IF('Data Entered'!B2=0,"**Compulsory Field**","") -> **Compulsory Field**
B7: =IF('Data Entered'!B2="ICP","Enter the name of the ICP Designer","Enter the name of the NGED Designer") -> Enter the name of the NGED Designer
A9: Job Input 2
B10: =IF('Data Entered'!B3=0,"**Compulsory Field**","") -> **Compulsory Field**
B12: =IF('Data Entered'!B2="ICP","Enter the name of the ICP","Enter the MU of the NGED Designer") -> Enter the MU of the NGED Designer
A14: Job Input 3
B15: =IF('Data Entered'!B4=0,"**Compulsory Field**","") -> **Compulsory Field**
B17: =IF('Data Entered'!B2="ICP","Enter the ICP Job Reference Number","Enter the NGED CROWN Enquiry Number") -> Enter the NGED CROWN Enquiry Number
A19: Job Input 4
B20: =IF('Data Entered'!B5=0,"**Compulsory Field**","") -> **Compulsory Field**
B22: Select the NGED distribution licence area
A24: Job Input 5
B25: =IF('Data Entered'!B6=0,"**Compulsory Field**","") -> **Compulsory Field**
B27: Enter the name of the ground-mounted distribution substation
A29: Job Input 6
B30: =IF('Data Entered'!B7=0,"**Compulsory Field**","") -> **Compulsory Field**
B32: Enter the site address of the ground-mounted distribution substation
A34: Job Input 7
B36: =IF('Data Entered'!B8=0,"**Compulsory Field**","") -> **Compulsory Field**

Sheet Design Input
B2: SUBSTATION FORMAT [DESIGN STEP A]
B4: Substation format
A6: Design Input 0 | G6: =CONCATENATE("Standard Earthing Design = TP21G-",'Data Entered'!E10) -> Standard Earthing Design = TP21G-0 | K6: =IF(OR('Data Entered'!E10="A",'Data Entered'!E10="C",'Data Entered'!E10="E",'Data Entered'!E10="G"),"YES","NO") -> NO | L6: Freestanding?
B7: =IF('Data Entered'!B10=0,"**Compulsory Field**","") -> **Compulsory Field** | K7: ='Data Entered'!G10 -> YES | L7: LV?
B9: Is the ground mounted distribution substation a special design?
A11: Design Input 1
B12: =IF('Data Entered'!B11=0,"**Compulsory Field**",IF('Data Entered'!B11="NO","","This earthing design tool is NOT appropriate for a special design")) -> **Compulsory Field**
B14: PRELIMINARY ASSESSMENT [DESIGN STEP B]
B16: Is the ground mounted distribution substation within 20m of a problematic location?
G17: =IF('Data Entered'!B12="NO","","Employ Earthing Specialist to carry out design if") -> Employ Earthing Specialist to carry out design if
A18: Design Input 2 | G18: =IF('Data Entered'!B12="NO","","actual separation distance does not exceed") -> actual separation distance does not exceed
B19: =IF('Data Entered'!B12=0,"**Compulsory Field**","") -> **Compulsory Field** | G19: =IF('Data Entered'!B12="NO","","minimum permitted by at least 5m") -> minimum permitted by at least 5m
B21: NETWORK DATA [DESIGN STEP C]
B23: Select methodology?
A25: Design Input 3 | B25: Basic
B26: =IF('Data Entered'!B13=0,"**Compulsory Field**","") -> 
B28: Select the system voltage
A30: Design Input 4 | C30: V
B31: =IF('Data Entered'!B14=0,"**Compulsory Field**","") -> **Compulsory Field**
B33: Select method for identifying the source substation
A35: Design Input 5
B36: =IF(ISBLANK(B35),"**Compulsory Field**","") -> **Compulsory Field**
B38: =IF(B35="By Name","Select the source substation name from the dropdown list (DO NOT TYPE THE NAME IN)",IF(B35="By Number","Select the source substation number from the dropdown list (DO NOT TYPE THE NUMBER IN)","Select the source substation from the dropdown list")) -> Select the source substation from the dropdown list
A40: Design Input 6
B41: =IF(ISBLANK(B40),"**Compulsory Field**","") -> **Compulsory Field**
B43: =IF(B35="By Name","Source substation number",IF(B35="By Number","Source substation name","Source substation")) -> Source substation
B45: ='Data Entered'!D16 -> 
B48: Earthing system impedance of source substation (RSOURCE)
B50: ='Data Entered'!B17 -> 0.1 | C50: Ω | D50: =IF('Data Entered'!D17="Y","Assumed Value","") -> 
B53: Modify earthing system impedance of source substation?
A55: Design Input 7 | B55: NO | K55: ='Data Entered'!B18 -> NO | L55: Modify impedance?
B56: =IF(AND(ISBLANK(B55),OR('Data Entered'!B13="Intermediate",'Data Entered'!B13="Advanced - Fault Level Study")),"**Compulsory Field**","") -> 
B58: Enter modified earthing system impedance of source substation
A60: Design Input 7A | B60: =B50 -> 0.1 | C60: Ω
B61: =IF(AND('Data Entered'!B18="YES",ISBLANK(B60)),"**Compulsory Field**","") -> 
B63: Earth potential rise of source substation
B65: ='Data Entered'!B19 -> 3000 | C65: V | D65: =IF('Data Entered'!D19="Y","Assumed Value","") -> 
B66: =IF(AND('Data Entered'!B48="YES",ISBLANK(B65)),"**Compulsory Field**","") -> 
B68: Modify earth potential rise of source substation?
A70: Design Input 8 | B70: NO | K70: ='Data Entered'!B20 -> NO | L70: Modify source EPR?
B71: =IF(AND(ISBLANK(B70),OR('Data Entered'!B13="Intermediate",'Data Entered'!B13="Advanced - Fault Level Study")),"**Compulsory Field**","") -> 
B73: Enter modified earthing potential rise of source substation
A75: Design Input 8A | B75: =B65 -> 3000 | C75: V
B76: =IF(AND('Data Entered'!B20="YES",ISBLANK(B75)),"**Compulsory Field**","") -> 
B78: Clearance time for a 33kV / 66kV / 132kV / 275kV / 400kV fault at source substation
B80: ='Data Entered'!B21 -> 3 | C80: s | D80: =IF('Data Entered'!D21="Y","Assumed Value","") -> 
B83: Modify clearance time for a 33kV / 66kV / 132kV / 275kV / 400kV fault at source substation?
A85: Design Input 9 | B85: NO | K85: ='Data Entered'!B22 -> NO | L85: Modify clearance time?
B86: =IF(AND(ISBLANK(B85),OR('Data Entered'!B13="Intermediate",'Data Entered'!B13="Advanced - Fault Level Study")),"**Compulsory Field**","") -> 
B88: Enter modified clearance time for a 33kV / 66kV / 132kV / 275kV / 400kV fault at source substation
A90: Design Input 9A | B90: =B80 -> 3 | C90: s
B91: =IF(AND('Data Entered'!B22="YES",ISBLANK(B90)),"**Compulsory Field**","") -> 
B93: 33kV / 66kV / 132kV / 275kV / 400kV fault at source substation cleared by INST, IDMT, or DT earth fault protection?
A95: Design Input 10
B96: =IF(AND(ISBLANK(B95),OR('Data Entered'!B13="Intermediate",'Data Entered'!B13="Advanced - Fault Level Study")),"**Compulsory Field**","") -> 
B98: Enter the network impedance up to the HV terminals of the ground mounted distribution substation
A100: Design Input 11 | E100: Unit of measurement
C101: R | D101: X
B102: Z1 | E102: ='Data Entered'!B24 -> 0
B103: Z2 | E103: ='Data Entered'!B24 -> 0
B104: Z0 | E104: ='Data Entered'!B24 -> 0
C105: =IF(AND('Data Entered'!B13="Advanced - Fault Level Study",OR(ISBLANK(C100),ISBLANK(C102),ISBLANK(C103),ISBLANK(C104),ISBLANK(D102),ISBLANK(D103),ISBLANK(D104))),"**Compulsory Fields**","") -> 
B107: Enter the source substation neutral earthing details
C108: TYPE | D108: RATING
A109: Design Input 12 | B109: Neutral Earthing | D109: =IF(ISBLANK(C109),"",IF(C109="Solid",3500,IF(C109="Resistor",2000,2400))) ->  | E109: A
C110: =IF(AND('Data Entered'!B13="Basic",ISBLANK(C109)),"**Compulsory Field**","") -> **Compulsory Field**
A111: Design Input 12 | B111: NER 1 | E111: A | F111: Set rating to "3500" if type is selected to "Solid"
B112: NER 2 | E112: A
B113: NER 3 | E113: A
B114: NER 4 | E114: A
C115: =IF(AND('Data Entered'!B13="Intermediate",OR(ISBLANK(C111),ISBLANK(D111))),"**Compulsory Fields: NER 1**","") -> 
B117: Enter the HV circuit details
B118: Source S/S | C118: SECTION | D118: CABLE / LINE TYPE | F118: LENGTH
A119: Design Input 13 | C119: 1 | G119: km | H119: =IF(AND(ISBLANK(D119),ISBLANK(D120),ISBLANK(D121),ISBLANK(D122),ISBLANK(D123),ISBLANK(D124),ISBLANK(D125),ISBLANK(D126),ISBLANK(D127),ISBLANK(D128),ISBLANK(D129),ISBLANK(D130),ISBLANK(D131),ISBLANK(D132),ISBLANK(D133)),"**No cable / line types entered**","") -> **No cable / line types entered**
C120: 2 | G120: km
C121: 3 | G121: km | H121: =IF('Data Entered'!H35="TRUE","**No cable connected to GM Dist S/S**","") -> **No cable connected to GM Dist S/S**
C122: 4 | G122: km
C123: 5 | G123: km | H123: =IF(OR(AND(ISTEXT(D119),ISBLANK(F119)),AND(ISTEXT(D120),ISBLANK(F120)),AND(ISTEXT(D121),ISBLANK(F121)),AND(ISTEXT(D122),ISBLANK(F122)),AND(ISTEXT(D123),ISBLANK(F123)),AND(ISTEXT(D124),ISBLANK(F124)),AND(ISTEXT(D125),ISBLANK(F125)),AND(ISTEXT(D126),ISBLANK(F126)),AND(ISTEXT(D127),ISBLANK(F127)),AND(ISTEXT(D128),ISBLANK(F128)),AND(ISTEXT(D129),ISBLANK(F129)),AND(ISTEXT(D130),ISBLANK(F130)),AND(ISTEXT(D131),ISBLANK(F131)),AND(ISTEXT(D132),ISBLANK(F132)),AND(ISTEXT(D133),ISBLANK(F133))),"**Length value(s) missing**","") -> 
C124: 6 | G124: km
C125: 7 | G125: km | H125: =IF(OR(AND(ISNUMBER(F119),ISBLANK(D119)),AND(ISNUMBER(F120),ISBLANK(D120)),AND(ISNUMBER(F121),ISBLANK(D121)),AND(ISNUMBER(F122),ISBLANK(D122)),AND(ISNUMBER(F123),ISBLANK(D123)),AND(ISNUMBER(F124),ISBLANK(D124)),AND(ISNUMBER(F125),ISBLANK(D125)),AND(ISNUMBER(F126),ISBLANK(D126)),AND(ISNUMBER(F127),ISBLANK(D127)),AND(ISNUMBER(F128),ISBLANK(D128)),AND(ISNUMBER(F129),ISBLANK(D129)),AND(ISNUMBER(F130),ISBLANK(D130)),AND(ISNUMBER(F131),ISBLANK(D131)),AND(ISNUMBER(F132),ISBLANK(D132)),AND(ISNUMBER(F133),ISBLANK(D133))),"**Cable / line type value(s) missing**","") -> 
C126: 8 | G126: km
C127: 9 | G127: km
C128: 10 | G128: km
C129: 11 | G129: km
C130: 12 | G130: km
C131: 13 | G131: km | H131: Length Of HV Cable Connected To Ground Mounted Distribution S/S
C132: 14 | G132: km
C133: 15 | G133: km | H133: =CONCATENATE('Data Entered'!H36," km") -> 0 km
B134: Ground Mounted Distribution S/S | D134: =IF(AND(OR('Data Entered'!B13="Basic",'Data Entered'!B13="Intermediate"),OR(LEFT(H119,2)="**",LEFT(H121,2)="**",LEFT(H123,2)="**",LEFT(H125,2)="**")),"**Compulsory Fields**","") -> **Compulsory Fields**
B136: Is the ground mounted distribution substation cable connected ALL THE WAY to the source substation under normal feeding conditions?
A138: Design Input 14 | K138: ='Data Entered'!B48 -> YES | L138: Cable connected?
B139: =IF(AND(OR('Data Entered'!B13="Advanced - ASC Earthing",'Data Entered'!B13="Advanced - Fault Level Study"),ISBLANK(B138)),"**Compulsory Field**","") -> 
B141: =IF('Data Entered'!B48="YES","Enter details of the predominant HV cable from the ground mounted distribution substation back to the source substation",IF(OR('Data Entered'!B48="NO",'Data Entered'!B48=0),"Enter details of the predominant HV cable from the ground mounted distribution substation back to the pole termination","Enter details of the predominant HV cable")) -> Enter details of the predominant HV cable from the ground mounted distribution substation back to the source substation
B143: GM distribution s/s connection | D143: ='Data Entered'!B49 -> All Cable
B144: Total cable length | D144: ='Data Entered'!H36 -> 0 | H144: km
B145: Total cable length | H145: km
A146: Design Input 15 | B146: Predominant cable type
B147: =IF(OR('Data Entered'!B50=0,'Data Entered'!B51=0),"**Compulsory Fields**","") -> **Compulsory Fields** | E147: =IF(OR(AND('Data Entered'!B13="Basic",'Data Entered'!H34=TRUE),AND('Data Entered'!B13="Intermediate",'Data Entered'!H34=TRUE),'Data Entered'!B13="Advanced - Fault Level Study",'Data Entered'!B13="Advanced - ASC Earthing"),"",IF(SUM('Data Entered'!C33:C47)<>'Data Entered'!B51,"Total cable length differs from circuit details","")) -> 
B149: Pole termination details
B151: HV cable length to pole termination ≤ 0.2km? | F151: ='Data Entered'!D51 -> NO
B152: Pole termination and GM distribution substation HV earth electrodes | F152: ='Data Entered'!F51 -> Separate | H152: Assumed Value | K152: =IF('Data Entered'!F51="Combined","YES","NO") -> NO | L152: Combined?
B153: Impedance of separate pole termination HV earth | F153: =IF('Data Entered'!F51="Separate",'Data Entered'!H51,"") -> 20 | G153: Ω | H153: Assumed Value
B156: Modify details of pole termination
K157: ='Data Entered'!B52 -> NO | L157: Modification permitted?
A158: Design Input 16 | B158: NO | K158: ='Data Entered'!D52 -> NO | L158: Modify details?
B159: =IF(AND(ISBLANK(B158),OR('Data Entered'!B13="Intermediate",'Data Entered'!B13="Advanced - Fault Level Study")),"**Compulsory Field**","") -> 
B161: Enter details of pole termination
A163: Design Input 16A | B163: Pole termination and GM distribution substation HV earth electrodes | K163: =IF('Data Entered'!F52="Combined","YES","NO") -> NO | L163: Modified = Combined?
B164: Impedance of pole termination HV earth | F164: 20 | G164: Ω
B165: =IF(OR(AND('Data Entered'!D52="YES",ISBLANK(F163)),AND('Data Entered'!D52="YES",'Data Entered'!F52="Separate",ISBLANK(F164))),"**Compulsory Field**","") -> 
B167: Select the built-up area covered by the local HV & LV network
A169: Design Input 17 | D169: Unit of measurement
D170: Area
B171: =IF(OR(ISBLANK(B169),ISBLANK(B170)),"**Compulsory Fields**","") -> **Compulsory Fields**
B173: Select the type of local HV & LV network
A175: Design Input 18
B176: =IF('Data Entered'!B56=0,"**Compulsory Field**","") -> **Compulsory Field**
B178: SOIL RESISTIVITY DATA [DESIGN STEP D]
B180: Soil Resistivity Assistant (Optional)
C182: Soil Resistivity (Ωm) | E182: Soil Depth (m)
C183: From | D183: To | E183: From | F183: To
B184: Top Soil Layer
B185: Middle Soil Layer | G185: Set middle soil layer values to zero if layer is not present
B186: Bottom Soil Layer
C187: =IF(OR(C184>D184,C185>D185,C186>D186,E184>F184,E185>F185),"'From' value must be less than 'To' value","") -> 
B189: RECOMMENDED resistivity of the upper layer of soil | F189: =IF(OR(COUNTBLANK(C184:D186)>0,COUNTBLANK(E184:F185)>0),300,'Data Entered'!D64) -> 300 | G189: Ωm
B191: RECOMMENDED upper layer to lower layer soil resistivity ratio | F191: =IF(OR(COUNTBLANK(C184:D186)>0,COUNTBLANK(E184:F185)>0),"1 : 3",'Data Entered'!F60) -> 1 : 3
B193: RECOMMENDED combined depth of the upper & middle layers of soil | F193: =IF(OR(COUNTBLANK(C184:D186)>0,COUNTBLANK(E184:F185)>0),2,'Data Entered'!D65) -> 2 | G193: m
B196: Select the resistivity of the upper layer of soil
A198: Design Input 19 | B198: =F189 -> 300 | C198: Ωm
B199: =IF('Data Entered'!B67=0,"**Compulsory Field**","") -> 
B201: Select the upper layer to lower layer soil resistivity ratio | F201: =CONCATENATE('Data Entered'!B67," Ωm") -> 300 Ωm
A202: Design Input 20 | B202: =F191 -> 1 : 3 | F202: =CONCATENATE(ROUNDUP('Data Entered'!D69,1)," Ωm") -> 900 Ωm
B203: =IF('Data Entered'!B68=0,"**Compulsory Field**","") -> 
B206: Resistivity of the lower layer of soil
B207: =IF(OR(ISBLANK('Data Entered'!B67),ISBLANK('Data Entered'!B68)),"",ROUNDUP('Data Entered'!D69,1)) -> 900 | C207: Ωm
B208: =IF('Data Entered'!B68=0,"",'Data Entered'!D68) -> LOW above HIGH resistivity soil
B210: Select the combined depth of the upper & middle layers of soil
A211: Design Input 21 | B211: =F193 -> 2 | C211: m
B212: =IF('Data Entered'!B70=0,"**Compulsory Field**","") -> 
B214: SUBSTATION HV ELECTRODE RESISTANCE [DESIGN STEP E]
B216: Perimeter electrode
B218: ='Data Entered'!G11 -> Not Applicable | K218: =IF(B218="Required","YES","NO") -> NO | L218: Perimeter electrode?
B221: Dispense with perimeter electrode?
A223: Design Input 22 | B223: NO | D223: Selecting "YES" is only permissible for an earthing design at an existing site which lacks a perimeter electrode and where a retrofit is not reasonably practicable
B224: =IF(AND(ISBLANK(B223),'Data Entered'!G11="Required"),"**Compulsory Field**","") -> 
B227: Select dimensions of horizontal electrode 'tail'
A229: Design Input 23 | C229: m
B230: =IF(ISBLANK(B229),"**Compulsory Field**","") -> **Compulsory Field**
B232: Estimated HV electrode resistance (RE) excluding network contribution
B234: ='Data Entered'!F72 -> 120000 | C234: Ω
B235: =IF(OR(AND(B30=6600,B234>15,'Data Entered'!B72=200),AND(B30=11000,B234>20,'Data Entered'!B72=200)),"Employ Earthing Specialist to carry out design",IF(OR(AND(B30=6600,B234>15),AND(B30=11000,B234>20)),"Electrode resistance exceeds maximum permitted - Increase length of tail","")) -> 
B237: Estimated network contribution to HV electrode resistance (RNC)
B239: ='Data Entered'!F73 -> 0.85 | C239: Ω
B242: Overall earthing system impedance (RGMSUB)
B244: ='Data Entered'!F74 -> 0.8499939792 | C244: Ω
B247: HV FAULT CURRENT & GROUND RETURN CURRENT [DESIGN STEP F]
B249: Calculated total earth fault current (IF)
B251: ='Data Entered'!B75 -> 10000 | C251: A
B254: Percentage of fault current flowing into the ground
B256: ='Data Entered'!B76 -> 100 | C256: %IGR
B259: Modify percentage of fault current flowing into the ground?
A261: Design Input 24 | B261: NO | K261: ='Data Entered'!B77 -> NO
B262: =IF(AND(ISBLANK(B261),OR('Data Entered'!B13="Intermediate",'Data Entered'!B13="Advanced - Fault Level Study")),"**Compulsory Field**","") -> 
B264: Enter modified percentage of fault current flowing into the ground?
A266: Design Input 24A | B266: =B256 -> 100 | C266: %IGR
B267: =IF(AND('Data Entered'!B77="YES",'Data Entered'!D77=0),"**Compulsory Field**","") -> 
B268: The following data should be used with the Earthing Solutions 'Ground Return Current Calculator' (where used)
B269: Tab | D269: =IF('Data Entered'!B49="All Cable","Arrangement 1 all cable circuit","Ar. 2 cable-line or line-cable") -> Arrangement 1 all cable circuit
B270: Cable type | D270: =VLOOKUP('Data Entered'!B50,'Data-General'!P2:R41,2,FALSE) -> 
B271: Resistance at Start of Cable Ra | D271: =IF('Data Entered'!B48="YES",'Data Entered'!F18,IF('Data Entered'!B48="NO",'Data Entered'!H53,"0")) -> 0.1 | G271: Ω
B272: Resistance of Installation Rb | D272: ='Data Entered'!F74 -> 0.8499939792 | G272: Ω
B273: Cable length | D273: ='Data Entered'!B51 -> 0 | G273: km
B274: Then multiply IGR figure by 100, round up to whole number, and enter the value in Design Input 24A
B277: The following data should be used with the 'Ground Return Current Tables' (where used)
B278: Cable type | D278: =VLOOKUP('Data Entered'!B50,'Data-General'!P2:R41,3,FALSE) -> 
B279: Cable length | D279: =IF('Data Entered'!B51<=0.5,0.5,IF('Data Entered'!B51<=1,1,IF('Data Entered'!B51<=2,2,IF('Data Entered'!B51<=5,5,10)))) -> 0.5 | G279: km
B280: Then enter the % figure in Design Input 24A
B283: Calculated fault current flowing into the ground (IGR)
B285: ='Data Entered'!B78 -> 10000 | C285: A
B288: CONDUCTOR & ELECTRODE DIMENSIONS FOR CORROSION, MECHANICAL & THERMAL PERFORMANCE [DESIGN STEP G]
B290: Earth conductor cross sectional area
B292: ='Data Entered'!B79 -> 70 | C292: mm2
B295: Enter number of parallel conductors used for 'tail' electrode
A297: Design Input 25
B298: =IF('Data Entered'!B81=0,"**Compulsory Field**","") -> **Compulsory Field**
B308: Minimum HV electrode surface area required
B310: =IF(ISERR('Calculations-Surface Area'!B22),"",'Calculations-Surface Area'!B22) -> 307.7234811 | C310: mm2
B313: Actual HV earth electrode surface area
B315: Surface area of perimeter electrode | E315: ='Data Entered'!B82 -> 0 | F315: mm2
B316: Surface area of 4 x 1.2m earth rods | E316: ='Data Entered'!B83 -> 0 | F316: mm2
B317: Surface area of electrode 'tail' | E317: ='Data Entered'!B84 -> 0 | F317: mm2
B318: Total surface area | E318: ='Data Entered'!B85 -> 0 | F318: mm2
B319: Electrode surface area criteria met | E319: ='Data Entered'!D85 -> NO
B320: =IF(E319="YES","",IF(B297=3,"Insufficient electrode surface area - Increase length of electrode 'tail'","Insufficient electrode surface area - Increase length of electrode 'tail' or number of 'tail' conductors'")) -> Insufficient electrode surface area - Increase length of electrode 'tail' or number of 'tail' conductors' | H320: Change length of HV electrode tail
H321: Change number of HV electrode tail conductors
B323: EARTH POTENTIAL RISE DUE TO HV FAULT [DESIGN STEP H]
B325: Calculated earth potential rise (EPR) due to an HV fault
B327: ='Data Entered'!B86 -> 8499.939792 | C327: V
B330: Design EPR due to an HV fault (10% margin)
... 137 more rows

Sheet % Touch Voltage (hidden)
C1: With Perimeter Electrode | V1: Without Perimeter Electrode
B2: Upper Soil Resitivity | C2: 25 | D2: 25 | E2: 25 | F2: 25 | G2: 25 | H2: 25 | I2: 25 | J2: 25 | K2: 25 | L2: 25 | M2: 25 | N2: 25 | O2: 25 | P2: 25 | Q2: 25 | R2: 25 | S2: 25 | T2: 25 | U2: 25 | V2: 25 | W2: 25 | X2: 25 | Y2: 25 | Z2: 25 | AA2: 25 | AB2: 25 | AC2: 25 | AD2: 25 | AE2: 25 | AF2: 25 | AG2: 25 | AH2: 25 | AI2: 25 | AJ2: 25 | AK2: 25 | AL2: 25 | AM2: 25 | AN2: 25
A3: ROW NO | B3: Lower Soil Resistivity | C3: 2.5 | D3: 2.778 | E3: 3.125 | F3: 3.573 | G3: 4.168 | H3: 5 | I3: 6.25 | J3: 8.3333 | K3: 12.5 | L3: 25 | M3: 50 | N3: 75 | O3: 100 | P3: 125 | Q3: 150 | R3: 175 | S3: 200 | T3: 225 | U3: 250 | V3: 2.5 | W3: 2.778 | X3: 3.125 | Y3: 3.573 | Z3: 4.168 | AA3: 5 | AB3: 6.25 | AC3: 8.3333 | AD3: 12.5 | AE3: 25 | AF3: 50 | AG3: 75 | AH3: 100 | AI3: 125 | AJ3: 150 | AK3: 175 | AL3: 200 | AM3: 225 | AN3: 250
A4: 1 | B4: Lower to Upper Ratio | C4: 0.1 | D4: 0.1111 | E4: 0.125 | F4: 0.1429 | G4: 0.1667 | H4: 0.2 | I4: 0.25 | J4: 0.3333 | K4: 0.5 | L4: 1 | M4: 2 | N4: 3 | O4: 4 | P4: 5 | Q4: 6 | R4: 7 | S4: 8 | T4: 9 | U4: 10 | V4: 0.1 | W4: 0.1111 | X4: 0.125 | Y4: 0.1429 | Z4: 0.1667 | AA4: 0.2 | AB4: 0.25 | AC4: 0.3333 | AD4: 0.5 | AE4: 1 | AF4: 2 | AG4: 3 | AH4: 4 | AI4: 5 | AJ4: 6 | AK4: 7 | AL4: 8 | AM4: 9 | AN4: 10
A5: =A4+1 -> 2 | B5: Unit substation in freestanding GRP or masonry housing | C5: 54 | D5: 53 | E5: 52 | F5: 51 | G5: 50 | H5: 48 | I5: 46 | J5: 43 | K5: 33 | L5: 25 | M5: 17 | N5: 14 | O5: 13 | P5: 12 | Q5: 11 | R5: 9 | S5: 8 | T5: 8 | U5: 8 | V5: 56 | W5: 56 | X5: 56 | Y5: 55 | Z5: 55 | AA5: 54 | AB5: 53 | AC5: 51 | AD5: 40 | AE5: 35 | AF5: 24 | AG5: 21 | AH5: 20 | AI5: 18 | AJ5: 17 | AK5: 17 | AL5: 16 | AM5: 16 | AN5: 16
A6: =A5+1 -> 3 | B6: Unit substation integrated within larger building | V6: 100 | W6: 100 | X6: 100 | Y6: 100 | Z6: 100 | AA6: 100 | AB6: 100 | AC6: 100 | AD6: 100 | AE6: 100 | AF6: 100 | AG6: 100 | AH6: 100 | AI6: 100 | AJ6: 100 | AK6: 100 | AL6: 100 | AM6: 100 | AN6: 100
A7: 4 | B7: Padmount substation | C7: 69 | D7: 68 | E7: 67 | F7: 66 | G7: 64 | H7: 62 | I7: 59 | J7: 55 | K7: 49 | L7: 42 | M7: 33 | N7: 28 | O7: 26 | P7: 24 | Q7: 22 | R7: 21 | S7: 20 | T7: 19 | U7: 18 | V7: 84 | W7: 84 | X7: 83 | Y7: 82 | Z7: 73 | AA7: 71 | AB7: 70 | AC7: 67 | AD7: 63 | AE7: 55 | AF7: 41 | AG7: 37 | AH7: 34 | AI7: 32 | AJ7: 30 | AK7: 29 | AL7: 27 | AM7: 26 | AN7: 25
A8: 5 | B8: LV Connection substation in freestanding GRP or masonry housing | C8: 54 | D8: 53 | E8: 52 | F8: 51 | G8: 50 | H8: 48 | I8: 46 | J8: 43 | K8: 33 | L8: 25 | M8: 17 | N8: 14 | O8: 13 | P8: 12 | Q8: 11 | R8: 9 | S8: 8 | T8: 8 | U8: 8 | V8: 56 | W8: 56 | X8: 56 | Y8: 55 | Z8: 55 | AA8: 54 | AB8: 53 | AC8: 51 | AD8: 40 | AE8: 35 | AF8: 24 | AG8: 21 | AH8: 20 | AI8: 18 | AJ8: 17 | AK8: 17 | AL8: 16 | AM8: 16 | AN8: 16
A9: 6 | B9: LV Connection substation integrated within larger building | V9: 100 | W9: 100 | X9: 100 | Y9: 100 | Z9: 100 | AA9: 100 | AB9: 100 | AC9: 100 | AD9: 100 | AE9: 100 | AF9: 100 | AG9: 100 | AH9: 100 | AI9: 100 | AJ9: 100 | AK9: 100 | AL9: 100 | AM9: 100 | AN9: 100
A10: 7 | B10: HV Connection substation in freestanding GRP or masonry housing | C10: 54 | D10: 53 | E10: 52 | F10: 51 | G10: 50 | H10: 48 | I10: 46 | J10: 43 | K10: 33 | L10: 25 | M10: 17 | N10: 14 | O10: 13 | P10: 12 | Q10: 11 | R10: 9 | S10: 8 | T10: 8 | U10: 8 | V10: 56 | W10: 56 | X10: 56 | Y10: 55 | Z10: 55 | AA10: 54 | AB10: 53 | AC10: 51 | AD10: 40 | AE10: 35 | AF10: 24 | AG10: 21 | AH10: 20 | AI10: 18 | AJ10: 17 | AK10: 17 | AL10: 16 | AM10: 16 | AN10: 16
A11: 8 | B11: HV Connection substation integrated within larger building | V11: 100 | W11: 100 | X11: 100 | Y11: 100 | Z11: 100 | AA11: 100 | AB11: 100 | AC11: 100 | AD11: 100 | AE11: 100 | AF11: 100 | AG11: 100 | AH11: 100 | AI11: 100 | AJ11: 100 | AK11: 100 | AL11: 100 | AM11: 100 | AN11: 100
A12: COL NO | B12: 1 | C12: =B12+1 -> 2 | D12: 3 | E12: 4 | F12: 5 | G12: 6 | H12: 7 | I12: 8 | J12: 9 | K12: 10 | L12: 11 | M12: 12 | N12: 13 | O12: 14 | P12: 15 | Q12: 16 | R12: 17 | S12: 18 | T12: 19 | U12: 20 | V12: 21 | W12: 22 | X12: 23 | Y12: 24 | Z12: 25 | AA12: =Z12+1 -> 26 | AB12: =AA12+1 -> 27 | AC12: =AB12+1 -> 28 | AD12: =AC12+1 -> 29 | AE12: =AD12+1 -> 30 | AF12: =AE12+1 -> 31 | AG12: =AF12+1 -> 32 | AH12: =AG12+1 -> 33 | AI12: =AH12+1 -> 34 | AJ12: =AI12+1 -> 35 | AK12: =AJ12+1 -> 36 | AL12: =AK12+1 -> 37 | AM12: =AL12+1 -> 38 | AN12: =AM12+1 -> 39
C14: U-L Ratio | D14: 0.1 | E14: 0.1111 | F14: 0.125 | G14: 0.1429 | H14: 0.1667 | I14: 0.2 | J14: 0.25 | K14: 0.3333 | L14: 0.5 | M14: 1 | N14: 2 | O14: 3 | P14: 4 | Q14: 5 | R14: 6 | S14: 7 | T14: 8 | U14: 9 | V14: 10
B15: COL NO | C15: 1 | D15: =C15+1 -> 2 | E15: =D15+1 -> 3 | F15: 4 | G15: 5 | H15: 6 | I15: 7 | J15: 8 | K15: 9 | L15: 10 | M15: 11 | N15: 12 | O15: 13 | P15: 14 | Q15: 15 | R15: 16 | S15: 17 | T15: 18 | U15: 19 | V15: 20
C18: S/S Type | D18: Unit substation in freestanding GRP or masonry housing | E18: Unit substation integrated within larger building | F18: Padmount substation | G18: LV Connection substation in freestanding GRP or masonry housing | H18: LV Connection substation integrated within larger building | I18: HV Connection substation in freestanding GRP or masonry housing | J18: HV Connection substation integrated within larger building
B19: ROW NO | C19: 1 | D19: =C19+1 -> 2 | E19: 3 | F19: 4 | G19: 5 | H19: 6 | I19: 7 | J19: 8
B22: Actual Substation Format | C22: ='Data Entered'!B10 -> 0
B23: ROW NO | C23: =IF(C22=0,2,HLOOKUP(C22,C18:J19,2,FALSE)) -> 2
B24: Perimeter Electrode | C24: =IF('Data Entered'!D71="Required","YES","NO") -> NO
B25: Upper resistivity | C25: ='Data Entered'!B67 -> 300
B26: Lower resistivity | C26: ='Data Entered'!D69 -> 900
B27: U-L ratio | C27: ='Data Entered'!B69 -> 3
B28: COL NO | C28: =HLOOKUP(C27,C14:V15,2,FALSE) -> 13
B29: COL NO CORRECTED | C29: =IF(C24="YES",C28,C28+19) -> 32
B30: % Touch Voltage | C30: =INDEX(B4:AN11,C23,C29) -> 21

Sheet Soil Depth Factor (hidden)
D1: Soil Depth (m)
A2: Upper | B2: Lower | C2: U-L Ratio | D2: 1 | E2: 2 | F2: 4 | G2: 6 | H2: 8 | I2: 10
A3: 25 | B3: =A3*C3 -> 2.5 | C3: 0.1 | D3: 0.7651835595 | E3: 1 | F3: 1.184856345 | G3: 1.257083001 | H3: 1.292098962 | I3: 1.315742219
A4: 25 | B4: 2.7775 | C4: 0.1111 | D4: 0.7698523664 | E4: 1 | F4: 1.180408001 | G4: 1.247894488 | H4: 1.285546002 | I4: 1.308555261
A5: 25 | B5: 3.125 | C5: 0.125 | D5: 0.7751397163 | E5: 1 | F5: 1.175041454 | G5: 1.241171774 | H5: 1.277651538 | I5: 1.299883314
A6: 25 | B6: 3.5725 | C6: 0.1429 | D6: 0.7821270925 | E6: 1 | F6: 1.167541157 | G6: 1.23176758 | H6: 1.266761056 | I6: 1.288109714
A7: 25 | B7: 4.1675 | C7: 0.1667 | D7: 0.7921615012 | E7: 1 | F7: 1.157729009 | G7: 1.221360868 | H7: 1.25454342 | I7: 1.274779023
A8: 25 | B8: 5 | C8: 0.2 | D8: 0.8057732891 | E8: 1 | F8: 1.148044166 | G8: 1.207152547 | H8: 1.23794091 | I8: 1.256745553
A9: 25 | B9: 6.25 | C9: 0.25 | D9: 0.8248098007 | E9: 1 | F9: 1.135196635 | G9: 1.18815363 | H9: 1.215758384 | I9: 1.232583262
A10: 25 | B10: 8.3325 | C10: 0.3333 | D10: 0.8510993377 | E10: 1 | F10: 1.112317881 | G10: 1.156203091 | H10: 1.178984547 | I10: 1.192935982
A11: 25 | B11: 12.5 | C11: 0.5 | D11: 0.8988176163 | E11: 1 | F11: 1.075104025 | G11: 1.104189841 | H11: 1.119350719 | I11: 1.128537882
A12: 25 | B12: 25 | C12: 1 | D12: 1 | E12: 1 | F12: 1 | G12: 1 | H12: 1 | I12: 1
A13: 25 | B13: 50 | C13: 2 | D13: 1.116799438 | E13: 1 | F13: 0.9207474227 | G13: 0.891049672 | H13: 0.8758200562 | I13: 0.8665065604
A14: 25 | B14: 75 | C14: 3 | D14: 1.184949246 | E14: 1 | F14: 0.8781277413 | G14: 0.8330130749 | H14: 0.8098500355 | I14: 0.7957934751
A15: 25 | B15: 100 | C15: 4 | D15: 1.234865551 | E15: 1 | F15: 0.8489191391 | G15: 0.791017591 | H15: 0.7632651105 | I15: 0.7463931362
A16: 25 | B16: 125 | C16: 5 | D16: 1.270452705 | E16: 1 | F16: 0.8287282873 | G16: 0.7663126631 | H16: 0.7343623436 | I16: 0.7150121501
A17: 25 | B17: 150 | C17: 6 | D17: 1.297975258 | E17: 1 | F17: 0.8135353795 | G17: 0.7458584821 | H17: 0.7112709216 | I17: 0.6903385985
A18: 25 | B18: 175 | C18: 7 | D18: 1.327538019 | E18: 1 | F18: 0.8016440608 | G18: 0.7299219071 | H18: 0.6933004521 | I18: 0.6711467324
A19: 25 | B19: 200 | C19: 8 | D19: 1.341631105 | E19: 1 | F19: 0.7876560771 | G19: 0.7130946736 | H19: 0.6750434645 | I19: 0.6520467836
A20: 25 | B20: 225 | C20: 9 | D20: 1.357783398 | E20: 1 | F20: 0.7820955009 | G20: 0.7038016402 | H20: 0.6619146164 | I20: 0.638192688
A21: 25 | B21: 250 | C21: 10 | D21: 1.371611536 | E21: 1 | F21: 0.7749880583 | G21: 0.6943067829 | H21: 0.6531973967 | I21: 0.6283436828
A24: =ROUND('Data Entered'!B69,4) -> 3 | B24: U-L Ratio
A25: ='Data Entered'!B70 -> 2 | B25: Soil Depth
A26: =IF(A25=1,2,IF(A25=2,3,IF(A25=4,4,IF(A25=6,5,IF(A25=8,6,7))))) -> 3 | B26: Soil Depth Col
A27: =VLOOKUP(A24,C3:I21,A26,TRUE) -> 1 | B27: Soil Depth Factor

Sheet Publish Report
B2: Check all the error messages listed in the table below have been fully resolved.
B4: ERROR MESSAGES
B5: =IF('Job Input'!B5="**Compulsory Field**","Job Input 1 is incomplete","") -> Job Input 1 is incomplete | G5: Remedy | I5: Job Input'!$B$4
B6: =IF('Job Input'!B10="**Compulsory Field**","Job Input 2 is incomplete","") -> Job Input 2 is incomplete | G6: Remedy | I6: Job Input'!$B$9
B7: =IF('Job Input'!B15="**Compulsory Field**","Job Input 3 is incomplete","") -> Job Input 3 is incomplete | G7: Remedy | I7: Job Input'!$B$14
B8: =IF('Job Input'!B20="**Compulsory Field**","Job Input 4 is incomplete","") -> Job Input 4 is incomplete | G8: Remedy | I8: Job Input'!$B$19
B9: =IF('Job Input'!B25="**Compulsory Field**","Job Input 5 is incomplete","") -> Job Input 5 is incomplete | G9: Remedy | I9: Job Input'!$B$24
B10: =IF('Job Input'!B30="**Compulsory Field**","Job Input 6 is incomplete","") -> Job Input 6 is incomplete | G10: Remedy | I10: Job Input'!$B$29
B11: =IF('Job Input'!B36="**Compulsory Field**","Job Input 7 is incomplete","") -> Job Input 7 is incomplete | G11: Remedy | I11: Job Input'!$B$34
B12: =IF('Design Input'!B7="**Compulsory Field**","Design Input 0 is incomplete","") -> Design Input 0 is incomplete | G12: Remedy | I12: Design Input'!$B$6
B13: =IF('Design Input'!B12="**Compulsory Field**","Design Input 1 is incomplete","") -> Design Input 1 is incomplete | G13: Remedy | I13: Design Input'!$B$11
B14: =IF('Design Input'!B12="This earthing design tool is NOT appropriate for a special design","This design tool is NOT appropriate for a special design","") ->  | G14: Remedy | I14: Design Input'!$B$11
B15: =IF('Design Input'!B19="**Compulsory Field**","Design Input 2 is incomplete","") -> Design Input 2 is incomplete | G15: Remedy | I15: Design Input'!$B$18
B16: =IF('Design Input'!B26="**Compulsory Field**","Design Input 3 is incomplete","") ->  | G16: Remedy | I16: Design Input'!$B$25
B17: =IF('Design Input'!B31="**Compulsory Field**","Design Input 4 is incomplete","") -> Design Input 4 is incomplete | G17: Remedy | I17: Design Input'!$B$30
B18: =IF('Design Input'!B36="**Compulsory Field**","Design Input 5 is incomplete","") -> Design Input 5 is incomplete | G18: Remedy | I18: Design Input'!$B$35
B19: =IF('Design Input'!B41="**Compulsory Field**","Design Input 6 is incomplete","") -> Design Input 6 is incomplete | G19: Remedy | I19: Design Input'!$B$40
B20: =IF('Design Input'!B56="**Compulsory Field**","Design Input 7 is incomplete","") ->  | G20: Remedy | I20: Design Input'!$B$55
B21: =IF('Design Input'!B61="**Compulsory Field**","Design Input 7A is incomplete","") ->  | G21: Remedy | I21: Design Input'!$B$60
B22: =IF('Design Input'!B71="**Compulsory Field**","Design Input 8 is incomplete","") ->  | G22: Remedy | I22: Design Input'!$B$70
B23: =IF('Design Input'!B76="**Compulsory Field**","Design Input 8A is incomplete","") ->  | G23: Remedy | I23: Design Input'!$B$75
B24: =IF('Design Input'!B86="**Compulsory Field**","Design Input 9 is incomplete","") ->  | G24: Remedy | I24: Design Input'!$B$85
B25: =IF('Design Input'!B91="**Compulsory Field**","Design Input 9A is incomplete","") ->  | G25: Remedy | I25: Design Input'!$B$90
B26: =IF('Design Input'!B96="**Compulsory Field**","Design Input 10 is incomplete","") ->  | G26: Remedy | I26: Design Input'!$C$95
B27: =IF('Design Input'!C105="**Compulsory Fields**","Design Input 11 is incomplete","") ->  | G27: Remedy | I27: Design Input'!$C$95
B28: =IF('Design Input'!C110="**Compulsory Field**","Design Input 12 is incomplete","") -> Design Input 12 is incomplete | G28: Remedy | I28: Design Input'!$C$102
B29: =IF('Design Input'!C115="**Compulsory Fields: NER 1**","Design Input 12 is incomplete","") ->  | G29: Remedy | I29: Design Input'!$D$110
B30: =IF('Design Input'!D134="**Compulsory Fields**","Design Input 13 is incomplete","") -> Design Input 13 is incomplete | G30: Remedy | I30: Design Input'!$B$129
B31: =IF('Design Input'!B139="**Compulsory Field**","Design Input 14 is incomplete","") ->  | G31: Remedy | I31: Design Input'!$D$137
B32: =IF('Design Input'!B147="**Compulsory Fields**","Design Input 15 is incomplete","") -> Design Input 15 is incomplete | G32: Remedy | I32: Design Input'!$D$137
B33: =IF('Design Input'!B159="**Compulsory Field**","Design Input 16 is incomplete","") ->  | G33: Remedy | I33: Design Input'!$B$149
B34: =IF('Design Input'!B165="**Compulsory Field**","Design Input 16A is incomplete","") ->  | G34: Remedy | I34: Design Input'!$F$154
B35: =IF('Design Input'!B171="**Compulsory Fields**","Design Input 17 is incomplete","") -> Design Input 17 is incomplete | G35: Remedy | I35: Design Input'!$B$160
B36: =IF('Design Input'!B176="**Compulsory Field**","Design Input 18 is incomplete","") -> Design Input 18 is incomplete | G36: Remedy | I36: Design Input'!$B$166
B37: =IF('Design Input'!B199="**Compulsory Field**","Design Input 19 is incomplete","") ->  | G37: Remedy | I37: Design Input'!$B$189
B38: =IF('Design Input'!B203="**Compulsory Field**","Design Input 20 is incomplete","") ->  | G38: Remedy | I38: Design Input'!$B$193
B39: =IF('Design Input'!B212="**Compulsory Field**","Design Input 21 is incomplete","") ->  | G39: Remedy | I39: Design Input'!$B$202
B40: =IF('Design Input'!B224="**Compulsory Field**","Design Input 22 is incomplete","") ->  | G40: Remedy | I40: Design Input'!$B$214
B41: =IF('Design Input'!B230="**Compulsory Field**","Design Input 23 is incomplete","") -> Design Input 23 is incomplete | G41: Remedy | I41: Design Input'!$B$220
B42: =IF('Design Input'!B262="**Compulsory Field**","Design Input 24 is incomplete","") ->  | G42: Remedy | I42: Design Input'!$B$252
B43: =IF('Design Input'!B267="**Compulsory Field**","Design Input 24A is incomplete","") ->  | G43: Remedy | I43: Design Input'!$B$257
B44: =IF('Design Input'!B298="**Compulsory Field**","Design Input 25 is incomplete","") -> Design Input 25 is incomplete | G44: Remedy | I44: Design Input'!$B$293
B45: =IF('Design Input'!B345="**Compulsory Field**","Design Input 26 is incomplete","") ->  | G45: Remedy | I45: Design Input'!$B$335
B46: =IF('Design Input'!B357="**Compulsory Fields**","Design Input 26A is incomplete","") ->  | G46: Remedy | I46: Design Input'!$E$342
B47: =IF('Design Input'!B374="**Compulsory Field**","Design Input 27 is incomplete","") ->  | G47: Remedy | I47: Design Input'!$B$431
B48: =IF('Design Input'!B379="**Compulsory Field**","Design Input 27A is incomplete","") ->  | G48: Remedy | I48: Design Input'!$B$436
B49: =IF('Design Input'!B446="**Compulsory Field**","Design Input 28 is incomplete","") -> Design Input 28 is incomplete | G49: Remedy | I49: Design Input'!$B$384
B50: =IF('Design Input'!B453="**Compulsory Field**","Design Input 29 is incomplete","") -> Design Input 29 is incomplete | G50: Remedy | I50: Design Input'!$B$391
B51: =IF('Design Input'!B555="**Compulsory Field**","Design Input 30 is incomplete","") -> Design Input 30 is incomplete | G51: Remedy | I51: Design Input'!$B$522
B53: Hide "Publish Report" button | F53: =IF(OR(RIGHT(B5,10)="incomplete",RIGHT(B6,10)="incomplete",RIGHT(B7,10)="incomplete",RIGHT(B8,10)="incomplete",RIGHT(B9,10)="incomplete",RIGHT(B10,10)="incomplete",RIGHT(B11,10)="incomplete",RIGHT(B12,10)="incomplete",RIGHT(B13,10)="incomplete",RIGHT(B14,6)="design",RIGHT(B15,10)="incomplete",RIGHT(B16,10)="incomplete",RIGHT(B17,10)="incomplete",RIGHT(B18,10)="incomplete",RIGHT(B19,10)="incomplete",RIGHT(B20,10)="incomplete",RIGHT(B21,10)="incomplete",RIGHT(B22,10)="incomplete",RIGHT(B23,10)="incomplete",RIGHT(B24,10)="incomplete",RIGHT(B25,10)="incomplete",RIGHT(B26,10)="incomplete",RIGHT(B27,10)="incomplete",RIGHT(B28,10)="incomplete",RIGHT(B29,10)="incomplete",RIGHT(B30,10)="incomplete",RIGHT(B31,10)="incomplete",RIGHT(B32,10)="incomplete",RIGHT(B33,10)="incomplete",RIGHT(B34,10)="incomplete",RIGHT(B35,10)="incomplete",RIGHT(B36,10)="incomplete",RIGHT(B37,10)="incomplete",RIGHT(B38,10)="incomplete",RIGHT(B39,10)="incomplete",RIGHT(B40,10)="incomplete",RIGHT(B41,10)="incomplete",RIGHT(B42,10)="incomplete",RIGHT(B43,10)="incomplete",RIGHT(B44,10)="incomplete",RIGHT(B45,10)="incomplete",RIGHT(B46,10)="incomplete",RIGHT(B47,10)="incomplete",RIGHT(B48,10)="incomplete",RIGHT(B49,10)="incomplete",RIGHT(B50,10)="incomplete",RIGHT(B51,10)="incomplete"),"YES","NO") -> YES
B56: Click on the 'Publish Report' button to save the earthing report in pdf format once the "Job Input" and "Design Input" forms have been fully completed.
B62: The pdf document will be named "ER_NGED_[Licence Area]_[Job Reference]_[dd-mm-yyyy-hh-mm-ss].pdf" and will be located in the same folder as the excel spreadsheet.
A75: FOOTER | C75: ER_WPD_EM_1234567_26-03-2020 17-03-58hrs
A76: LICENCE | C76: ='Data Entered'!D6 -> WM
A77: JOB REFERENCE | C77: =IF(LEN('Data Entered'!B5)>15,LEFT('Data Entered'!B5,15),'Data Entered'!B5) -> 0
A78: DATE | C78: 26/03/2020
A79: TIME | C79: 17:03:58

Sheet Data Entered (hidden)
A1: Job Input
A2: Job Input 1 | B2: ='Job Input'!B4 -> 0 | C2: NGED or ICP Job?
A3: Job Input 2 | B3: ='Job Input'!B9 -> 0 | C3: Designer Name
A4: Job Input 3 | B4: ='Job Input'!B14 -> 0 | C4: NGED MU or ICP Name
A5: Job Input 4 | B5: ='Job Input'!B19 -> 0 | C5: NGED Enquiry or ICP Reference
A6: Job Input 5 | B6: ='Job Input'!B24 -> 0 | C6: Licence Area | D6: =IF(B6="South West","SWE",IF(B6="South Wales","SWA",IF(B6="East Midlands","EM","WM"))) -> WM | E6: Shortform
A7: Job Input 6 | B7: ='Job Input'!B29 -> 0 | C7: GMSUB Name
A8: Job Input 7 | B8: ='Job Input'!B34 -> 0 | C8: GMSUB Address
A9: Design Input
A10: Design Input 0 | B10: ='Design Input'!B6 -> 0 | D10: Substation format | E10: =IF(B10=0,0,VLOOKUP(B10,'Data-General'!B2:C8,2,FALSE)) -> 0 | F10: Substation format code | G10: =IF(OR(E10="G",E10="H"),"NO","YES") -> YES | H10: LV? | I10: =CONCATENATE("TP21G-",E10) -> TP21G-0 | J10: Associated ST
A11: Design Input 1 | B11: ='Design Input'!B11 -> 0 | C11: Special design? | G11: =IF(OR(E10="A",E10="C",E10="E",E10="G"),"Required","Not Applicable") -> Not Applicable | H11: Default Perimeter electrode
A12: Design Input 2 | B12: ='Design Input'!B18 -> 0 | C12: Problematic location? | G12: =IF(OR(E10="B",E10="F",E10="H"),"YES","NO") -> NO | H12: Insulated HV Tail?
A13: Design Input 3 | B13: ='Design Input'!B25 -> Basic | C13: Design methodology? | D13: =IF(B13="Advanced - ASC Earthing","YES","NO") -> NO | E13: ASC Earthed Network
A14: Design Input 4 | B14: ='Design Input'!B30 -> 0 | C14: System voltage
A15: Design Input 5 | B15: ='Design Input'!B35 -> 0 | C15: Source substation method | D15: =IF(B15="By Name","NAME","NUMBER") -> NUMBER | E15: Shortform | F15: =CONCATENATE("SUBSTATION_",D15,"_",D6) -> SUBSTATION_NUMBER_WM | G15: Concatenate shortforms
A16: Design Input 6 | B16: ='Design Input'!B40 -> 0 | C16: Source substation name/number | D16: =IF(D15="NUMBER",VLOOKUP(B16,'Source-Num'!B3:I1990,2,FALSE),VLOOKUP(SUBSTITUTE(B16," ",""),'Source-Name'!C3:J1990,2,FALSE)) ->  | E16: Source substation name/number
A17: Design Input 7 | B17: =IF(B16=0,0.1,IF(D15="NUMBER",VLOOKUP(B16,'Source-Num'!B3:I1990,3,FALSE),IF(D15="NAME",VLOOKUP(SUBSTITUTE(B16," ",""),'Source-Name'!C3:J1990,3,FALSE),"ERROR"))) -> 0.1 | C17: Source earth resistance | D17: =IF(D15="NUMBER",VLOOKUP(B16,'Source-Num'!B3:I1990,4,FALSE),VLOOKUP(SUBSTITUTE(B16," ",""),'Source-Name'!C3:J1990,4,FALSE)) ->  | E17: Assumed value
B18: =IF(OR(B13="Basic",B13="Advanced - ASC Earthing"),"NO",IF(ISBLANK('Design Input'!B55),"NO",'Design Input'!B55)) -> NO | C18: Modify source earth resistance | D18: =IF(B18="NO","N/A",'Design Input'!B60) -> N/A | E18: Value | F18: =IF(B18="YES",D18,B17) -> 0.1 | G18: Value used in calculations
A19: Design Input 8 | B19: =IF(B16=0,3000,IF(D15="NUMBER",VLOOKUP(B16,'Source-Num'!B3:I1990,5,FALSE),VLOOKUP(SUBSTITUTE(B16," ",""),'Source-Name'!C3:J1990,5,FALSE))) -> 3000 | C19: Source EPR | D19: =IF(D15="NUMBER",VLOOKUP(B16,'Source-Num'!B3:I1990,6,FALSE),VLOOKUP(SUBSTITUTE(B16," ",""),'Source-Name'!C3:J1990,6,FALSE)) ->  | E19: Assumed value
B20: =IF(OR(B13="Basic",B13="Advanced - ASC Earthing"),"NO",IF(ISBLANK('Design Input'!B70),"NO",'Design Input'!B70)) -> NO | C20: Modify source EPR | D20: =IF(B20="NO","N/A",'Design Input'!B75) -> N/A | E20: Value | F20: =IF(B20="YES",D20,B19) -> 3000 | G20: Value used in calculations
A21: Design Input 9 | B21: =IF(B16=0,3,IF(D15="NUMBER",VLOOKUP(B16,'Source-Num'!B3:I1990,7,FALSE),VLOOKUP(SUBSTITUTE(B16," ",""),'Source-Name'!C3:J1990,7,FALSE))) -> 3 | C21: Source clearance time | D21: =IF(D15="NUMBER",VLOOKUP(B16,'Source-Num'!B3:I1990,8,FALSE),VLOOKUP(SUBSTITUTE(B16," ",""),'Source-Name'!C3:J1990,8,FALSE)) ->  | E21: Assumed value
B22: =IF(OR(B13="Basic",B13="Advanced - ASC Earthing"),"NO",IF(ISBLANK('Design Input'!B85),"NO",'Design Input'!B85)) -> NO | C22: Modify clearance time | D22: =IF(B22="NO","N/A",'Design Input'!B90) -> N/A | E22: Value | F22: =IF(B13="Basic",B21,IF(B22="YES",D22,B21)) -> 3 | G22: Value used in calculations
B23: ='Design Input'!B95 -> 0 | C23: Overcurrent type protection? | D23: =IF(OR(B13="Basic",B13="Advanced - ASC Earthing"),0.4,IF(OR(B23="YES",B23="UNKNOWN"),0.4,IF(F22>0.2,0.1,0.2-F22))) -> 0.4 | E23: Design margin | F23: =F22+D23 -> 3.4 | G23: Design EHV clearance time
A24: Design Input 10 | B24: ='Design Input'!C100 -> 0 | C24: Units
B25: =IF($B$13="Advanced - Fault Level Study",'Design Input'!C102,0) -> 0 | C25: =IF($B$13="Advanced - Fault Level Study",'Design Input'!D102,0) -> 0 | D25: Z1
B26: =IF($B$13="Advanced - Fault Level Study",'Design Input'!C103,0) -> 0 | C26: =IF($B$13="Advanced - Fault Level Study",'Design Input'!D103,0) -> 0 | D26: Z2
B27: =IF($B$13="Advanced - Fault Level Study",'Design Input'!C104,0) -> 0 | C27: =IF($B$13="Advanced - Fault Level Study",'Design Input'!D104,0) -> 0 | D27: Z0
A28: Design Input 11 | B28: =IF(OR($B$13="Advanced - Fault Level Study",$B$13="Advanced - ASC Earthing",$B$13="Intermediate"),0,IF(ISBLANK('Design Input'!C109),0,'Design Input'!C109)) -> 0 | C28: =IF(OR($B$13="Advanced - Fault Level Study",$B$13="Advanced - ASC Earthing",$B$13="Intermediate"),0,IF(ISBLANK('Design Input'!D109),0,'Design Input'!D109)) -> 
B29: =IF(OR($B$13="Advanced - Fault Level Study",$B$13="Advanced - ASC Earthing",$B$13="Basic"),0,IF(ISBLANK('Design Input'!C111),0,'Design Input'!C111)) -> 0 | C29: =IF(OR($B$13="Advanced - Fault Level Study",$B$13="Advanced - ASC Earthing",$B$13="Basic"),0,IF(ISBLANK('Design Input'!D111),0,'Design Input'!D111)) -> 0 | D29: A
B30: =IF(OR($B$13="Advanced - Fault Level Study",$B$13="Advanced - ASC Earthing",$B$13="Basic"),0,IF(ISBLANK('Design Input'!C112),0,'Design Input'!C112)) -> 0 | C30: =IF(OR($B$13="Advanced - Fault Level Study",$B$13="Advanced - ASC Earthing",$B$13="Basic"),0,IF(ISBLANK('Design Input'!D112),0,'Design Input'!D112)) -> 0 | D30: A
B31: =IF(OR($B$13="Advanced - Fault Level Study",$B$13="Advanced - ASC Earthing",$B$13="Basic"),0,IF(ISBLANK('Design Input'!C113),0,'Design Input'!C113)) -> 0 | C31: =IF(OR($B$13="Advanced - Fault Level Study",$B$13="Advanced - ASC Earthing",$B$13="Basic"),0,IF(ISBLANK('Design Input'!D113),0,'Design Input'!D113)) -> 0 | D31: A
B32: =IF(OR($B$13="Advanced - Fault Level Study",$B$13="Advanced - ASC Earthing",$B$13="Basic"),0,IF(ISBLANK('Design Input'!C114),0,'Design Input'!C114)) -> 0 | C32: =IF(OR($B$13="Advanced - Fault Level Study",$B$13="Advanced - ASC Earthing",$B$13="Basic"),0,IF(ISBLANK('Design Input'!D114),0,'Design Input'!D114)) -> 0 | D32: A | E32: UG or BLANK | F32: Cable Contiguity from GMSUB | G32: Cable Length From GMSUB
A33: Design Input 12 | B33: =IF(OR($B$13="Advanced - Fault Level Study",$B$13="Advanced - ASC Earthing"),0,IF(ISBLANK('Design Input'!D119),0,'Design Input'!D119)) -> 0 | C33: =IF(OR($B$13="Advanced - Fault Level Study",$B$13="Advanced - ASC Earthing"),0,IF(ISBLANK('Design Input'!F119),0,'Design Input'!F119)) -> 0 | D33: A | E33: =IF(LEFT(B33,8)="Overhead",0,1) -> 1 | F33: =F34*E33 -> 1 | G33: =F33*C33 -> 0 | H33: =AND(E33:E47) -> TRUE | I33: All cable?
B34: =IF(OR($B$13="Advanced - Fault Level Study",$B$13="Advanced - ASC Earthing"),0,IF(ISBLANK('Design Input'!D120),0,'Design Input'!D120)) -> 0 | C34: =IF(OR($B$13="Advanced - Fault Level Study",$B$13="Advanced - ASC Earthing"),0,IF(ISBLANK('Design Input'!F120),0,'Design Input'!F120)) -> 0 | D34: A | E34: =IF(LEFT(B34,8)="Overhead",0,1) -> 1 | F34: 1 | G34: 0 | H34: =OR(LEFT(B33,8)="Overhead",LEFT(B34,8)="Overhead",LEFT(B35,8)="Overhead",LEFT(B36,8)="Overhead",LEFT(B37,8)="Overhead",LEFT(B38,8)="Overhead",LEFT(B39,8)="Overhead",LEFT(B40,8)="Overhead",LEFT(B41,8)="Overhead",LEFT(B42,8)="Overhead",LEFT(B43,8)="Overhead",LEFT(B44,8)="Overhead",LEFT(B45,8)="Overhead",LEFT(B46,8)="Overhead",LEFT(B47,8)="Overhead") -> FALSE | I34: Overhead section?
B35: =IF(OR($B$13="Advanced - Fault Level Study",$B$13="Advanced - ASC Earthing"),0,IF(ISBLANK('Design Input'!D121),0,'Design Input'!D121)) -> 0 | C35: =IF(OR($B$13="Advanced - Fault Level Study",$B$13="Advanced - ASC Earthing"),0,IF(ISBLANK('Design Input'!F121),0,'Design Input'!F121)) -> 0 | D35: A | E35: 1 | F35: 1 | G35: 0 | H35: =IF(G48=0,"TRUE","FALSE") -> TRUE | I35: No cable into GMSUB?
B36: =IF(OR($B$13="Advanced - Fault Level Study",$B$13="Advanced - ASC Earthing"),0,IF(ISBLANK('Design Input'!D122),0,'Design Input'!D122)) -> 0 | C36: =IF(OR($B$13="Advanced - Fault Level Study",$B$13="Advanced - ASC Earthing"),0,IF(ISBLANK('Design Input'!F122),0,'Design Input'!F122)) -> 0 | D36: A | E36: 1 | F36: 1 | G36: 0 | H36: =G48 -> 0 | I36: Total cable length from GMSUB
B37: =IF(OR($B$13="Advanced - Fault Level Study",$B$13="Advanced - ASC Earthing"),0,IF(ISBLANK('Design Input'!D123),0,'Design Input'!D123)) -> 0 | C37: =IF(OR($B$13="Advanced - Fault Level Study",$B$13="Advanced - ASC Earthing"),0,IF(ISBLANK('Design Input'!F123),0,'Design Input'!F123)) -> 0 | D37: A | E37: 1 | F37: =F38*E37 -> 1 | G37: 0
B38: =IF(OR($B$13="Advanced - Fault Level Study",$B$13="Advanced - ASC Earthing"),0,IF(ISBLANK('Design Input'!D124),0,'Design Input'!D124)) -> 0 | C38: =IF(OR($B$13="Advanced - Fault Level Study",$B$13="Advanced - ASC Earthing"),0,IF(ISBLANK('Design Input'!F124),0,'Design Input'!F124)) -> 0 | D38: A | E38: 1 | F38: =F39*E38 -> 1 | G38: 0
B39: =IF(OR($B$13="Advanced - Fault Level Study",$B$13="Advanced - ASC Earthing"),0,IF(ISBLANK('Design Input'!D125),0,'Design Input'!D125)) -> 0 | C39: =IF(OR($B$13="Advanced - Fault Level Study",$B$13="Advanced - ASC Earthing"),0,IF(ISBLANK('Design Input'!F125),0,'Design Input'!F125)) -> 0 | D39: A | E39: =IF(LEFT(B39,8)="Overhead",0,1) -> 1 | F39: =F40*E39 -> 1 | G39: =F39*C39 -> 0
B40: =IF(OR($B$13="Advanced - Fault Level Study",$B$13="Advanced - ASC Earthing"),0,IF(ISBLANK('Design Input'!D126),0,'Design Input'!D126)) -> 0 | C40: =IF(OR($B$13="Advanced - Fault Level Study",$B$13="Advanced - ASC Earthing"),0,IF(ISBLANK('Design Input'!F126),0,'Design Input'!F126)) -> 0 | D40: A | E40: 1 | F40: =F41*E40 -> 1 | G40: 0
B41: =IF(OR($B$13="Advanced - Fault Level Study",$B$13="Advanced - ASC Earthing"),0,IF(ISBLANK('Design Input'!D127),0,'Design Input'!D127)) -> 0 | C41: =IF(OR($B$13="Advanced - Fault Level Study",$B$13="Advanced - ASC Earthing"),0,IF(ISBLANK('Design Input'!F127),0,'Design Input'!F127)) -> 0 | D41: A | E41: 1 | F41: =F42*E41 -> 1 | G41: 0
B42: =IF(OR($B$13="Advanced - Fault Level Study",$B$13="Advanced - ASC Earthing"),0,IF(ISBLANK('Design Input'!D128),0,'Design Input'!D128)) -> 0 | C42: =IF(OR($B$13="Advanced - Fault Level Study",$B$13="Advanced - ASC Earthing"),0,IF(ISBLANK('Design Input'!F128),0,'Design Input'!F128)) -> 0 | D42: A | E42: 1 | F42: =F43*E42 -> 1 | G42: 0
B43: =IF(OR($B$13="Advanced - Fault Level Study",$B$13="Advanced - ASC Earthing"),0,IF(ISBLANK('Design Input'!D129),0,'Design Input'!D129)) -> 0 | C43: =IF(OR($B$13="Advanced - Fault Level Study",$B$13="Advanced - ASC Earthing"),0,IF(ISBLANK('Design Input'!F129),0,'Design Input'!F129)) -> 0 | D43: A | E43: =IF(LEFT(B43,8)="Overhead",0,1) -> 1 | F43: =F44*E43 -> 1 | G43: =F43*C43 -> 0
B44: =IF(OR($B$13="Advanced - Fault Level Study",$B$13="Advanced - ASC Earthing"),0,IF(ISBLANK('Design Input'!D130),0,'Design Input'!D130)) -> 0 | C44: =IF(OR($B$13="Advanced - Fault Level Study",$B$13="Advanced - ASC Earthing"),0,IF(ISBLANK('Design Input'!F130),0,'Design Input'!F130)) -> 0 | D44: A | E44: 1 | F44: =F45*E44 -> 1 | G44: 0
B45: =IF(OR($B$13="Advanced - Fault Level Study",$B$13="Advanced - ASC Earthing"),0,IF(ISBLANK('Design Input'!D131),0,'Design Input'!D131)) -> 0 | C45: =IF(OR($B$13="Advanced - Fault Level Study",$B$13="Advanced - ASC Earthing"),0,IF(ISBLANK('Design Input'!F131),0,'Design Input'!F131)) -> 0 | D45: A | E45: 1 | F45: 1 | G45: 0
B46: =IF(OR($B$13="Advanced - Fault Level Study",$B$13="Advanced - ASC Earthing"),0,IF(ISBLANK('Design Input'!D132),0,'Design Input'!D132)) -> 0 | C46: =IF(OR($B$13="Advanced - Fault Level Study",$B$13="Advanced - ASC Earthing"),0,IF(ISBLANK('Design Input'!F132),0,'Design Input'!F132)) -> 0 | D46: A | E46: 1 | F46: =F47*E46 -> 1 | G46: 0
B47: =IF(OR($B$13="Advanced - Fault Level Study",$B$13="Advanced - ASC Earthing"),0,IF(ISBLANK('Design Input'!D133),0,'Design Input'!D133)) -> 0 | C47: =IF(OR($B$13="Advanced - Fault Level Study",$B$13="Advanced - ASC Earthing"),0,IF(ISBLANK('Design Input'!F133),0,'Design Input'!F133)) -> 0 | D47: A | E47: 1 | F47: =E47 -> 1 | G47: =F47*C47 -> 0
A48: Design Input 13 | B48: =IF(OR(AND(B13="Basic",H34=FALSE),AND(B13="Intermediate",H34=FALSE)),"YES",IF(OR(AND(B13="Basic",H34=TRUE),AND(B13="Intermediate",H34=TRUE)),"NO",IF(ISBLANK('Design Input'!B138),"YES",'Design Input'!B138))) -> YES | C48: Cable connected to source | F48: Total | G48: =SUM(G33:G47) -> 0
A49: Design Input 14 | B49: =IF(B48="NO","Line then Cable","All Cable") -> All Cable | C49: Source to substation connection
B50: ='Design Input'!D146 -> 0 | C50: Predominant cable type
B51: =IF(OR(B13="Basic",B13="Intermediate"),H36,'Design Input'!D145) -> 0 | C51: Cable length | D51: =IF(AND(B48="NO",B51<=0.2),"YES","NO") -> NO | E51: OH & cable length ≤ 0.2km | F51: =IF(D51="YES","Combined","Separate") -> Separate | G51: Default s/s & pole electrodes | H51: =IF(F51="Separate",20,"") -> 20 | I51: Default pole term earth resistance
B52: =IF(OR(B48="YES",B13="Basic",B13="Advanced - ASC Earthing"),"NO","YES") -> NO | C52: Mod of pole term details permitted? | D52: =IF(B52="NO","NO",IF(ISBLANK('Design Input'!B158),"NO",'Design Input'!B158)) -> NO | E52: Modify pole term details | F52: =IF(ISBLANK('Design Input'!F163),"",'Design Input'!F163) ->  | G52: Modified s/s & pole electrodes | H52: =IF(ISBLANK('Design Input'!F164),"",'Design Input'!F164) -> 20 | I52: Modified pole term earth resistance
F53: =IF(D52="YES",F52,F51) -> Separate | G53: Value used: s/s & pole electrodes | H53: =IF(D52="YES",H52,H51) -> 20 | I53: Value used in calculations
A54: Design Input 15 | B54: ='Design Input'!B169 -> 0 | C54: Units | F54: =IF(B54="km2",B55,IF(B55="0 to 749,999","0 to 0.74",IF(B55="750,000 to 3,999,999","0.75 to 3.99",IF(B55="4,000,000 to 12,999,999","4.00 to 12.99","13.00 or more")))) -> 13.00 or more | G54: Value used in calculations
B55: ='Design Input'!B170 -> 0 | C55: Area
A56: Design Input 16 | B56: ='Design Input'!B175 -> 0 | C56: Network type
A57: Soil Resistivity Assistant | B57: ='Design Input'!C184 -> 0 | C57: Top resistivity from | D57: =AVERAGE(B57:B58) -> 0 | E57: Top average resistivity | F57: =IF(D63<D59,"Lo/Hi",IF(D63>D59,"Hi/Lo","Uniform")) -> Uniform | G57: Hi/Lo, Lo/Hi or Uniform
B58: ='Design Input'!D184 -> 0 | C58: Top resistivity to | D58: =AVERAGE(B59:B60) -> 0 | E58: Middle average resistivity | F58: =IF(F57="Lo/Hi",D59/D63,IF(F57="Hi/Lo",D63/D59,1)) -> 1 | G58: Raw highest proportion
B59: ='Design Input'!C185 -> 0 | C59: Middle resistivity from | D59: =AVERAGE(B61:B62) -> 0 | E59: Bottom average resistivity | F59: =IF(F58<=1,1,IF(F58<=2,2,IF(F58<=3,3,IF(F58<=4,4,IF(F58<=5,5,IF(F58<=6,6,IF(F58<=7,7,IF(F58<=8,8,IF(F58<=9,9,10))))))))) -> 1 | G59: Standard highest proportion
B60: ='Design Input'!D185 -> 0 | C60: Middle resistivity from | D60: =AVERAGE(B63:B64) -> 0 | E60: Top average depth | F60: =IF(F57="Lo/Hi",CONCATENATE("1 : ",F59),IF(F57="Hi/Lo",CONCATENATE(F59," : 1"),"1 : 1")) -> 1 : 1 | G60: Assign standard ratio
B61: ='Design Input'!C186 -> 0 | C61: Bottom resistivity from | D61: =AVERAGE(B65:B66) -> 0 | E61: Middle average depth
B62: ='Design Input'!D186 -> 0 | C62: Bottom resistivity to | D62: =D60+D61 -> 0 | E62: Top & middle combined depth
B63: ='Design Input'!E184 -> 0 | C63: Top depth from | D63: =IF(D62=0,0,ROUND(((D60/D62)*D57)+((D61/D62)*D58),0)) -> 0 | E63: Top & middle average resistivity
B64: ='Design Input'!F184 -> 0 | C64: Top depth to | D64: =IF(D63<=25,25,IF(D63<=50,50,IF(D63<=75,75,IF(D63<=100,100,IF(D63<=150,150,IF(D63<=200,200,IF(D63<=300,300,IF(D63<=400,400,IF(D63<=500,500,IF(D63<=750,750,1000)))))))))) -> 25 | E64: Assign standard resistivity
B65: ='Design Input'!E185 -> 0 | C65: Middle depth from | D65: =IF(D62<=3,2,IF(D62<=5,4,IF(D62<=7,6,IF(D62<=9,8,10)))) -> 2 | E65: Assign standard depth
B66: ='Design Input'!F185 -> 0 | C66: Middle depth to
A67: Design Input 17 | B67: ='Design Input'!B198 -> 300 | C67: Upper soil resistivity
A68: Design Input 18 | B68: ='Design Input'!B202 -> 1 : 3 | C68: Upper / lower resistivity ratio | D68: =IF(B68=0,"UNIFORM resistivity soil",VLOOKUP(B68,'Data-General'!H2:I20,2,FALSE)) -> LOW above HIGH resistivity soil | E68: Soil type
B69: =IF(B68=0,10,VLOOKUP(B68,'Data-General'!H2:J20,3,FALSE)) -> 3 | C69: U-L ratio | D69: =IF(B68=0,0,B67*VLOOKUP(B68,'Data-General'!H2:J20,3,FALSE)) -> 900 | E69: Lower soil resistivity
A70: Design Input 18A | B70: ='Design Input'!B211 -> 2 | C70: Soil depth | D70: ='Soil Depth Factor'!A27 -> 1 | E70: Soil depth factor
A71: Design Input 19A | B71: ='Design Input'!B223 -> NO | C71: Dispense with perimeter electrode | D71: =IF(AND(G11="Required",B71="Yes"),"Omitted",IF(AND(G11="Required",B71="No"),"Required","Not Applicable")) -> Not Applicable | E71: Value: Perimeter electrode
A72: Design Input 19 | B72: ='Design Input'!B229 -> 0 | C72: Electrode tail length | D72: =IF(ISERROR('Data-HV Electrode Resistance'!C42),"",'Data-HV Electrode Resistance'!C42*(B67/25)) -> 120000 | E72: Electrode resistance excl network | F72: =D72*D70 -> 120000 | G72: Electrode resistance excl network x soil depth factor
D73: =IF(ISERROR('Data-Network Contribution'!D31),"",'Data-Network Contribution'!D31) -> 0.85 | E73: Network contribution | F73: =D73*D70 -> 0.85 | G73: Network contribution x soil depth factor
D74: =IF(ISERR(1/((1/D72)+(1/D73))),20,1/((1/D72)+(1/D73))) -> 0.8499939792 | E74: Overall earthing resistance | F74: =D74*D70 -> 0.8499939792 | G74: Overall earthing resistance x soil depth factor
A75: Design Input 20 | B75: =IF(B13="Advanced - ASC Earthing",50,IF(OR(B13="Basic",B13="Intermediate"),'Simple Calcs - Fault Current'!H44,IF(ISERR('Calculations-Fault Current'!B31),"",'Calculations-Fault Current'!B31))) -> 10000 | C75: Total fault current
B76: =IF(B13="Advanced - ASC Earthing",100,IF(F53="Combined",100,'Ground Current Default'!B70)) -> 100 | C76: % fault current into ground
B77: =IF(OR(B13="Basic",B13="Advanced - ASC Earthing"),"NO",IF(ISBLANK('Design Input'!B261),"NO",'Design Input'!B261)) -> NO | C77: Modify % fault current | D77: ='Design Input'!B266 -> 100 | E77: Modified % fault current into ground | F77: =IF(B77="NO",B76,D77) -> 100 | G77: Value used in calculations
B78: =IF(ISERR(B75*F77/100),"",B75*F77/100) -> 10000 | C78: Fault current into ground
A79: Design Input 21 | B79: 70 | C79: Conductor XSA | D79: =B87/F72 -> 0.07791611476 | E79: Current in HV electrode
B80: =IF(ISERR('Calculations-Surface Area'!B22),"",'Calculations-Surface Area'!B22) -> 307.7234811 | C80: Minimum HV electrode SA
B81: ='Design Input'!B297 -> 0 | C81: Number of 'tail' conductors
B82: ='Calculations-Surface Area'!B14 -> 0 | C82: SA of perimeter electrode
B83: ='Calculations-Surface Area'!B13 -> 0 | C83: SA of earth rods
B84: ='Calculations-Surface Area'!B15 -> 0 | C84: SA of tail
B85: ='Calculations-Surface Area'!B16 -> 0 | C85: Total SA | D85: =IF(B85>B80,"YES","NO") -> NO | E85: SA Criteria Met?
B86: =IF(ISERR(B78*F74),"",B78*F74) -> 8499.939792 | C86: Calculated EPR
B87: =IF(ISERR(B86*1.1),"",B86*1.1) -> 9349.933771 | C87: Design EPR
A88: Design Input 22 | B88: =IF(B13="Advanced - ASC Earthing",10,3) -> 3 | C88: Fault clearance time
B89: =IF(OR(B13="Basic",B13="Advanced - ASC Earthing"),"NO",IF(ISBLANK('Design Input'!B344),"NO",'Design Input'!B344)) -> NO | C89: Modify clearance time
B90: 100 | C90: CB time
B91: ='Design Input'!E350 -> 0 | C91: CT ratio - primary
B92: ='Design Input'!G350 -> 0 | C92: CT ratio - secondary
B93: ='Design Input'!E351 -> 0 | C93: IDMT current setting value
B94: ='Design Input'!F351 -> 0 | C94: IDMT current setting units
B95: =IF(B94="Primary Amps",B93,IF(B94="Secondary Amps",B93*B91/B92,IF(B94="Percent",B93*B91/100,B93*B91))) -> 0 | C95: IDMT current setting primary equiv
B96: ='Design Input'!E353 -> 0 | C96: Time-current characteristic
B97: ='Design Input'!E354 -> 0 | C97: TM setting
B98: =IF(ISERROR('Calculations-IDMT Op Time'!C17),"",'Calculations-IDMT Op Time'!C17) -> 0 | C98: Protection operating time
B99: =SUM(B90,B98)/1000 -> 0.1 | C99: Total fault clearance time
B100: =IF(B89="NO",B88,B99) -> 3 | C100: Value used in calculations
B101: =IF(B13="Advanced - ASC Earthing",10,IF(ISERR(B100+0.4),"",B100+0.4)) -> 3.4 | C101: Design HV fault clearance time
A102: Design Input 23 | B102: =VLOOKUP(D102,'Data-Safety Voltages'!B38:D41,3,FALSE) -> 156 | C102: HV Touch voltage limit - soil | D102: Soil or outdoor concrete | E102: Stance grating limit = +10s step voltage limit for soil or wet concrete i.e. someone stepping onto the grating | F102: =IF(AND(B116="Soil or outdoor concrete",OR(E10="A",E10="C",E10="E",E10="G")),B102,"") ->  | G102: Value used in calculation - soil
B103: =VLOOKUP(D103,'Data-Safety Voltages'!B38:D41,3,FALSE) -> 198 | C103: HV Touch voltage limit - indoor concrete | D103: Indoor concrete | F103: =IF(AND(B116="Indoor concrete",OR(E10="B",E10="F",E10="H")),B103,"") ->  | G103: Value used in calculation - indoor concrete
B104: =VLOOKUP(D104,'Data-Safety Voltages'!B38:D41,3,FALSE) -> 897 | C104: HV Touch voltage limit - tarmac | D104: 100mm tarmac | F104: =IF(AND(B116="100mm tarmac",OR(E10="A",E10="C",E10="E",E10="G")),B104,"") ->  | G104: Value used in calculation - tarmac
B105: 11012 | C105: HV Touch voltage limit - stance grating | D105: Stance grating | F105: =IF(AND(B116="Stance grating",OR(E10="B",E10="F",E10="H")),B105,"") ->  | G105: Value used in calculation - stance grating
B106: =VLOOKUP(D106,'Data-Safety Voltages'!B48:D51,3,FALSE) -> 156 | C106: EHV Touch voltage limit - soil | D106: Soil or outdoor concrete | E106: Stance grating limit = +10s step voltage limit for soil or wet concrete i.e. someone stepping onto the grating | F106: =IF(AND(B116="Soil or outdoor concrete",OR(E10="A",E10="C",E10="E",E10="G")),B106,"") ->  | G106: Value used in calculation - soil
B107: =VLOOKUP(D107,'Data-Safety Voltages'!B48:D51,3,FALSE) -> 198 | C107: EHV Touch voltage limit - indoor concrete | D107: Indoor concrete | F107: =IF(AND(B116="Indoor concrete",OR(E10="B",E10="F",E10="H")),B107,"") ->  | G107: Value used in calculation - indoor concrete
B108: =VLOOKUP(D108,'Data-Safety Voltages'!B48:D51,3,FALSE) -> 897 | C108: EHV Touch voltage limit - tarmac | D108: 100mm tarmac | F108: =IF(AND(B116="100mm tarmac",OR(E10="A",E10="C",E10="E",E10="G")),B108,"") ->  | G108: Value used in calculation - tarmac
B109: 11012 | C109: EHV Touch voltage limit - stance grating | D109: Stance grating | F109: =IF(AND(B116="Stance grating",OR(E10="B",E10="F",E10="H")),B109,"") ->  | G109: Value used in calculation - stance grating
B110: ='% Touch Voltage'!C30 -> 21 | C110: Max touch voltage %EPR
B111: =IF(ISERR((B110*B87)/100),"",(B110*B87)/100) -> 1963.486092 | C111: HV calculated touch voltage | H111: =IF(ISERR((B110*F140)/100),"",(B110*F140)/100) -> 0 | I111: EHV calculated touch voltage
B112: =IF(B111<=B102,"YES","NO") -> NO | C112: HV VTOUCH ≤ Safety limit for soil | D112: =IF(AND(B116="Soil or outdoor concrete",OR(E10="A",E10="C",E10="E",E10="G")),B112,"") ->  | E112: HV value used in calculation - soil | H112: =IF(H111<=B106,"YES","NO") -> YES | I112: EHV VTOUCH ≤ Safety limit for soil | J112: =IF(AND(B116="Soil or outdoor concrete",OR(E10="A",E10="C",E10="E",E10="G")),H112,"") ->  | K112: EHV value used in calculation - soil
B113: =IF(B111<=B104,"YES","NO") -> NO | C113: HV VTOUCH ≤ Safety limit for tarmac | D113: =IF(AND(B116="100mm tarmac",OR(E10="A",E10="C",E10="E",E10="G")),B113,"") ->  | E113: HV value used in calculation - tarmac | H113: =IF(H111<=B108,"YES","NO") -> YES | I113: EHV VTOUCH ≤ Safety limit for tarmac | J113: =IF(AND(B116="100mm tarmac",OR(E10="A",E10="C",E10="E",E10="G")),H113,"") ->  | K113: EHV value used in calculation - tarmac
B114: =IF(B111<=B103,"YES","NO") -> NO | C114: HV VTOUCH ≤ Safety limit for indoor concrete | D114: =IF(AND(B116="Indoor concrete",OR(E10="B",E10="F",E10="H")),B114,"") ->  | E114: HV value used in calculation - indoor concrete | F114: =IF(OR(E10="A",E10="C",E10="E",E10="G"),"Soil or outdoor concrete","Indoor concrete") -> Indoor concrete | G114: Ground surface covering options | H114: =IF(H111<=B107,"YES","NO") -> YES | I114: EHV VTOUCH ≤ Safety limit for indoor concrete | J114: =IF(AND(B116="Indoor concrete",OR(E10="B",E10="F",E10="H")),H114,"") ->  | K114: EHV value used in calculation - indoor concrete
B115: =IF(B111<=B105,"YES","NO") -> YES | C115: HV VTOUCH ≤ Safety limit for stance grating | D115: =IF(AND(B116="Stance grating",OR(E10="B",E10="F",E10="H")),B115,"") ->  | E115: HV value used in calculation - stance grating | F115: =IF(OR(E10="A",E10="C",E10="E",E10="G"),"100mm tarmac","Stance grating") -> Stance grating | H115: =IF(H111<=B109,"YES","NO") -> YES | I115: EHV VTOUCH ≤ Safety limit for stance grating | J115: =IF(AND(B116="Stance grating",OR(E10="B",E10="F",E10="H")),H115,"") ->  | K115: EHV value used in calculation - stance grating
B116: ='Design Input'!B445 -> 0 | C116: Ground surface covering
A117: Design Input 24 | B117: =IF(ISBLANK('Design Input'!B452),"",'Design Input'!B452) ->  | C117: LV neutral multiply earthed?
B118: =IF(AND(G10="YES",B117="YES"),"",B102) -> 156 | C118: [HV Fault] LV system limit - single earth
B119: =IF(AND(G10="YES",B117="YES"),"",IF(B87<=B118,"YES","NO")) -> NO | C119: [HV Fault] EPR < LV system limit - single earth
B120: =IF(AND(G10="YES",B117="NO"),"",2*B102) -> 312 | C120: [HV Fault] LV system limit - multiple earth
B121: =IF(AND(G10="YES",B117="NO"),"",IF(B87<=B120,"YES","NO")) -> NO | C121: [HV Fault] EPR < LV system limit - multiple earth
B122: 1150 | C122: [HV Fault] LV Customer's telecom equipment limit
B123: =IF(B87<=B122,"YES","NO") -> NO | C123: [HV Fault] EPR < LV Customer's telecom equipment limit
B124: 430 | C124: [HV Fault] ITU limit
B125: =IF(B87<=B124,"YES","NO") -> NO | C125: [HV Fault] EPR < ITU limit
B126: =IF(B125="NO","HOT","COLD") -> HOT | C126: [HV Fault] ITU Classifiaction
B127: =IF(OR(AND(G10="YES",B117="NO",B119="NO"),AND(G10="YES",B117="YES",B121="NO"),AND(G10="NO",B119="NO"),AND(G10="NO",B121="NO"),B123="NO"),"HEPR","LEPR") -> HEPR | C127: [HV Fault] NGED 3rd party impact classification
B128: =IF(OR(AND(G10="YES",B117="YES"),ISERROR('Data-Transfer Voltages'!D38)),"",'Data-Transfer Voltages'!D38) -> 156 | C128: [EHV Fault] LV system limit - single earth
B129: =IF(AND(G10="YES",B117="YES"),"",IF(F140<=B128,"YES","NO")) -> YES | C129: [EHV Fault] Transfer < LV system limit - single
B130: =IF(OR(AND(G10="YES",B117="NO"),ISERROR('Data-Transfer Voltages'!D38)),"",2*'Data-Transfer Voltages'!D38) -> 312 | C130: [EHV Fault] LV system limit - multiple earth
B131: =IF(AND(G10="YES",B117="NO"),"",IF(F140<=B130,"YES","NO")) -> YES | C131: [EHV Fault] Transfer < LV system limit - multiple
B132: =IF(F22<=0.2,1700,1150) -> 1150 | C132: [EHV Fault] LV Customer's telecom equipment limit
B133: =IF(F140<=B132,"YES","NO") -> YES | C133: [EHV Fault] Transfer < LV Customer's telecom equipment limit
B134: =IF(F22<=0.2,650,430) -> 430 | C134: [EHV Fault] ITU limit
B135: =IF(F140<=B134,"YES","NO") -> YES | C135: [EHV Fault] Transfer < ITU limit
B136: =IF(B135="NO","HOT","COLD") -> COLD | C136: [EHV Fault] ITU Classification
B137: =IF(OR(AND(G10="YES",B117="NO",B129="NO"),AND(G10="YES",B117="YES",B131="NO"),AND(G10="NO",B129="NO"),AND(G10="NO",B131="NO"),B133="NO"),"HEPR","LEPR") -> LEPR | C137: [EHV Fault] NGED 3rd party impact classification
A138: Design Input 25 | B138: ='Transfer Potential Default'!C55 -> 0 | C138: % transfer voltage
B139: =F20*(B138/100) -> 0 | C139: Transfer voltage
B140: =IF(OR(B13="Basic",B13="Advanced - ASC Earthing",B48="NO"),"NO",IF(ISBLANK('Design Input'!B373),"NO",'Design Input'!B373)) -> NO | C140: Modify transfer voltage | D140: ='Design Input'!B378 -> 0 | E140: Modified transfer voltage | F140: =IF(B140="NO",B139,D140) -> 0 | G140: Design transfer voltage
A141: Design Input 26 | B141: =IF(OR(ISNA(B127),ISNA(B137)),"HEPR",IF(AND(B127="LEPR",B137="LEPR"),"LEPR","HEPR")) -> HEPR | C141: 3rd party impact - overall | D141: =IF(AND(B125="YES",B135="YES"),"COLD","HOT") -> HOT | E141: ITU Classification - overall
B142: =IF('Data-HV to LV Separation SNE'!D51=0,0,'Data-HV to LV Separation SNE'!D51) -> 60 | C142: Theoretical separation - general | D142: =IF(B142>40,40,B142) -> 40 | E142: Practicable separation - general | F142: =D142 -> 40 | G142: Value used in calculations - general
B143: =IF(AND(G10="YES",B117="YES"),"",IF(AND('Data-HV to LV Separation SNE'!D51=0,G10="YES"),0,IF(AND('Data-HV to LV Separation SNE'!D51=0,G10="NO"),0,'Data-HV to LV Separation SNE'!D51))) -> 60 | C143: Theoretical separation - SNE LV | D143: =IF(B143>40,40,B143) -> 40 | E143: Practicable separation - SNE LV | F143: =IF(AND(G10="YES",B117="YES"),"",D143) -> 40 | G143: Value used in calculations - SNE LV
B144: =IF(AND(G10="YES",B117="NO"),"",IF(AND('Data-HV to LV Separation CNE'!D51=0,G10="YES"),0,IF(AND('Data-HV to LV Separation CNE'!D51=0,G10="NO"),0,'Data-HV to LV Separation CNE'!D51))) -> 28 | C144: Theoretical separation - CNE LV | D144: =IF(B144>40,40,B144) -> 28 | E144: Practicable separation - CNE LV | F144: =IF(AND(G10="YES",B117="NO"),"",D144) -> 28 | G144: Value used in calculations - CNE LV
B145: =IF(AND(G10="YES",B141="LEPR"),"COMBINED HV & LV Earth Electrode",IF(AND(G10="YES",B141="HEPR"),"SEPARATE HV & LV Earth Electrodes","")) -> SEPARATE HV & LV Earth Electrodes | C145: Combined or separate electrodes | D145: =IF(LEFT(B145,8)="COMBINED","Inserted",IF(LEFT(B145,8)="SEPARATE","Removed","")) -> Removed | E145: HV/LV Earth Link | F145: =IF(LEFT(B145,8)="SEPARATE","YES","") -> YES | G145: Separate electrode?
B146: ='Design Input'!B554 -> 0 | C146: Length of LV electrode | D146: =IF(B146=0,"",IF(AND(G10="YES",LEFT(B145,8)="SEPARATE"),B146,"")) ->  | E146: Value used in calculations - length
B147: ='Data-LV Electrode Resistance'!C40*(B67/25)*D70 -> 6.864 | C147: LV electrode resistance | D147: =IF(B147=0,"",IF(AND(G10="YES",LEFT(B145,8)="SEPARATE"),B147,"")) -> 6.864 | E147: Value used in calculations - resistance

Sheet Title Page (hidden)
A12: EARTHING DESIGN REPORT
A14: FOR
A16: =UPPER('Data Entered'!B10) -> 0
A22: Licence Area: | C22: ='Data Entered'!B6 -> 0
A24: Substation: | C24: ='Data Entered'!B7 -> 0
A26: Address: | C26: ='Data Entered'!B8 -> 0
A29: Earthing Design By: | C29: ='Data Entered'!B2 -> 0
A31: =IF('Data Entered'!B2="ICP","ICP Name:","NGED Managed Unit:") -> NGED Managed Unit: | C31: ='Data Entered'!B4 -> 0
A33: =IF('Data Entered'!B2="ICP","ICP Designer:","NGED Designer:") -> NGED Designer: | C33: ='Data Entered'!B3 -> 0
A35: =IF('Data Entered'!B2="ICP","ICP Job Reference:","NGED Crown Enquiry:") -> NGED Crown Enquiry: | C35: ='Data Entered'!B5 -> 0
A38: Date: | C38: ='Publish Report'!C78 -> 26/03/2020
A40: Time: | C40: ='Publish Report'!C79 -> 17:03:58
A47: Report Compiled Using Earthing Design Tool: | E47: =Disclaimer!E47 -> TP21G_EDT_VERSION 2b
A49: ='Publish Report'!C75 -> ER_WPD_EM_1234567_26-03-2020 17-03-58hrs | E49: Page 1 of 10

Sheet Report Disclaimer (hidden)
A2: DISCLAIMER
B4: National Grid Electricity Distribution (NGED) has developed a spreadsheet calculation tool (Excel Workbook) in order to analyse the performance of a proposed earthing system without having to employ specialist consultants or advanced earthing software packages.
B9: The spreadsheet calculation tool has been prepared for use on the NGED network only.
B12: The spreadsheet calculation tool uses data derived from CDEGS studies of the proposed substation arrangement. It also uses the formulae and guidelines contained within ENA Engineering Recommendation S34 and ENA Technical Specification 41-24.
B17: [CDEGS is "Current Distribution Electromagnetic Interference Grounding and Soil Structure Analysis" software from Safe Engineering Services & Technologies Ltd]
B20: This Earthing Design Report is the output from the spreadsheet calculation tool.
B23: The information contained within this report is based on data supplied by the End User of the spreadsheet calculation tool. NGED shall not be liable for any incidents or costs incurred due to inaccurate information.
B27: It is the responsibility of the End User of the spreadsheet calculation tool to ensure that any installation work is carried out as per the recommendations contained within this Earthing Design Report. NGED shall not be liable for any incidents or costs incurred due to non-conforming installation.
B32: The Earthing Design Report, spreadsheet calculation tool, and the associated data and calculations are provided "as is" and for use at your own risk. NGED makes no warranties as to performance, fitness for purpose, or any other warranties, whether expressed or implied.
B37: Under no circumstances will NGED be liable for direct, indirect, special, incidental, or consequential damages resulting from the use, misuse, or inability to use the Earthing Design Report, spreadsheet calculation tool (Excel Workbook), and the associated data and calculations.
A47: © National Grid Electricity Distribution 2022
A50: ='Publish Report'!C75 -> ER_WPD_EM_1234567_26-03-2020 17-03-58hrs | E50: Page 2 of 10

Sheet Report (hidden)
A1: KEYNOTE DESIGN INFORMATION
A4: Format | B4: ='Data Entered'!B10 -> 0
A5: International Telecommunication Union (ITU) Classification | F5: =PROPER('Data Entered'!D141) -> Hot
A6: NGED Third Party Impact Classification | F6: =IF('Data Entered'!B141="HEPR","High EPR","Low EPR") -> High EPR
D8: HV Faults | F8: EHV Faults
A9: EPR | D9: ='Data Entered'!B87 -> 9349.933771 | F9: ='Data Entered'!F140 -> 0 | H9: V
A10: Earth Fault Clearance Time | D10: ='Data Entered'!B101 -> 3.4 | F10: ='Data Entered'!F23 -> 3.4 | H10: s
A12: HV "Perimeter" Electrode | F12: ='Data Entered'!D71 -> Not Applicable
A13: Minimum Length of Insulated HV "Tail" Electrode | E13: =IF('Data Entered'!G12="YES","To achieve HV separation distance","") ->  | H13: m
A14: Minimum Length of Bare HV "Tail" Electrode | F14: ='Data Entered'!B72 -> 0 | H14: m
A15: Number of Conductors (Min 100mm Apart) in 'Tail' Electrode | F15: ='Data Entered'!B81 -> 0
A17: Operator's Standing Surface | E17: ='Data Entered'!B116 -> 0
A19: HV & LV Earth Electrodes | F19: =PROPER(LEFT('Data Entered'!B145,8)) -> Separate
A20: HV / LV Link | F20: ='Data Entered'!D145 -> Removed
A21: Length of LV Electrode | F21: ='Data Entered'!D146 ->  | H21: m
A23: Minimum HV Separation Distance to Railway, Tramway, Metallic Pipeline, Bulk Storage Tanks For Petroleum or Flammable Liquids, Zoo, Stable, Pond/Lake Used For Commercial Fishing, Outdoor Swimming Pool, Outdoor Paddling Pool, Outdoor Shower, Telephone Exchange or Customer TT Electrode | F23: ='Data Entered'!F142 -> 40 | H23: m
A29: Minimum HV separation distance to LV system whose neutral is earthed at a single point | F29: ='Data Entered'!F143 -> 40 | H29: m
A32: Minimum HV separation distance to LV system whose neutral is earthed at multiple points | F32: ='Data Entered'!F144 -> 28 | H32: m
A35: Comments | C35: =IF(LEFT('Data Entered'!B12,2)="NO","","Employ earthing specialist to review or carry out bespoke design where actual separation distance does not exceed minimum permitted by at least 5m.") -> Employ earthing specialist to review or carry out bespoke design where actual separation distance does not exceed minimum permitted by at least 5m.
A40: Target Commissioning Resistance Values
A41: HV Earth Electrode alone # | E41: ≤ | F41: ='Data Entered'!F72 -> 120000 | G41: Ω
A42: LV Earth Electrode alone # | E42: ≤ | F42: ='Data Entered'!D147 -> 6.864 | G42: Ω
A43: HV Earth Electrode on completion $ | E43: ≤ | F43: ='Data Entered'!F74 -> 0.8499939792 | G43: Ω
A44: # prior to connecting HV cables, LV cables, and bonds to customer earthing system
A45: $ after connecting HV cables, LV cables, and bonds to customer earthing system
A49: ='Publish Report'!C75 -> ER_WPD_EM_1234567_26-03-2020 17-03-58hrs | E49: Page 3 of 10
A50: EARTHING DESIGN REPORT
A52: This report has been prepared using | D52: =CONCATENATE("Earthing Design Tool ",'Data-General'!A2) -> Earthing Design Tool TP21G_EDT_VERSION 2b
A55: A summary of the technical information and calculation results is listed below. Further information can be found in the Appendices:
A58: DISTRIBUTION SUBSTATION
A60: Format | B60: ='Data Entered'!B10 -> 0
A61: Voltage | F61: ='Data Entered'!B14 -> 0 | H61: V
A62: Cable Connected To Source | F62: ='Data Entered'!B48 -> YES
A63: Problematic Location | E63: ='Data Entered'!B12 -> 0
A67: SOIL RESISTIVITY MODEL
A69: Resistivity of Upper Soil Layer | E69: ='Data Entered'!B67 -> 300 | H69: Ωm
A70: Thickness of Upper Soil Layer | E70: ='Data Entered'!B70 -> 2 | H70: m
A71: Resistivity of Lower Soil Layer | E71: ='Data Entered'!D69 -> 900 | H71: Ωm
A72: Assumed Thickness of Lower Soil Layer | E72: Infinite | H72: m
A73: Comments | E73: ='Data Entered'!D68 -> LOW above HIGH resistivity soil
A76: HV ELECTRODE
A78: "Perimeter" Electrode | F78: ='Data Entered'!D71 -> Not Applicable
A79: Minimum Length of Insulated HV "Tail" Electrode | E79: =IF('Data Entered'!G12="YES","To achieve HV separation distance","") ->  | H79: m
A80: Minimum Length of Bare HV "Tail" Electrode | F80: ='Data Entered'!B72 -> 0 | H80: m
A81: Number of Conductors (Min 100mm Apart) in 'Tail' Electrode | F81: ='Data Entered'!B81 -> 0
A82: Electrode Cross Sectional Area | F82: ='Data Entered'!B79 -> 70 | H82: mm2
A83: Electrode Resistance Excluding Network Contribution | F83: ='Data Entered'!F72 -> 120000 | H83: Ω
A84: Network Contribution To Electrode Resistance | F84: ='Data Entered'!F73 -> 0.85 | H84: Ω
A85: Electrode Resistance Including Network Contribution | F85: ='Data Entered'!F74 -> 0.8499939792 | H85: Ω
A88: HV EARTH FAULT CURRENT
A90: Total Earth Fault Current | F90: ='Data Entered'!B75 -> 10000 | H90: A
A91: Percentage of fault current flowing into the ground | F91: ='Data Entered'!F77 -> 100 | H91: %
A92: Ground Return Current | F92: ='Data Entered'!B78 -> 10000 | H92: A
A99: ='Publish Report'!C75 -> ER_WPD_EM_1234567_26-03-2020 17-03-58hrs | E99: Page 4 of 10
A100: HV ELECTRODE SURFACE AREA
A102: Minimum Surface Area Required | F102: ='Data Entered'!B80 -> 307.7234811 | H102: mm2
A103: Actual Surface Area | F103: ='Data Entered'!B85 -> 0 | H103: mm2
A104: Surface Area Requirement Met | F104: ='Data Entered'!D85 -> NO
A107: EARTH POTENTIAL RISE
F108: HV Fault | G108: EHV Fault
A109: Earth Potential Rise | F109: ='Data Entered'!B87 -> 9349.933771 | G109: ='Data Entered'!F140 -> 0 | H109: V
A112: FAULT CLEARANCE TIME
F113: HV Fault | G113: EHV Fault
A114: Earth Fault Clearance Time | F114: ='Data Entered'!B101 -> 3.4 | G114: ='Data Entered'!F23 -> 3.4 | H114: s
A117: OPERATOR'S STANDING SURFACE
A119: Selected Operator's Standing Surface | E119: ='Data Entered'!B116 -> 0
A122: SAFETY LIMITS FOR TOUCH VOLTAGE
F124: HV Fault | G124: EHV Fault
A125: Safety Limit On Soil Or Outdoor Concrete | F125: ='Data Entered'!F102 ->  | G125: ='Data Entered'!F106 ->  | H125: V
A126: Safety Limit On 100mm Tarmac | F126: ='Data Entered'!F104 ->  | G126: ='Data Entered'!F108 ->  | H126: V
A127: Safety Limit On Indoor Concrete | F127: ='Data Entered'!F103 ->  | G127: ='Data Entered'!F107 ->  | H127: V
A128: Safety Limit On Stance Grating | F128: ='Data Entered'!F105 ->  | G128: ='Data Entered'!F109 ->  | H128: V
A131: TOUCH VOLTAGES INSIDE & AROUND EXTERIOR OF SUBSTATION
A133: Maximum Touch Voltage For The Substation | F133: ='Data Entered'!B110 -> 21 | H133: % of EPR
F135: HV Fault | G135: EHV Fault
A136: Calculated Touch Voltage | F136: ='Data Entered'!B111 -> 1963.486092 | G136: ='Data Entered'!H111 -> 0 | H136: V
A137: Touch voltage ≤ safety limit on soil or outdoor concrete | F137: ='Data Entered'!D112 ->  | G137: ='Data Entered'!J112 -> 
A138: Touch voltage ≤ safety limit on 100mm tarmac | F138: ='Data Entered'!D113 ->  | G138: ='Data Entered'!J113 -> 
A139: Touch voltage ≤ safety limit on indoor concrete | F139: ='Data Entered'!D114 ->  | G139: ='Data Entered'!J114 -> 
A140: Touch voltage ≤ safety limit on stance grating | F140: ='Data Entered'!D115 ->  | G140: ='Data Entered'!J115 -> 
A143: LV SYSTEM
A145: LV System Neutral Multiply Earthed | F145: ='Data Entered'!B117 -> 
A149: ='Publish Report'!C75 -> ER_WPD_EM_1234567_26-03-2020 17-03-58hrs | E149: Page 5 of 10
A150: IMPACT ON 3rd PARTY PERSONS AND EQUIPMENT
A152: LV Neutral Earthed at Single Point | F152: HV Fault | G152: EHV Fault
A153: Safety Limit For LV Customers | F153: ='Data Entered'!B118 -> 156 | G153: =IF('Data Entered'!F140=0,"",'Data Entered'!B128) ->  | H153: V
A154: EPR ≤ Safety Limit For LV Customers | F154: ='Data Entered'!B119 -> NO | G154: =IF('Data Entered'!F140=0,"",'Data Entered'!B129) -> 
A157: LV Neutral Earthed at Multiple Points | F157: HV Fault | G157: EHV Fault
A158: Safety Limit For LV Customers | F158: ='Data Entered'!B120 -> 312 | G158: =IF('Data Entered'!F140=0,"",'Data Entered'!B130) ->  | H158: V
A159: EPR ≤ Safety Limit For LV Customers | F159: ='Data Entered'!B121 -> NO | G159: =IF('Data Entered'!F140=0,"",'Data Entered'!B131) -> 
F162: HV Fault | G162: EHV Fault
A163: Limit For LV Customer's Telecommunication Equipment | F163: ='Data Entered'!B122 -> 1150 | G163: =IF('Data Entered'!F140=0,"",'Data Entered'!B132) ->  | H163: V
A164: EPR ≤ Limit For LV Customer's Telecommunication Equipment | F164: ='Data Entered'!B123 -> NO | G164: =IF('Data Entered'!F140=0,"",'Data Entered'!B133) -> 
F167: HV Fault | G167: EHV Fault
A168: International Telecommunication Union (ITU) Limit | F168: ='Data Entered'!B124 -> 430 | G168: =IF('Data Entered'!F140=0,"",'Data Entered'!B134) ->  | H168: V
A169: EPR ≤ International Telecommunication Union (ITU) Limit | F169: ='Data Entered'!B125 -> NO | G169: =IF('Data Entered'!F140=0,"",'Data Entered'!B135) -> 
A172: 3rd PARTY IMPACT CLASSIFICATION
F174: HV Fault | G174: EHV Fault
A175: NGED Third Party Impact Classification | F175: =IF('Data Entered'!B127="HEPR","High EPR",IF('Data Entered'!B127="LEPR","Low EPR","")) -> High EPR | G175: =IF(AND('Data Entered'!B48="YES",'Data Entered'!B137="HEPR"),"High EPR",IF(AND('Data Entered'!B48="YES",'Data Entered'!B137="LEPR"),"Low EPR","")) -> Low EPR
A176: Overall NGED Third Party Impact Classification | F176: =IF('Data Entered'!B141="HEPR","High EPR",IF('Data Entered'!B141="LEPR","Low EPR","")) -> High EPR
F179: HV Fault | G179: EHV Fault
A180: ITU Classification | F180: =IF('Data Entered'!B126="HOT","Hot",IF('Data Entered'!B126="COLD","Cold","")) -> Hot | G180: =IF(AND('Data Entered'!B48="YES",'Data Entered'!B136="HOT"),"Hot",IF(AND('Data Entered'!B48="YES",'Data Entered'!B136="COLD"),"Cold","")) -> Cold
A181: Overall ITU Classification | F181: =IF('Data Entered'!D141="HOT","Hot",IF('Data Entered'!D141="COLD","Cold","")) -> Hot
A199: ='Publish Report'!C75 -> ER_WPD_EM_1234567_26-03-2020 17-03-58hrs | E199: Page 6 of 10
A200: HV SEPARATION DISTANCE
F201: Theoretical | G201: Practicable
A202: Minimum HV Separation Distance To: | F202: ='Data Entered'!B142 -> 60 | G202: ='Data Entered'!F142 -> 40 | H202: m
A203: - Railway, Tramway or Metallic Pipeline
A204: - Bulk Storage Tanks For Petroleum or Flammable Liquids
A205: - Zoo, Stable, Pond/Lake Used For Commercial Fishing
A206: - Outdoor Swimming Pool, Paddling Pool or Shower
A207: - Telephone Exchange
A208: - Customer TT Electrode
F210: Theoretical | G210: Practicable
A211: Minimum HV Separation Distance To: | F211: ='Data Entered'!B143 -> 60 | G211: ='Data Entered'!F143 -> 40 | H211: m
A212: - LV System Whose Neutral Is Earthed At A Single Point
F214: Theoretical | G214: Practicable
A215: Minimum HV Separation Distance To: | F215: ='Data Entered'!B144 -> 28 | G215: ='Data Entered'!F144 -> 28 | H215: m
A216: - LV System Whose Neutral Is Earthed At Multiple Points
A219: LV ELECTRODE
A221: Separate LV Electrode Required | E221: ='Data Entered'!F145 -> YES
A222: Minimum Length Of Insulated LV Electrode | E222: =IF('Data Entered'!F145="YES","To achieve HV separation distance","") -> To achieve HV separation distance | H222: m
A223: Minimum Length Of Bare LV Electrode | E223: =IF('Data Entered'!F145="YES",'Data Entered'!D146,"") ->  | H223: m
A224: LV Electrode Resistance | E224: =IF('Data Entered'!F145="YES",'Data Entered'!D147,"") -> 6.864 | H224: Ω
A227: ACTIONS REQUIRED
A229: 1. | B229: The distribution substation earthing system shall be constructed
B230: in accordance with the preceding stipulations and | F230: ='Data Entered'!I10 -> TP21G-0
A232: 2. | B232: =IF(AND('Data Entered'!G10="NO",'Data Entered'!B141="HEPR"),"Advise HV Customer to consider the risks arising from earth potential rise","") -> 
A235: 3. | B235: =IF(AND('Data Entered'!G10="NO",'Data Entered'!D141="HOT"),"Advise HV Customer to notify telecommunication network provider if they have / are having a telecommunication service installed","") -> 
A249: ='Publish Report'!C75 -> ER_WPD_EM_1234567_26-03-2020 17-03-58hrs | E249: Page 7 of 10
A250: APPENDIX A: SOURCE SUBSTATION DATA
A252: Further information relating to the source substation is listed below:
A254: Source Substation Name / Number | D254: ='Data Entered'!D16 -> 
A255: Arc Suppression Coil Earthed HV Network | G255: ='Data Entered'!D13 -> NO
A256: Earthing System Impedance Of Source Substation | G256: ='Data Entered'!F18 -> 0.1 | H256: Ω
A257: EPR Of Source Substation | G257: ='Data Entered'!F20 -> 3000 | H257: V
A258: EHV Fault Clearance Time For Source Substation | G258: ='Data Entered'!F22 -> 3 | H258: s
A259: EHV Fault Cleared By INST, DT or IDMT Earth Fault Protection | G259: ='Data Entered'!B23 -> 0
A260: Telecommunication System Limit For EHV Fault Clearance Time | G260: ='Data Entered'!B132 -> 1150 | H260: V
A264: APPENDIX B: SYSTEM IMPEDANCE DATA
A266: Further information relating to the system impedance information is listed below:
A268: Methodology | C268: =IF('Data Entered'!B13<>"Advanced - ASC Earthing",'Data Entered'!B13,"") -> Basic
A269: Z1 Resistance | C269: =IF('Data Entered'!$B$13="Advanced - Fault Level Study",'Data Entered'!B25,"") ->  | D269: Z1 Reactance | F269: =IF('Data Entered'!$B$13="Advanced - Fault Level Study",'Data Entered'!C25,"") ->  | G269: =IF('Data Entered'!$B$13="Advanced - Fault Level Study",'Data Entered'!B24,"") -> 
A270: Z2 Resistance | C270: =IF('Data Entered'!$B$13="Advanced - Fault Level Study",'Data Entered'!B26,"") ->  | D270: Z2 Reactance | F270: =IF('Data Entered'!$B$13="Advanced - Fault Level Study",'Data Entered'!C26,"") ->  | G270: =IF('Data Entered'!$B$13="Advanced - Fault Level Study",'Data Entered'!B24,"") -> 
A271: Z0 Resistance | C271: =IF('Data Entered'!$B$13="Advanced - Fault Level Study",'Data Entered'!B27,"") ->  | D271: Z0 Reactance | F271: =IF('Data Entered'!$B$13="Advanced - Fault Level Study",'Data Entered'!C27,"") ->  | G271: =IF('Data Entered'!$B$13="Advanced - Fault Level Study",'Data Entered'!B24,"") -> 
A272: Neutral Earthing | C272: =IF('Data Entered'!B28=0,"",IF('Data Entered'!$B$13="Basic",'Data Entered'!B28,"")) ->  | E272: =IF('Data Entered'!C28=0,"",IF('Data Entered'!$B$13="Basic",'Data Entered'!C28,"")) ->  | G272: A
A273: NER 1 | C273: =IF('Data Entered'!B29=0,"",IF('Data Entered'!$B$13="Intermediate",'Data Entered'!B29,"")) ->  | E273: =IF('Data Entered'!C29=0,"",IF('Data Entered'!$B$13="Intermediate",'Data Entered'!C29,"")) ->  | G273: A
A274: NER 2 | C274: =IF('Data Entered'!B30=0,"",IF('Data Entered'!$B$13="Intermediate",'Data Entered'!B30,"")) ->  | E274: =IF('Data Entered'!C30=0,"",IF('Data Entered'!$B$13="Intermediate",'Data Entered'!C30,"")) ->  | G274: A
A275: NER 3 | C275: =IF('Data Entered'!B31=0,"",IF('Data Entered'!$B$13="Intermediate",'Data Entered'!B31,"")) ->  | E275: =IF('Data Entered'!C31=0,"",IF('Data Entered'!$B$13="Intermediate",'Data Entered'!C31,"")) ->  | G275: A
A276: NER 4 | C276: =IF('Data Entered'!B32=0,"",IF('Data Entered'!$B$13="Intermediate",'Data Entered'!B32,"")) ->  | E276: =IF('Data Entered'!C32=0,"",IF('Data Entered'!$B$13="Intermediate",'Data Entered'!C32,"")) ->  | G276: A
A277: SECTION 1 | C277: =IF('Data Entered'!B33=0,"",IF(OR('Data Entered'!$B$13="Basic",'Data Entered'!$B$13="Intermediate"),'Data Entered'!B33,"")) ->  | F277: =IF('Data Entered'!C33=0,"",IF(OR('Data Entered'!$B$13="Basic",'Data Entered'!$B$13="Intermediate"),'Data Entered'!C33,"")) ->  | H277: km
A278: SECTION 2 | C278: =IF('Data Entered'!B34=0,"",IF(OR('Data Entered'!$B$13="Basic",'Data Entered'!$B$13="Intermediate"),'Data Entered'!B34,"")) ->  | F278: =IF('Data Entered'!C34=0,"",IF(OR('Data Entered'!$B$13="Basic",'Data Entered'!$B$13="Intermediate"),'Data Entered'!C34,"")) ->  | H278: km
A279: SECTION 3 | C279: =IF('Data Entered'!B35=0,"",IF(OR('Data Entered'!$B$13="Basic",'Data Entered'!$B$13="Intermediate"),'Data Entered'!B35,"")) ->  | F279: =IF('Data Entered'!C35=0,"",IF(OR('Data Entered'!$B$13="Basic",'Data Entered'!$B$13="Intermediate"),'Data Entered'!C35,"")) ->  | H279: km
A280: SECTION 4 | C280: =IF('Data Entered'!B36=0,"",IF(OR('Data Entered'!$B$13="Basic",'Data Entered'!$B$13="Intermediate"),'Data Entered'!B36,"")) ->  | F280: =IF('Data Entered'!C36=0,"",IF(OR('Data Entered'!$B$13="Basic",'Data Entered'!$B$13="Intermediate"),'Data Entered'!C36,"")) ->  | H280: km
A281: SECTION 5 | C281: =IF('Data Entered'!B37=0,"",IF(OR('Data Entered'!$B$13="Basic",'Data Entered'!$B$13="Intermediate"),'Data Entered'!B37,"")) ->  | F281: =IF('Data Entered'!C37=0,"",IF(OR('Data Entered'!$B$13="Basic",'Data Entered'!$B$13="Intermediate"),'Data Entered'!C37,"")) ->  | H281: km
A282: SECTION 6 | C282: =IF('Data Entered'!B38=0,"",IF(OR('Data Entered'!$B$13="Basic",'Data Entered'!$B$13="Intermediate"),'Data Entered'!B38,"")) ->  | F282: =IF('Data Entered'!C38=0,"",IF(OR('Data Entered'!$B$13="Basic",'Data Entered'!$B$13="Intermediate"),'Data Entered'!C38,"")) ->  | H282: km
A283: SECTION 7 | C283: =IF('Data Entered'!B39=0,"",IF(OR('Data Entered'!$B$13="Basic",'Data Entered'!$B$13="Intermediate"),'Data Entered'!B39,"")) ->  | F283: =IF('Data Entered'!C39=0,"",IF(OR('Data Entered'!$B$13="Basic",'Data Entered'!$B$13="Intermediate"),'Data Entered'!C39,"")) ->  | H283: km
A284: SECTION 8 | C284: =IF('Data Entered'!B40=0,"",IF(OR('Data Entered'!$B$13="Basic",'Data Entered'!$B$13="Intermediate"),'Data Entered'!B40,"")) ->  | F284: =IF('Data Entered'!C40=0,"",IF(OR('Data Entered'!$B$13="Basic",'Data Entered'!$B$13="Intermediate"),'Data Entered'!C40,"")) ->  | H284: km
A285: SECTION 9 | C285: =IF('Data Entered'!B41=0,"",IF(OR('Data Entered'!$B$13="Basic",'Data Entered'!$B$13="Intermediate"),'Data Entered'!B41,"")) ->  | F285: =IF('Data Entered'!C41=0,"",IF(OR('Data Entered'!$B$13="Basic",'Data Entered'!$B$13="Intermediate"),'Data Entered'!C41,"")) ->  | H285: km
A286: SECTION 10 | C286: =IF('Data Entered'!B42=0,"",IF(OR('Data Entered'!$B$13="Basic",'Data Entered'!$B$13="Intermediate"),'Data Entered'!B42,"")) ->  | F286: =IF('Data Entered'!C42=0,"",IF(OR('Data Entered'!$B$13="Basic",'Data Entered'!$B$13="Intermediate"),'Data Entered'!C42,"")) ->  | H286: km
A287: SECTION 11 | C287: =IF('Data Entered'!B43=0,"",IF(OR('Data Entered'!$B$13="Basic",'Data Entered'!$B$13="Intermediate"),'Data Entered'!B43,"")) ->  | F287: =IF('Data Entered'!C43=0,"",IF(OR('Data Entered'!$B$13="Basic",'Data Entered'!$B$13="Intermediate"),'Data Entered'!C43,"")) ->  | H287: km
A288: SECTION 12 | C288: =IF('Data Entered'!B44=0,"",IF(OR('Data Entered'!$B$13="Basic",'Data Entered'!$B$13="Intermediate"),'Data Entered'!B44,"")) ->  | F288: =IF('Data Entered'!C44=0,"",IF(OR('Data Entered'!$B$13="Basic",'Data Entered'!$B$13="Intermediate"),'Data Entered'!C44,"")) ->  | H288: km
A289: SECTION 13 | C289: =IF('Data Entered'!B45=0,"",IF(OR('Data Entered'!$B$13="Basic",'Data Entered'!$B$13="Intermediate"),'Data Entered'!B45,"")) ->  | F289: =IF('Data Entered'!C45=0,"",IF(OR('Data Entered'!$B$13="Basic",'Data Entered'!$B$13="Intermediate"),'Data Entered'!C45,"")) ->  | H289: km
A290: SECTION 14 | C290: =IF('Data Entered'!B46=0,"",IF(OR('Data Entered'!$B$13="Basic",'Data Entered'!$B$13="Intermediate"),'Data Entered'!B46,"")) ->  | F290: =IF('Data Entered'!C46=0,"",IF(OR('Data Entered'!$B$13="Basic",'Data Entered'!$B$13="Intermediate"),'Data Entered'!C46,"")) ->  | H290: km
A291: SECTION 15 | C291: =IF('Data Entered'!B47=0,"",IF(OR('Data Entered'!$B$13="Basic",'Data Entered'!$B$13="Intermediate"),'Data Entered'!B47,"")) ->  | F291: =IF('Data Entered'!C47=0,"",IF(OR('Data Entered'!$B$13="Basic",'Data Entered'!$B$13="Intermediate"),'Data Entered'!C47,"")) ->  | H291: km
A298: ='Publish Report'!C75 -> ER_WPD_EM_1234567_26-03-2020 17-03-58hrs | E298: Page 8 of 10
A299: APPENDIX C: POLE TERMINATION DATA
A301: Further information relating to the HV cable pole termination is listed below:
A303: Earthing System Impedance Of Pole Termination | G303: =IF('Data Entered'!B48="NO",'Data Entered'!H53,"") ->  | H303: Ω
A307: APPENDIX D: NETWORK CONTRIBUTION DATA
A309: Further information relating to the network contribution to the earth electrode
A310: resistance is listed below:
A312: Built-Up Area Covered By The Local HV & LV Network | F312: ='Data Entered'!B55 -> 0 | H312: ='Data Entered'!B54 -> 0
A313: Type Of Local HV & LV Network | D313: ='Data Entered'!B56 -> 0
A314: Network Contribution To Electrode Resistance | F314: ='Data Entered'!D73 -> 0.85 | H314: Ω
A318: APPENDIX E: CURRENT INTO GROUND DATA
A320: Further information relating to the calculation of the percentage of fault current flowing
A321: into the ground is listed below:
A323: Source To Unit Substation Connection | D323: =IF('Data Entered'!F77=100,"",'Design Input'!D269) -> 
A325: Predominant Cable Type | D325: =IF('Data Entered'!F77=100,"",'Design Input'!D270) -> 
A326: Earth Resistance At Start Of Cable | G326: =IF('Data Entered'!F77=100,"",'Design Input'!D271) ->  | H326: Ω
A327: Earth Resistance At End Of Cable | G327: =IF('Data Entered'!F77=100,"",'Design Input'!D272) ->  | H327: Ω
A328: Cable Length | G328: =IF('Data Entered'!F77=100,"",'Design Input'!D273) ->  | H328: km
A329: Calculated % Of Fault Current Flowing Into The Ground | G329: ='Data Entered'!F77 -> 100 | H329: %IGR
A333: APPENDIX F: ELECTRODE SURFACE AREA DATA
A335: Further information relating to the calculation of the electrode surface area is listed below:
A337: Minimum HV Electrode Surface Area Requirement | G337: ='Data Entered'!B80 -> 307.7234811 | H337: mm2
A338: Surface Area Of Perimeter Electrode | G338: ='Data Entered'!B82 -> 0 | H338: mm2
A339: Surface Area Of 4 x 1.2m Earth Rods | G339: ='Data Entered'!B83 -> 0 | H339: mm2
A340: Surface Area Of Electrode 'Tail' | G340: ='Data Entered'!B84 -> 0 | H340: mm2
A341: Total Surface Area | G341: ='Data Entered'!B85 -> 0 | H341: mm2
A342: Electrode Surface Area Criteria Met | G342: ='Design Input'!E319 -> NO
A346: ='Publish Report'!C75 -> ER_WPD_EM_1234567_26-03-2020 17-03-58hrs | E346: Page 9 of 10
A347: APPENDIX G: HV FAULT CLEARANCE TIME DATA
A349: Further information relating to the calculation of the fault clearance time is listed below:
A351: CB Operating Time | G351: =IF(OR(AND('Data Entered'!B13="Intermediate",'Data Entered'!B89="YES"),AND('Data Entered'!B13="Advanced - Fault Level Study",'Data Entered'!B89="YES")),'Data Entered'!B90,"") ->  | H351: ms
A352: IDMT CT Ratio | G352: =IF(OR(AND('Data Entered'!B13="Intermediate",'Data Entered'!B89="YES"),AND('Data Entered'!B13="Advanced - Fault Level Study",'Data Entered'!B89="YES")),CONCATENATE('Data Entered'!B91,"/",'Data Entered'!B92),"") -> 
A353: IDMT EF Current Setting | F353: =IF(OR(AND('Data Entered'!B13="Intermediate",'Data Entered'!B89="YES"),AND('Data Entered'!B13="Advanced - Fault Level Study",'Data Entered'!B89="YES")),CONCATENATE('Data Entered'!B93," ",'Data Entered'!B94),"") -> 
A354: IDMT EF Current Setting (Primary Current Equivalent) | G354: =IF(OR(AND('Data Entered'!B13="Intermediate",'Data Entered'!B89="YES"),AND('Data Entered'!B13="Advanced - Fault Level Study",'Data Entered'!B89="YES")),'Data Entered'!B95,"") ->  | H354: A
A355: IDMT EF Time-Current Characteristic | G355: =IF(OR(AND('Data Entered'!B13="Intermediate",'Data Entered'!B89="YES"),AND('Data Entered'!B13="Advanced - Fault Level Study",'Data Entered'!B89="YES")),'Data Entered'!B96,"") -> 
... 21 more rows

Sheet Source-Num (hidden)
B1: 1 | C1: 2 | D1: 3 | E1: 4 | F1: 5 | G1: 6 | H1: 7 | I1: 8
A2: AREA | B2: SUBSTATION_NUMBER | C2: SUBSTATION_NAME | D2: ZE | E2: Assumed ZE | F2: UE | G2: Assumed UE | H2: t | I2: Assumed t
A3: South West | B3: 104098 | C3: Norrington 132/33kV S Stn | D3: 0.2 | E3: Y | F3: 1400 | G3: Y | H3: 3 | I3: Y
A4: South West | B4: 106009 | C4: Iron Acton 275/132kV S Stn | D4: 0.2 | E4: Y | F4: 1486 | H4: 1 | I4: Y
A5: South West | B5: 106010 | C5: Melksham 400/275/132kV S Stn | D5: 0.2 | E5: Y | F5: 2800 | G5: Y | H5: 1 | I5: Y
A6: South West | B6: 110375 | C6: Woodland Way 33/11kV S Stn | D6: 0.088 | F6: 151 | H6: 3 | I6: Y
A7: South West | B7: 110641 | C7: Bedminster 33/11kV S Stn | D7: 0.12 | F7: 348 | H7: 3 | I7: Y
A8: South West | B8: 110644 | C8: Eastville 33/11kV S Stn | D8: 0.102 | F8: 500 | G8: Y | H8: 3 | I8: Y
A9: South West | B9: 110772 | C9: Lockleaze 33/11kV S Stn | D9: 0.057 | F9: 21 | H9: 3 | I9: Y
A10: South West | B10: 110803 | C10: Cairns Road 33/11kV S Stn | D10: 0.09 | F10: 207 | H10: 3 | I10: Y
A11: South West | B11: 110804 | C11: St Pauls BSP 132/11kV S Stn | D11: 0.06 | F11: 43 | H11: 3 | I11: Y
A12: South West | B12: 111158 | C12: Clifton 33/11kV S Stn | D12: 0.12 | F12: 251 | H12: 3 | I12: Y
A13: South West | B13: 111481 | C13: Keynsham East 33/11kV S Stn | D13: 0.108 | F13: 130 | H13: 3 | I13: Y
A14: South West | B14: 111800 | C14: Mangotsfield 33/11kV S Stn | D14: 0.093 | F14: 23 | H14: 3 | I14: Y
A15: South West | B15: 111935 | C15: Almondsbury 33/11kV S Stn | D15: 0.121 | F15: 143 | H15: 3 | I15: Y
A16: South West | B16: 112130 | C16: Winterbourne 33/11kV S Stn | D16: 0.301 | F16: 474 | H16: 3 | I16: Y
A17: South West | B17: 112272 | C17: Whitchurch 33/11kV S Stn | D17: 0.042 | F17: 13 | H17: 3 | I17: Y
A18: South West | B18: 112389 | C18: Stoke Bishop 33/11kV S Stn | D18: 0.12 | F18: 500 | G18: Y | H18: 3 | I18: Y
A19: South West | B19: 113180 | C19: Keynsham West 33/11kV S Stn | D19: 0.108 | F19: 170 | H19: 3 | I19: Y
A20: South West | B20: 113193 | C20: Bishopsworth 33/11kV S Stn | D20: 0.12 | F20: 198 | H20: 3 | I20: Y
A21: South West | B21: 113277 | C21: Avonmouth Docks 33/6.6kV S Stn | D21: 0.08 | F21: 119 | H21: 3 | I21: Y
A22: South West | B22: 113339 | C22: Kingsweston 33/11kV S Stn | D22: 0.11 | F22: 206 | H22: 3 | I22: Y
A23: South West | B23: 113367 | C23: Avonmouth BSP 132/33kV S Stn | D23: 0.015 | F23: 92 | H23: 3 | I23: Y
A24: South West | B24: 113368 | C24: Avonmouth 33/11kV S Stn | D24: 0.07 | F24: 109 | H24: 3 | I24: Y
A25: South West | B25: 113369 | C25: Filton Dc 33/11kV S Stn | D25: 0.13 | F25: 201 | H25: 3 | I25: Y
A26: South West | B26: 113370 | C26: Lockleaze 132/33/11kV S Stn | D26: 0.057 | F26: 184 | H26: 3 | I26: Y
A27: South West | B27: 113371 | C27: Bower Ashton 33/11kV S Stn | D27: 0.12 | F27: 186 | H27: 3 | I27: Y
A28: South West | B28: 113372 | C28: Feeder Road 33kV S Stn | D28: 0.05 | F28: 79 | H28: 3 | I28: Y
A29: South West | B29: 113373 | C29: Feeder Road A 33/11kV S Stn | D29: 0.05 | F29: 140 | H29: 3 | I29: Y
A30: South West | B30: 113374 | C30: Feeder Road B 33/11kV S Stn | D30: 0.05 | F30: 140 | H30: 3 | I30: Y
A31: South West | B31: 113429 | C31: British Gas Hallen 33/11kV S Stn | D31: 0.071 | F31: 110 | H31: 3 | I31: Y
A32: South West | B32: 113449 | C32: Feeder Road 132/33kV S Stn | D32: 0.05 | F32: 251 | H32: 3 | I32: Y
A33: South West | B33: 113450 | C33: St Pauls 132/11kV S Stn | D33: 0.06 | F33: 314 | H33: 1 | I33: Y
A34: South West | B34: 113572 | C34: Bradley Stoke 132/33kV S Stn | D34: 0.21 | F34: 1024 | H34: 3 | I34: Y
A35: South West | B35: 113720 | C35: Hewlett Packard 33/11kV S Stn | D35: 0.063 | F35: 28 | H35: 3 | I35: Y
A36: South West | B36: 113760 | C36: Bradley Stoke 33/11kV S Stn | D36: 0.21 | F36: 500 | G36: Y | H36: 3 | I36: Y
A37: South West | B37: 113884 | C37: Abbeywood 33/11kV S Stn | D37: 0.779 | F37: 265 | H37: 3 | I37: Y
A38: South West | B38: 113983 | C38: Cribbs Causeway 33/11kV S Stn | D38: 0.077 | F38: 32 | H38: 3 | I38: Y
A39: South West | B39: 114023 | C39: Seabank 400/132kV S Stn | D39: 0.086 | F39: 1274 | H39: 1 | I39: Y
A40: South West | B40: 114059 | C40: Rolls Royce Filton 132kV S Stn | D40: 0.133 | F40: 291 | H40: 1 | I40: Y
A41: South West | B41: 114258 | C41: Astrazeneca 33/11kV S Stn | D41: 0.47 | F41: 348 | H41: 3 | I41: Y
A42: South West | B42: 114259 | C42: Seabank 132/33kV S Stn | D42: 0.086 | F42: 695 | H42: 3 | I42: Y
A43: South West | B43: 114260 | C43: Broadweir 33/11kV S Stn | D43: 0.06 | F43: 13.5 | H43: 3 | I43: Y
A44: South West | B44: 114389 | C44: Cotham 33/11kV S Stn | D44: 0.165 | F44: 81 | H44: 3 | I44: Y
A45: South West | B45: 114391 | C45: Emersons Green 33/11kV S Stn | D45: 0.33 | F45: 144 | H45: 3 | I45: Y
A46: South West | B46: 114393 | C46: Staplehill 33kV S Stn | D46: 0.43 | F46: 132 | H46: 3 | I46: Y
A47: South West | B47: 114434 | C47: Western Approach 33/11kV S Stn | D47: 0.1 | F47: 200 | H47: 3 | I47: Y
A48: South West | B48: 114632 | C48: Hewlett Packard 33kV S Stn | D48: 0.063 | F48: 500 | G48: Y | H48: 3 | I48: Y
A49: South West | B49: 114652 | C49: Avonmouth Biogas 33kV S Stn | D49: 0.183 | F49: 500 | G49: Y | H49: 3 | I49: Y
A50: South West | B50: 114741 | C50: Patchway 33/11kV S Stn | D50: 0.62 | F50: 500 | G50: Y | H50: 3 | I50: Y
A51: South West | B51: 114756 | C51: Severnside Energy Recovery Centre 132kV S Stn | D51: 0.125 | F51: 1400 | G51: Y | H51: 1 | I51: Y
A52: South West | B52: 118093 | C52: Avonmouth Wind Farm 33kV S Stn | D52: 0.085 | F52: 500 | G52: Y | H52: 3 | I52: Y
A53: South West | B53: 118115 | C53: Northwood Solar Park 33kV S Stn | D53: 0.14 | F53: 500 | G53: Y | H53: 3 | I53: Y
A54: South West | B54: 118117 | C54: Marksbury Solar Park 33kV S Stn | D54: 0.096 | F54: 500 | G54: Y | H54: 3 | I54: Y
A55: South West | B55: 118154 | C55: Chelwood Solar Park 33kV S Stn | D55: 0.125 | F55: 500 | G55: Y | H55: 3 | I55: Y
A56: South West | B56: 118157 | C56: Oakham Farm Solar Park 33kV S Stn | D56: 0.144 | F56: 500 | G56: Y | H56: 3 | I56: Y
A57: South West | B57: 118166 | C57: Lawrence Weston Solar Park 33kV S Stn | D57: 0.186 | F57: 278.8 | H57: 3 | I57: Y
A58: South West | B58: 118179 | C58: Lockleaze Battery Storage 33kV S Stn | D58: 0.69 | F58: 500 | G58: Y | H58: 3 | I58: Y
A59: South West | B59: 118180 | C59: Old Green Generation Station 132kV S Stn | D59: 0.114 | F59: 1400 | G59: Y | H59: 1 | I59: Y
A60: South West | B60: 118183 | C60: Rockingham 33kV S Stn | D60: 0.23 | F60: 500 | G60: Y | H60: 3 | I60: Y
A61: South West | B61: 118184 | C61: Viridor Waste To Energy 33kV S Stn | D61: 0.093 | F61: 500 | G61: Y | H61: 3 | I61: Y
A62: South West | B62: 160050 | C62: Oldfield Park33/ 6.6kV S Stn | D62: 0.261 | F62: 86 | H62: 3 | I62: Y
A63: South West | B63: 160060 | C63: Park Street 33/6.6kV S Stn | D63: 0.031 | F63: 21 | H63: 3 | I63: Y
A64: South West | B64: 160355 | C64: Entry Hill 33/6.6kV S Stn | D64: 0.065 | F64: 88 | H64: 3 | I64: Y
A65: South West | B65: 160389 | C65: Batheaston 33/6.6kV S Stn | D65: 0.044 | F65: 59 | H65: 3 | I65: Y
A66: South West | B66: 160390 | C66: Twerton 33/6.6kV S Stn | D66: 0.08 | F66: 119 | H66: 3 | I66: Y
A67: South West | B67: 160415 | C67: Chewton Mendip 33/11kV S Stn | D67: 2 | F67: 2670 | H67: 3 | I67: Y
A68: South West | B68: 160423 | C68: Midsomer Norton 33/11kV S Stn | D68: 0.05 | F68: 82 | H68: 3 | I68: Y
A69: South West | B69: 160739 | C69: Whatley Quarry 33/11kV S Stn | D69: 0.917 | F69: 569 | H69: 3 | I69: Y
A70: South West | B70: 160811 | C70: Dinder 33/11kV S Stn | D70: 4.27 | F70: 4582 | H70: 3 | I70: Y
A71: South West | B71: 160824 | C71: Wells 33/11kV S Stn | D71: 0.148 | F71: 129 | H71: 3 | I71: Y
A72: South West | B72: 161315 | C72: Paulton 33/11kV S Stn | D72: 0.197 | F72: 127 | H72: 3 | I72: Y
A73: South West | B73: 161532 | C73: High Littleton 33/11kV S Stn | D73: 0.24 | F73: 401 | H73: 3 | I73: Y
A74: South West | B74: 161641 | C74: Shepton Mallet 33/11kV S Stn | D74: 0.192 | F74: 251 | H74: 3 | I74: Y
A75: South West | B75: 161701 | C75: Newbury 33/11kV S Stn | D75: 0.971 | F75: 1035 | H75: 3 | I75: Y
A76: South West | B76: 161823 | C76: Evercreech 33/11kV S Stn | D76: 0.129 | F76: 103 | H76: 3 | I76: Y
A77: South West | B77: 162344 | C77: Foxhills 33/11kV S Stn | D77: 0.162 | F77: 226 | H77: 3 | I77: Y
A78: South West | B78: 162406 | C78: Peasedown 33/11kV S Stn | D78: 0.102 | F78: 113 | H78: 3 | I78: Y
A79: South West | B79: 162633 | C79: Radstock 132/33kV S Stn | D79: 0.257 | F79: 247 | H79: 3 | I79: Y
A80: South West | B80: 162888 | C80: Shooters Bottom W/F 33kV S Stn | D80: 1.2 | F80: 1464 | H80: 3 | I80: Y
A81: South West | B81: 164016 | C81: Combe Park 33/6.6kV S Stn | D81: 0.076 | F81: 96 | H81: 3 | I81: Y
A82: South West | B82: 164087 | C82: Bath Dolemeads 132/33/6.6kV S Stn | D82: 0.072 | F82: 68 | H82: 3 | I82: Y
A83: South West | B83: 164170 | C83: Dorchester Street 33/6.6kV S Stn | D83: 0.072 | F83: 105 | H83: 3 | I83: Y
A84: South West | B84: 164210 | C84: University Of Bath 33/11kV S Stn | D84: 0.117 | F84: 500 | G84: Y | H84: 3 | I84: Y
A85: South West | B85: 168000 | C85: Whitchurch Farm Solar Park 33kV S Stn | D85: 0.203 | F85: 500 | G85: Y | H85: 3 | I85: Y
A86: South West | B86: 168001 | C86: Shooters Bottom Solar Park 33kV S Stn | D86: 0.904 | F86: 500 | G86: Y | H86: 3 | I86: Y
A87: South West | B87: 168104 | C87: New Row Farm Solar Park 33kV S Stn | D87: 0.666 | F87: 500 | G87: Y | H87: 3 | I87: Y
A88: South West | B88: 168105 | C88: Pitts Farm Solar Park 33kV S Stn | D88: 0.656 | F88: 500 | G88: Y | H88: 3 | I88: Y
A89: South West | B89: 168106 | C89: Dinder Farm Solar Park 33kV S Stn | D89: 0.656 | F89: 500 | G89: Y | H89: 3 | I89: Y
A90: South West | B90: 168138 | C90: Pylle Solar Park 33kV S Stn | D90: 0.177 | F90: 500 | G90: Y | H90: 3 | I90: Y
A91: South West | B91: 180003 | C91: Gas Lane 33/11kV S Stn | D91: 0.038 | F91: 36 | H91: 3 | I91: Y
A92: South West | B92: 180006 | C92: Congresbury 33/11kV S Stn | D92: 0.153 | F92: 325 | H92: 3 | I92: Y
A93: South West | B93: 180017 | C93: Axbridge 33/11kV S Stn | D93: 0.19 | F93: 281 | H93: 3 | I93: Y
A94: South West | B94: 180092 | C94: Weston Locking Road 33/11kV S Stn | D94: 0.062 | F94: 128 | H94: 3 | I94: Y
A95: South West | B95: 180173 | C95: Blagdon 33/11kV S Stn | D95: 0.118 | F95: 160 | H95: 3 | I95: Y
A96: South West | B96: 180198 | C96: Clevedon 33/11kV S Stn | D96: 0.262 | F96: 275 | H96: 3 | I96: Y
A97: South West | B97: 180471 | C97: Bournville 33/11kV S Stn | D97: 0.079 | F97: 141 | H97: 3 | I97: Y
A98: South West | B98: 180820 | C98: Weston-In-Gordano 33/11kV S Stn | D98: 0.172 | F98: 351 | H98: 3 | I98: Y
A99: South West | B99: 180952 | C99: Winscombe 33/11kV S Stn | D99: 0.212 | F99: 428 | H99: 3 | I99: Y
A100: South West | B100: 181000 | C100: Nailsea 33/11kV S Stn | D100: 0.235 | F100: 404 | H100: 3 | I100: Y
A101: South West | B101: 181216 | C101: Lypstone Farm 33/11kV S Stn | D101: 0.062 | F101: 143 | H101: 3 | I101: Y
A102: South West | B102: 181230 | C102: Chew Stoke 33/11kV S Stn | D102: 0.402 | F102: 339 | H102: 3 | I102: Y
A103: South West | B103: 181345 | C103: Cheddar 33/11kV S Stn | D103: 0.082 | F103: 128 | H103: 3 | I103: Y
A104: South West | B104: 181346 | C104: Compton Martin 33/11kV S Stn | D104: 0.469 | F104: 935 | H104: 3 | I104: Y
A105: South West | B105: 181360 | C105: Weston Central 33/11kV S Stn | D105: 0.303 | F105: 135 | H105: 3 | I105: Y
A106: South West | B106: 181414 | C106: Easton-In-Gordano 33/11kV S Stn | D106: 0.189 | F106: 417 | H106: 3 | I106: Y
A107: South West | B107: 181425 | C107: East Brent 33/11kV S Stn | D107: 0.158 | F107: 144 | H107: 3 | I107: Y
A108: South West | B108: 181817 | C108: Wedmore 33/11kV S Stn | D108: 0.123 | F108: 217 | H108: 3 | I108: Y
A109: South West | B109: 182000 | C109: Frys Hill Radio 33kV/LV S Stn | D109: 0.7 | E109: Y | F109: 500 | G109: Y | H109: 3 | I109: Y
A110: South West | B110: 182150 | C110: Royal Portbury Dock 33/11kV S Stn | D110: 0.051 | F110: 20 | H110: 3 | I110: Y
A111: South West | B111: 182332 | C111: Brent Knoll 33kV S Stn | D111: 0.191 | F111: 154 | H111: 3 | I111: Y
A112: South West | B112: 182372 | C112: Weston 132/33kV S Stn | D112: 0.062 | F112: 174 | H112: 3 | I112: Y
A113: South West | B113: 182373 | C113: Churchill 132/33kV S Stn | D113: 0.18 | F113: 271 | H113: 3 | I113: Y
A114: South West | B114: 182570 | C114: Churchill Gate 33/11kV S Stn | D114: 0.55 | F114: 853 | H114: 3 | I114: Y
A115: South West | B115: 182736 | C115: Bristol International Airport 33/11kV S Stn | D115: 0.283 | F115: 406 | H115: 3 | I115: Y
A116: South West | B116: 182768 | C116: Stancombe Quarry 33kV S Stn | D116: 1.084 | F116: 1444 | H116: 3 | I116: Y
A117: South West | B117: 182800 | C117: Portishead 132/33kV S Stn | D117: 0.059 | F117: 118 | H117: 3 | I117: Y
A118: South West | B118: 182982 | C118: West Wick 33/11kV S Stn | D118: 0.158 | F118: 316 | H118: 3 | I118: Y
A119: South West | B119: 182983 | C119: Portishead Ashlands 33/11kV S Stn | D119: 0.059 | F119: 423 | H119: 3 | I119: Y
A120: South West | B120: 188112 | C120: Carditch Drove Solar Park 33kV S Stn | D120: 0.1 | F120: 500 | G120: Y | H120: 3 | I120: Y
A121: South West | B121: 188122 | C121: Iwood Lane Solar Park 33kV S Stn | D121: 0.085 | F121: 500 | G121: Y | H121: 3 | I121: Y
A122: South West | B122: 188123 | C122: Ashlawn Farm Solar Park 33kV S Stn | D122: 0.085 | F122: 500 | G122: Y | H122: 3 | I122: Y
A123: South West | B123: 188124 | C123: Hawkers Farm Solar Park 33kV S Stn | D123: 0.109 | F123: 500 | G123: Y | H123: 3 | I123: Y
A124: South West | B124: 188139 | C124: Rookery Farm Solar Park 33kV S Stn | D124: 0.254 | F124: 500 | G124: Y | H124: 3 | I124: Y
A125: South West | B125: 188140 | C125: Towerhead Farm Solar Park 33kV S Stn | D125: 0.1 | F125: 500 | G125: Y | H125: 3 | I125: Y
A126: South West | B126: 188150 | C126: Wick Farm Solar Park 33kV S Stn | D126: 0.07 | F126: 500 | G126: Y | H126: 3 | I126: Y
A127: South West | B127: 188168 | C127: Wick Farm West Solar Park 33kV S Stn | D127: 0.11 | F127: 500 | G127: Y | H127: 3 | I127: Y
A128: South West | B128: 200433 | C128: Winterbourne Abbas 33kV S Stn | D128: 0.7 | E128: Y | F128: 500 | G128: Y | H128: 3 | I128: Y
A129: South West | B129: 200435 | C129: Yeovil 33kV S Stn | D129: 0.7 | E129: Y | F129: 500 | G129: Y | H129: 3 | I129: Y
A130: South West | B130: 206001 | C130: Alverdiscott 400/132kV S Stn | D130: 0.2 | E130: Y | F130: 2028 | H130: 1 | I130: Y
A131: South West | B131: 206006 | C131: Axminster GSP 400/132kV S Stn | D131: 0.2 | E131: Y | F131: 2096 | H131: 1 | I131: Y
A132: South West | B132: 206007 | C132: Taunton Main 400/132kV S Stn | D132: 0.2 | E132: Y | F132: 3500 | H132: 1 | I132: Y
A133: South West | B133: 206008 | C133: Bridgwater GSP 275/132kV S Stn | D133: 0.056 | F133: 820 | H133: 1 | I133: Y
A134: South West | B134: 210010 | C134: Taunton Local 33/11kV S Stn | D134: 0.047 | F134: 24 | H134: 3 | I134: Y
A135: South West | B135: 210020 | C135: Trull 33/11kV S Stn | D135: 0.06 | F135: 46 | H135: 3 | I135: Y
A136: South West | B136: 210030 | C136: Creech St Michael 33/11kV S Stn | D136: 0.304 | F136: 333 | H136: 3 | I136: Y
A137: South West | B137: 210040 | C137: Priorswood 33/11kV S Stn | D137: 0.075 | F137: 112 | H137: 3 | I137: Y
A138: South West | B138: 210050 | C138: Lydeard St Lawrence 33/11kV S Stn | D138: 0.868 | F138: 1075 | H138: 3 | I138: Y
A139: South West | B139: 210060 | C139: Bridgwater Local 33/11kV S Stn | D139: 0.091 | F139: 358 | H139: 3 | I139: Y
A140: South West | B140: 210070 | C140: Wiveliscombe 33/11kV S Stn | D140: 2.06 | F140: 2616 | H140: 3 | I140: Y
A141: South West | B141: 210080 | C141: Somerton 33/11kV S Stn | D141: 0.06 | F141: 69 | H141: 3 | I141: Y
A142: South West | B142: 210090 | C142: North Street Langport 33/11kV S Stn | D142: 0.1 | F142: 169 | H142: 3 | I142: Y
A143: South West | B143: 210100 | C143: Millfield 33/11kV S Stn | D143: 0.189 | F143: 275 | H143: 3 | I143: Y
A144: South West | B144: 210110 | C144: Edgarley 33/11kV S Stn | D144: 0.148 | F144: 194 | H144: 3 | I144: Y
A145: South West | B145: 210120 | C145: Colley Lane 33/11kV S Stn | D145: 0.082 | F145: 295 | H145: 3 | I145: Y
A146: South West | B146: 210130 | C146: Nether Stowey 33/11kV S Stn | D146: 0.443 | F146: 269 | H146: 3 | I146: Y
A147: South West | B147: 210140 | C147: Exebridge 33/11kV S Stn | D147: 1.25 | F147: 689 | H147: 3 | I147: Y
A148: South West | B148: 210150 | C148: Watchfield 33/11kV S Stn | D148: 0.09 | F148: 263 | H148: 3 | I148: Y
A149: South West | B149: 210160 | C149: Bath Road 33/11kV S Stn | D149: 0.06 | F149: 90 | H149: 3 | I149: Y
A150: South West | B150: 210180 | C150: Periton 33/11kV S Stn | D150: 0.255 | F150: 172 | H150: 3 | I150: Y
A151: South West | B151: 210190 | C151: Alcombe 33/11kV S Stn | D151: 0.107 | F151: 103 | H151: 3 | I151: Y
A152: South West | B152: 210200 | C152: Wellington 33/11kV S Stn | D152: 0.44 | F152: 903 | H152: 3 | I152: Y
A153: South West | B153: 210210 | C153: Bowhays Cross 132/33kV S Stn | D153: 0.192 | F153: 396 | H153: 3 | I153: Y
A154: South West | B154: 210210 | C154: Bowhays Cross 33/11kV S Stn | D154: 0.192 | F154: 396 | H154: 3 | I154: Y
A155: South West | B155: 210260 | C155: Bradon Fm Generator 33kV S Stn | D155: 0.077 | F155: 54 | H155: 3 | I155: Y
A156: South West | B156: 210270 | C156: Huntworth Generator 33kV S Stn | D156: 0.219 | F156: 494.9 | H156: 3 | I156: Y
A157: South West | B157: 210380 | C157: Wellington Town 33/11kV S Stn | D157: 0.288 | F157: 166 | H157: 3 | I157: Y
A158: South West | B158: 210390 | C158: Culmhead 33/11kV S Stn | D158: 0.793 | F158: 948 | H158: 3 | I158: Y
A159: South West | B159: 210444 | C159: Bridgwater Grid 132/33kV S Stn | D159: 0.061 | F159: 431 | H159: 3 | I159: Y
A160: South West | B160: 210448 | C160: Street 132/33kV S Stn | D160: 0.28 | F160: 580 | H160: 3 | I160: Y
A161: South West | B161: 210450 | C161: Curry Mallet 33/11kV S Stn | D161: 0.788 | F161: 871 | H161: 3 | I161: Y
A162: South West | B162: 210460 | C162: Shapwick 33/11kV S Stn | D162: 0.614 | F162: 1166 | H162: 3 | I162: Y
A163: South West | B163: 210470 | C163: Burnham 33/11kV S Stn | D163: 0.043 | F163: 54 | H163: 3 | I163: Y
A164: South West | B164: 210490 | C164: Luckwell Bridge 33/11kV S Stn | D164: 4.79 | F164: 2476 | H164: 3 | I164: Y
A165: South West | B165: 210500 | C165: Staplegrove 33/11kV S Stn | D165: 0.148 | F165: 183 | H165: 3 | I165: Y
A166: South West | B166: 210540 | C166: Quartley 33kV S Stn | D166: 3.95 | F166: 2386 | H166: 3 | I166: Y
A167: South West | B167: 210560 | C167: Holford 33/11kV S Stn | D167: 1.7 | F167: 430 | H167: 3 | I167: Y
A168: South West | B168: 210600 | C168: Blackditch 33kV S Stn | D168: 0.123 | F168: 369 | H168: 3 | I168: Y
A169: South West | B169: 210612 | C169: Taunton Main 132/33kV S Stn | D169: 0.08 | F169: 3500 | H169: 3 | I169: Y
A170: South West | B170: 210670 | C170: Wansbrough Paper Mill 33kV S Stn | D170: 0.078 | F170: 105 | H170: 3 | I170: Y
A171: South West | B171: 210999 | C171: R.O.F. Power House 33kV S Stn | D171: 0.062 | F171: 93 | H171: 3 | I171: Y
A172: South West | B172: 218000 | C172: New Rendy Farm Solar Farm 33kV S Stn | D172: 0.116 | F172: 500 | G172: Y | H172: 3 | I172: Y
A173: South West | B173: 218002 | C173: Park Wall Solar Park 33kV S Stn | D173: 0.094 | F173: 500 | G173: Y | H173: 3 | I173: Y
A174: South West | B174: 218004 | C174: Grange Farm Solar Park 33kV S Stn | D174: 0.7 | E174: Y | F174: 500 | G174: Y | H174: 3 | I174: Y
A175: South West | B175: 218005 | C175: Woolavington Solar Park 33kV S Stn | D175: 0.043 | F175: 500 | G175: Y | H175: 3 | I175: Y
A176: South West | B176: 218009 | C176: Culmhead Solar Park 33kV S Stn | D176: 0.137 | F176: 500 | G176: Y | H176: 3 | I176: Y
A177: South West | B177: 218016 | C177: Watchfield Lawn Solar Park 33kV S Stn | D177: 0.7 | E177: Y | F177: 500 | G177: Y | H177: 3 | I177: Y
A178: South West | B178: 218017 | C178: Redlands Farm Solar Park 33kV S Stn | D178: 0.13 | F178: 500 | G178: Y | H178: 3 | I178: Y
A179: South West | B179: 218018 | C179: Tengore Lane Solar Park 33kV S Stn | D179: 0.1 | F179: 500 | G179: Y | H179: 3 | I179: Y
A180: South West | B180: 218019 | C180: Somerton Door Solar Park 33kV S Stn | D180: 0.078 | F180: 500 | G180: Y | H180: 3 | I180: Y
A181: South West | B181: 218020 | C181: Tricky Warren Solar Park 33kV S Stn | D181: 0.25 | F181: 500 | G181: Y | H181: 3 | I181: Y
A182: South West | B182: 218021 | C182: Higher Bye Farm Solar Park 33kV S Stn | D182: 0.065 | F182: 500 | G182: Y | H182: 3 | I182: Y
A183: South West | B183: 218025 | C183: Puriton Landfill Solar Park 33kV S Stn | D183: 0.115 | F183: 500 | G183: Y | H183: 3 | I183: Y
A184: South West | B184: 218032 | C184: Tonedale Farm Solar Park 33kV S Stn | D184: 0.231 | F184: 500 | G184: Y | H184: 3 | I184: Y
A185: South West | B185: 218039 | C185: Tricky Warren 33kV S Stn | D185: 0.25 | F185: 500 | G185: Y | H185: 3 | I185: Y
A186: South West | B186: 218040 | C186: Withy Drove Solar Park 33kV S Stn | D186: 0.063 | F186: 500 | G186: Y | H186: 3 | I186: Y
A187: South West | B187: 218041 | C187: Montys Farm Solar Park 33kV S Stn | D187: 0.197 | F187: 500 | G187: Y | H187: 3 | I187: Y
A188: South West | B188: 218043 | C188: Halse Solar Farm 33kV S Stn | D188: 0.09 | F188: 112 | H188: 3 | I188: Y
A189: South West | B189: 218044 | C189: Glebe Farm 2 Solar Farm 33kV S Stn | D189: 0.69 | F189: 578 | H189: 3 | I189: Y
A190: South West | B190: 218045 | C190: Hele Manor STOR 33kV S Stn | D190: 0.265 | F190: 133 | H190: 3 | I190: Y
A191: South West | B191: 218061 | C191: Cobbs Cross Solar Farm 33kV S Stn | D191: 0.157 | F191: 500 | G191: Y | H191: 3 | I191: Y
A192: South West | B192: 218071 | C192: Aller Court Solar Farm 33kV S Stn | D192: 0.17 | F192: 500 | G192: Y | H192: 3 | I192: Y
A193: South West | B193: 218075 | C193: Whitley Farm Solar Farm 33kV S Stn | D193: 0.7 | E193: Y | F193: 500 | G193: Y | H193: 3 | I193: Y
A194: South West | B194: 250280 | C194: Axminster 33/11kV S Stn | D194: 0.116 | F194: 196 | H194: 3 | I194: Y
A195: South West | B195: 250290 | C195: East Chinnock 33/11kV S Stn | D195: 0.296 | F195: 413 | H195: 3 | I195: Y
A196: South West | B196: 250300 | C196: Martock 33/11kV S Stn | D196: 0.336 | F196: 265 | H196: 3 | I196: Y
A197: South West | B197: 250310 | C197: Colyford 33/11kV S Stn | D197: 0.609 | F197: 605 | H197: 3 | I197: Y
A198: South West | B198: 250320 | C198: Penn Cross 33/11kV S Stn | D198: 0.292 | F198: 455 | H198: 3 | I198: Y
A199: South West | B199: 250330 | C199: Waterlake 33/11kV S Stn | D199: 0.15 | F199: 220 | H199: 3 | I199: Y
A200: South West | B200: 250340 | C200: Bridport 33/11kV S Stn | D200: 0.058 | F200: 56 | H200: 3 | I200: Y
... 1790 more rows

Sheet Source-Name (hidden)
C1: 1 | D1: 2 | E1: 3 | F1: 4 | G1: 5 | H1: 6 | I1: 7 | J1: 8
A2: AREA | B2: SUBSTATION_NAME | C2: SUBSTATION_NAME_TRUNC | D2: SUBSTATION_NUMBER | E2: ZE | F2: Assumed ZE | G2: UE | H2: Assumed UE | I2: t | J2: Assumed t
A3: South West | B3: Aaronsons 33kV S Stn | C3: Aaronsons33kVSStn | D3: 260580 | E3: 0.32 | G3: 322 | I3: 3 | J3: Y
A4: South West | B4: Abbeywood 33/11kV S Stn | C4: Abbeywood33/11kVSStn | D4: 113884 | E4: 0.779 | G4: 265 | I4: 3 | J4: Y
A5: South Wales | B5: Aberaeron 33/11kV S Stn | C5: Aberaeron33/11kVSStn | D5: 590052 | E5: 0.59 | G5: 500 | H5: Y | I5: 3 | J5: Y
A6: South Wales | B6: Aberaman Industrial No.1 33kV S Stn | C6: AberamanIndustrialNo.133kVSStn | D6: 550384 | E6: 0.7 | F6: Y | G6: 500 | H6: Y | I6: 3 | J6: Y
A7: South Wales | B7: Aberaman Park 33kV S Stn | C7: AberamanPark33kVSStn | D7: 550313 | E7: 0.637 | G7: 500 | H7: Y | I7: 3 | J7: Y
A8: South Wales | B8: Abercrave 33/11kV S Stn | C8: Abercrave33/11kVSStn | D8: 560053 | E8: 0.92 | G8: 500 | H8: Y | I8: 3 | J8: Y
A9: South Wales | B9: Aberdare 33/11kV S Stn | C9: Aberdare33/11kVSStn | D9: 550267 | E9: 0.13 | G9: 500 | H9: Y | I9: 3 | J9: Y
A10: South Wales | B10: Abergavenny 132/66kV S Stn | C10: Abergavenny132/66kVSStn | D10: 530001 | E10: 0.078 | G10: 271 | I10: 1 | J10: Y
A11: South Wales | B11: Abergelli PV Generation Site 33kV S Stn | C11: AbergelliPVGenerationSite33kVSStn | D11: 520381 | E11: 0.36 | G11: 500 | H11: Y | I11: 3 | J11: Y
A12: South Wales | B12: Aberpergwm 33/11kV S Stn | C12: Aberpergwm33/11kVSStn | D12: 560055 | E12: 0.302 | G12: 500 | H12: Y | I12: 3 | J12: Y
A13: South Wales | B13: Abersychan 66/11kV S Stn | C13: Abersychan66/11kVSStn | D13: 530056 | E13: 0.206 | G13: 244 | I13: 3 | J13: Y
A14: South Wales | B14: Aberthaw Power Station 275/132kV S Stn | C14: AberthawPowerStation275/132kVSStn | D14: 510049 | E14: 0.2 | F14: Y | G14: 2152 | I14: 1 | J14: Y
A15: South Wales | B15: Abertillery 33/11kV S Stn | C15: Abertillery33/11kVSStn | D15: 550060 | E15: 0.164 | G15: 500 | H15: Y | I15: 3 | J15: Y
A16: South Wales | B16: Abertysswg 33/11kV S Stn | C16: Abertysswg33/11kVSStn | D16: 550061 | E16: 0.1111 | G16: 500 | H16: Y | I16: 3 | J16: Y
A17: South West | B17: Abham 400/132kV S Stn | C17: Abham400/132kVSStn | D17: 306004 | E17: 0.2 | F17: Y | G17: 6635 | I17: 1 | J17: Y
A18: East Midlands | B18: Abington 33/11kV S Stn | C18: Abington33/11kVSStn | D18: 940057 | E18: 0.14 | G18: 334 | I18: 3 | J18: Y
A19: East Midlands | B19: ABR Foods 33kV S Stn | C19: ABRFoods33kVSStn | D19: 920064 | E19: 0.36 | G19: 734 | I19: 3 | J19: Y
A20: West Midlands | B20: Abson 33kV S Stn | C20: Abson33kVSStn | D20: 670084 | E20: 0.259 | G20: 328 | I20: 3 | J20: Y
A21: East Midlands | B21: Acreage Lane 33/11kV S Stn | C21: AcreageLane33/11kVSStn | D21: 890035 | E21: 0.596 | G21: 1173 | I21: 3 | J21: Y
A22: West Midlands | B22: Actrees Solar Farm 33kV S Stn | C22: ActreesSolarFarm33kVSStn | D22: 795720 | E22: 0.077 | G22: 105 | I22: 3 | J22: Y
A23: South West | B23: Adelaide Road 33/11kV S Stn | C23: AdelaideRoad33/11kVSStn | D23: 330014 | E23: 0.47 | G23: 85 | I23: 3 | J23: Y
A24: South Wales | B24: Afan Way Stor Generation 33kV S Stn | C24: AfanWayStorGeneration33kVSStn | D24: 560440 | E24: 0.117 | G24: 500 | H24: Y | I24: 3 | J24: Y
A25: East Midlands | B25: Airfield Farm Windfarm 33kV S Stn | C25: AirfieldFarmWindfarm33kVSStn | D25: 926184 | E25: 0.17 | G25: 391 | I25: 3 | J25: Y
A26: West Midlands | B26: Air Liquide 132kV S Stn | C26: AirLiquide132kVSStn | D26: 670161 | E26: 0.2 | F26: Y | G26: 1000 | H26: Y | I26: 1 | J26: Y
A27: West Midlands | B27: Albrighton 33/11kV S Stn | C27: Albrighton33/11kVSStn | D27: 670122 | E27: 0.16 | G27: 200 | I27: 3 | J27: Y
A28: South West | B28: Alcombe 33/11kV S Stn | C28: Alcombe33/11kVSStn | D28: 210190 | E28: 0.107 | G28: 103 | I28: 3 | J28: Y
A29: South West | B29: Alders Way STOR 33kV S Stn | C29: AldersWaySTOR33kVSStn | D29: 348182 | E29: 0.428 | G29: 500 | H29: Y | I29: 3 | J29: Y
A30: West Midlands | B30: Alderton 66/11kV S Stn | C30: Alderton66/11kVSStn | D30: 670088 | E30: 0.13 | G30: 179 | I30: 3 | J30: Y
A31: West Midlands | B31: Aldridge 33/6.6kV S Stn | C31: Aldridge33/6.6kVSStn | D31: 670125 | E31: 0.062 | G31: 133 | I31: 3 | J31: Y
A32: South West | B32: Alexandra Road 33/11kV S Stn | C32: AlexandraRoad33/11kVSStn | D32: 330018 | E32: 0.36 | G32: 113 | I32: 3 | J32: Y
A33: East Midlands | B33: Alford 33/11kV S Stn | C33: Alford33/11kVSStn | D33: 900014 | E33: 0.265 | G33: 441 | I33: 3 | J33: Y
A34: East Midlands | B34: Alfreton 132/33kV S Stn | C34: Alfreton132/33kVSStn | D34: 680037 | E34: 0.193 | G34: 752 | I34: 3 | J34: Y
A35: East Midlands | B35: Alfreton 33kV S Stn | C35: Alfreton33kVSStn | D35: 890014 | E35: 0.193 | G35: 752 | I35: 3 | J35: Y
A36: East Midlands | B36: Allenton 33/11kV S Stn | C36: Allenton33/11kVSStn | D36: 870043 | E36: 0.081 | G36: 229 | I36: 3 | J36: Y
A37: South West | B37: Aller Court Solar Farm 33kV S Stn | C37: AllerCourtSolarFarm33kVSStn | D37: 218071 | E37: 0.17 | G37: 500 | H37: Y | I37: 3 | J37: Y
A38: East Midlands | B38: Alliance & Leicester 33/11kV S Stn | C38: Alliance&Leicester33/11kVSStn | D38: 930095 | E38: 0.17 | G38: 357 | I38: 3 | J38: Y
A39: South West | B39: Alma Road 33/11kV S Stn | C39: AlmaRoad33/11kVSStn | D39: 330020 | E39: 0.165 | G39: 244 | I39: 3 | J39: Y
A40: South West | B40: Almondsbury 33/11kV S Stn | C40: Almondsbury33/11kVSStn | D40: 111935 | E40: 0.121 | G40: 143 | I40: 3 | J40: Y
A41: South West | B41: Alverdiscott 400/132kV S Stn | C41: Alverdiscott400/132kVSStn | D41: 206001 | E41: 0.2 | F41: Y | G41: 2028 | I41: 1 | J41: Y
A42: South West | B42: Alverdiscott Wind Farm 33kV S Stn | C42: AlverdiscottWindFarm33kVSStn | D42: 358079 | E42: 0.7 | F42: Y | G42: 500 | H42: Y | I42: 3 | J42: Y
A43: West Midlands | B43: Alveston 33/11kV S Stn | C43: Alveston33/11kVSStn | D43: 790008 | E43: 1.1 | G43: 1716 | I43: 3 | J43: Y
A44: East Midlands | B44: Ambergate 33/11kV S Stn | C44: Ambergate33/11kVSStn | D44: 890077 | E44: 0.065 | G44: 75 | I44: 3 | J44: Y
A45: South Wales | B45: Ammanford Grid 132/33kV S Stn | C45: AmmanfordGrid132/33kVSStn | D45: 520002 | E45: 0.417 | G45: 1000 | H45: Y | I45: 3 | J45: Y
A46: East Midlands | B46: Anderson Lane 33/11kV S Stn | C46: AndersonLane33/11kVSStn | D46: 900032 | E46: 0.121 | G46: 369 | I46: 3 | J46: Y
A47: East Midlands | B47: Annesley 132/33kV S Stn | C47: Annesley132/33kVSStn | D47: 680011 | E47: 0.082 | G47: 370 | I47: 3 | J47: Y
A48: East Midlands | B48: Annesley 33/11kV S Stn | C48: Annesley33/11kVSStn | D48: 890033 | E48: 0.082 | G48: 370 | I48: 3 | J48: Y
A49: East Midlands | B49: Annesley 33kV S Stn | C49: Annesley33kVSStn | D49: 890007 | E49: 0.082 | G49: 370 | I49: 3 | J49: Y
A50: East Midlands | B50: Ansty 33/11kV S Stn | C50: Ansty33/11kVSStn | D50: 930061 | E50: 0.095 | G50: 235 | I50: 3 | J50: Y
A51: East Midlands | B51: Apollo 33/11kV S Stn | C51: Apollo33/11kVSStn | D51: 930068 | E51: 0.107 | G51: 261 | I51: 3 | J51: Y
A52: South Wales | B52: Argoed Tregaron 33/11kV S Stn | C52: ArgoedTregaron33/11kVSStn | D52: 590246 | E52: 3.3 | G52: 500 | H52: Y | I52: 3 | J52: Y
A53: East Midlands | B53: Arkwright Solar 33kV S Stn | C53: ArkwrightSolar33kVSStn | D53: 898436 | E53: 0.49 | G53: 821 | I53: 3 | J53: Y
A54: East Midlands | B54: Arley 33/11kV S Stn | C54: Arley33/11kVSStn | D54: 930078 | E54: 0.14 | G54: 217 | I54: 3 | J54: Y
A55: West Midlands | B55: Arley 33kV S Stn | C55: Arley33kVSStn | D55: 670107 | E55: 1.79 | G55: 1545 | I55: 3 | J55: Y
A56: South West | B56: Armada Street 33/11kV S Stn | C56: ArmadaStreet33/11kVSStn | D56: 330021 | E56: 0.27 | G56: 113 | I56: 3 | J56: Y
A57: East Midlands | B57: Arnold 33/11kV S Stn | C57: Arnold33/11kVSStn | D57: 880027 | E57: 0.167 | G57: 326 | I57: 3 | J57: Y
A58: East Midlands | B58: Asfordby 132/11kV S Stn | C58: Asfordby132/11kVSStn | D58: 910047 | E58: 0.095 | G58: 185 | I58: 1 | J58: Y
A59: East Midlands | B59: Asfordby 132kV S Stn | C59: Asfordby132kVSStn | D59: 690034 | E59: 0.095 | G59: 185 | I59: 1 | J59: Y
A60: East Midlands | B60: Ashbourne 33/11kV S Stn | C60: Ashbourne33/11kVSStn | D60: 870030 | E60: 0.125 | G60: 230 | I60: 3 | J60: Y
A61: South West | B61: Ashburton 33/11kV S Stn | C61: Ashburton33/11kVSStn | D61: 340013 | E61: 0.34 | G61: 481 | I61: 3 | J61: Y
A62: East Midlands | B62: Ashby De La Zouch 33/11kV S Stn | C62: AshbyDeLaZouch33/11kVSStn | D62: 930101 | E62: 0.107 | G62: 198 | I62: 3 | J62: Y
A63: South West | B63: Ashcombe Solar Park 33kV S Stn | C63: AshcombeSolarPark33kVSStn | D63: 348132 | E63: 0.066 | G63: 500 | H63: Y | I63: 3 | J63: Y
A64: East Midlands | B64: Asher Lane STOR 33kV S Stn | C64: AsherLaneSTOR33kVSStn | D64: 898663 | E64: 0.7 | F64: Y | G64: 500 | H64: Y | I64: 3 | J64: Y
A65: South Wales | B65: Ashgrove 33/11kV S Stn | C65: Ashgrove33/11kVSStn | D65: 510064 | E65: 0.7 | F65: Y | G65: 500 | H65: Y | I65: 3 | J65: Y
A66: South West | B66: Ashlawn Farm Solar Park 33kV S Stn | C66: AshlawnFarmSolarPark33kVSStn | D66: 188123 | E66: 0.085 | G66: 500 | H66: Y | I66: 3 | J66: Y
A67: South West | B67: Ashwater 33/11kV S Stn | C67: Ashwater33/11kVSStn | D67: 350022 | E67: 2.833 | G67: 3043 | I67: 3 | J67: Y
A68: South West | B68: Ashwater Solar Park 33kV S Stn | C68: AshwaterSolarPark33kVSStn | D68: 358160 | E68: 0.5 | G68: 500 | H68: Y | I68: 3 | J68: Y
A69: West Midlands | B69: Astley Solar Farm 33kv S Stn | C69: AstleySolarFarm33kvSStn | D69: 779071 | E69: 0.47 | G69: 351 | I69: 3 | J69: Y
A70: East Midlands | B70: Aston House Solar Farm 33kV S Stn | C70: AstonHouseSolarFarm33kVSStn | D70: 874987 | E70: 0.235 | G70: 291 | I70: 3 | J70: Y
A71: East Midlands | B71: Astrazeneca 33/11kV S Stn | C71: Astrazeneca33/11kVSStn | D71: 920066 | E71: 0.093 | G71: 180 | I71: 3 | J71: Y
A72: South West | B72: Astrazeneca 33/11kV S Stn | C72: Astrazeneca33/11kVSStn | D72: 114258 | E72: 0.47 | G72: 348 | I72: 3 | J72: Y
A73: South West | B73: Athelstan Road 33/11kV S Stn | C73: AthelstanRoad33/11kVSStn | D73: 310020 | E73: 0.2 | G73: 261 | I73: 3 | J73: Y
A74: East Midlands | B74: Atherstone 33/11kV S Stn | C74: Atherstone33/11kVSStn | D74: 930076 | E74: 0.052 | G74: 90 | I74: 3 | J74: Y
A75: East Midlands | B75: Atherstone Solar Farm 33kV S Stn | C75: AtherstoneSolarFarm33kVSStn | D75: 939140 | E75: 0.215 | G75: 381 | I75: 3 | J75: Y
A76: East Midlands | B76: Averill Solar Farm 33kV S Stn | C76: AverillSolarFarm33kVSStn | D76: 898444 | E76: 0.13 | G76: 150 | I76: 3 | J76: Y
A77: South West | B77: Avonmouth 33/11kV S Stn | C77: Avonmouth33/11kVSStn | D77: 113368 | E77: 0.07 | G77: 109 | I77: 3 | J77: Y
A78: South West | B78: Avonmouth Biogas 33kV S Stn | C78: AvonmouthBiogas33kVSStn | D78: 114652 | E78: 0.183 | G78: 500 | H78: Y | I78: 3 | J78: Y
A79: South West | B79: Avonmouth BSP 132/33kV S Stn | C79: AvonmouthBSP132/33kVSStn | D79: 113367 | E79: 0.015 | G79: 92 | I79: 3 | J79: Y
A80: South West | B80: Avonmouth Docks 33/6.6kV S Stn | C80: AvonmouthDocks33/6.6kVSStn | D80: 113277 | E80: 0.08 | G80: 119 | I80: 3 | J80: Y
A81: South West | B81: Avonmouth Wind Farm 33kV S Stn | C81: AvonmouthWindFarm33kVSStn | D81: 118093 | E81: 0.085 | G81: 500 | H81: Y | I81: 3 | J81: Y
A82: South West | B82: Axbridge 33/11kV S Stn | C82: Axbridge33/11kVSStn | D82: 180017 | E82: 0.19 | G82: 281 | I82: 3 | J82: Y
A83: South West | B83: Axe View Solar Farm 33kV S Stn | C83: AxeViewSolarFarm33kVSStn | D83: 258174 | E83: 0.031 | G83: 500 | H83: Y | I83: 3 | J83: Y
A84: South West | B84: Axminster 33/11kV S Stn | C84: Axminster33/11kVSStn | D84: 250280 | E84: 0.116 | G84: 196 | I84: 3 | J84: Y
A85: South West | B85: Axminster GSP 400/132kV S Stn | C85: AxminsterGSP400/132kVSStn | D85: 206006 | E85: 0.2 | F85: Y | G85: 2096 | I85: 1 | J85: Y
A86: South West | B86: Ayshford Court Farm Solar Park 33kV S Stn | C86: AyshfordCourtFarmSolarPark33kVSStn | D86: 318035 | E86: 0.175 | G86: 500 | H86: Y | I86: 3 | J86: Y
A87: East Midlands | B87: Babelake St Packington 33kv S Stn | C87: BabelakeStPackington33kvSStn | D87: 939146 | E87: 0.2 | G87: 248 | I87: 3 | J87: Y
A88: East Midlands | B88: Baddesley Energy Park 33kV S Stn | C88: BaddesleyEnergyPark33kVSStn | D88: 939417 | E88: 0.306 | G88: 727 | I88: 3 | J88: Y
A89: South Wales | B89: Baglan Bay PV Generation 33kV S Stn | C89: BaglanBayPVGeneration33kVSStn | D89: 560336 | E89: 0.44 | G89: 500 | H89: Y | I89: 3 | J89: Y
A90: East Midlands | B90: Bakewell 33/11kV S Stn | C90: Bakewell33/11kVSStn | D90: 890065 | E90: 0.3 | G90: 268 | I90: 3 | J90: Y
A91: South West | B91: Balls Wood Solar Park 33kV S Stn | C91: BallsWoodSolarPark33kVSStn | D91: 338120 | E91: 0.289 | G91: 500 | H91: Y | I91: 3 | J91: Y
A92: East Midlands | B92: Bambers Farm Wind Generation 33kV S Stn | C92: BambersFarmWindGeneration33kVSStn | D92: 900008 | E92: 0.2 | G92: 272 | I92: 3 | J92: Y
A93: West Midlands | B93: Banbury 132/11kV S Stn | C93: Banbury132/11kVSStn | D93: 670045 | E93: 0.066 | G93: 211 | I93: 1 | J93: Y
A94: East Midlands | B94: Banbury Lane 33/11kV S Stn | C94: BanburyLane33/11kVSStn | D94: 940058 | E94: 0.57 | G94: 96 | I94: 3 | J94: Y
A95: East Midlands | B95: Banbury Road 33/11kV S Stn | C95: BanburyRoad33/11kVSStn | D95: 930051 | E95: 0.123 | G95: 224 | I95: 3 | J95: Y
A96: East Midlands | B96: Bardon 33/11kV S Stn | C96: Bardon33/11kVSStn | D96: 930091 | E96: 0.257 | G96: 540 | I96: 3 | J96: Y
A97: South Wales | B97: Bargoed Solar Park 33kV S Stn | C97: BargoedSolarPark33kVSStn | D97: 550416 | E97: 0.44 | G97: 500 | H97: Y | I97: 3 | J97: Y
A98: West Midlands | B98: Barlaston 132kV S Stn | C98: Barlaston132kVSStn | D98: 680027 | E98: 0.2 | F98: Y | G98: 1000 | H98: Y | I98: 1 | J98: Y
A99: South West | B99: Barnstaple 132/33/11kV S Stn | C99: Barnstaple132/33/11kVSStn | D99: 260467 | E99: 0.062 | G99: 93 | I99: 3 | J99: Y
A100: South West | B100: Barnstaple Quay 33/11kV S Stn | C100: BarnstapleQuay33/11kVSStn | D100: 260250 | E100: 0.1 | G100: 115 | I100: 3 | J100: Y
A101: South Wales | B101: Barry Dock Biomass 33kV S Stn | C101: BarryDockBiomass33kVSStn | D101: 510429 | E101: 0.103 | G101: 500 | H101: Y | I101: 3 | J101: Y
A102: West Midlands | B102: Bartley Green 132/11kV S Stn | C102: BartleyGreen132/11kVSStn | D102: 670138 | E102: 0.093 | G102: 1038 | I102: 1 | J102: Y
A103: South West | B103: Barton 33/11kV S Stn | C103: Barton33/11kVSStn | D103: 340024 | E103: 0.581 | G103: 109 | I103: 3 | J103: Y
A104: West Midlands | B104: Barton Abrasives 33/11kV S Stn | C104: BartonAbrasives33/11kVSStn | D104: 670148 | E104: 0.151 | G104: 831 | I104: 3 | J104: Y
A105: South West | B105: Barton Hill STOR Generator 33kV S Stn | C105: BartonHillSTORGenerator33kVSStn | D105: 348178 | E105: 0.41 | G105: 500 | H105: Y | I105: 3 | J105: Y
A106: East Midlands | B106: Barton Under Needwood 33/11kV S Stn | C106: BartonUnderNeedwood33/11kVSStn | D106: 870013 | E106: 0.165 | G106: 185 | I106: 3 | J106: Y
A107: East Midlands | B107: Barwell 33/11kV S Stn | C107: Barwell33/11kVSStn | D107: 930099 | E107: 0.271 | G107: 473 | I107: 3 | J107: Y
A108: South West | B108: Bath Dolemeads 132/33/6.6kV S Stn | C108: BathDolemeads132/33/6.6kVSStn | D108: 164087 | E108: 0.072 | G108: 68 | I108: 3 | J108: Y
A109: South West | B109: Batheaston 33/6.6kV S Stn | C109: Batheaston33/6.6kVSStn | D109: 160389 | E109: 0.044 | G109: 59 | I109: 3 | J109: Y
A110: South West | B110: Bath Road 33/11kV S Stn | C110: BathRoad33/11kVSStn | D110: 210160 | E110: 0.06 | G110: 90 | I110: 3 | J110: Y
A111: South West | B111: Batsworthy Cross Wind Farm 33kV S Stn | C111: BatsworthyCrossWindFarm33kVSStn | D111: 318152 | E111: 0.49 | G111: 500 | H111: Y | I111: 3 | J111: Y
A112: West Midlands | B112: Battlefield Generation 33kV S Stn | C112: BattlefieldGeneration33kVSStn | D112: 840698 | E112: 0.14 | G112: 98 | I112: 3 | J112: Y
A113: West Midlands | B113: Bayston Hill 33/11kV S Stn | C113: BaystonHill33/11kVSStn | D113: 840013 | E113: 0.26 | G113: 494 | I113: 3 | J113: Y
A114: East Midlands | B114: Beachampton Solar Farm 33kV S Stn | C114: BeachamptonSolarFarm33kVSStn | D114: 945510 | E114: 0.07 | G114: 105 | I114: 3 | J114: Y
A115: South West | B115: Beaford Solar Farm 33kV S Stn | C115: BeafordSolarFarm33kVSStn | D115: 268005 | E115: 0.375 | G115: 500 | H115: Y | I115: 3 | J115: Y
A116: South West | B116: Beaminster 33/11kV S Stn | C116: Beaminster33/11kVSStn | D116: 250620 | E116: 0.439 | G116: 358 | I116: 3 | J116: Y
A117: South West | B117: Bears Down Wind Farm 33kV S Stn | C117: BearsDownWindFarm33kVSStn | D117: 437150 | E117: 0.55 | G117: 282 | I117: 3 | J117: Y
A118: West Midlands | B118: Bearstone 33/11kV S Stn | C118: Bearstone33/11kVSStn | D118: 850002 | E118: 0.427 | G118: 427 | I118: 3 | J118: Y
A119: South Wales | B119: Beaufort Power Stor 33/11kV S Stn | C119: BeaufortPowerStor33/11kVSStn | D119: 550441 | E119: 0.7 | F119: Y | G119: 500 | H119: Y | I119: 3 | J119: Y
A120: East Midlands | B120: Beaumont Leys 33/11kV S Stn | C120: BeaumontLeys33/11kVSStn | D120: 920026 | E120: 0.13 | G120: 275 | I120: 3 | J120: Y
A121: South West | B121: Bedminster 33/11kV S Stn | C121: Bedminster33/11kVSStn | D121: 110641 | E121: 0.12 | G121: 348 | I121: 3 | J121: Y
A122: South West | B122: Beechgrove Farm Solar Park 33kV S Stn | C122: BeechgroveFarmSolarPark33kVSStn | D122: 258019 | E122: 0.167 | G122: 274 | I122: 3 | J122: Y
A123: East Midlands | B123: Beeston 33/11kV S Stn | C123: Beeston33/11kVSStn | D123: 880012 | E123: 0.1 | G123: 216 | I123: 3 | J123: Y
A124: East Midlands | B124: Beevor Street 33/11kV S Stn | C124: BeevorStreet33/11kVSStn | D124: 900009 | E124: 0.15 | G124: 300 | I124: 3 | J124: Y
A125: East Midlands | B125: Belper 33/11kV S Stn | C125: Belper33/11kVSStn | D125: 890076 | E125: 0.083 | G125: 120 | I125: 3 | J125: Y
A126: East Midlands | B126: Bentinck Generating Station 33kV S Stn | C126: BentinckGeneratingStation33kVSStn | D126: 898163 | E126: 1.3 | G126: 2275 | I126: 3 | J126: Y
A127: West Midlands | B127: Bentley 132/11kV S Stn | C127: Bentley132/11kVSStn | D127: 670046 | E127: 0.089 | G127: 694 | I127: 1 | J127: Y
A128: West Midlands | B128: Berkeley 33/11kV S Stn | C128: Berkeley33/11kVSStn | D128: 790015 | E128: 0.338 | G128: 423 | I128: 3 | J128: Y
A129: East Midlands | B129: Berkswell 275/132kV S Stn | C129: Berkswell275/132kVSStn | D129: 690001 | E129: 0.2 | F129: Y | G129: 350 | I129: 1 | J129: Y
A130: West Midlands | B130: Berrington 33/11kV S Stn | C130: Berrington33/11kVSStn | D130: 840018 | E130: 0.36 | G130: 710 | I130: 3 | J130: Y
A131: South Wales | B131: Berthllwyd Solar Park Generation 33kV S Stn | C131: BerthllwydSolarParkGeneration33kVSStn | D131: 540426 | E131: 0.7 | F131: Y | G131: 500 | H131: Y | I131: 3 | J131: Y
A132: South Wales | B132: Betws Wind Farm Grid 132kV S Stn | C132: BetwsWindFarmGrid132kVSStn | D132: 520341 | E132: 0.2 | F132: Y | G132: 1000 | H132: Y | I132: 1 | J132: Y
A133: East Midlands | B133: Bevercotes 33/11kV S Stn | C133: Bevercotes33/11kVSStn | D133: 890055 | E133: 0.171 | G133: 171 | I133: 3 | J133: Y
A134: West Midlands | B134: Bevington 66/11kV S Stn | C134: Bevington66/11kVSStn | D134: 670098 | E134: 0.154 | G134: 248 | I134: 3 | J134: Y
A135: East Midlands | B135: Bicker Fen 400/132kV S Stn | C135: BickerFen400/132kVSStn | D135: 690003 | E135: 0.04 | G135: 710 | I135: 1 | J135: Y
A136: East Midlands | B136: Bicker Fen Wind Generation 33kV S Stn | C136: BickerFenWindGeneration33kVSStn | D136: 910019 | E136: 0.7 | F136: Y | G136: 500 | H136: Y | I136: 3 | J136: Y
A137: South West | B137: Bideford Main 33/11kV S Stn | C137: BidefordMain33/11kVSStn | D137: 350018 | E137: 0.104 | G137: 115 | I137: 3 | J137: Y
A138: South West | B138: Bidwell Solar Park 33kV S Stn | C138: BidwellSolarPark33kVSStn | D138: 348103 | E138: 0.298 | G138: 500 | H138: Y | I138: 3 | J138: Y
A139: East Midlands | B139: Bilborough 33/11kV S Stn | C139: Bilborough33/11kVSStn | D139: 880013 | E139: 0.131 | G139: 277 | I139: 3 | J139: Y
A140: East Midlands | B140: Billingborough 33/11kV S Stn | C140: Billingborough33/11kVSStn | D140: 910035 | E140: 0.323 | G140: 633 | I140: 3 | J140: Y
A141: West Midlands | B141: Bilson 33/11kV S Stn | C141: Bilson33/11kVSStn | D141: 790026 | E141: 0.104 | G141: 260 | I141: 3 | J141: Y
A142: East Midlands | B142: Bilsthorpe 33/11kV S Stn | C142: Bilsthorpe33/11kVSStn | D142: 890054 | E142: 0.2 | G142: 396 | I142: 3 | J142: Y
A143: East Midlands | B143: Bilsthorpe P V Generation 33kV S Stn | C143: BilsthorpePVGeneration33kVSStn | D143: 898555 | E143: 0.24 | G143: 496 | I143: 3 | J143: Y
A144: East Midlands | B144: Bilsthorpe Solar 33kV S Stn | C144: BilsthorpeSolar33kVSStn | D144: 898326 | E144: 0.27 | G144: 208 | I144: 3 | J144: Y
A145: East Midlands | B145: Bingham 33/11kV S Stn | C145: Bingham33/11kVSStn | D145: 880039 | E145: 0.061 | G145: 73 | I145: 3 | J145: Y
A146: East Midlands | B146: Birch Coppice 33/11kv S Stn | C146: BirchCoppice33/11kvSStn | D146: 939800 | E146: 0.133 | G146: 189 | I146: 3 | J146: Y
A147: West Midlands | B147: Birchfield Lane 132/11kV S Stn | C147: BirchfieldLane132/11kVSStn | D147: 670047 | E147: 0.051 | G147: 418 | I147: 1 | J147: Y
A148: South Wales | B148: Birchgrove 33/11kV S Stn | C148: Birchgrove33/11kVSStn | D148: 510069 | E148: 0.067 | G148: 500 | H148: Y | I148: 3 | J148: Y
A149: East Midlands | B149: Birstall 33/11kV S Stn | C149: Birstall33/11kVSStn | D149: 920029 | E149: 0.077 | G149: 182 | I149: 3 | J149: Y
A150: West Midlands | B150: Bishops Castle 33/11kV S Stn | C150: BishopsCastle33/11kVSStn | D150: 840007 | E150: 0.19 | G150: 134 | I150: 3 | J150: Y
A151: West Midlands | B151: Bishops Cleeve 66/11kV S Stn | C151: BishopsCleeve66/11kVSStn | D151: 670086 | E151: 0.115 | G151: 163 | I151: 3 | J151: Y
A152: South Wales | B152: Bishopston 33/11kV S Stn | C152: Bishopston33/11kVSStn | D152: 520070 | E152: 0.434 | G152: 500 | H152: Y | I152: 3 | J152: Y
A153: West Midlands | B153: Bishops Wood 275/132kV S Stn | C153: BishopsWood275/132kVSStn | D153: 670002 | E153: 0.17 | G153: 3145 | I153: 1 | J153: Y
A154: South West | B154: Bishopsworth 33/11kV S Stn | C154: Bishopsworth33/11kVSStn | D154: 113193 | E154: 0.12 | G154: 198 | I154: 3 | J154: Y
A155: East Midlands | B155: Biwaters 33/11kV S Stn | C155: Biwaters33/11kVSStn | D155: 890095 | E155: 0.262 | G155: 349 | I155: 3 | J155: Y
A156: West Midlands | B156: Bixhead 33/11kV S Stn | C156: Bixhead33/11kVSStn | D156: 790018 | E156: 0.385 | G156: 454 | I156: 3 | J156: Y
A157: South West | B157: Blackawton 33/11kV S Stn | C157: Blackawton33/11kVSStn | D157: 340022 | E157: 1.386 | G157: 1249 | I157: 3 | J157: Y
A158: South West | B158: Blackditch 33kV S Stn | C158: Blackditch33kVSStn | D158: 210600 | E158: 0.123 | G158: 369 | I158: 3 | J158: Y
A159: West Midlands | B159: Black Lake 132/11kV S Stn | C159: BlackLake132/11kVSStn | D159: 670048 | E159: 0.072 | G159: 532 | I159: 1 | J159: Y
A160: South West | B160: Blackpool 33/11kV S Stn | C160: Blackpool33/11kVSStn | D160: 437350 | E160: 0.533 | G160: 534 | I160: 3 | J160: Y
A161: East Midlands | B161: Blackwell 33/11kV S Stn | C161: Blackwell33/11kVSStn | D161: 890026 | E161: 0.114 | G161: 201 | I161: 3 | J161: Y
A162: South Wales | B162: Blaenavon 66/11kV S Stn | C162: Blaenavon66/11kVSStn | D162: 530071 | E162: 0.11 | G162: 146 | I162: 3 | J162: Y
A163: South Wales | B163: Blaen Bowi Wind Farm 33kV S Stn | C163: BlaenBowiWindFarm33kVSStn | D163: 580315 | E163: 0.7 | F163: Y | G163: 500 | H163: Y | I163: 3 | J163: Y
A164: South Wales | B164: Blaengwen Wind Farm 132kV S Stn | C164: BlaengwenWindFarm132kVSStn | D164: 580328 | E164: 0.2 | F164: Y | G164: 1000 | H164: Y | I164: 1 | J164: Y
A165: South Wales | B165: Blaenlleidi Wind Farm 33kV S Stn | C165: BlaenlleidiWindFarm33kVSStn | D165: 520388 | E165: 2.2 | G165: 500 | H165: Y | I165: 3 | J165: Y
A166: South Wales | B166: Blaenporth 33/11kV S Stn | C166: Blaenporth33/11kVSStn | D166: 580072 | E166: 1.18 | G166: 500 | H166: Y | I166: 3 | J166: Y
A167: South West | B167: Blagdon 33/11kV S Stn | C167: Blagdon33/11kVSStn | D167: 180173 | E167: 0.118 | G167: 160 | I167: 3 | J167: Y
A168: East Midlands | B168: Bletchley 132/33kV S Stn | C168: Bletchley132/33kVSStn | D168: 690046 | E168: 0.027 | G168: 166 | I168: 3 | J168: Y
A169: East Midlands | B169: Bletchley 33/11kV S Stn | C169: Bletchley33/11kVSStn | D169: 940042 | E169: 0.027 | G169: 166 | I169: 3 | J169: Y
A170: East Midlands | B170: Bletchley 33kV S Stn | C170: Bletchley33kVSStn | D170: 940013 | E170: 0.027 | G170: 166 | I170: 3 | J170: Y
A171: East Midlands | B171: Bletchley Landfill 33kV S Stn | C171: BletchleyLandfill33kVSStn | D171: 940020 | E171: 0.192 | G171: 416 | I171: 3 | J171: Y
A172: East Midlands | B172: Blidworth 33/11kV S Stn | C172: Blidworth33/11kVSStn | D172: 890041 | E172: 0.644 | G172: 1173 | I172: 3 | J172: Y
A173: West Midlands | B173: Bloxham 66/11kV S Stn | C173: Bloxham66/11kVSStn | D173: 670087 | E173: 0.31 | G173: 504 | I173: 3 | J173: Y
A174: West Midlands | B174: Bloxwich Ess 33kV S Stn | C174: BloxwichEss33kVSStn | D174: 726003 | E174: 0.7 | F174: Y | G174: 500 | H174: Y | I174: 3 | J174: Y
A175: South Wales | B175: Boc Margam Grid 132kV S Stn | C175: BocMargamGrid132kVSStn | D175: 560290 | E175: 0.115 | G175: 1000 | H175: Y | I175: 1 | J175: Y
A176: West Midlands | B176: Bodenham 66/11kV S Stn | C176: Bodenham66/11kVSStn | D176: 670112 | E176: 0.46 | G176: 1334 | I176: 3 | J176: Y
A177: South West | B177: Bodiniel Solar Park 33kV S Stn | C177: BodinielSolarPark33kVSStn | D177: 438020 | E177: 0.9 | G177: 500 | H177: Y | I177: 3 | J177: Y
A178: South West | B178: Bodmin 33/11kV S Stn | C178: Bodmin33/11kVSStn | D178: 437230 | E178: 0.189 | G178: 242 | I178: 3 | J178: Y
A179: South West | B179: Bodwen Solar Farm 33kV S Stn | C179: BodwenSolarFarm33kVSStn | D179: 438171 | E179: 1.46 | G179: 500 | H179: Y | I179: 3 | J179: Y
A180: East Midlands | B180: Bolsover 33/11kV S Stn | C180: Bolsover33/11kVSStn | D180: 890093 | E180: 0.15 | G180: 225 | I180: 3 | J180: Y
A181: East Midlands | B181: Bolsover Moor Quarry PV Solar Farm 33kV S Stn | C181: BolsoverMoorQuarryPVSolarFarm33kVSStn | D181: 898563 | E181: 0.35 | G181: 487 | I181: 3 | J181: Y
A182: East Midlands | B182: Bombardier 33kV S Stn | C182: Bombardier33kVSStn | D182: 870016 | E182: 0.054 | G182: 127 | I182: 3 | J182: Y
A183: South West | B183: Bommerton Farm Solar Park 33kV S Stn | C183: BommertonFarmSolarPark33kVSStn | D183: 268081 | E183: 0.7 | F183: Y | G183: 500 | H183: Y | I183: 3 | J183: Y
A184: South West | B184: Bommertown Solar Park 33kV S Stn | C184: BommertownSolarPark33kVSStn | D184: 268136 | E184: 0.7 | F184: Y | G184: 500 | H184: Y | I184: 3 | J184: Y
A185: West Midlands | B185: Boothen 132/33/11kV S Stn | C185: Boothen132/33/11kVSStn | D185: 680052 | E185: 0.074 | G185: 681 | I185: 3 | J185: Y
A186: East Midlands | B186: Boothville 33/11kV S Stn | C186: Boothville33/11kVSStn | D186: 940065 | E186: 0.06 | G186: 138 | I186: 3 | J186: Y
A187: East Midlands | B187: Boots 33/11kV S Stn | C187: Boots33/11kVSStn | D187: 880016 | E187: 0.153 | G187: 384 | I187: 3 | J187: Y
A188: West Midlands | B188: Bordesley 132/11kV S Stn | C188: Bordesley132/11kVSStn | D188: 670041 | E188: 0.097 | G188: 286 | I188: 1 | J188: Y
A189: East Midlands | B189: Boston 132/33kV S Stn | C189: Boston132/33kVSStn | D189: 690043 | E189: 0.039 | G189: 257 | I189: 3 | J189: Y
A190: East Midlands | B190: Boston 33kV S Stn | C190: Boston33kVSStn | D190: 900004 | E190: 0.039 | G190: 257 | I190: 3 | J190: Y
A191: East Midlands | B191: Boston Biomass Generation 33kV S Stn | C191: BostonBiomassGeneration33kVSStn | D191: 907058 | E191: 0.096 | G191: 261 | I191: 3 | J191: Y
A192: East Midlands | B192: Bottesford 33/11kV S Stn | C192: Bottesford33/11kVSStn | D192: 910038 | E192: 0.217 | G192: 260 | I192: 3 | J192: Y
A193: West Midlands | B193: Boughton Rd 132/11kV S Stn | C193: BoughtonRd132/11kVSStn | D193: 670137 | E193: 0.044 | G193: 498 | I193: 1 | J193: Y
A194: East Midlands | B194: Bourne 132/33kV S Stn | C194: Bourne132/33kVSStn | D194: 690044 | E194: 0.09 | G194: 844 | I194: 3 | J194: Y
A195: East Midlands | B195: Bourne 33/11kV S Stn | C195: Bourne33/11kVSStn | D195: 910032 | E195: 0.09 | G195: 844 | I195: 3 | J195: Y
A196: East Midlands | B196: Bourne 33kV S Stn | C196: Bourne33kVSStn | D196: 910005 | E196: 0.09 | G196: 844 | I196: 3 | J196: Y
A197: East Midlands | B197: Bourne West 132/25kV S Stn | C197: BourneWest132/25kVSStn | D197: 690039 | E197: 0.174 | G197: 1366 | I197: 1 | J197: Y
A198: West Midlands | B198: Bournville 132/11kV S Stn | C198: Bournville132/11kVSStn | D198: 670050 | E198: 0.068 | G198: 474 | I198: 1 | J198: Y
A199: South West | B199: Bournville 33/11kV S Stn | C199: Bournville33/11kVSStn | D199: 180471 | E199: 0.079 | G199: 141 | I199: 3 | J199: Y
A200: South Wales | B200: Boverton 33/11kV S Stn | C200: Boverton33/11kVSStn | D200: 560075 | E200: 0.322 | G200: 500 | H200: Y | I200: 3 | J200: Y
... 1790 more rows

Sheet Source-SWE-Num (hidden)
A1: 1 | B1: 2 | C1: 3 | D1: 4 | E1: 5 | F1: 6 | G1: 7 | H1: 8
A2: SUBSTATION_NUMBER_SWE | B2: SUBSTATION_NAME | C2: ZE | D2: Assumed ZE | E2: UE | F2: Assumed UE | G2: t | H2: Assumed t
A3: 104098 | B3: Norrington 132/33kV S Stn | C3: 0.2 | D3: Y | E3: 1400 | F3: Y | G3: 3 | H3: Y
A4: 106009 | B4: Iron Acton 275/132kV S Stn | C4: 0.2 | D4: Y | E4: 1486 | G4: 1 | H4: Y
A5: 106010 | B5: Melksham 400/275/132kV S Stn | C5: 0.2 | D5: Y | E5: 2800 | F5: Y | G5: 1 | H5: Y
A6: 110375 | B6: Woodland Way 33/11kV S Stn | C6: 0.088 | E6: 151 | G6: 3 | H6: Y
A7: 110641 | B7: Bedminster 33/11kV S Stn | C7: 0.12 | E7: 348 | G7: 3 | H7: Y
A8: 110644 | B8: Eastville 33/11kV S Stn | C8: 0.102 | E8: 500 | F8: Y | G8: 3 | H8: Y
A9: 110772 | B9: Lockleaze 33/11kV S Stn | C9: 0.057 | E9: 21 | G9: 3 | H9: Y
A10: 110803 | B10: Cairns Road 33/11kV S Stn | C10: 0.09 | E10: 207 | G10: 3 | H10: Y
A11: 110804 | B11: St Pauls BSP 132/11kV S Stn | C11: 0.06 | E11: 43 | G11: 3 | H11: Y
A12: 111158 | B12: Clifton 33/11kV S Stn | C12: 0.12 | E12: 251 | G12: 3 | H12: Y
A13: 111481 | B13: Keynsham East 33/11kV S Stn | C13: 0.108 | E13: 130 | G13: 3 | H13: Y
A14: 111800 | B14: Mangotsfield 33/11kV S Stn | C14: 0.093 | E14: 23 | G14: 3 | H14: Y
A15: 111935 | B15: Almondsbury 33/11kV S Stn | C15: 0.121 | E15: 143 | G15: 3 | H15: Y
A16: 112130 | B16: Winterbourne 33/11kV S Stn | C16: 0.301 | E16: 474 | G16: 3 | H16: Y
A17: 112272 | B17: Whitchurch 33/11kV S Stn | C17: 0.042 | E17: 13 | G17: 3 | H17: Y
A18: 112389 | B18: Stoke Bishop 33/11kV S Stn | C18: 0.12 | E18: 500 | F18: Y | G18: 3 | H18: Y
A19: 113180 | B19: Keynsham West 33/11kV S Stn | C19: 0.108 | E19: 170 | G19: 3 | H19: Y
A20: 113193 | B20: Bishopsworth 33/11kV S Stn | C20: 0.12 | E20: 198 | G20: 3 | H20: Y
A21: 113277 | B21: Avonmouth Docks 33/6.6kV S Stn | C21: 0.08 | E21: 119 | G21: 3 | H21: Y
A22: 113339 | B22: Kingsweston 33/11kV S Stn | C22: 0.11 | E22: 206 | G22: 3 | H22: Y
A23: 113367 | B23: Avonmouth BSP 132/33kV S Stn | C23: 0.015 | E23: 92 | G23: 3 | H23: Y
A24: 113368 | B24: Avonmouth 33/11kV S Stn | C24: 0.07 | E24: 109 | G24: 3 | H24: Y
A25: 113369 | B25: Filton Dc 33/11kV S Stn | C25: 0.13 | E25: 201 | G25: 3 | H25: Y
A26: 113370 | B26: Lockleaze 132/33/11kV S Stn | C26: 0.057 | E26: 184 | G26: 3 | H26: Y
A27: 113371 | B27: Bower Ashton 33/11kV S Stn | C27: 0.12 | E27: 186 | G27: 3 | H27: Y
A28: 113372 | B28: Feeder Road 33kV S Stn | C28: 0.05 | E28: 79 | G28: 3 | H28: Y
A29: 113373 | B29: Feeder Road A 33/11kV S Stn | C29: 0.05 | E29: 140 | G29: 3 | H29: Y
A30: 113374 | B30: Feeder Road B 33/11kV S Stn | C30: 0.05 | E30: 140 | G30: 3 | H30: Y
A31: 113429 | B31: British Gas Hallen 33/11kV S Stn | C31: 0.071 | E31: 110 | G31: 3 | H31: Y
A32: 113449 | B32: Feeder Road 132/33kV S Stn | C32: 0.05 | E32: 251 | G32: 3 | H32: Y
A33: 113450 | B33: St Pauls 132/11kV S Stn | C33: 0.06 | E33: 314 | G33: 1 | H33: Y
A34: 113572 | B34: Bradley Stoke 132/33kV S Stn | C34: 0.21 | E34: 1024 | G34: 3 | H34: Y
A35: 113720 | B35: Hewlett Packard 33/11kV S Stn | C35: 0.063 | E35: 28 | G35: 3 | H35: Y
A36: 113760 | B36: Bradley Stoke 33/11kV S Stn | C36: 0.21 | E36: 500 | F36: Y | G36: 3 | H36: Y
A37: 113884 | B37: Abbeywood 33/11kV S Stn | C37: 0.779 | E37: 265 | G37: 3 | H37: Y
A38: 113983 | B38: Cribbs Causeway 33/11kV S Stn | C38: 0.077 | E38: 32 | G38: 3 | H38: Y
A39: 114023 | B39: Seabank 400/132kV S Stn | C39: 0.086 | E39: 1274 | G39: 1 | H39: Y
A40: 114059 | B40: Rolls Royce Filton 132kV S Stn | C40: 0.133 | E40: 291 | G40: 1 | H40: Y
A41: 114258 | B41: Astrazeneca 33/11kV S Stn | C41: 0.47 | E41: 348 | G41: 3 | H41: Y
A42: 114259 | B42: Seabank 132/33kV S Stn | C42: 0.086 | E42: 695 | G42: 3 | H42: Y
A43: 114260 | B43: Broadweir 33/11kV S Stn | C43: 0.06 | E43: 13.5 | G43: 3 | H43: Y
A44: 114389 | B44: Cotham 33/11kV S Stn | C44: 0.165 | E44: 81 | G44: 3 | H44: Y
A45: 114391 | B45: Emersons Green 33/11kV S Stn | C45: 0.33 | E45: 144 | G45: 3 | H45: Y
A46: 114393 | B46: Staplehill 33kV S Stn | C46: 0.43 | E46: 132 | G46: 3 | H46: Y
A47: 114434 | B47: Western Approach 33/11kV S Stn | C47: 0.1 | E47: 200 | G47: 3 | H47: Y
A48: 114632 | B48: Hewlett Packard 33kV S Stn | C48: 0.063 | E48: 500 | F48: Y | G48: 3 | H48: Y
A49: 114652 | B49: Avonmouth Biogas 33kV S Stn | C49: 0.183 | E49: 500 | F49: Y | G49: 3 | H49: Y
A50: 114741 | B50: Patchway 33/11kV S Stn | C50: 0.62 | E50: 500 | F50: Y | G50: 3 | H50: Y
A51: 114756 | B51: Severnside Energy Recovery Centre 132kV S Stn | C51: 0.125 | E51: 1400 | F51: Y | G51: 1 | H51: Y
A52: 118093 | B52: Avonmouth Wind Farm 33kV S Stn | C52: 0.085 | E52: 500 | F52: Y | G52: 3 | H52: Y
A53: 118115 | B53: Northwood Solar Park 33kV S Stn | C53: 0.14 | E53: 500 | F53: Y | G53: 3 | H53: Y
A54: 118117 | B54: Marksbury Solar Park 33kV S Stn | C54: 0.096 | E54: 500 | F54: Y | G54: 3 | H54: Y
A55: 118154 | B55: Chelwood Solar Park 33kV S Stn | C55: 0.125 | E55: 500 | F55: Y | G55: 3 | H55: Y
A56: 118157 | B56: Oakham Farm Solar Park 33kV S Stn | C56: 0.144 | E56: 500 | F56: Y | G56: 3 | H56: Y
A57: 118166 | B57: Lawrence Weston Solar Park 33kV S Stn | C57: 0.186 | E57: 278.8 | G57: 3 | H57: Y
A58: 118179 | B58: Lockleaze Battery Storage 33kV S Stn | C58: 0.69 | E58: 500 | F58: Y | G58: 3 | H58: Y
A59: 118180 | B59: Old Green Generation Station 132kV S Stn | C59: 0.114 | E59: 1400 | F59: Y | G59: 1 | H59: Y
A60: 118183 | B60: Rockingham 33kV S Stn | C60: 0.23 | E60: 500 | F60: Y | G60: 3 | H60: Y
A61: 118184 | B61: Viridor Waste To Energy 33kV S Stn | C61: 0.093 | E61: 500 | F61: Y | G61: 3 | H61: Y
A62: 160050 | B62: Oldfield Park33/ 6.6kV S Stn | C62: 0.261 | E62: 86 | G62: 3 | H62: Y
A63: 160060 | B63: Park Street 33/6.6kV S Stn | C63: 0.031 | E63: 21 | G63: 3 | H63: Y
A64: 160355 | B64: Entry Hill 33/6.6kV S Stn | C64: 0.065 | E64: 88 | G64: 3 | H64: Y
A65: 160389 | B65: Batheaston 33/6.6kV S Stn | C65: 0.044 | E65: 59 | G65: 3 | H65: Y
A66: 160390 | B66: Twerton 33/6.6kV S Stn | C66: 0.08 | E66: 119 | G66: 3 | H66: Y
A67: 160415 | B67: Chewton Mendip 33/11kV S Stn | C67: 2 | E67: 2670 | G67: 3 | H67: Y
A68: 160423 | B68: Midsomer Norton 33/11kV S Stn | C68: 0.05 | E68: 82 | G68: 3 | H68: Y
A69: 160739 | B69: Whatley Quarry 33/11kV S Stn | C69: 0.917 | E69: 569 | G69: 3 | H69: Y
A70: 160811 | B70: Dinder 33/11kV S Stn | C70: 4.27 | E70: 4582 | G70: 3 | H70: Y
A71: 160824 | B71: Wells 33/11kV S Stn | C71: 0.148 | E71: 129 | G71: 3 | H71: Y
A72: 161315 | B72: Paulton 33/11kV S Stn | C72: 0.197 | E72: 127 | G72: 3 | H72: Y
A73: 161532 | B73: High Littleton 33/11kV S Stn | C73: 0.24 | E73: 401 | G73: 3 | H73: Y
A74: 161641 | B74: Shepton Mallet 33/11kV S Stn | C74: 0.192 | E74: 251 | G74: 3 | H74: Y
A75: 161701 | B75: Newbury 33/11kV S Stn | C75: 0.971 | E75: 1035 | G75: 3 | H75: Y
A76: 161823 | B76: Evercreech 33/11kV S Stn | C76: 0.129 | E76: 103 | G76: 3 | H76: Y
A77: 162344 | B77: Foxhills 33/11kV S Stn | C77: 0.162 | E77: 226 | G77: 3 | H77: Y
A78: 162406 | B78: Peasedown 33/11kV S Stn | C78: 0.102 | E78: 113 | G78: 3 | H78: Y
A79: 162633 | B79: Radstock 132/33kV S Stn | C79: 0.257 | E79: 247 | G79: 3 | H79: Y
A80: 162888 | B80: Shooters Bottom W/F 33kV S Stn | C80: 1.2 | E80: 1464 | G80: 3 | H80: Y
A81: 164016 | B81: Combe Park 33/6.6kV S Stn | C81: 0.076 | E81: 96 | G81: 3 | H81: Y
A82: 164087 | B82: Bath Dolemeads 132/33/6.6kV S Stn | C82: 0.072 | E82: 68 | G82: 3 | H82: Y
A83: 164170 | B83: Dorchester Street 33/6.6kV S Stn | C83: 0.072 | E83: 105 | G83: 3 | H83: Y
A84: 164210 | B84: University Of Bath 33/11kV S Stn | C84: 0.117 | E84: 500 | F84: Y | G84: 3 | H84: Y
A85: 168000 | B85: Whitchurch Farm Solar Park 33kV S Stn | C85: 0.203 | E85: 500 | F85: Y | G85: 3 | H85: Y
A86: 168001 | B86: Shooters Bottom Solar Park 33kV S Stn | C86: 0.904 | E86: 500 | F86: Y | G86: 3 | H86: Y
A87: 168104 | B87: New Row Farm Solar Park 33kV S Stn | C87: 0.666 | E87: 500 | F87: Y | G87: 3 | H87: Y
A88: 168105 | B88: Pitts Farm Solar Park 33kV S Stn | C88: 0.656 | E88: 500 | F88: Y | G88: 3 | H88: Y
A89: 168106 | B89: Dinder Farm Solar Park 33kV S Stn | C89: 0.656 | E89: 500 | F89: Y | G89: 3 | H89: Y
A90: 168138 | B90: Pylle Solar Park 33kV S Stn | C90: 0.177 | E90: 500 | F90: Y | G90: 3 | H90: Y
A91: 180003 | B91: Gas Lane 33/11kV S Stn | C91: 0.038 | E91: 36 | G91: 3 | H91: Y
A92: 180006 | B92: Congresbury 33/11kV S Stn | C92: 0.153 | E92: 325 | G92: 3 | H92: Y
A93: 180017 | B93: Axbridge 33/11kV S Stn | C93: 0.19 | E93: 281 | G93: 3 | H93: Y
A94: 180092 | B94: Weston Locking Road 33/11kV S Stn | C94: 0.062 | E94: 128 | G94: 3 | H94: Y
A95: 180173 | B95: Blagdon 33/11kV S Stn | C95: 0.118 | E95: 160 | G95: 3 | H95: Y
A96: 180198 | B96: Clevedon 33/11kV S Stn | C96: 0.262 | E96: 275 | G96: 3 | H96: Y
A97: 180471 | B97: Bournville 33/11kV S Stn | C97: 0.079 | E97: 141 | G97: 3 | H97: Y
A98: 180820 | B98: Weston-In-Gordano 33/11kV S Stn | C98: 0.172 | E98: 351 | G98: 3 | H98: Y
A99: 180952 | B99: Winscombe 33/11kV S Stn | C99: 0.212 | E99: 428 | G99: 3 | H99: Y
A100: 181000 | B100: Nailsea 33/11kV S Stn | C100: 0.235 | E100: 404 | G100: 3 | H100: Y
A101: 181216 | B101: Lypstone Farm 33/11kV S Stn | C101: 0.062 | E101: 143 | G101: 3 | H101: Y
A102: 181230 | B102: Chew Stoke 33/11kV S Stn | C102: 0.402 | E102: 339 | G102: 3 | H102: Y
A103: 181345 | B103: Cheddar 33/11kV S Stn | C103: 0.082 | E103: 128 | G103: 3 | H103: Y
A104: 181346 | B104: Compton Martin 33/11kV S Stn | C104: 0.469 | E104: 935 | G104: 3 | H104: Y
A105: 181360 | B105: Weston Central 33/11kV S Stn | C105: 0.303 | E105: 135 | G105: 3 | H105: Y
A106: 181414 | B106: Easton-In-Gordano 33/11kV S Stn | C106: 0.189 | E106: 417 | G106: 3 | H106: Y
A107: 181425 | B107: East Brent 33/11kV S Stn | C107: 0.158 | E107: 144 | G107: 3 | H107: Y
A108: 181817 | B108: Wedmore 33/11kV S Stn | C108: 0.123 | E108: 217 | G108: 3 | H108: Y
A109: 182000 | B109: Frys Hill Radio 33kV/LV S Stn | C109: 0.7 | D109: Y | E109: 500 | F109: Y | G109: 3 | H109: Y
A110: 182150 | B110: Royal Portbury Dock 33/11kV S Stn | C110: 0.051 | E110: 20 | G110: 3 | H110: Y
A111: 182332 | B111: Brent Knoll 33kV S Stn | C111: 0.191 | E111: 154 | G111: 3 | H111: Y
A112: 182372 | B112: Weston 132/33kV S Stn | C112: 0.062 | E112: 174 | G112: 3 | H112: Y
A113: 182373 | B113: Churchill 132/33kV S Stn | C113: 0.18 | E113: 271 | G113: 3 | H113: Y
A114: 182570 | B114: Churchill Gate 33/11kV S Stn | C114: 0.55 | E114: 853 | G114: 3 | H114: Y
A115: 182736 | B115: Bristol International Airport 33/11kV S Stn | C115: 0.283 | E115: 406 | G115: 3 | H115: Y
A116: 182768 | B116: Stancombe Quarry 33kV S Stn | C116: 1.084 | E116: 1444 | G116: 3 | H116: Y
A117: 182800 | B117: Portishead 132/33kV S Stn | C117: 0.059 | E117: 118 | G117: 3 | H117: Y
A118: 182982 | B118: West Wick 33/11kV S Stn | C118: 0.158 | E118: 316 | G118: 3 | H118: Y
A119: 182983 | B119: Portishead Ashlands 33/11kV S Stn | C119: 0.059 | E119: 423 | G119: 3 | H119: Y
A120: 188112 | B120: Carditch Drove Solar Park 33kV S Stn | C120: 0.1 | E120: 500 | F120: Y | G120: 3 | H120: Y
A121: 188122 | B121: Iwood Lane Solar Park 33kV S Stn | C121: 0.085 | E121: 500 | F121: Y | G121: 3 | H121: Y
A122: 188123 | B122: Ashlawn Farm Solar Park 33kV S Stn | C122: 0.085 | E122: 500 | F122: Y | G122: 3 | H122: Y
A123: 188124 | B123: Hawkers Farm Solar Park 33kV S Stn | C123: 0.109 | E123: 500 | F123: Y | G123: 3 | H123: Y
A124: 188139 | B124: Rookery Farm Solar Park 33kV S Stn | C124: 0.254 | E124: 500 | F124: Y | G124: 3 | H124: Y
A125: 188140 | B125: Towerhead Farm Solar Park 33kV S Stn | C125: 0.1 | E125: 500 | F125: Y | G125: 3 | H125: Y
A126: 188150 | B126: Wick Farm Solar Park 33kV S Stn | C126: 0.07 | E126: 500 | F126: Y | G126: 3 | H126: Y
A127: 188168 | B127: Wick Farm West Solar Park 33kV S Stn | C127: 0.11 | E127: 500 | F127: Y | G127: 3 | H127: Y
A128: 200433 | B128: Winterbourne Abbas 33kV S Stn | C128: 0.7 | D128: Y | E128: 500 | F128: Y | G128: 3 | H128: Y
A129: 200435 | B129: Yeovil 33kV S Stn | C129: 0.7 | D129: Y | E129: 500 | F129: Y | G129: 3 | H129: Y
A130: 206001 | B130: Alverdiscott 400/132kV S Stn | C130: 0.2 | D130: Y | E130: 2028 | G130: 1 | H130: Y
A131: 206006 | B131: Axminster GSP 400/132kV S Stn | C131: 0.2 | D131: Y | E131: 2096 | G131: 1 | H131: Y
A132: 206007 | B132: Taunton Main 400/132kV S Stn | C132: 0.2 | D132: Y | E132: 3500 | G132: 1 | H132: Y
A133: 206008 | B133: Bridgwater GSP 275/132kV S Stn | C133: 0.056 | E133: 820 | G133: 1 | H133: Y
A134: 210010 | B134: Taunton Local 33/11kV S Stn | C134: 0.047 | E134: 24 | G134: 3 | H134: Y
A135: 210020 | B135: Trull 33/11kV S Stn | C135: 0.06 | E135: 46 | G135: 3 | H135: Y
A136: 210030 | B136: Creech St Michael 33/11kV S Stn | C136: 0.304 | E136: 333 | G136: 3 | H136: Y
A137: 210040 | B137: Priorswood 33/11kV S Stn | C137: 0.075 | E137: 112 | G137: 3 | H137: Y
A138: 210050 | B138: Lydeard St Lawrence 33/11kV S Stn | C138: 0.868 | E138: 1075 | G138: 3 | H138: Y
A139: 210060 | B139: Bridgwater Local 33/11kV S Stn | C139: 0.091 | E139: 358 | G139: 3 | H139: Y
A140: 210070 | B140: Wiveliscombe 33/11kV S Stn | C140: 2.06 | E140: 2616 | G140: 3 | H140: Y
A141: 210080 | B141: Somerton 33/11kV S Stn | C141: 0.06 | E141: 69 | G141: 3 | H141: Y
A142: 210090 | B142: North Street Langport 33/11kV S Stn | C142: 0.1 | E142: 169 | G142: 3 | H142: Y
A143: 210100 | B143: Millfield 33/11kV S Stn | C143: 0.189 | E143: 275 | G143: 3 | H143: Y
A144: 210110 | B144: Edgarley 33/11kV S Stn | C144: 0.148 | E144: 194 | G144: 3 | H144: Y
A145: 210120 | B145: Colley Lane 33/11kV S Stn | C145: 0.082 | E145: 295 | G145: 3 | H145: Y
A146: 210130 | B146: Nether Stowey 33/11kV S Stn | C146: 0.443 | E146: 269 | G146: 3 | H146: Y
A147: 210140 | B147: Exebridge 33/11kV S Stn | C147: 1.25 | E147: 689 | G147: 3 | H147: Y
A148: 210150 | B148: Watchfield 33/11kV S Stn | C148: 0.09 | E148: 263 | G148: 3 | H148: Y
A149: 210160 | B149: Bath Road 33/11kV S Stn | C149: 0.06 | E149: 90 | G149: 3 | H149: Y
A150: 210180 | B150: Periton 33/11kV S Stn | C150: 0.255 | E150: 172 | G150: 3 | H150: Y
A151: 210190 | B151: Alcombe 33/11kV S Stn | C151: 0.107 | E151: 103 | G151: 3 | H151: Y
A152: 210200 | B152: Wellington 33/11kV S Stn | C152: 0.44 | E152: 903 | G152: 3 | H152: Y
A153: 210210 | B153: Bowhays Cross 132/33kV S Stn | C153: 0.192 | E153: 396 | G153: 3 | H153: Y
A154: 210210 | B154: Bowhays Cross 33/11kV S Stn | C154: 0.192 | E154: 396 | G154: 3 | H154: Y
A155: 210260 | B155: Bradon Fm Generator 33kV S Stn | C155: 0.077 | E155: 54 | G155: 3 | H155: Y
A156: 210270 | B156: Huntworth Generator 33kV S Stn | C156: 0.219 | E156: 494.9 | G156: 3 | H156: Y
A157: 210380 | B157: Wellington Town 33/11kV S Stn | C157: 0.288 | E157: 166 | G157: 3 | H157: Y
A158: 210390 | B158: Culmhead 33/11kV S Stn | C158: 0.793 | E158: 948 | G158: 3 | H158: Y
A159: 210444 | B159: Bridgwater Grid 132/33kV S Stn | C159: 0.061 | E159: 431 | G159: 3 | H159: Y
A160: 210448 | B160: Street 132/33kV S Stn | C160: 0.28 | E160: 580 | G160: 3 | H160: Y
A161: 210450 | B161: Curry Mallet 33/11kV S Stn | C161: 0.788 | E161: 871 | G161: 3 | H161: Y
A162: 210460 | B162: Shapwick 33/11kV S Stn | C162: 0.614 | E162: 1166 | G162: 3 | H162: Y
A163: 210470 | B163: Burnham 33/11kV S Stn | C163: 0.043 | E163: 54 | G163: 3 | H163: Y
A164: 210490 | B164: Luckwell Bridge 33/11kV S Stn | C164: 4.79 | E164: 2476 | G164: 3 | H164: Y
A165: 210500 | B165: Staplegrove 33/11kV S Stn | C165: 0.148 | E165: 183 | G165: 3 | H165: Y
A166: 210540 | B166: Quartley 33kV S Stn | C166: 3.95 | E166: 2386 | G166: 3 | H166: Y
A167: 210560 | B167: Holford 33/11kV S Stn | C167: 1.7 | E167: 430 | G167: 3 | H167: Y
A168: 210600 | B168: Blackditch 33kV S Stn | C168: 0.123 | E168: 369 | G168: 3 | H168: Y
A169: 210612 | B169: Taunton Main 132/33kV S Stn | C169: 0.08 | E169: 3500 | G169: 3 | H169: Y
A170: 210670 | B170: Wansbrough Paper Mill 33kV S Stn | C170: 0.078 | E170: 105 | G170: 3 | H170: Y
A171: 210999 | B171: R.O.F. Power House 33kV S Stn | C171: 0.062 | E171: 93 | G171: 3 | H171: Y
A172: 218000 | B172: New Rendy Farm Solar Farm 33kV S Stn | C172: 0.116 | E172: 500 | F172: Y | G172: 3 | H172: Y
A173: 218002 | B173: Park Wall Solar Park 33kV S Stn | C173: 0.094 | E173: 500 | F173: Y | G173: 3 | H173: Y
A174: 218004 | B174: Grange Farm Solar Park 33kV S Stn | C174: 0.7 | D174: Y | E174: 500 | F174: Y | G174: 3 | H174: Y
A175: 218005 | B175: Woolavington Solar Park 33kV S Stn | C175: 0.043 | E175: 500 | F175: Y | G175: 3 | H175: Y
A176: 218009 | B176: Culmhead Solar Park 33kV S Stn | C176: 0.137 | E176: 500 | F176: Y | G176: 3 | H176: Y
A177: 218016 | B177: Watchfield Lawn Solar Park 33kV S Stn | C177: 0.7 | D177: Y | E177: 500 | F177: Y | G177: 3 | H177: Y
A178: 218017 | B178: Redlands Farm Solar Park 33kV S Stn | C178: 0.13 | E178: 500 | F178: Y | G178: 3 | H178: Y
A179: 218018 | B179: Tengore Lane Solar Park 33kV S Stn | C179: 0.1 | E179: 500 | F179: Y | G179: 3 | H179: Y
A180: 218019 | B180: Somerton Door Solar Park 33kV S Stn | C180: 0.078 | E180: 500 | F180: Y | G180: 3 | H180: Y
A181: 218020 | B181: Tricky Warren Solar Park 33kV S Stn | C181: 0.25 | E181: 500 | F181: Y | G181: 3 | H181: Y
A182: 218021 | B182: Higher Bye Farm Solar Park 33kV S Stn | C182: 0.065 | E182: 500 | F182: Y | G182: 3 | H182: Y
A183: 218025 | B183: Puriton Landfill Solar Park 33kV S Stn | C183: 0.115 | E183: 500 | F183: Y | G183: 3 | H183: Y
A184: 218032 | B184: Tonedale Farm Solar Park 33kV S Stn | C184: 0.231 | E184: 500 | F184: Y | G184: 3 | H184: Y
A185: 218039 | B185: Tricky Warren 33kV S Stn | C185: 0.25 | E185: 500 | F185: Y | G185: 3 | H185: Y
A186: 218040 | B186: Withy Drove Solar Park 33kV S Stn | C186: 0.063 | E186: 500 | F186: Y | G186: 3 | H186: Y
A187: 218041 | B187: Montys Farm Solar Park 33kV S Stn | C187: 0.197 | E187: 500 | F187: Y | G187: 3 | H187: Y
A188: 218043 | B188: Halse Solar Farm 33kV S Stn | C188: 0.09 | E188: 112 | G188: 3 | H188: Y
A189: 218044 | B189: Glebe Farm 2 Solar Farm 33kV S Stn | C189: 0.69 | E189: 578 | G189: 3 | H189: Y
A190: 218045 | B190: Hele Manor STOR 33kV S Stn | C190: 0.265 | E190: 133 | G190: 3 | H190: Y
A191: 218061 | B191: Cobbs Cross Solar Farm 33kV S Stn | C191: 0.157 | E191: 500 | F191: Y | G191: 3 | H191: Y
A192: 218071 | B192: Aller Court Solar Farm 33kV S Stn | C192: 0.17 | E192: 500 | F192: Y | G192: 3 | H192: Y
A193: 218075 | B193: Whitley Farm Solar Farm 33kV S Stn | C193: 0.7 | D193: Y | E193: 500 | F193: Y | G193: 3 | H193: Y
A194: 250280 | B194: Axminster 33/11kV S Stn | C194: 0.116 | E194: 196 | G194: 3 | H194: Y
A195: 250290 | B195: East Chinnock 33/11kV S Stn | C195: 0.296 | E195: 413 | G195: 3 | H195: Y
A196: 250300 | B196: Martock 33/11kV S Stn | C196: 0.336 | E196: 265 | G196: 3 | H196: Y
A197: 250310 | B197: Colyford 33/11kV S Stn | C197: 0.609 | E197: 605 | G197: 3 | H197: Y
A198: 250320 | B198: Penn Cross 33/11kV S Stn | C198: 0.292 | E198: 455 | G198: 3 | H198: Y
A199: 250330 | B199: Waterlake 33/11kV S Stn | C199: 0.15 | E199: 220 | G199: 3 | H199: Y
A200: 250340 | B200: Bridport 33/11kV S Stn | C200: 0.058 | E200: 56 | G200: 3 | H200: Y
... 402 more rows

Sheet Source-SWE-Name (hidden)
B1: 1 | C1: 2 | D1: 3 | E1: 4 | F1: 5 | G1: 6 | H1: 7 | I1: 8
A2: SUBSTATION_NAME_SWE | B2: SUBSTATION_NAME_TRUNC_SWE | C2: SUBSTATION_NUMBER_SWE | D2: ZE | E2: Assumed ZE | F2: UE | G2: Assumed UE | H2: t | I2: Assumed t
A3: Aaronsons 33kV S Stn | B3: Aaronsons33kVSStn | C3: 260580 | D3: 0.32 | F3: 322 | H3: 3 | I3: Y
A4: Abbeywood 33/11kV S Stn | B4: Abbeywood33/11kVSStn | C4: 113884 | D4: 0.779 | F4: 265 | H4: 3 | I4: Y
A5: Abham 400/132kV S Stn | B5: Abham400/132kVSStn | C5: 306004 | D5: 0.2 | E5: Y | F5: 6635 | H5: 1 | I5: Y
A6: Adelaide Road 33/11kV S Stn | B6: AdelaideRoad33/11kVSStn | C6: 330014 | D6: 0.47 | F6: 85 | H6: 3 | I6: Y
A7: Alcombe 33/11kV S Stn | B7: Alcombe33/11kVSStn | C7: 210190 | D7: 0.107 | F7: 103 | H7: 3 | I7: Y
A8: Alders Way STOR 33kV S Stn | B8: AldersWaySTOR33kVSStn | C8: 348182 | D8: 0.428 | F8: 500 | G8: Y | H8: 3 | I8: Y
A9: Alexandra Road 33/11kV S Stn | B9: AlexandraRoad33/11kVSStn | C9: 330018 | D9: 0.36 | F9: 113 | H9: 3 | I9: Y
A10: Aller Court Solar Farm 33kV S Stn | B10: AllerCourtSolarFarm33kVSStn | C10: 218071 | D10: 0.17 | F10: 500 | G10: Y | H10: 3 | I10: Y
A11: Alma Road 33/11kV S Stn | B11: AlmaRoad33/11kVSStn | C11: 330020 | D11: 0.165 | F11: 244 | H11: 3 | I11: Y
A12: Almondsbury 33/11kV S Stn | B12: Almondsbury33/11kVSStn | C12: 111935 | D12: 0.121 | F12: 143 | H12: 3 | I12: Y
A13: Alverdiscott 400/132kV S Stn | B13: Alverdiscott400/132kVSStn | C13: 206001 | D13: 0.2 | E13: Y | F13: 2028 | H13: 1 | I13: Y
A14: Alverdiscott Wind Farm 33kV S Stn | B14: AlverdiscottWindFarm33kVSStn | C14: 358079 | D14: 0.7 | E14: Y | F14: 500 | G14: Y | H14: 3 | I14: Y
A15: Armada Street 33/11kV S Stn | B15: ArmadaStreet33/11kVSStn | C15: 330021 | D15: 0.27 | F15: 113 | H15: 3 | I15: Y
A16: Ashburton 33/11kV S Stn | B16: Ashburton33/11kVSStn | C16: 340013 | D16: 0.34 | F16: 481 | H16: 3 | I16: Y
A17: Ashcombe Solar Park 33kV S Stn | B17: AshcombeSolarPark33kVSStn | C17: 348132 | D17: 0.066 | F17: 500 | G17: Y | H17: 3 | I17: Y
A18: Ashlawn Farm Solar Park 33kV S Stn | B18: AshlawnFarmSolarPark33kVSStn | C18: 188123 | D18: 0.085 | F18: 500 | G18: Y | H18: 3 | I18: Y
A19: Ashwater 33/11kV S Stn | B19: Ashwater33/11kVSStn | C19: 350022 | D19: 2.833 | F19: 3043 | H19: 3 | I19: Y
A20: Ashwater Solar Park 33kV S Stn | B20: AshwaterSolarPark33kVSStn | C20: 358160 | D20: 0.5 | F20: 500 | G20: Y | H20: 3 | I20: Y
A21: Astrazeneca 33/11kV S Stn | B21: Astrazeneca33/11kVSStn | C21: 114258 | D21: 0.47 | F21: 348 | H21: 3 | I21: Y
A22: Athelstan Road 33/11kV S Stn | B22: AthelstanRoad33/11kVSStn | C22: 310020 | D22: 0.2 | F22: 261 | H22: 3 | I22: Y
A23: Avonmouth 33/11kV S Stn | B23: Avonmouth33/11kVSStn | C23: 113368 | D23: 0.07 | F23: 109 | H23: 3 | I23: Y
A24: Avonmouth Biogas 33kV S Stn | B24: AvonmouthBiogas33kVSStn | C24: 114652 | D24: 0.183 | F24: 500 | G24: Y | H24: 3 | I24: Y
A25: Avonmouth BSP 132/33kV S Stn | B25: AvonmouthBSP132/33kVSStn | C25: 113367 | D25: 0.015 | F25: 92 | H25: 3 | I25: Y
A26: Avonmouth Docks 33/6.6kV S Stn | B26: AvonmouthDocks33/6.6kVSStn | C26: 113277 | D26: 0.08 | F26: 119 | H26: 3 | I26: Y
A27: Avonmouth Wind Farm 33kV S Stn | B27: AvonmouthWindFarm33kVSStn | C27: 118093 | D27: 0.085 | F27: 500 | G27: Y | H27: 3 | I27: Y
A28: Axbridge 33/11kV S Stn | B28: Axbridge33/11kVSStn | C28: 180017 | D28: 0.19 | F28: 281 | H28: 3 | I28: Y
A29: Axe View Solar Farm 33kV S Stn | B29: AxeViewSolarFarm33kVSStn | C29: 258174 | D29: 0.031 | F29: 500 | G29: Y | H29: 3 | I29: Y
A30: Axminster 33/11kV S Stn | B30: Axminster33/11kVSStn | C30: 250280 | D30: 0.116 | F30: 196 | H30: 3 | I30: Y
A31: Axminster GSP 400/132kV S Stn | B31: AxminsterGSP400/132kVSStn | C31: 206006 | D31: 0.2 | E31: Y | F31: 2096 | H31: 1 | I31: Y
A32: Ayshford Court Farm Solar Park 33kV S Stn | B32: AyshfordCourtFarmSolarPark33kVSStn | C32: 318035 | D32: 0.175 | F32: 500 | G32: Y | H32: 3 | I32: Y
A33: Balls Wood Solar Park 33kV S Stn | B33: BallsWoodSolarPark33kVSStn | C33: 338120 | D33: 0.289 | F33: 500 | G33: Y | H33: 3 | I33: Y
A34: Barnstaple 132/33/11kV S Stn | B34: Barnstaple132/33/11kVSStn | C34: 260467 | D34: 0.062 | F34: 93 | H34: 3 | I34: Y
A35: Barnstaple Quay 33/11kV S Stn | B35: BarnstapleQuay33/11kVSStn | C35: 260250 | D35: 0.1 | F35: 115 | H35: 3 | I35: Y
A36: Barton 33/11kV S Stn | B36: Barton33/11kVSStn | C36: 340024 | D36: 0.581 | F36: 109 | H36: 3 | I36: Y
A37: Barton Hill STOR Generator 33kV S Stn | B37: BartonHillSTORGenerator33kVSStn | C37: 348178 | D37: 0.41 | F37: 500 | G37: Y | H37: 3 | I37: Y
A38: Bath Dolemeads 132/33/6.6kV S Stn | B38: BathDolemeads132/33/6.6kVSStn | C38: 164087 | D38: 0.072 | F38: 68 | H38: 3 | I38: Y
A39: Batheaston 33/6.6kV S Stn | B39: Batheaston33/6.6kVSStn | C39: 160389 | D39: 0.044 | F39: 59 | H39: 3 | I39: Y
A40: Bath Road 33/11kV S Stn | B40: BathRoad33/11kVSStn | C40: 210160 | D40: 0.06 | F40: 90 | H40: 3 | I40: Y
A41: Batsworthy Cross Wind Farm 33kV S Stn | B41: BatsworthyCrossWindFarm33kVSStn | C41: 318152 | D41: 0.49 | F41: 500 | G41: Y | H41: 3 | I41: Y
A42: Beaford Solar Farm 33kV S Stn | B42: BeafordSolarFarm33kVSStn | C42: 268005 | D42: 0.375 | F42: 500 | G42: Y | H42: 3 | I42: Y
A43: Beaminster 33/11kV S Stn | B43: Beaminster33/11kVSStn | C43: 250620 | D43: 0.439 | F43: 358 | H43: 3 | I43: Y
A44: Bears Down Wind Farm 33kV S Stn | B44: BearsDownWindFarm33kVSStn | C44: 437150 | D44: 0.55 | F44: 282 | H44: 3 | I44: Y
A45: Bedminster 33/11kV S Stn | B45: Bedminster33/11kVSStn | C45: 110641 | D45: 0.12 | F45: 348 | H45: 3 | I45: Y
A46: Beechgrove Farm Solar Park 33kV S Stn | B46: BeechgroveFarmSolarPark33kVSStn | C46: 258019 | D46: 0.167 | F46: 274 | H46: 3 | I46: Y
A47: Bideford Main 33/11kV S Stn | B47: BidefordMain33/11kVSStn | C47: 350018 | D47: 0.104 | F47: 115 | H47: 3 | I47: Y
A48: Bidwell Solar Park 33kV S Stn | B48: BidwellSolarPark33kVSStn | C48: 348103 | D48: 0.298 | F48: 500 | G48: Y | H48: 3 | I48: Y
A49: Bishopsworth 33/11kV S Stn | B49: Bishopsworth33/11kVSStn | C49: 113193 | D49: 0.12 | F49: 198 | H49: 3 | I49: Y
A50: Blackawton 33/11kV S Stn | B50: Blackawton33/11kVSStn | C50: 340022 | D50: 1.386 | F50: 1249 | H50: 3 | I50: Y
A51: Blackditch 33kV S Stn | B51: Blackditch33kVSStn | C51: 210600 | D51: 0.123 | F51: 369 | H51: 3 | I51: Y
A52: Blackpool 33/11kV S Stn | B52: Blackpool33/11kVSStn | C52: 437350 | D52: 0.533 | F52: 534 | H52: 3 | I52: Y
A53: Blagdon 33/11kV S Stn | B53: Blagdon33/11kVSStn | C53: 180173 | D53: 0.118 | F53: 160 | H53: 3 | I53: Y
A54: Bodiniel Solar Park 33kV S Stn | B54: BodinielSolarPark33kVSStn | C54: 438020 | D54: 0.9 | F54: 500 | G54: Y | H54: 3 | I54: Y
A55: Bodmin 33/11kV S Stn | B55: Bodmin33/11kVSStn | C55: 437230 | D55: 0.189 | F55: 242 | H55: 3 | I55: Y
A56: Bodwen Solar Farm 33kV S Stn | B56: BodwenSolarFarm33kVSStn | C56: 438171 | D56: 1.46 | F56: 500 | G56: Y | H56: 3 | I56: Y
A57: Bommerton Farm Solar Park 33kV S Stn | B57: BommertonFarmSolarPark33kVSStn | C57: 268081 | D57: 0.7 | E57: Y | F57: 500 | G57: Y | H57: 3 | I57: Y
A58: Bommertown Solar Park 33kV S Stn | B58: BommertownSolarPark33kVSStn | C58: 268136 | D58: 0.7 | E58: Y | F58: 500 | G58: Y | H58: 3 | I58: Y
A59: Bournville 33/11kV S Stn | B59: Bournville33/11kVSStn | C59: 180471 | D59: 0.079 | F59: 141 | H59: 3 | I59: Y
A60: Bovey Tracey 33/11kV S Stn | B60: BoveyTracey33/11kVSStn | C60: 340039 | D60: 0.197 | F60: 215 | H60: 3 | I60: Y
A61: Bower Ashton 33/11kV S Stn | B61: BowerAshton33/11kVSStn | C61: 113371 | D61: 0.12 | F61: 186 | H61: 3 | I61: Y
A62: Bowhays Cross 132/33kV S Stn | B62: BowhaysCross132/33kVSStn | C62: 210210 | D62: 0.192 | F62: 396 | H62: 3 | I62: Y
A63: Bowhays Cross 33/11kV S Stn | B63: BowhaysCross33/11kVSStn | C63: 210210 | D63: 0.192 | F63: 396 | H63: 3 | I63: Y
A64: Bradford Manor Solar Farm 33kV S Stn | B64: BradfordManorSolarFarm33kVSStn | C64: 358057 | D64: 0.34 | F64: 500 | G64: Y | H64: 3 | I64: Y
A65: Bradley Lane 33/11kV S Stn | B65: BradleyLane33/11kVSStn | C65: 340020 | D65: 0.083 | F65: 78 | H65: 3 | I65: Y
A66: Bradley Stoke 132/33kV S Stn | B66: BradleyStoke132/33kVSStn | C66: 113572 | D66: 0.21 | F66: 1024 | H66: 3 | I66: Y
A67: Bradley Stoke 33/11kV S Stn | B67: BradleyStoke33/11kVSStn | C67: 113760 | D67: 0.21 | F67: 500 | G67: Y | H67: 3 | I67: Y
A68: Bradon Fm Generator 33kV S Stn | B68: BradonFmGenerator33kVSStn | C68: 210260 | D68: 0.077 | F68: 54 | H68: 3 | I68: Y
A69: Bratton Fleming 33/11kV S Stn | B69: BrattonFleming33/11kVSStn | C69: 260550 | D69: 3.82 | F69: 2475 | H69: 3 | I69: Y
A70: Bratton Fleming Solar Park 33kV S Stn | B70: BrattonFlemingSolarPark33kVSStn | C70: 268000 | D70: 0.81 | F70: 500 | G70: Y | H70: 3 | I70: Y
A71: Braunton 33/11kV S Stn | B71: Braunton33/11kVSStn | C71: 260220 | D71: 0.372 | F71: 463 | H71: 3 | I71: Y
A72: Brent Knoll 33kV S Stn | B72: BrentKnoll33kVSStn | C72: 182332 | D72: 0.191 | F72: 154 | H72: 3 | I72: Y
A73: Bridge Mills 33/11kV S Stn | B73: BridgeMills33/11kVSStn | C73: 310018 | D73: 0.21 | F73: 201 | H73: 3 | I73: Y
A74: Bridgwater Grid 132/33kV S Stn | B74: BridgwaterGrid132/33kVSStn | C74: 210444 | D74: 0.061 | F74: 431 | H74: 3 | I74: Y
A75: Bridgwater GSP 275/132kV S Stn | B75: BridgwaterGSP275/132kVSStn | C75: 206008 | D75: 0.056 | F75: 820 | H75: 1 | I75: Y
A76: Bridgwater Local 33/11kV S Stn | B76: BridgwaterLocal33/11kVSStn | C76: 210060 | D76: 0.091 | F76: 358 | H76: 3 | I76: Y
A77: Bridport 33/11kV S Stn | B77: Bridport33/11kVSStn | C77: 250340 | D77: 0.058 | F77: 56 | H77: 3 | I77: Y
A78: Bristol International Airport 33/11kV S Stn | B78: BristolInternationalAirport33/11kVSStn | C78: 182736 | D78: 0.283 | F78: 406 | H78: 3 | I78: Y
A79: British Gas Hallen 33/11kV S Stn | B79: BritishGasHallen33/11kVSStn | C79: 113429 | D79: 0.071 | F79: 110 | H79: 3 | I79: Y
A80: Broadweir 33/11kV S Stn | B80: Broadweir33/11kVSStn | C80: 114260 | D80: 0.06 | F80: 13.5 | H80: 3 | I80: Y
A81: Buckfastleigh 33/11kV S Stn | B81: Buckfastleigh33/11kVSStn | C81: 340014 | D81: 0.557 | F81: 495 | H81: 3 | I81: Y
A82: Buckwell Street 33/11kV S Stn | B82: BuckwellStreet33/11kVSStn | C82: 330022 | D82: 0.58 | F82: 229 | H82: 3 | I82: Y
A83: Budleigh Salterton 33/11kV S Stn | B83: BudleighSalterton33/11kVSStn | C83: 310039 | D83: 0.099 | F83: 118 | H83: 3 | I83: Y
A84: Bugle 33/11kV S Stn | B84: Bugle33/11kVSStn | C84: 437360 | D84: 0.43 | F84: 476 | H84: 3 | I84: Y
A85: Burlescombe 33/11kV S Stn | B85: Burlescombe33/11kVSStn | C85: 310033 | D85: 0.523 | F85: 1029 | H85: 3 | I85: Y
A86: Burnham 33/11kV S Stn | B86: Burnham33/11kVSStn | C86: 210470 | D86: 0.043 | F86: 54 | H86: 3 | I86: Y
A87: Burrowton Farm Solar Park 33kV S Stn | B87: BurrowtonFarmSolarPark33kVSStn | C87: 318026 | D87: 0.16 | F87: 500 | G87: Y | H87: 3 | I87: Y
A88: Burthy Solar Park 33kV S Stn | B88: BurthySolarPark33kVSStn | C88: 418141 | D88: 0.46 | F88: 500 | G88: Y | H88: 3 | I88: Y
A89: Bystock Farm Solar Park 33kV S Stn | B89: BystockFarmSolarPark33kVSStn | C89: 318137 | D89: 0.185 | F89: 500 | G89: Y | H89: 3 | I89: Y
A90: Cairns Road 33/11kV S Stn | B90: CairnsRoad33/11kVSStn | C90: 110803 | D90: 0.09 | F90: 207 | H90: 3 | I90: Y
A91: Callington 33/11kV S Stn | B91: Callington33/11kVSStn | C91: 457260 | D91: 0.138 | F91: 180 | H91: 3 | I91: Y
A92: Callywith 33/11kV S Stn | B92: Callywith33/11kVSStn | C92: 437830 | D92: 0.468 | F92: 394 | H92: 3 | I92: Y
A93: Camborne 132/33kV S Stn | B93: Camborne132/33kVSStn | C93: 407020 | D93: 0.232 | F93: 512 | H93: 3 | I93: Y
A94: Camborne Carn Brea 33/11kV S Stn | B94: CamborneCarnBrea33/11kVSStn | C94: 417020 | D94: 0.216 | F94: 177 | H94: 3 | I94: Y
A95: Camborne Holmans 33/11kV S Stn | B95: CamborneHolmans33/11kVSStn | C95: 417540 | D95: 0.237 | F95: 390 | H95: 3 | I95: Y
A96: Camborne Treswithian 33/11kV S Stn | B96: CamborneTreswithian33/11kVSStn | C96: 417010 | D96: 2.279 | F96: 3519 | H96: 3 | I96: Y
A97: Capelands Farm Solar Park 33kV S Stn | B97: CapelandsFarmSolarPark33kVSStn | C97: 268113 | D97: 0.86 | F97: 500 | G97: Y | H97: 3 | I97: Y
A98: Carditch Drove Solar Park 33kV S Stn | B98: CarditchDroveSolarPark33kVSStn | C98: 188112 | D98: 0.1 | F98: 500 | G98: Y | H98: 3 | I98: Y
A99: Carland Cross Wind Farm 33kV S Stn | B99: CarlandCrossWindFarm33kVSStn | C99: 417800 | D99: 0.52 | F99: 1435 | H99: 3 | I99: Y
A100: Carloggas Farm Solar Park 33kV S Stn | B100: CarloggasFarmSolarPark33kVSStn | C100: 438087 | D100: 0.7 | E100: Y | F100: 500 | G100: Y | H100: 3 | I100: Y
A101: Carnemough Farm Solar Park 33kV S Stn | B101: CarnemoughFarmSolarPark33kVSStn | C101: 418158 | D101: 0.561 | F101: 500 | G101: Y | H101: 3 | I101: Y
A102: Carnworthy Solar Park 132kV S Stn | B102: CarnworthySolarPark132kVSStn | C102: 357304 | D102: 1.254 | F102: 1400 | G102: Y | H102: 1 | I102: Y
A103: Cattledown STOR Generator 33kV S Stn | B103: CattledownSTORGenerator33kVSStn | C103: 338177 | D103: 0.124 | F103: 500 | G103: Y | H103: 3 | I103: Y
A104: Causilgey Solar Farm 33kV S Stn | B104: CausilgeySolarFarm33kVSStn | C104: 418046 | D104: 1.11 | F104: 500 | G104: Y | H104: 3 | I104: Y
A105: Central Intake 33kV S Stn | B105: CentralIntake33kVSStn | C105: 330041 | D105: 0.3 | F105: 421 | H105: 3 | I105: Y
A106: Chalhanger Farm Solar Park 33kV S Stn | B106: ChalhangerFarmSolarPark33kVSStn | C106: 358085 | D106: 0.7 | E106: Y | F106: 500 | G106: Y | H106: 3 | I106: Y
A107: Chard 33/11kV S Stn | B107: Chard33/11kVSStn | C107: 250360 | D107: 0.029 | F107: 39 | H107: 3 | I107: Y
A108: Cheddar 33/11kV S Stn | B108: Cheddar33/11kVSStn | C108: 181345 | D108: 0.082 | F108: 128 | H108: 3 | I108: Y
A109: Chelson Generator 33kV S Stn | B109: ChelsonGenerator33kVSStn | C109: 330046 | D109: 0.24 | F109: 326 | H109: 3 | I109: Y
A110: Chelwood Solar Park 33kV S Stn | B110: ChelwoodSolarPark33kVSStn | C110: 118154 | D110: 0.125 | F110: 500 | G110: Y | H110: 3 | I110: Y
A111: Chew Stoke 33/11kV S Stn | B111: ChewStoke33/11kVSStn | C111: 181230 | D111: 0.402 | F111: 339 | H111: 3 | I111: Y
A112: Chewton Mendip 33/11kV S Stn | B112: ChewtonMendip33/11kVSStn | C112: 160415 | D112: 2 | F112: 2670 | H112: 3 | I112: Y
A113: Chudleigh Knighton 33/11kV S Stn | B113: ChudleighKnighton33/11kVSStn | C113: 340011 | D113: 0.242 | F113: 222 | H113: 3 | I113: Y
A114: Churchill 132/33kV S Stn | B114: Churchill132/33kVSStn | C114: 182373 | D114: 0.18 | F114: 271 | H114: 3 | I114: Y
A115: Churchill Gate 33/11kV S Stn | B115: ChurchillGate33/11kVSStn | C115: 182570 | D115: 0.55 | F115: 853 | H115: 3 | I115: Y
A116: Churchtown Farm Solar Park 33kV S Stn | B116: ChurchtownFarmSolarPark33kVSStn | C116: 418008 | D116: 0.37 | F116: 262 | H116: 3 | I116: Y
A117: Churston 33/11kV S Stn | B117: Churston33/11kVSStn | C117: 340029 | D117: 0.621 | F117: 384 | H117: 3 | I117: Y
A118: Chynoweth Solar Park 33kV S Stn | B118: ChynowethSolarPark33kVSStn | C118: 418009 | D118: 0.38 | F118: 821 | H118: 3 | I118: Y
A119: Cleave Farm Solar Park 33kV S Stn | B119: CleaveFarmSolarPark33kVSStn | C119: 268091 | D119: 0.292 | F119: 500 | G119: Y | H119: 3 | I119: Y
A120: Clevedon 33/11kV S Stn | B120: Clevedon33/11kVSStn | C120: 180198 | D120: 0.262 | F120: 275 | H120: 3 | I120: Y
A121: Clifton 33/11kV S Stn | B121: Clifton33/11kVSStn | C121: 111158 | D121: 0.12 | F121: 251 | H121: 3 | I121: Y
A122: Clovelly 33/11kV S Stn | B122: Clovelly33/11kVSStn | C122: 350011 | D122: 2.1 | F122: 1338 | H122: 3 | I122: Y
A123: Clyst Honiton 33/11kV S Stn | B123: ClystHoniton33/11kVSStn | C123: 310034 | D123: 0.5 | F123: 565 | H123: 3 | I123: Y
A124: Cobbs Cross Solar Farm 33kV S Stn | B124: CobbsCrossSolarFarm33kVSStn | C124: 218061 | D124: 0.157 | F124: 500 | G124: Y | H124: 3 | I124: Y
A125: Coker 33/11kV S Stn | B125: Coker33/11kVSStn | C125: 250530 | D125: 1.112 | F125: 1672 | H125: 3 | I125: Y
A126: Cold Northcott Wind Farm 33kV S Stn | B126: ColdNorthcottWindFarm33kVSStn | C126: 457810 | D126: 0.12 | F126: 69 | H126: 3 | I126: Y
A127: Colley End 33/11kV S Stn | B127: ColleyEnd33/11kVSStn | C127: 340034 | D127: 0.18 | F127: 214 | H127: 3 | I127: Y
A128: Colley Lane 33/11kV S Stn | B128: ColleyLane33/11kVSStn | C128: 210120 | D128: 0.082 | F128: 295 | H128: 3 | I128: Y
A129: Colyford 33/11kV S Stn | B129: Colyford33/11kVSStn | C129: 250310 | D129: 0.609 | F129: 605 | H129: 3 | I129: Y
A130: Combe Park 33/6.6kV S Stn | B130: CombePark33/6.6kVSStn | C130: 164016 | D130: 0.076 | F130: 96 | H130: 3 | I130: Y
A131: Compton Martin 33/11kV S Stn | B131: ComptonMartin33/11kVSStn | C131: 181346 | D131: 0.469 | F131: 935 | H131: 3 | I131: Y
A132: Congresbury 33/11kV S Stn | B132: Congresbury33/11kVSStn | C132: 180006 | D132: 0.153 | F132: 325 | H132: 3 | I132: Y
A133: Connon Bridge Landfill 33kV S Stn | B133: ConnonBridgeLandfill33kVSStn | C133: 437340 | D133: 1.7 | F133: 1513 | H133: 3 | I133: Y
A134: Constantine 33/11kV S Stn | B134: Constantine33/11kVSStn | C134: 417320 | D134: 3.852 | F134: 4898 | H134: 3 | I134: Y
A135: Coombe Farm Solar Park 33kV S Stn | B135: CoombeFarmSolarPark33kVSStn | C135: 318146 | D135: 0.25 | F135: 500 | G135: Y | H135: 3 | I135: Y
A136: Coombeshead Farm Solar Park 33kV S Stn | B136: CoombesheadFarmSolarPark33kVSStn | C136: 348131 | D136: 0.56 | F136: 500 | G136: Y | H136: 3 | I136: Y
A137: Core Hill 33/11kV S Stn | B137: CoreHill33/11kVSStn | C137: 310044 | D137: 0.178 | F137: 160 | H137: 3 | I137: Y
A138: Cornwall Energy Recovery Centre 132kV S Stn | B138: CornwallEnergyRecoveryCentre132kVSStn | C138: 438149 | D138: 0.78 | F138: 1400 | G138: Y | H138: 1 | I138: Y
A139: Cotham 33/11kV S Stn | B139: Cotham33/11kVSStn | C139: 114389 | D139: 0.165 | F139: 81 | H139: 3 | I139: Y
A140: Countess Wear 33/11kV S Stn | B140: CountessWear33/11kVSStn | C140: 310048 | D140: 0.124 | F140: 35 | H140: 3 | I140: Y
A141: Cowley Road 33/11kV S Stn | B141: CowleyRoad33/11kVSStn | C141: 310014 | D141: 0.064 | F141: 77 | H141: 3 | I141: Y
A142: Crediton 33/11kV S Stn | B142: Crediton33/11kVSStn | C142: 310015 | D142: 0.117 | F142: 120 | H142: 3 | I142: Y
A143: Creech St Michael 33/11kV S Stn | B143: CreechStMichael33/11kVSStn | C143: 210030 | D143: 0.304 | F143: 333 | H143: 3 | I143: Y
A144: Crewkerne 33/11kV S Stn | B144: Crewkerne33/11kVSStn | C144: 250370 | D144: 0.089 | F144: 307 | H144: 3 | I144: Y
A145: Crewkerne Solar Park 33kV S Stn | B145: CrewkerneSolarPark33kVSStn | C145: 258153 | D145: 0.138 | F145: 500 | G145: Y | H145: 3 | I145: Y
A146: Cribbs Causeway 33/11kV S Stn | B146: CribbsCauseway33/11kVSStn | C146: 113983 | D146: 0.077 | F146: 32 | H146: 3 | I146: Y
A147: Cricket St Thomas Solar Park 33kV S Stn | B147: CricketStThomasSolarPark33kVSStn | C147: 258063 | D147: 0.136 | F147: 500 | G147: Y | H147: 3 | I147: Y
A148: Crinacott Farm Solar Park 33kV S Stn | B148: CrinacottFarmSolarPark33kVSStn | C148: 358068 | D148: 0.14 | F148: 500 | G148: Y | H148: 3 | I148: Y
A149: Cullompton 33/11kV S Stn | B149: Cullompton33/11kVSStn | C149: 310024 | D149: 0.271 | F149: 298 | H149: 3 | I149: Y
A150: Cullompton Solar Park 33kV S Stn | B150: CullomptonSolarPark33kVSStn | C150: 318098 | D150: 0.2 | F150: 500 | G150: Y | H150: 3 | I150: Y
A151: Culmhead 33/11kV S Stn | B151: Culmhead33/11kVSStn | C151: 210390 | D151: 0.793 | F151: 948 | H151: 3 | I151: Y
A152: Culmhead Solar Park 33kV S Stn | B152: CulmheadSolarPark33kVSStn | C152: 218009 | D152: 0.137 | F152: 500 | G152: Y | H152: 3 | I152: Y
A153: Curry Mallet 33/11kV S Stn | B153: CurryMallet33/11kVSStn | C153: 210450 | D153: 0.788 | F153: 871 | H153: 3 | I153: Y
A154: Dairy Crest Davidstow 33/11kV S Stn | B154: DairyCrestDavidstow33/11kVSStn | C154: 437470 | D154: 1.15 | F154: 771 | H154: 3 | I154: Y
A155: Darracott Moor Windfarm 33kV S Stn | B155: DarracottMoorWindfarm33kVSStn | C155: 260180 | D155: 0.82 | F155: 792 | H155: 3 | I155: Y
A156: Dartmouth 33/11kV S Stn | B156: Dartmouth33/11kVSStn | C156: 340030 | D156: 0.393 | F156: 381 | H156: 3 | I156: Y
A157: Davidstow 33/11kV S Stn | B157: Davidstow33/11kVSStn | C157: 437410 | D157: 4.3 | F157: 3677 | H157: 3 | I157: Y
A158: Dawlish 33/11kV S Stn | B158: Dawlish33/11kVSStn | C158: 340023 | D158: 0.143 | F158: 125 | H158: 3 | I158: Y
A159: Delabole 33/11kV S Stn | B159: Delabole33/11kVSStn | C159: 437420 | D159: 1.278 | F159: 1388 | H159: 3 | I159: Y
A160: Denbrook Wind Farm 33kV S Stn | B160: DenbrookWindFarm33kVSStn | C160: 358159 | D160: 0.166 | F160: 500 | G160: Y | H160: 3 | I160: Y
A161: Denzell Downs Wind Farm 33kV S Stn | B161: DenzellDownsWindFarm33kVSStn | C161: 438148 | D161: 0.1564 | F161: 500 | G161: Y | H161: 3 | I161: Y
A162: Derriton Fields Solar Park 33kV S Stn | B162: DerritonFieldsSolarPark33kVSStn | C162: 358080 | D162: 0.285 | F162: 500 | G162: Y | H162: 3 | I162: Y
A163: Devoran 33/11kV S Stn | B163: Devoran33/11kVSStn | C163: 417310 | D163: 2.115 | F163: 2563 | H163: 3 | I163: Y
A164: Dinder 33/11kV S Stn | B164: Dinder33/11kVSStn | C164: 160811 | D164: 4.27 | F164: 4582 | H164: 3 | I164: Y
A165: Dinder Farm Solar Park 33kV S Stn | B165: DinderFarmSolarPark33kVSStn | C165: 168106 | D165: 0.656 | F165: 500 | G165: Y | H165: 3 | I165: Y
A166: Dorchester Street 33/6.6kV S Stn | B166: DorchesterStreet33/6.6kVSStn | C166: 164170 | D166: 0.072 | F166: 105 | H166: 3 | I166: Y
A167: Dowlish Ford 33/11kV S Stn | B167: DowlishFord33/11kVSStn | C167: 250350 | D167: 0.16 | F167: 202 | H167: 3 | I167: Y
A168: Drinnick 33/11kV S Stn | B168: Drinnick33/11kVSStn | C168: 437370 | D168: 0.967 | F168: 1462 | H168: 3 | I168: Y
A169: Dunkeswell 33/11kV S Stn | B169: Dunkeswell33/11kVSStn | C169: 310057 | D169: 0.291 | F169: 203 | H169: 3 | I169: Y
A170: Dunsland Cross Wind Farm 33kV S Stn | B170: DunslandCrossWindFarm33kVSStn | C170: 358167 | D170: 0.298 | F170: 500 | G170: Y | H170: 3 | I170: Y
A171: Eastacombe Solar Farm 33kV S Stn | B171: EastacombeSolarFarm33kVSStn | C171: 358022 | D171: 0.335 | F171: 500 | G171: Y | H171: 3 | I171: Y
A172: East Brent 33/11kV S Stn | B172: EastBrent33/11kVSStn | C172: 181425 | D172: 0.158 | F172: 144 | H172: 3 | I172: Y
A173: East Budleigh 33/11kV S Stn | B173: EastBudleigh33/11kVSStn | C173: 310040 | D173: 2.5 | F173: 2390 | H173: 3 | I173: Y
A174: East Chinnock 33/11kV S Stn | B174: EastChinnock33/11kVSStn | C174: 250290 | D174: 0.296 | F174: 413 | H174: 3 | I174: Y
A175: East Curry 33/11kV S Stn | B175: EastCurry33/11kVSStn | C175: 350015 | D175: 0.931 | F175: 865 | H175: 3 | I175: Y
A176: East Langford Solar Park 33kV S Stn | B176: EastLangfordSolarPark33kVSStn | C176: 358017 | D176: 0.29 | F176: 402 | H176: 3 | I176: Y
A177: Easton-In-Gordano 33/11kV S Stn | B177: Easton-In-Gordano33/11kVSStn | C177: 181414 | D177: 0.189 | F177: 417 | H177: 3 | I177: Y
A178: Eastville 33/11kV S Stn | B178: Eastville33/11kVSStn | C178: 110644 | D178: 0.102 | F178: 500 | G178: Y | H178: 3 | I178: Y
A179: East Yelland 132/33kV S Stn | B179: EastYelland132/33kVSStn | C179: 260465 | D179: 0.22 | F179: 263 | H179: 3 | I179: Y
A180: East Youlstone Windfarm 33kV S Stn | B180: EastYoulstoneWindfarm33kVSStn | C180: 358114 | D180: 0.7 | F180: 500 | G180: Y | H180: 3 | I180: Y
A181: Edgarley 33/11kV S Stn | B181: Edgarley33/11kVSStn | C181: 210110 | D181: 0.148 | F181: 194 | H181: 3 | I181: Y
A182: Eggbuckland 33/11kV S Stn | B182: Eggbuckland33/11kVSStn | C182: 330025 | D182: 0.072 | F182: 24 | H182: 3 | I182: Y
A183: Elim Terrace 33/11kV S Stn | B183: ElimTerrace33/11kVSStn | C183: 330019 | D183: 0.16 | F183: 281 | H183: 3 | I183: Y
A184: Emersons Green 33/11kV S Stn | B184: EmersonsGreen33/11kVSStn | C184: 114391 | D184: 0.33 | F184: 144 | H184: 3 | I184: Y
A185: Entry Hill 33/6.6kV S Stn | B185: EntryHill33/6.6kVSStn | C185: 160355 | D185: 0.065 | F185: 88 | H185: 3 | I185: Y
A186: Ernesettle 132/33kV S Stn | B186: Ernesettle132/33kVSStn | C186: 330001 | D186: 0.153 | F186: 1232 | H186: 3 | I186: Y
A187: Ernesettle B & S 33/11kV S Stn | B187: ErnesettleB&S33/11kVSStn | C187: 330038 | D187: 0.153 | F187: 216 | H187: 3 | I187: Y
A188: Ernesettle Lane STOR Generator 33kV S Stn | B188: ErnesettleLaneSTORGenerator33kVSStn | C188: 333743 | D188: 0.156 | F188: 1171 | H188: 3 | I188: Y
A189: Evercreech 33/11kV S Stn | B189: Evercreech33/11kVSStn | C189: 161823 | D189: 0.129 | F189: 103 | H189: 3 | I189: Y
A190: Exebridge 33/11kV S Stn | B190: Exebridge33/11kVSStn | C190: 210140 | D190: 1.25 | F190: 689 | H190: 3 | I190: Y
A191: Exeter City 132/33kV S Stn | B191: ExeterCity132/33kVSStn | C191: 310001 | D191: 0.1 | F191: 467 | H191: 3 | I191: Y
A192: Exeter Main 33kV S Stn | B192: ExeterMain33kVSStn | C192: 310003 | D192: 0.15 | F192: 1648 | H192: 3 | I192: Y
A193: Exeter Main 400/132kV S Stn | B193: ExeterMain400/132kVSStn | C193: 306005 | D193: 0.115 | F193: 1648 | H193: 1 | I193: Y
A194: Exeter Science Park 33/11kV S Stn | B194: ExeterSciencePark33/11kVSStn | C194: 310060 | D194: 0.32 | F194: 500 | G194: Y | H194: 3 | I194: Y
A195: Exminster 33/11kV S Stn | B195: Exminster33/11kVSStn | C195: 310030 | D195: 0.164 | F195: 187 | H195: 3 | I195: Y
A196: Exmouth 132/33kV S Stn | B196: Exmouth132/33kVSStn | C196: 310004 | D196: 0.076 | F196: 323 | H196: 3 | I196: Y
A197: Exmouth Works 33/11kV S Stn | B197: ExmouthWorks33/11kVSStn | C197: 310038 | D197: 0.11 | F197: 151 | H197: 3 | I197: Y
A198: Falmouth Bickland Hill 33/11kV S Stn | B198: FalmouthBicklandHill33/11kVSStn | C198: 417160 | D198: 0.186 | F198: 275 | H198: 3 | I198: Y
A199: Falmouth Docks 33/11kV S Stn | B199: FalmouthDocks33/11kVSStn | C199: 417180 | D199: 0.134 | F199: 182 | H199: 3 | I199: Y
A200: Faraday Road STOR Generator 33kV S Stn | B200: FaradayRoadSTORGenerator33kVSStn | C200: 333718 | D200: 0.124 | F200: 500 | G200: Y | H200: 3 | I200: Y
... 402 more rows

Sheet Source-SWA-Num (hidden)
A1: 1 | B1: 2 | C1: 3 | D1: 4 | E1: 5 | F1: 6 | G1: 7 | H1: 8
A2: SUBSTATION_NUMBER_SWA | B2: SUBSTATION_NAME | C2: ZE | D2: Assumed ZE | E2: UE | F2: Assumed UE | G2: t | H2: Assumed t
A3: 510006 | B3: Cardiff Central Grid 132/33kV S Stn | C3: 0.2 | D3: Y | E3: 1000 | F3: Y | G3: 3 | H3: Y
A4: 510007 | B4: Cardiff East Grid 275/132/33/11kV S Stn | C4: 0.2 | D4: Y | E4: 1480 | G4: 3 | H4: Y
A5: 510008 | B5: Cardiff North Grid 132/33kV S Stn | C5: 0.081 | E5: 1000 | F5: Y | G5: 3 | H5: Y
A6: 510009 | B6: Cardiff West Grid 132/33kV S Stn | C6: 0.2 | D6: Y | E6: 1000 | F6: Y | G6: 3 | H6: Y
A7: 510049 | B7: Aberthaw Power Station 275/132kV S Stn | C7: 0.2 | D7: Y | E7: 2152 | G7: 1 | H7: Y
A8: 510059 | B8: East Aberthaw 132/33kV S Stn | C8: 0.16 | E8: 1000 | F8: Y | G8: 3 | H8: Y
A9: 510064 | B9: Ashgrove 33/11kV S Stn | C9: 0.7 | D9: Y | E9: 500 | F9: Y | G9: 3 | H9: Y
A10: 510069 | B10: Birchgrove 33/11kV S Stn | C10: 0.067 | E10: 500 | F10: Y | G10: 3 | H10: Y
A11: 510086 | B11: Broad St. Barry 33/11kV S Stn | C11: 0.263 | E11: 500 | F11: Y | G11: 3 | H11: Y
A12: 510088 | B12: Brynhill Barry Grid 132/33/11kV S Stn | C12: 0.08 | E12: 1000 | F12: Y | G12: 3 | H12: Y
A13: 510096 | B13: Canton 33/11kV S Stn | C13: 0.197 | E13: 500 | F13: Y | G13: 3 | H13: Y
A14: 510104 | B14: Court Rd. Barry 33/11kV S Stn | C14: 0.7 | D14: Y | E14: 500 | F14: Y | G14: 3 | H14: Y
A15: 510108 | B15: Crwys Rd. 33/11kV S Stn | C15: 0.7 | D15: Y | E15: 500 | F15: Y | G15: 3 | H15: Y
A16: 510115 | B16: Cyncoed 33/11kV S Stn | C16: 0.23 | E16: 500 | F16: Y | G16: 3 | H16: Y
A17: 510119 | B17: Ely 33/11kV S Stn | C17: 0.074 | E17: 500 | F17: Y | G17: 3 | H17: Y
A18: 510121 | B18: Fairwater 33/11kV S Stn | C18: 0.7 | D18: Y | E18: 500 | F18: Y | G18: 3 | H18: Y
A19: 510141 | B19: Heath 33/11kV S Stn | C19: 0.7 | D19: Y | E19: 500 | F19: Y | G19: 3 | H19: Y
A20: 510144 | B20: Highmead 33/11kV S Stn | C20: 0.046 | E20: 96 | G20: 3 | H20: Y
A21: 510148 | B21: Ironbridge 33/11kV S Stn | C21: 0.074 | E21: 163 | G21: 3 | H21: Y
A22: 510152 | B22: Llandough 33/11kV S Stn | C22: 0.07 | E22: 500 | F22: Y | G22: 3 | H22: Y
A23: 510160 | B23: Llanishen 33/11kV S Stn | C23: 0.7 | D23: Y | E23: 500 | F23: Y | G23: 3 | H23: Y
A24: 510178 | B24: Morlanga Farm 33/11kV S Stn | C24: 1.214 | E24: 500 | F24: Y | G24: 3 | H24: Y
A25: 510190 | B25: Northcote St. 33/11kV S Stn | C25: 0.068 | E25: 500 | F25: Y | G25: 3 | H25: Y
A26: 510198 | B26: Park Lane 33/11kV S Stn | C26: 0.082 | E26: 500 | F26: Y | G26: 3 | H26: Y
A27: 510199 | B27: Penarth 33/11kV S Stn | C27: 0.142 | E27: 500 | F27: Y | G27: 3 | H27: Y
A28: 510218 | B28: Sanatorium 33/11kV S Stn | C28: 0.055 | E28: 500 | F28: Y | G28: 3 | H28: Y
A29: 510219 | B29: Sandon St. 33/11kV S Stn | C29: 0.14 | E29: 500 | F29: Y | G29: 3 | H29: Y
A30: 510223 | B30: Ship Hill Barry 33/11kV S Stn | C30: 0.7 | D30: Y | E30: 500 | F30: Y | G30: 3 | H30: Y
A31: 510230 | B31: St Mellons 33/11kV S Stn | C31: 0.136 | E31: 500 | F31: Y | G31: 3 | H31: Y
A32: 510238 | B32: Taff Bank 33/11kV S Stn | C32: 0.7 | D32: Y | E32: 500 | F32: Y | G32: 3 | H32: Y
A33: 510310 | B33: Wood Street 33/11kV S Stn | C33: 0.61 | E33: 500 | F33: Y | G33: 3 | H33: Y
A34: 510327 | B34: Heath Hospital Primary 33/11kV S Stn | C34: 0.7 | D34: Y | E34: 500 | F34: Y | G34: 3 | H34: Y
A35: 510356 | B35: Trident Park Generation 33kV S Stn | C35: 0.09 | E35: 500 | F35: Y | G35: 3 | H35: Y
A36: 510362 | B36: Sutton Farm Solar Park 33kV S Stn | C36: 0.109 | E36: 500 | F36: Y | G36: 3 | H36: Y
A37: 510366 | B37: Peakgen Barry STOR 33kV S Stn | C37: 0.23 | E37: 500 | F37: Y | G37: 3 | H37: Y
A38: 510398 | B38: Jesus College P V Generation 33kV S Stn | C38: 0.162 | E38: 500 | F38: Y | G38: 3 | H38: Y
A39: 510399 | B39: Sully Moors Power Station 33kV S Stn | C39: 0.15 | E39: 500 | F39: Y | G39: 3 | H39: Y
A40: 510401 | B40: Llancadle Solar Farm 33kV S Stn | C40: 0.16 | E40: 500 | F40: Y | G40: 3 | H40: Y
A41: 510407 | B41: Derwyn Solar Farm 33kV S Stn | C41: 0.14 | E41: 500 | F41: Y | G41: 3 | H41: Y
A42: 510428 | B42: FALSE | C42: 0.206 | E42: 405 | G42: 3 | H42: Y
A43: 510429 | B43: Barry Dock Biomass 33kV S Stn | C43: 0.103 | E43: 500 | F43: Y | G43: 3 | H43: Y
A44: 510439 | B44: Broad Street Swg Site 33kV S Stn | C44: 0.7 | D44: Y | E44: 500 | F44: Y | G44: 3 | H44: Y
A45: 510447 | B45: Trident Park 33kv Waste Generation 33kV S Stn | C45: 0.7 | D45: Y | E45: 500 | F45: Y | G45: 3 | H45: Y
A46: 510902 | B46: Trowbridge 132/11kV S Stn | C46: 0.2 | D46: Y | E46: 1000 | F46: Y | G46: 1 | H46: Y
A47: 510905 | B47: Cardiff South Grid 132/11kV S Stn | C47: 0.2 | D47: Y | E47: 1000 | F47: Y | G47: 1 | H47: Y
A48: 510908 | B48: Grangetown Grid Primary 132/11kV S Stn | C48: 0.2 | D48: Y | E48: 1000 | F48: Y | G48: 1 | H48: Y
A49: 510909 | B49: Sully Grid Primary 132/11kV S Stn | C49: 0.134 | E49: 1000 | F49: Y | G49: 1 | H49: Y
A50: 510911 | B50: Rover Way 132/11kV S Stn | C50: 0.087 | E50: 1000 | F50: Y | G50: 1 | H50: Y
A51: 510928 | B51: GKN Rod Mill 33kV S Stn | C51: 0.7 | D51: Y | E51: 500 | F51: Y | G51: 3 | H51: Y
A52: 520002 | B52: Ammanford Grid 132/33kV S Stn | C52: 0.417 | E52: 1000 | F52: Y | G52: 3 | H52: Y
A53: 520022 | B53: Llanelli Grid 132/11kV S Stn | C53: 0.085 | E53: 1000 | F53: Y | G53: 1 | H53: Y
A54: 520035 | B54: Swansea North Grid 132/33kV S Stn | C54: 0.17 | E54: 4216 | G54: 3 | H54: Y
A55: 520036 | B55: Swansea West Grid 132/33kV S Stn | C55: 0.176 | E55: 1000 | F55: Y | G55: 3 | H55: Y
A56: 520037 | B56: Tir John Primary 132/33/6.6kV S Stn | C56: 0.084 | E56: 1000 | F56: Y | G56: 3 | H56: Y
A57: 520038 | B57: Trostre Grid 132/33kV S Stn | C57: 0.14 | E57: 1000 | F57: Y | G57: 3 | H57: Y
A58: 520041 | B58: Travellers Rest 33/11kV S Stn | C58: 0.328 | E58: 500 | F58: Y | G58: 3 | H58: Y
A59: 520045 | B59: Gowerton East Grid 132/33kV S Stn | C59: 0.156 | E59: 1000 | F59: Y | G59: 3 | H59: Y
A60: 520070 | B60: Bishopston 33/11kV S Stn | C60: 0.434 | E60: 500 | F60: Y | G60: 3 | H60: Y
A61: 520100 | B61: Clase 33/11kV S Stn | C61: 0.204 | E61: 500 | F61: Y | G61: 3 | H61: Y
A62: 520118 | B62: Westfa 33/11kV S Stn | C62: 2.04 | E62: 500 | F62: Y | G62: 3 | H62: Y
A63: 520127 | B63: Garngoch 33/11kV S Stn | C63: 0.292 | E63: 743 | G63: 3 | H63: Y
A64: 520129 | B64: Gethin Street Swansea 33/11kV S Stn | C64: 0.7 | D64: Y | E64: 500 | F64: Y | G64: 3 | H64: Y
A65: 520137 | B65: Gwaun Cae Gurwen 33/11kV S Stn | C65: 1.82 | E65: 500 | F65: Y | G65: 3 | H65: Y
A66: 520142 | B66: Hendy 33/11kV S Stn | C66: 0.293 | E66: 500 | F66: Y | G66: 3 | H66: Y
A67: 520145 | B67: Waunarlwyd 33kV S Stn | C67: 0.393 | E67: 500 | F67: Y | G67: 3 | H67: Y
A68: 520147 | B68: Inco Europe South 33kV S Stn | C68: 0.21 | E68: 500 | F68: Y | G68: 3 | H68: Y
A69: 520162 | B69: Llanrhidian 33/11kV S Stn | C69: 1.432 | E69: 500 | F69: Y | G69: 3 | H69: Y
A70: 520172 | B70: Meinciau 33/11kV S Stn | C70: 3.44 | E70: 500 | F70: Y | G70: 3 | H70: Y
A71: 520187 | B71: New Lodge 33/11kV S Stn | C71: 0.18 | E71: 500 | F71: Y | G71: 3 | H71: Y
A72: 520197 | B72: Pantyffynon 33/11kV S Stn | C72: 0.207 | E72: 500 | F72: Y | G72: 3 | H72: Y
A73: 520207 | B73: Pontardawe 33/11kV S Stn | C73: 0.3 | E73: 500 | F73: Y | G73: 3 | H73: Y
A74: 520209 | B74: Pontyates 33/11kV S Stn | C74: 0.936 | E74: 500 | F74: Y | G74: 3 | H74: Y
A75: 520211 | B75: Ravenhill 33/11kV S Stn | C75: 0.05626 | E75: 161 | G75: 3 | H75: Y
A76: 520217 | B76: Lime Street Gorseinon 33/11kV S Stn | C76: 0.28 | E76: 500 | F76: Y | G76: 3 | H76: Y
A77: 520225 | B77: Sketty Park 33/11kV S Stn | C77: 0.7 | D77: Y | E77: 500 | F77: Y | G77: 3 | H77: Y
A78: 520233 | B78: Strand Swansea 33/11kV S Stn | C78: 0.7 | D78: Y | E78: 500 | F78: Y | G78: 3 | H78: Y
A79: 520248 | B79: Tumble 33/11kV S Stn | C79: 0.154 | E79: 500 | F79: Y | G79: 3 | H79: Y
A80: 520250 | B80: Uplands Swansea 33/11kV S Stn | C80: 0.7 | D80: Y | E80: 500 | F80: Y | G80: 3 | H80: Y
A81: 520251 | B81: Upper Bank 33/11kV S Stn | C81: 0.7 | D81: Y | E81: 500 | F81: Y | G81: 3 | H81: Y
A82: 520258 | B82: West Cross 33/11kV S Stn | C82: 0.184 | E82: 500 | F82: Y | G82: 3 | H82: Y
A83: 520259 | B83: Westfa 33/11kV S Stn | C83: 0.101 | E83: 500 | F83: Y | G83: 3 | H83: Y
A84: 520274 | B84: Swansea Trading Estate 33/11kV S Stn | C84: 0.7 | D84: Y | E84: 500 | F84: Y | G84: 3 | H84: Y
A85: 520284 | B85: Jersey Marine 33/11kV S Stn | C85: 0.093 | E85: 500 | F85: Y | G85: 3 | H85: Y
A86: 520286 | B86: Kidwelly 33/11kV S Stn | C86: 0.748 | E86: 500 | F86: Y | G86: 3 | H86: Y
A87: 520291 | B87: Morriston 132/11kV S Stn | C87: 0.127 | E87: 1000 | F87: Y | G87: 1 | H87: Y
A88: 520299 | B88: Maes Ar Dafen 33/11kV S Stn | C88: 0.164 | E88: 500 | F88: Y | G88: 3 | H88: Y
A89: 520307 | B89: Cross Hands 33/11kV S Stn | C89: 0.248 | E89: 500 | F89: Y | G89: 3 | H89: Y
A90: 520312 | B90: Crymlyn Burrows 33kV S Stn | C90: 0.3 | E90: 500 | F90: Y | G90: 3 | H90: Y
A91: 520316 | B91: Swansea University 33/11kV S Stn | C91: 1.9505 | E91: 500 | F91: Y | G91: 3 | H91: Y
A92: 520317 | B92: Swansea Waterfront 33/11kV S Stn | C92: 0.7 | D92: Y | E92: 500 | F92: Y | G92: 3 | H92: Y
A93: 520318 | B93: Pwllfa Gwatkin 33kV S Stn | C93: 1.682 | E93: 500 | F93: Y | G93: 3 | H93: Y
A94: 520326 | B94: Felindre Pumping Station 33kV S Stn | C94: 0.269 | E94: 500 | F94: Y | G94: 3 | H94: Y
A95: 520334 | B95: Western Coal 33/11kV S Stn | C95: 0.7 | D95: Y | E95: 500 | F95: Y | G95: 3 | H95: Y
A96: 520339 | B96: Cefn Betingau Solar PV 33kV S Stn | C96: 0.341 | E96: 500 | F96: Y | G96: 3 | H96: Y
A97: 520340 | B97: Clawdd Ddu Solar Farm 33kV S Stn | C97: 0.34 | E97: 500 | F97: Y | G97: 3 | H97: Y
A98: 520341 | B98: Betws Wind Farm Grid 132kV S Stn | C98: 0.2 | D98: Y | E98: 1000 | F98: Y | G98: 1 | H98: Y
A99: 520344 | B99: Waunarlwydd STOR Generation 33kV S Stn | C99: 0.393 | E99: 500 | F99: Y | G99: 3 | H99: Y
A100: 520345 | B100: Ffos Las PV Generation 33kV S Stn | C100: 0.324 | E100: 500 | F100: Y | G100: 3 | H100: Y
A101: 520346 | B101: Pont Andrew PV Generation 33kV S Stn | C101: 0.681 | E101: 500 | F101: Y | G101: 3 | H101: Y
A102: 520348 | B102: Tir John STOR Generation 33kV S Stn | C102: 0.084 | E102: 500 | F102: Y | G102: 3 | H102: Y
A103: 520360 | B103: Swansea North Local 33/11kV S Stn | C103: 0.3 | E103: 500 | F103: Y | G103: 3 | H103: Y
A104: 520365 | B104: Pentre Solar Farm Generation 33kV S Stn | C104: 0.8 | E104: 500 | F104: Y | G104: 3 | H104: Y
A105: 520371 | B105: Pen Y Cae Solar 33kV S Stn | C105: 0.2 | E105: 500 | F105: Y | G105: 3 | H105: Y
A106: 520373 | B106: Saron Solar Farm 33kV S Stn | C106: 0.18 | E106: 500 | F106: Y | G106: 3 | H106: Y
A107: 520374 | B107: Brynteg Solar Farm 33kV S Stn | C107: 0.34 | E107: 500 | F107: Y | G107: 3 | H107: Y
A108: 520381 | B108: Abergelli PV Generation Site 33kV S Stn | C108: 0.36 | E108: 500 | F108: Y | G108: 3 | H108: Y
A109: 520386 | B109: Rhyd Y Pandy Solar Park 33kV S Stn | C109: 0.25 | E109: 500 | F109: Y | G109: 3 | H109: Y
A110: 520388 | B110: Blaenlleidi Wind Farm 33kV S Stn | C110: 2.2 | E110: 500 | F110: Y | G110: 3 | H110: Y
A111: 520392 | B111: Gelliwern Isaf Pv Gen 33kV S Stn | C111: 0.42 | E111: 500 | F111: Y | G111: 3 | H111: Y
A112: 520396 | B112: Brynwhilach Solar Park 33kV S Stn | C112: 0.132 | E112: 500 | F112: Y | G112: 3 | H112: Y
A113: 520410 | B113: Mynydd Y Gwrhyd Wind Generation 33kV S Stn | C113: 0.92 | E113: 500 | F113: Y | G113: 3 | H113: Y
A114: 520423 | B114: Cockett Valley Solar Park 33kV S Stn | C114: 0.412 | E114: 500 | F114: Y | G114: 3 | H114: Y
A115: 520427 | B115: Gowerton STOR 33kV S Stn | C115: 0.273 | E115: 479 | G115: 3 | H115: Y
A116: 520435 | B116: Brechfa Forest West Wind Farm 132kV S Stn | C116: 1.45 | E116: 1000 | F116: Y | G116: 1 | H116: Y
A117: 520438 | B117: Mynydd Y Gwair Wind Farm 132kV S Stn | C117: 0.616 | E117: 3000 | G117: 1 | H117: Y
A118: 520445 | B118: Mynydd Uchaf Wind Farm 33kV S Stn | C118: 0.7 | D118: Y | E118: 500 | F118: Y | G118: 3 | H118: Y
A119: 520446 | B119: Brynhenllys Solar Park 33kV S Stn | C119: 0.7 | D119: Y | E119: 500 | F119: Y | G119: 3 | H119: Y
A120: 530001 | B120: Abergavenny 132/66kV S Stn | C120: 0.078 | E120: 271 | G120: 1 | H120: Y
A121: 530023 | B121: Llantarnam 132/66kV S Stn | C121: 0.103 | E121: 460 | G121: 1 | H121: Y
A122: 530027 | B122: Newport East 132/11kV S Stn | C122: 0.2 | D122: Y | E122: 1000 | F122: Y | G122: 1 | H122: Y
A123: 530028 | B123: Newport South 132/33kV S Stn | C123: 0.018 | E123: 148 | G123: 1 | H123: Y
A124: 530034 | B124: Sudbrook 132/33kV S Stn | C124: 0.11 | E124: 440 | G124: 1 | H124: Y
A125: 530046 | B125: Uskmouth 275/132kV S Stn | C125: 0.2 | D125: Y | E125: 901 | G125: 1 | H125: Y
A126: 530056 | B126: Abersychan 66/11kV S Stn | C126: 0.206 | E126: 244 | G126: 3 | H126: Y
A127: 530071 | B127: Blaenavon 66/11kV S Stn | C127: 0.11 | E127: 146 | G127: 3 | H127: Y
A128: 530095 | B128: Caldicot 33/11kV S Stn | C128: 0.116 | E128: 102 | G128: 3 | H128: Y
A129: 530099 | B129: Chepstow 33/11kV S Stn | C129: 0.365 | E129: 341 | G129: 3 | H129: Y
A130: 530110 | B130: Cwmbran Primary 132/11kV S Stn | C130: 0.063 | E130: 287 | G130: 1 | H130: Y
A131: 530177 | B131: Monmouth 66/11kV S Stn | C131: 0.074 | E131: 85 | G131: 3 | H131: Y
A132: 530195 | B132: Orb Works 33kV S Stn | C132: 0.7 | D132: Y | E132: 500 | F132: Y | G132: 3 | H132: Y
A133: 530196 | B133: Panteg 132/11kV S Stn | C133: 0.057 | E133: 260 | G133: 1 | H133: Y
A134: 530214 | B134: Ringland Newport 33/11kV S Stn | C134: 0.068 | E134: 98 | G134: 3 | H134: Y
A135: 530226 | B135: St Arvans 33/11kV S Stn | C135: 1.102 | E135: 905 | G135: 3 | H135: Y
A136: 530252 | B136: Usk 66/11kV S Stn | C136: 0.248 | E136: 294 | G136: 3 | H136: Y
A137: 530294 | B137: Newhouse 33/11kV S Stn | C137: 0.32 | E137: 341 | G137: 3 | H137: Y
A138: 530316 | B138: British Energy Newport South 33kV S Stn | C138: 0.7 | D138: Y | E138: 500 | F138: Y | G138: 3 | H138: Y
A139: 530333 | B139: Rogerstone 66/11kV S Stn | C139: 0.204 | E139: 157 | G139: 3 | H139: Y
A140: 530404 | B140: Oak Grove Farm Solar Generation 33kV S Stn | C140: 0.43 | E140: 309 | G140: 3 | H140: Y
A141: 530406 | B141: Lower House P V Generation 66kV S Stn | C141: 0.23 | E141: 500 | F141: Y | G141: 3 | H141: Y
A142: 530413 | B142: Traston Road Stor Generation 33kV S Stn | C142: 0.17 | E142: 500 | F142: Y | G142: 3 | H142: Y
A143: 530414 | B143: Rhewl Farm Solar Park 33kV S Stn | C143: 0.296 | E143: 500 | F143: Y | G143: 3 | H143: Y
A144: 530415 | B144: Manor Farm Solar Park 66kV S Stn | C144: 0.7 | D144: Y | E144: 500 | F144: Y | G144: 3 | H144: Y
A145: 530900 | B145: Newport West 132/11kV S Stn | C145: 0.092 | E145: 672 | G145: 1 | H145: Y
A146: 530907 | B146: Pontypool North 132/11kV S Stn | C146: 0.071 | E146: 307 | G146: 1 | H146: Y
A147: 530914 | B147: Simms Metals 132kV S Stn | C147: 0.173 | E147: 1000 | F147: Y | G147: 1 | H147: Y
A148: 530941 | B148: Magor BSP 132/11kV S Stn | C148: 0.105 | E148: 484 | G148: 1 | H148: Y
A149: 540039 | B149: Upper Boat 132/11kV S Stn | C149: 0.2 | D149: Y | E149: 2629 | G149: 1 | H149: Y
A150: 540094 | B150: Caerphilly Primary 33/11kV S Stn | C150: 0.133 | E150: 500 | F150: Y | G150: 3 | H150: Y
A151: 540106 | B151: Creigiau 33/11kV S Stn | C151: 0.784 | E151: 500 | F151: Y | G151: 3 | H151: Y
A152: 540120 | B152: Energlyn Primary 33/11kV S Stn | C152: 0.7 | D152: Y | E152: 500 | F152: Y | G152: 3 | H152: Y
A153: 540128 | B153: Gas Yard 33/11kV S Stn | C153: 0.242 | E153: 500 | F153: Y | G153: 3 | H153: Y
A154: 540174 | B154: Middle Fan 33/11kV S Stn | C154: 0.247 | E154: 500 | F154: Y | G154: 3 | H154: Y
A155: 540234 | B155: Trethomas 33/11kV S Stn | C155: 0.322 | E155: 500 | F155: Y | G155: 3 | H155: Y
A156: 540240 | B156: Tonypandy 33/11kV S Stn | C156: 0.22 | E156: 500 | F156: Y | G156: 3 | H156: Y
A157: 540241 | B157: Mill St. Tonyrefail 33/11kV S Stn | C157: 0.7 | D157: Y | E157: 384 | G157: 3 | H157: Y
A158: 540255 | B158: Wattstown 33/11kV S Stn | C158: 0.352 | E158: 700 | G158: 3 | H158: Y
A159: 540263 | B159: Ynysfeio 33/11kV S Stn | C159: 0.204 | E159: 500 | F159: Y | G159: 3 | H159: Y
A160: 540270 | B160: Talbot Green 132/11kV S Stn | C160: 0.294 | E160: 1000 | F160: Y | G160: 1 | H160: Y
A161: 540295 | B161: Taff Ely Wind Farm 33kV S Stn | C161: 0.7 | D161: Y | E161: 500 | F161: Y | G161: 3 | H161: Y
A162: 540306 | B162: Maerdy 33/11kV S Stn | C162: 0.378 | E162: 500 | F162: Y | G162: 3 | H162: Y
A163: 540332 | B163: Ferndale Wind Farm 33kV S Stn | C163: 0.7 | D163: Y | E163: 500 | F163: Y | G163: 3 | H163: Y
A164: 540335 | B164: Mynydd Portref Wind Farm 33kV S Stn | C164: 1.48 | E164: 500 | F164: Y | G164: 3 | H164: Y
A165: 540338 | B165: Maerdy Wind Farm 33kV S Stn | C165: 0.7 | D165: Y | E165: 500 | F165: Y | G165: 3 | H165: Y
A166: 540412 | B166: Tonypandy Stor 33kv Generation 33kV S Stn | C166: 3.87 | E166: 500 | F166: Y | G166: 3 | H166: Y
A167: 540425 | B167: St Peters Church Wind Farm 33kV S Stn | C167: 0.923 | E167: 500 | F167: Y | G167: 3 | H167: Y
A168: 540426 | B168: Berthllwyd Solar Park Generation 33kV S Stn | C168: 0.7 | D168: Y | E168: 500 | F168: Y | G168: 3 | H168: Y
A169: 540903 | B169: Nantgarw BSP 132/11kV S Stn | C169: 0.293 | E169: 1000 | F169: Y | G169: 1 | H169: Y
A170: 540910 | B170: Energlyn BSP 132/11kV S Stn | C170: 0.138 | E170: 1000 | F170: Y | G170: 1 | H170: Y
A171: 540913 | B171: Pontyclun 132/11kV S Stn | C171: 0.162 | E171: 1000 | F171: Y | G171: 1 | H171: Y
A172: 550011 | B172: Crumlin 132/11kV S Stn | C172: 0.219 | E172: 1000 | F172: Y | G172: 1 | H172: Y
A173: 550012 | B173: Dowlais Grid 132/33kV S Stn | C173: 0.2 | D173: Y | E173: 1000 | F173: Y | G173: 3 | H173: Y
A174: 550013 | B174: Ebbw Vale 132/11kV S Stn | C174: 0.159 | E174: 1000 | F174: Y | G174: 1 | H174: Y
A175: 550018 | B175: Hirwaun 132/33kV S Stn | C175: 0.213 | E175: 1000 | F175: Y | G175: 3 | H175: Y
A176: 550026 | B176: Mountain Ash Grid 132/33kV S Stn | C176: 1.03 | E176: 1000 | F176: Y | G176: 3 | H176: Y
A177: 550060 | B177: Abertillery 33/11kV S Stn | C177: 0.164 | E177: 500 | F177: Y | G177: 3 | H177: Y
A178: 550061 | B178: Abertysswg 33/11kV S Stn | C178: 0.1111 | E178: 500 | F178: Y | G178: 3 | H178: Y
A179: 550090 | B179: Brynmawr 33/11kV S Stn | C179: 0.101 | E179: 500 | F179: Y | G179: 3 | H179: Y
A180: 550111 | B180: Cwmfelinfach 33/11kV S Stn | C180: 0.344 | E180: 500 | F180: Y | G180: 3 | H180: Y
A181: 550149 | B181: Lady Windsor 33/11kV S Stn | C181: 0.537 | E181: 500 | F181: Y | G181: 3 | H181: Y
A182: 550179 | B182: Mountain Ash 33/11kV S Stn | C182: 0.141 | E182: 500 | F182: Y | G182: 3 | H182: Y
A183: 550182 | B183: Nantwen 33/11kV S Stn | C183: 0.7 | D183: Y | E183: 500 | F183: Y | G183: 3 | H183: Y
A184: 550183 | B184: Nelson 33/11kV S Stn | C184: 0.5 | E184: 500 | F184: Y | G184: 3 | H184: Y
A185: 550202 | B185: Pengam Grid 132/11kV S Stn | C185: 0.131 | E185: 1000 | F185: Y | G185: 1 | H185: Y
A186: 550203 | B186: Pentrebach 33/11kV S Stn | C186: 0.15 | E186: 500 | F186: Y | G186: 3 | H186: Y
A187: 550208 | B187: Pontllanffraith 33/11kV S Stn | C187: 0.126 | E187: 500 | F187: Y | G187: 3 | H187: Y
A188: 550244 | B188: Tredegar 33/11kV S Stn | C188: 0.066 | E188: 500 | F188: Y | G188: 3 | H188: Y
A189: 550267 | B189: Aberdare 33/11kV S Stn | C189: 0.13 | E189: 500 | F189: Y | G189: 3 | H189: Y
A190: 550287 | B190: Swansea Road Merthyr 33/11kV S Stn | C190: 0.103 | E190: 500 | F190: Y | G190: 3 | H190: Y
A191: 550288 | B191: Rassau West 132/11kV S Stn | C191: 0.2 | D191: Y | E191: 1000 | F191: Y | G191: 1 | H191: Y
A192: 550313 | B192: Aberaman Park 33kV S Stn | C192: 0.637 | E192: 500 | F192: Y | G192: 3 | H192: Y
A193: 550321 | B193: Trecatti Generation 33kV S Stn | C193: 0.34 | E193: 500 | F193: Y | G193: 3 | H193: Y
A194: 550343 | B194: Hirwaun STOR Generation 33kV S Stn | C194: 0.7 | D194: Y | E194: 500 | F194: Y | G194: 3 | H194: Y
A195: 550354 | B195: Dowlais STOR Generation West 33kV S Stn | C195: 0.52 | E195: 500 | F195: Y | G195: 3 | H195: Y
A196: 550375 | B196: Hendre Fawr Solar Farm 33/11kV S Stn | C196: 0.16 | E196: 500 | F196: Y | G196: 3 | H196: Y
A197: 550376 | B197: Mynydd Y Bwllfa Wind Farm 132kV S Stn | C197: 1.05 | E197: 1000 | F197: Y | G197: 1 | H197: Y
A198: 550377 | B198: Cwm Cae Singrug Solar Park 33kV S Stn | C198: 0.5 | E198: 500 | F198: Y | G198: 3 | H198: Y
A199: 550378 | B199: Hendai Solar Farm 33kV S Stn | C199: 0.39 | E199: 500 | F199: Y | G199: 3 | H199: Y
A200: 550384 | B200: Aberaman Industrial No.1 33kV S Stn | C200: 0.7 | D200: Y | E200: 500 | F200: Y | G200: 3 | H200: Y
... 150 more rows

Sheet Source-SWA-Name (hidden)
B1: 1 | C1: 2 | D1: 3 | E1: 4 | F1: 5 | G1: 6 | H1: 7 | I1: 8
A2: SUBSTATION_NAME_SWA | B2: SUBSTATION_NAME_TRUNC_SWA | C2: SUBSTATION_NUMBER_SWA | D2: ZE | E2: Assumed ZE | F2: UE | G2: Assumed UE | H2: t | I2: Assumed t
A3: Aberaeron 33/11kV S Stn | B3: Aberaeron33/11kVSStn | C3: 590052 | D3: 0.59 | F3: 500 | G3: Y | H3: 3 | I3: Y
A4: Aberaman Industrial No.1 33kV S Stn | B4: AberamanIndustrialNo.133kVSStn | C4: 550384 | D4: 0.7 | E4: Y | F4: 500 | G4: Y | H4: 3 | I4: Y
A5: Aberaman Park 33kV S Stn | B5: AberamanPark33kVSStn | C5: 550313 | D5: 0.637 | F5: 500 | G5: Y | H5: 3 | I5: Y
A6: Abercrave 33/11kV S Stn | B6: Abercrave33/11kVSStn | C6: 560053 | D6: 0.92 | F6: 500 | G6: Y | H6: 3 | I6: Y
A7: Aberdare 33/11kV S Stn | B7: Aberdare33/11kVSStn | C7: 550267 | D7: 0.13 | F7: 500 | G7: Y | H7: 3 | I7: Y
A8: Abergavenny 132/66kV S Stn | B8: Abergavenny132/66kVSStn | C8: 530001 | D8: 0.078 | F8: 271 | H8: 1 | I8: Y
A9: Abergelli PV Generation Site 33kV S Stn | B9: AbergelliPVGenerationSite33kVSStn | C9: 520381 | D9: 0.36 | F9: 500 | G9: Y | H9: 3 | I9: Y
A10: Aberpergwm 33/11kV S Stn | B10: Aberpergwm33/11kVSStn | C10: 560055 | D10: 0.302 | F10: 500 | G10: Y | H10: 3 | I10: Y
A11: Abersychan 66/11kV S Stn | B11: Abersychan66/11kVSStn | C11: 530056 | D11: 0.206 | F11: 244 | H11: 3 | I11: Y
A12: Aberthaw Power Station 275/132kV S Stn | B12: AberthawPowerStation275/132kVSStn | C12: 510049 | D12: 0.2 | E12: Y | F12: 2152 | H12: 1 | I12: Y
A13: Abertillery 33/11kV S Stn | B13: Abertillery33/11kVSStn | C13: 550060 | D13: 0.164 | F13: 500 | G13: Y | H13: 3 | I13: Y
A14: Abertysswg 33/11kV S Stn | B14: Abertysswg33/11kVSStn | C14: 550061 | D14: 0.1111 | F14: 500 | G14: Y | H14: 3 | I14: Y
A15: Afan Way Stor Generation 33kV S Stn | B15: AfanWayStorGeneration33kVSStn | C15: 560440 | D15: 0.117 | F15: 500 | G15: Y | H15: 3 | I15: Y
A16: Ammanford Grid 132/33kV S Stn | B16: AmmanfordGrid132/33kVSStn | C16: 520002 | D16: 0.417 | F16: 1000 | G16: Y | H16: 3 | I16: Y
A17: Argoed Tregaron 33/11kV S Stn | B17: ArgoedTregaron33/11kVSStn | C17: 590246 | D17: 3.3 | F17: 500 | G17: Y | H17: 3 | I17: Y
A18: Ashgrove 33/11kV S Stn | B18: Ashgrove33/11kVSStn | C18: 510064 | D18: 0.7 | E18: Y | F18: 500 | G18: Y | H18: 3 | I18: Y
A19: Baglan Bay PV Generation 33kV S Stn | B19: BaglanBayPVGeneration33kVSStn | C19: 560336 | D19: 0.44 | F19: 500 | G19: Y | H19: 3 | I19: Y
A20: Bargoed Solar Park 33kV S Stn | B20: BargoedSolarPark33kVSStn | C20: 550416 | D20: 0.44 | F20: 500 | G20: Y | H20: 3 | I20: Y
A21: Barry Dock Biomass 33kV S Stn | B21: BarryDockBiomass33kVSStn | C21: 510429 | D21: 0.103 | F21: 500 | G21: Y | H21: 3 | I21: Y
A22: Beaufort Power Stor 33/11kV S Stn | B22: BeaufortPowerStor33/11kVSStn | C22: 550441 | D22: 0.7 | E22: Y | F22: 500 | G22: Y | H22: 3 | I22: Y
A23: Berthllwyd Solar Park Generation 33kV S Stn | B23: BerthllwydSolarParkGeneration33kVSStn | C23: 540426 | D23: 0.7 | E23: Y | F23: 500 | G23: Y | H23: 3 | I23: Y
A24: Betws Wind Farm Grid 132kV S Stn | B24: BetwsWindFarmGrid132kVSStn | C24: 520341 | D24: 0.2 | E24: Y | F24: 1000 | G24: Y | H24: 1 | I24: Y
A25: Birchgrove 33/11kV S Stn | B25: Birchgrove33/11kVSStn | C25: 510069 | D25: 0.067 | F25: 500 | G25: Y | H25: 3 | I25: Y
A26: Bishopston 33/11kV S Stn | B26: Bishopston33/11kVSStn | C26: 520070 | D26: 0.434 | F26: 500 | G26: Y | H26: 3 | I26: Y
A27: Blaenavon 66/11kV S Stn | B27: Blaenavon66/11kVSStn | C27: 530071 | D27: 0.11 | F27: 146 | H27: 3 | I27: Y
A28: Blaen Bowi Wind Farm 33kV S Stn | B28: BlaenBowiWindFarm33kVSStn | C28: 580315 | D28: 0.7 | E28: Y | F28: 500 | G28: Y | H28: 3 | I28: Y
A29: Blaengwen Wind Farm 132kV S Stn | B29: BlaengwenWindFarm132kVSStn | C29: 580328 | D29: 0.2 | E29: Y | F29: 1000 | G29: Y | H29: 1 | I29: Y
A30: Blaenlleidi Wind Farm 33kV S Stn | B30: BlaenlleidiWindFarm33kVSStn | C30: 520388 | D30: 2.2 | F30: 500 | G30: Y | H30: 3 | I30: Y
A31: Blaenporth 33/11kV S Stn | B31: Blaenporth33/11kVSStn | C31: 580072 | D31: 1.18 | F31: 500 | G31: Y | H31: 3 | I31: Y
A32: Boc Margam Grid 132kV S Stn | B32: BocMargamGrid132kVSStn | C32: 560290 | D32: 0.115 | F32: 1000 | G32: Y | H32: 1 | I32: Y
A33: Boverton 33/11kV S Stn | B33: Boverton33/11kVSStn | C33: 560075 | D33: 0.322 | F33: 500 | G33: Y | H33: 3 | I33: Y
A34: Brawdy 33/11kV S Stn | B34: Brawdy33/11kVSStn | C34: 600076 | D34: 2.063 | F34: 500 | G34: Y | H34: 3 | I34: Y
A35: Brechfa Forest West Wind Farm 132kV S Stn | B35: BrechfaForestWestWindFarm132kVSStn | C35: 520435 | D35: 1.45 | F35: 1000 | G35: Y | H35: 1 | I35: Y
A36: Brecon 66/11kV S Stn | B36: Brecon66/11kVSStn | C36: 610077 | D36: 0.137 | F36: 210 | H36: 3 | I36: Y
A37: Brecon Power Stor 33kV S Stn | B37: BreconPowerStor33kVSStn | C37: 550442 | D37: 0.434 | F37: 240 | H37: 3 | I37: Y
A38: Bridell 33/11kV S Stn | B38: Bridell33/11kVSStn | C38: 580078 | D38: 0.243 | F38: 500 | G38: Y | H38: 3 | I38: Y
A39: Bridgend Grid 132/33kV S Stn | B39: BridgendGrid132/33kVSStn | C39: 560004 | D39: 0.127 | F39: 1000 | G39: Y | H39: 3 | I39: Y
A40: Bridgend Trading Estate 33/11kV S Stn | B40: BridgendTradingEstate33/11kVSStn | C40: 560079 | D40: 0.7 | E40: Y | F40: 500 | G40: Y | H40: 3 | I40: Y
A41: British Energy Newport South 33kV S Stn | B41: BritishEnergyNewportSouth33kVSStn | C41: 530316 | D41: 0.7 | E41: Y | F41: 500 | G41: Y | H41: 3 | I41: Y
A42: Briton Ferry 132/33kV S Stn | B42: BritonFerry132/33kVSStn | C42: 560005 | D42: 0.059 | F42: 1000 | G42: Y | H42: 3 | I42: Y
A43: Briton Ferry STOR Generation 33kV S Stn | B43: BritonFerrySTORGeneration33kVSStn | C43: 560347 | D43: 0.7 | E43: Y | F43: 500 | G43: Y | H43: 3 | I43: Y
A44: Broadfield 33/11kV S Stn | B44: Broadfield33/11kVSStn | C44: 600085 | D44: 0.238 | F44: 500 | G44: Y | H44: 3 | I44: Y
A45: Broad St. Barry 33/11kV S Stn | B45: BroadSt.Barry33/11kVSStn | C45: 510086 | D45: 0.263 | F45: 500 | G45: Y | H45: 3 | I45: Y
A46: Broad Street Swg Site 33kV S Stn | B46: BroadStreetSwgSite33kVSStn | C46: 510439 | D46: 0.7 | E46: Y | F46: 500 | G46: Y | H46: 3 | I46: Y
A47: Bryn Blaen Wind Farm 66kV S Stn | B47: BrynBlaenWindFarm66kVSStn | C47: 610443 | D47: 0.7 | E47: Y | F47: 500 | G47: Y | H47: 3 | I47: Y
A48: Bryncyrnau Isaf Solar Park 33kV S Stn | B48: BryncyrnauIsafSolarPark33kVSStn | C48: 580432 | D48: 0.7 | E48: Y | F48: 500 | G48: Y | H48: 3 | I48: Y
A49: Brynhenllys Solar Park 33kV S Stn | B49: BrynhenllysSolarPark33kVSStn | C49: 520446 | D49: 0.7 | E49: Y | F49: 500 | G49: Y | H49: 3 | I49: Y
A50: Brynhill Barry Grid 132/33/11kV S Stn | B50: BrynhillBarryGrid132/33/11kVSStn | C50: 510088 | D50: 0.08 | F50: 1000 | G50: Y | H50: 3 | I50: Y
A51: Brynmawr 33/11kV S Stn | B51: Brynmawr33/11kVSStn | C51: 550090 | D51: 0.101 | F51: 500 | G51: Y | H51: 3 | I51: Y
A52: Brynteg Solar Farm 33kV S Stn | B52: BryntegSolarFarm33kVSStn | C52: 520374 | D52: 0.34 | F52: 500 | G52: Y | H52: 3 | I52: Y
A53: Bryn Titli Wind Farm 66kV S Stn | B53: BrynTitliWindFarm66kVSStn | C53: 610297 | D53: 0.7 | E53: Y | F53: 500 | G53: Y | H53: 3 | I53: Y
A54: Brynwhilach Solar Park 33kV S Stn | B54: BrynwhilachSolarPark33kVSStn | C54: 520396 | D54: 0.132 | F54: 500 | G54: Y | H54: 3 | I54: Y
A55: Builth Wells 66/11kV S Stn | B55: BuilthWells66/11kVSStn | C55: 610092 | D55: 1.39 | F55: 1215 | H55: 3 | I55: Y
A56: Caerau Road 66/11kV S Stn | B56: CaerauRoad66/11kVSStn | C56: 560093 | D56: 0.34 | F56: 500 | G56: Y | H56: 3 | I56: Y
A57: Caerphilly Primary 33/11kV S Stn | B57: CaerphillyPrimary33/11kVSStn | C57: 540094 | D57: 0.133 | F57: 500 | G57: Y | H57: 3 | I57: Y
A58: Caldicot 33/11kV S Stn | B58: Caldicot33/11kVSStn | C58: 530095 | D58: 0.116 | F58: 102 | H58: 3 | I58: Y
A59: Canton 33/11kV S Stn | B59: Canton33/11kVSStn | C59: 510096 | D59: 0.197 | F59: 500 | G59: Y | H59: 3 | I59: Y
A60: Cardiff Central Grid 132/33kV S Stn | B60: CardiffCentralGrid132/33kVSStn | C60: 510006 | D60: 0.2 | E60: Y | F60: 1000 | G60: Y | H60: 3 | I60: Y
A61: Cardiff East Grid 275/132/33/11kV S Stn | B61: CardiffEastGrid275/132/33/11kVSStn | C61: 510007 | D61: 0.2 | E61: Y | F61: 1480 | H61: 3 | I61: Y
A62: Cardiff North Grid 132/33kV S Stn | B62: CardiffNorthGrid132/33kVSStn | C62: 510008 | D62: 0.081 | F62: 1000 | G62: Y | H62: 3 | I62: Y
A63: Cardiff South Grid 132/11kV S Stn | B63: CardiffSouthGrid132/11kVSStn | C63: 510905 | D63: 0.2 | E63: Y | F63: 1000 | G63: Y | H63: 1 | I63: Y
A64: Cardiff West Grid 132/33kV S Stn | B64: CardiffWestGrid132/33kVSStn | C64: 510009 | D64: 0.2 | E64: Y | F64: 1000 | G64: Y | H64: 3 | I64: Y
A65: Cardigan 33/11kV S Stn | B65: Cardigan33/11kVSStn | C65: 580272 | D65: 0.7 | E65: Y | F65: 500 | G65: Y | H65: 3 | I65: Y
A66: Carmarthen 132/33kV S Stn | B66: Carmarthen132/33kVSStn | C66: 580010 | D66: 0.2 | E66: Y | F66: 1000 | G66: Y | H66: 3 | I66: Y
A67: Cefn Betingau Solar PV 33kV S Stn | B67: CefnBetingauSolarPV33kVSStn | C67: 520339 | D67: 0.341 | F67: 500 | G67: Y | H67: 3 | I67: Y
A68: Cefn Gwrgan 66kV S Stn | B68: CefnGwrgan66kVSStn | C68: 560025 | D68: 0.7 | E68: Y | F68: 500 | G68: Y | H68: 3 | I68: Y
A69: Cenin Energy Park 33kV S Stn | B69: CeninEnergyPark33kVSStn | C69: 560382 | D69: 1.574 | F69: 500 | G69: Y | H69: 3 | I69: Y
A70: Chepstow 33/11kV S Stn | B70: Chepstow33/11kVSStn | C70: 530099 | D70: 0.365 | F70: 341 | H70: 3 | I70: Y
A71: Clase 33/11kV S Stn | B71: Clase33/11kVSStn | C71: 520100 | D71: 0.204 | F71: 500 | G71: Y | H71: 3 | I71: Y
A72: Clawdd Ddu Solar Farm 33kV S Stn | B72: ClawddDduSolarFarm33kVSStn | C72: 520340 | D72: 0.34 | F72: 500 | G72: Y | H72: 3 | I72: Y
A73: Cockett Valley Solar Park 33kV S Stn | B73: CockettValleySolarPark33kVSStn | C73: 520423 | D73: 0.412 | F73: 500 | G73: Y | H73: 3 | I73: Y
A74: Commercial St. Neath 33/11kV S Stn | B74: CommercialSt.Neath33/11kVSStn | C74: 560103 | D74: 0.225 | F74: 500 | G74: Y | H74: 3 | I74: Y
A75: Court Coleman PV Generation 33/11kV S Stn | B75: CourtColemanPVGeneration33/11kVSStn | C75: 560379 | D75: 0.28 | F75: 500 | G75: Y | H75: 3 | I75: Y
A76: Court Rd. Barry 33/11kV S Stn | B76: CourtRd.Barry33/11kVSStn | C76: 510104 | D76: 0.7 | E76: Y | F76: 500 | G76: Y | H76: 3 | I76: Y
A77: Cowbridge 33/11kV S Stn | B77: Cowbridge33/11kVSStn | C77: 560105 | D77: 0.21 | F77: 500 | G77: Y | H77: 3 | I77: Y
A78: Creigiau 33/11kV S Stn | B78: Creigiau33/11kVSStn | C78: 540106 | D78: 0.784 | F78: 500 | G78: Y | H78: 3 | I78: Y
A79: Crickhowell 66/11kV S Stn | B79: Crickhowell66/11kVSStn | C79: 610107 | D79: 0.497 | F79: 561 | H79: 3 | I79: Y
A80: Cross Hands 33/11kV S Stn | B80: CrossHands33/11kVSStn | C80: 520307 | D80: 0.248 | F80: 500 | G80: Y | H80: 3 | I80: Y
A81: Crugmore Solar Park 33kV S Stn | B81: CrugmoreSolarPark33kVSStn | C81: 580383 | D81: 0.23 | F81: 500 | G81: Y | H81: 3 | I81: Y
A82: Crumlin 132/11kV S Stn | B82: Crumlin132/11kVSStn | C82: 550011 | D82: 0.219 | F82: 1000 | G82: Y | H82: 1 | I82: Y
A83: Crumlin STOR 33kV S Stn | B83: CrumlinSTOR33kVSStn | C83: 550436 | D83: 0.844 | F83: 710 | H83: 3 | I83: Y
A84: Crwys Rd. 33/11kV S Stn | B84: CrwysRd.33/11kVSStn | C84: 510108 | D84: 0.7 | E84: Y | F84: 500 | G84: Y | H84: 3 | I84: Y
A85: Crymlyn Burrows 33kV S Stn | B85: CrymlynBurrows33kVSStn | C85: 520312 | D85: 0.3 | F85: 500 | G85: Y | H85: 3 | I85: Y
A86: Cwmbargoed Coal Washery (Load) 33kV S Stn | B86: CwmbargoedCoalWashery(Load)33kVSStn | C86: 550389 | D86: 0.302 | F86: 500 | G86: Y | H86: 3 | I86: Y
A87: Cwmbran Primary 132/11kV S Stn | B87: CwmbranPrimary132/11kVSStn | C87: 530110 | D87: 0.063 | F87: 287 | H87: 1 | I87: Y
A88: Cwm Cae Singrug Solar Park 33kV S Stn | B88: CwmCaeSingrugSolarPark33kVSStn | C88: 550377 | D88: 0.5 | F88: 500 | G88: Y | H88: 3 | I88: Y
A89: Cwmfelinfach 33/11kV S Stn | B89: Cwmfelinfach33/11kVSStn | C89: 550111 | D89: 0.344 | F89: 500 | G89: Y | H89: 3 | I89: Y
A90: Cwmffrwd 33/11kV S Stn | B90: Cwmffrwd33/11kVSStn | C90: 580296 | D90: 0.65 | F90: 500 | G90: Y | H90: 3 | I90: Y
A91: Cyncoed 33/11kV S Stn | B91: Cyncoed33/11kVSStn | C91: 510115 | D91: 0.23 | F91: 500 | G91: Y | H91: 3 | I91: Y
A92: Derwyn Solar Farm 33kV S Stn | B92: DerwynSolarFarm33kVSStn | C92: 510407 | D92: 0.14 | F92: 500 | G92: Y | H92: 3 | I92: Y
A93: Dowlais Grid 132/33kV S Stn | B93: DowlaisGrid132/33kVSStn | C93: 550012 | D93: 0.2 | E93: Y | F93: 1000 | G93: Y | H93: 3 | I93: Y
A94: Dowlais Stor Generation East 33kV S Stn | B94: DowlaisStorGenerationEast33kVSStn | C94: 550403 | D94: 0.3347 | F94: 500 | G94: Y | H94: 3 | I94: Y
A95: Dowlais STOR Generation West 33kV S Stn | B95: DowlaisSTORGenerationWest33kVSStn | C95: 550354 | D95: 0.52 | F95: 500 | G95: Y | H95: 3 | I95: Y
A96: Duffryn Brodyn 33kV S Stn | B96: DuffrynBrodyn33kVSStn | C96: 590298 | D96: 0.7 | E96: Y | F96: 500 | G96: Y | H96: 3 | I96: Y
A97: East Aberthaw 132/33kV S Stn | B97: EastAberthaw132/33kVSStn | C97: 510059 | D97: 0.16 | F97: 1000 | G97: Y | H97: 3 | I97: Y
A98: Ebbw Vale 132/11kV S Stn | B98: EbbwVale132/11kVSStn | C98: 550013 | D98: 0.159 | F98: 1000 | G98: Y | H98: 1 | I98: Y
A99: Ely 33/11kV S Stn | B99: Ely33/11kVSStn | C99: 510119 | D99: 0.074 | F99: 500 | G99: Y | H99: 3 | I99: Y
A100: Energlyn BSP 132/11kV S Stn | B100: EnerglynBSP132/11kVSStn | C100: 540910 | D100: 0.138 | F100: 1000 | G100: Y | H100: 1 | I100: Y
A101: Energlyn Primary 33/11kV S Stn | B101: EnerglynPrimary33/11kVSStn | C101: 540120 | D101: 0.7 | E101: Y | F101: 500 | G101: Y | H101: 3 | I101: Y
A102: Fairwater 33/11kV S Stn | B102: Fairwater33/11kVSStn | C102: 510121 | D102: 0.7 | E102: Y | F102: 500 | G102: Y | H102: 3 | I102: Y
A103: Felindre Pumping Station 33kV S Stn | B103: FelindrePumpingStation33kVSStn | C103: 520326 | D103: 0.269 | F103: 500 | G103: Y | H103: 3 | I103: Y
A104: Fenton Farm PV Generation 33kV S Stn | B104: FentonFarmPVGeneration33kVSStn | C104: 600367 | D104: 0.16 | F104: 500 | G104: Y | H104: 3 | I104: Y
A105: Ferndale Wind Farm 33kV S Stn | B105: FerndaleWindFarm33kVSStn | C105: 540332 | D105: 0.7 | E105: Y | F105: 500 | G105: Y | H105: 3 | I105: Y
A106: Ffos Las PV Generation 33kV S Stn | B106: FfosLasPVGeneration33kVSStn | C106: 520345 | D106: 0.324 | F106: 500 | G106: Y | H106: 3 | I106: Y
A107: Ffynnon Oer Wind Farm 66kV S Stn | B107: FfynnonOerWindFarm66kVSStn | C107: 560320 | D107: 2.217 | F107: 500 | G107: Y | H107: 3 | I107: Y
A108: Fishguard 33/11kV S Stn | B108: Fishguard33/11kVSStn | C108: 600124 | D108: 1.895 | F108: 500 | G108: Y | H108: 3 | I108: Y
A109: Fords Bridgend 132kV S Stn | B109: FordsBridgend132kVSStn | C109: 560050 | D109: 0.2 | E109: Y | F109: 1000 | G109: Y | H109: 1 | I109: Y
A110: Garn Farm Solar Park 33kV S Stn | B110: GarnFarmSolarPark33kVSStn | C110: 560359 | D110: 0.34 | F110: 500 | G110: Y | H110: 3 | I110: Y
A111: Garngoch 33/11kV S Stn | B111: Garngoch33/11kVSStn | C111: 520127 | D111: 0.292 | F111: 743 | H111: 3 | I111: Y
A112: Gas Yard 33/11kV S Stn | B112: GasYard33/11kVSStn | C112: 540128 | D112: 0.242 | F112: 500 | G112: Y | H112: 3 | I112: Y
A113: Gelliwern Isaf Pv Gen 33kV S Stn | B113: GelliwernIsafPvGen33kVSStn | C113: 520392 | D113: 0.42 | F113: 500 | G113: Y | H113: 3 | I113: Y
A114: Gethin Street Swansea 33/11kV S Stn | B114: GethinStreetSwansea33/11kVSStn | C114: 520129 | D114: 0.7 | E114: Y | F114: 500 | G114: Y | H114: 3 | I114: Y
A115: GKN Rod Mill 33kV S Stn | B115: GKNRodMill33kVSStn | C115: 510928 | D115: 0.7 | E115: Y | F115: 500 | G115: Y | H115: 3 | I115: Y
A116: Glasbury 66/11kV S Stn | B116: Glasbury66/11kVSStn | C116: 610133 | D116: 1.099 | F116: 1044 | H116: 3 | I116: Y
A117: Golden Hill 132/33kV S Stn | B117: GoldenHill132/33kVSStn | C117: 600014 | D117: 0.243 | F117: 1000 | G117: Y | H117: 3 | I117: Y
A118: Gowerton East Grid 132/33kV S Stn | B118: GowertonEastGrid132/33kVSStn | C118: 520045 | D118: 0.156 | F118: 1000 | G118: Y | H118: 3 | I118: Y
A119: Gowerton STOR 33kV S Stn | B119: GowertonSTOR33kVSStn | C119: 520427 | D119: 0.273 | F119: 479 | H119: 3 | I119: Y
A120: Grange 66kV S Stn | B120: Grange66kVSStn | C120: 560015 | D120: 0.7 | E120: Y | F120: 500 | G120: Y | H120: 3 | I120: Y
A121: Grangetown Grid Primary 132/11kV S Stn | B121: GrangetownGridPrimary132/11kVSStn | C121: 510908 | D121: 0.2 | E121: Y | F121: 1000 | G121: Y | H121: 1 | I121: Y
A122: Gwaun Cae Gurwen 33/11kV S Stn | B122: GwaunCaeGurwen33/11kVSStn | C122: 520137 | D122: 1.82 | F122: 500 | G122: Y | H122: 3 | I122: Y
A123: Hafod Y Dafal Solar Park 33kV S Stn | B123: HafodYDafalSolarPark33kVSStn | C123: 550402 | D123: 0.598 | F123: 500 | G123: Y | H123: 3 | I123: Y
A124: Haverfordwest 33/11kV S Stn | B124: Haverfordwest33/11kVSStn | C124: 600017 | D124: 0.7 | E124: Y | F124: 500 | G124: Y | H124: 3 | I124: Y
A125: Haverfordwest Grid 132/33kV S Stn | B125: HaverfordwestGrid132/33kVSStn | C125: 600016 | D125: 0.459 | F125: 1000 | G125: Y | H125: 3 | I125: Y
A126: Haverfordwest Solar Park 33kV S Stn | B126: HaverfordwestSolarPark33kVSStn | C126: 600387 | D126: 0.28 | F126: 83 | H126: 3 | I126: Y
A127: Heath 33/11kV S Stn | B127: Heath33/11kVSStn | C127: 510141 | D127: 0.7 | E127: Y | F127: 500 | G127: Y | H127: 3 | I127: Y
A128: Heath Hospital Primary 33/11kV S Stn | B128: HeathHospitalPrimary33/11kVSStn | C128: 510327 | D128: 0.7 | E128: Y | F128: 500 | G128: Y | H128: 3 | I128: Y
A129: Hendai Solar Farm 33kV S Stn | B129: HendaiSolarFarm33kVSStn | C129: 550378 | D129: 0.39 | F129: 500 | G129: Y | H129: 3 | I129: Y
A130: Hendre Fawr Solar Farm 33/11kV S Stn | B130: HendreFawrSolarFarm33/11kVSStn | C130: 550375 | D130: 0.16 | F130: 500 | G130: Y | H130: 3 | I130: Y
A131: Hendy 33/11kV S Stn | B131: Hendy33/11kVSStn | C131: 520142 | D131: 0.293 | F131: 500 | G131: Y | H131: 3 | I131: Y
A132: Highmead 33/11kV S Stn | B132: Highmead33/11kVSStn | C132: 510144 | D132: 0.046 | F132: 96 | H132: 3 | I132: Y
A133: Hill Solar Farm 33kV S Stn | B133: HillSolarFarm33kVSStn | C133: 550390 | D133: 0.95 | F133: 500 | G133: Y | H133: 3 | I133: Y
A134: Hirwaun 132/33kV S Stn | B134: Hirwaun132/33kVSStn | C134: 550018 | D134: 0.213 | F134: 1000 | G134: Y | H134: 3 | I134: Y
A135: Hirwaun STOR Generation 33kV S Stn | B135: HirwaunSTORGeneration33kVSStn | C135: 550343 | D135: 0.7 | E135: Y | F135: 500 | G135: Y | H135: 3 | I135: Y
A136: Hoplass Solar Farm PV Generation 33kV S Stn | B136: HoplassSolarFarmPVGeneration33kVSStn | C136: 600355 | D136: 0.32 | F136: 500 | G136: Y | H136: 3 | I136: Y
A137: Inco Europe South 33kV S Stn | B137: IncoEuropeSouth33kVSStn | C137: 520147 | D137: 0.21 | F137: 500 | G137: Y | H137: 3 | I137: Y
A138: Ironbridge 33/11kV S Stn | B138: Ironbridge33/11kVSStn | C138: 510148 | D138: 0.074 | F138: 163 | H138: 3 | I138: Y
A139: Jersey Marine 33/11kV S Stn | B139: JerseyMarine33/11kVSStn | C139: 520284 | D139: 0.093 | F139: 500 | G139: Y | H139: 3 | I139: Y
A140: Jesus College P V Generation 33kV S Stn | B140: JesusCollegePVGeneration33kVSStn | C140: 510398 | D140: 0.162 | F140: 500 | G140: Y | H140: 3 | I140: Y
A141: Jordanston Farm PV Generation 33kV S Stn | B141: JordanstonFarmPVGeneration33kVSStn | C141: 600350 | D141: 0.5 | F141: 500 | G141: Y | H141: 3 | I141: Y
A142: Kidwelly 33/11kV S Stn | B142: Kidwelly33/11kVSStn | C142: 520286 | D142: 0.748 | F142: 500 | G142: Y | H142: 3 | I142: Y
A143: Lady Windsor 33/11kV S Stn | B143: LadyWindsor33/11kVSStn | C143: 550149 | D143: 0.537 | F143: 500 | G143: Y | H143: 3 | I143: Y
A144: Lampeter Primary 132/33kV S Stn | B144: LampeterPrimary132/33kVSStn | C144: 590020 | D144: 0.2 | E144: Y | F144: 1000 | G144: Y | H144: 3 | I144: Y
A145: Liddlestone Ridge PV Generation 33kV S Stn | B145: LiddlestoneRidgePVGeneration33kVSStn | C145: 600357 | D145: 0.7 | E145: Y | F145: 500 | G145: Y | H145: 3 | I145: Y
A146: Lime Street Gorseinon 33/11kV S Stn | B146: LimeStreetGorseinon33/11kVSStn | C146: 520217 | D146: 0.28 | F146: 500 | G146: Y | H146: 3 | I146: Y
A147: Litchard 33/11kV S Stn | B147: Litchard33/11kVSStn | C147: 560150 | D147: 0.151 | F147: 500 | G147: Y | H147: 3 | I147: Y
A148: Little Neath Solar Farm 33kV S Stn | B148: LittleNeathSolarFarm33kVSStn | C148: 600353 | D148: 0.59 | F148: 500 | G148: Y | H148: 3 | I148: Y
A149: Little Neath Solar Farm 33kV S Stn | B149: LittleNeathSolarFarm33kVSStn | C149: 600391 | D149: 0.44 | F149: 500 | G149: Y | H149: 3 | I149: Y
A150: Llanarth Primary 132/33kV S Stn | B150: LlanarthPrimary132/33kVSStn | C150: 590021 | D150: 1.142 | F150: 1000 | G150: Y | H150: 3 | I150: Y
A151: Llancadle Solar Farm 33kV S Stn | B151: LlancadleSolarFarm33kVSStn | C151: 510401 | D151: 0.16 | F151: 500 | G151: Y | H151: 3 | I151: Y
A152: Llandarcy 33/11kV S Stn | B152: Llandarcy33/11kVSStn | C152: 560322 | D152: 0.281 | F152: 500 | G152: Y | H152: 3 | I152: Y
A153: Llandarcy STOR Generation 33kV S Stn | B153: LlandarcySTORGeneration33kVSStn | C153: 560358 | D153: 0.63 | F153: 500 | G153: Y | H153: 3 | I153: Y
A154: Llandeilo 33/11kV S Stn | B154: Llandeilo33/11kVSStn | C154: 590151 | D154: 0.858 | F154: 500 | G154: Y | H154: 3 | I154: Y
A155: Llandough 33/11kV S Stn | B155: Llandough33/11kVSStn | C155: 510152 | D155: 0.07 | F155: 500 | G155: Y | H155: 3 | I155: Y
A156: Llandovery 33/11kV S Stn | B156: Llandovery33/11kVSStn | C156: 590153 | D156: 0.323 | F156: 500 | G156: Y | H156: 3 | I156: Y
A157: Llandrindod Wells 66/11kV S Stn | B157: LlandrindodWells66/11kVSStn | C157: 610154 | D157: 0.191 | F157: 144 | H157: 3 | I157: Y
A158: Llanelli Grid 132/11kV S Stn | B158: LlanelliGrid132/11kVSStn | C158: 520022 | D158: 0.085 | F158: 1000 | G158: Y | H158: 1 | I158: Y
A159: Llanfihangel Ystrad 33/11kV S Stn | B159: LlanfihangelYstrad33/11kVSStn | C159: 590156 | D159: 1.011 | F159: 500 | G159: Y | H159: 3 | I159: Y
A160: Llanfyrnach 33/11kV S Stn | B160: Llanfyrnach33/11kVSStn | C160: 580308 | D160: 3.843 | F160: 500 | G160: Y | H160: 3 | I160: Y
A161: Llangadog 33/11kV S Stn | B161: Llangadog33/11kVSStn | C161: 590157 | D161: 0.74 | F161: 500 | G161: Y | H161: 3 | I161: Y
A162: Llangewydd 33/11kV S Stn | B162: Llangewydd33/11kVSStn | C162: 560158 | D162: 0.226 | F162: 500 | G162: Y | H162: 3 | I162: Y
A163: Llanishen 33/11kV S Stn | B163: Llanishen33/11kVSStn | C163: 510160 | D163: 0.7 | E163: Y | F163: 500 | G163: Y | H163: 3 | I163: Y
A164: Llanllwni 33/11kV S Stn | B164: Llanllwni33/11kVSStn | C164: 590161 | D164: 3.76 | F164: 500 | G164: Y | H164: 3 | I164: Y
A165: Llanrhidian 33/11kV S Stn | B165: Llanrhidian33/11kVSStn | C165: 520162 | D165: 1.432 | F165: 500 | G165: Y | H165: 3 | I165: Y
A166: Llantarnam 132/66kV S Stn | B166: Llantarnam132/66kVSStn | C166: 530023 | D166: 0.103 | F166: 460 | H166: 1 | I166: Y
A167: Llwyndu Solar Farm 33kV S Stn | B167: LlwynduSolarFarm33kVSStn | C167: 580380 | D167: 0.54 | F167: 500 | G167: Y | H167: 3 | I167: Y
A168: Llyn Brianne 33kV S Stn | B168: LlynBrianne33kVSStn | C168: 590304 | D168: 0.7 | E168: Y | F168: 500 | G168: Y | H168: 3 | I168: Y
A169: Llynfi 66/11kV S Stn | B169: Llynfi66/11kVSStn | C169: 560024 | D169: 0.265 | F169: 500 | G169: Y | H169: 3 | I169: Y
A170: Llynfi Afan Wind Farm 66kV S Stn | B170: LlynfiAfanWindFarm66kVSStn | C170: 560420 | D170: 0.78 | F170: 325 | H170: 3 | I170: Y
A171: Loughor Solar Park 33kV S Stn | B171: LoughorSolarPark33kVSStn | C171: 560363 | D171: 0.145 | F171: 500 | G171: Y | H171: 3 | I171: Y
A172: Lower House P V Generation 66kV S Stn | B172: LowerHousePVGeneration66kVSStn | C172: 530406 | D172: 0.23 | F172: 500 | G172: Y | H172: 3 | I172: Y
A173: Maerdy 33/11kV S Stn | B173: Maerdy33/11kVSStn | C173: 540306 | D173: 0.378 | F173: 500 | G173: Y | H173: 3 | I173: Y
A174: Maerdy Wind Farm 33kV S Stn | B174: MaerdyWindFarm33kVSStn | C174: 540338 | D174: 0.7 | E174: Y | F174: 500 | G174: Y | H174: 3 | I174: Y
A175: Maes Ar Dafen 33/11kV S Stn | B175: MaesArDafen33/11kVSStn | C175: 520299 | D175: 0.164 | F175: 500 | G175: Y | H175: 3 | I175: Y
A176: Maesgwyne Wind Farm 132kV S Stn | B176: MaesgwyneWindFarm132kVSStn | C176: 560331 | D176: 0.143 | F176: 1000 | G176: Y | H176: 1 | I176: Y
A177: Maesgwyn Wind Farm 33kV S Stn | B177: MaesgwynWindFarm33kVSStn | C177: 560411 | D177: 0.47 | F177: 500 | G177: Y | H177: 3 | I177: Y
A178: Magor BSP 132/11kV S Stn | B178: MagorBSP132/11kVSStn | C178: 530941 | D178: 0.105 | F178: 484 | H178: 1 | I178: Y
A179: Manmoel Solar Park 33kV S Stn | B179: ManmoelSolarPark33kVSStn | C179: 550434 | D179: 0.84 | F179: 832 | H179: 3 | I179: Y
A180: Manoravon Pumping Station 33kV S Stn | B180: ManoravonPumpingStation33kVSStn | C180: 590170 | D180: 0.728 | F180: 1421 | H180: 3 | I180: Y
A181: Manor Farm Solar Park 66kV S Stn | B181: ManorFarmSolarPark66kVSStn | C181: 530415 | D181: 0.7 | E181: Y | F181: 500 | G181: Y | H181: 3 | I181: Y
A182: Margam Biomass Generation 132kV S Stn | B182: MargamBiomassGeneration132kVSStn | C182: 560372 | D182: 0.117 | F182: 822 | H182: 1 | I182: Y
A183: Margam BOC Biomass 33kV S Stn | B183: MargamBOCBiomass33kVSStn | C183: 560324 | D183: 0.27 | F183: 500 | G183: Y | H183: 3 | I183: Y
A184: Margam Grid 132/66kV S Stn | B184: MargamGrid132/66kVSStn | C184: 560047 | D184: 0.2 | E184: Y | F184: 1000 | G184: Y | H184: 3 | I184: Y
A185: Meinciau 33/11kV S Stn | B185: Meinciau33/11kVSStn | C185: 520172 | D185: 3.44 | F185: 500 | G185: Y | H185: 3 | I185: Y
A186: Merlins Bridge 33/11kV S Stn | B186: MerlinsBridge33/11kVSStn | C186: 600173 | D186: 0.2 | F186: 500 | G186: Y | H186: 3 | I186: Y
A187: Merthyr East Primary 132/11kV S Stn | B187: MerthyrEastPrimary132/11kVSStn | C187: 550901 | D187: 0.236 | F187: 1000 | G187: Y | H187: 1 | I187: Y
A188: Middle Fan 33/11kV S Stn | B188: MiddleFan33/11kVSStn | C188: 540174 | D188: 0.247 | F188: 500 | G188: Y | H188: 3 | I188: Y
A189: Milford Haven 33/11kV S Stn | B189: MilfordHaven33/11kVSStn | C189: 600279 | D189: 0.22 | F189: 500 | G189: Y | H189: 3 | I189: Y
A190: Milford Haven Grid 132/33kV S Stn | B190: MilfordHavenGrid132/33kVSStn | C190: 600042 | D190: 1.07 | F190: 1000 | G190: Y | H190: 3 | I190: Y
A191: Mill St. Tonyrefail 33/11kV S Stn | B191: MillSt.Tonyrefail33/11kVSStn | C191: 540241 | D191: 0.7 | E191: Y | F191: 384 | H191: 3 | I191: Y
A192: Monmouth 66/11kV S Stn | B192: Monmouth66/11kVSStn | C192: 530177 | D192: 0.074 | F192: 85 | H192: 3 | I192: Y
A193: Morlanga Farm 33/11kV S Stn | B193: MorlangaFarm33/11kVSStn | C193: 510178 | D193: 1.214 | F193: 500 | G193: Y | H193: 3 | I193: Y
A194: Morriston 132/11kV S Stn | B194: Morriston132/11kVSStn | C194: 520291 | D194: 0.127 | F194: 1000 | G194: Y | H194: 1 | I194: Y
A195: Mountain Ash 33/11kV S Stn | B195: MountainAsh33/11kVSStn | C195: 550179 | D195: 0.141 | F195: 500 | G195: Y | H195: 3 | I195: Y
A196: Mountain Ash Grid 132/33kV S Stn | B196: MountainAshGrid132/33kVSStn | C196: 550026 | D196: 1.03 | F196: 1000 | G196: Y | H196: 3 | I196: Y
A197: Mynydd Brombil Windfarm 33kV S Stn | B197: MynyddBrombilWindfarm33kVSStn | C197: 560417 | D197: 1.531 | F197: 500 | G197: Y | H197: 3 | I197: Y
A198: Mynydd Portref Wind Farm 33kV S Stn | B198: MynyddPortrefWindFarm33kVSStn | C198: 540335 | D198: 1.48 | F198: 500 | G198: Y | H198: 3 | I198: Y
A199: Mynydd Uchaf Wind Farm 33kV S Stn | B199: MynyddUchafWindFarm33kVSStn | C199: 520445 | D199: 0.7 | E199: Y | F199: 500 | G199: Y | H199: 3 | I199: Y
A200: Mynydd Y Bwllfa Wind Farm 132kV S Stn | B200: MynyddYBwllfaWindFarm132kVSStn | C200: 550376 | D200: 1.05 | F200: 1000 | G200: Y | H200: 1 | I200: Y
... 150 more rows

Sheet Source-EM-Num (hidden)
A1: 1 | B1: 2 | C1: 3 | D1: 4 | E1: 5 | F1: 6 | G1: 7 | H1: 8
A2: SUBSTATION_NUMBER_EM | B2: SUBSTATION_NAME | C2: ZE | D2: Assumed ZE | E2: UE | F2: Assumed UE | G2: t | H2: Assumed t
A3: 680001 | B3: Staythorpe C 400/132kV S Stn | C3: 0.2 | D3: Y | E3: 2800 | F3: Y | G3: 1 | H3: Y
A4: 680002 | B4: Ratcliffe 400/132kV S Stn | C4: 0.0644 | E4: 1269 | G4: 1 | H4: Y
A5: 680005 | B5: Drakelow 275/132kV S Stn | C5: 0.2 | D5: Y | E5: 2800 | F5: Y | G5: 1 | H5: Y
A6: 680006 | B6: Willington 400/275/132kV S Stn | C6: 0.2 | D6: Y | E6: 2800 | F6: Y | G6: 1 | H6: Y
A7: 680007 | B7: Chesterfield 275/132/33kV S Stn | C7: 0.056 | E7: 1070 | G7: 3 | H7: Y
A8: 680009 | B8: Burton South 132/33kV S Stn | C8: 0.1 | E8: 2006 | G8: 3 | H8: Y
A9: 680010 | B9: Pinxton 132kV S Stn | C9: 0.134 | E9: 601 | G9: 1 | H9: Y
A10: 680011 | B10: Annesley 132/33kV S Stn | C10: 0.082 | E10: 370 | G10: 3 | H10: Y
A11: 680012 | B11: Clipstone 132/33kV S Stn | C11: 0.18 | E11: 477 | G11: 3 | H11: Y
A12: 680013 | B12: Checkerhouse 132/33kV S Stn | C12: 0.21 | E12: 685 | G12: 3 | H12: Y
A13: 680014 | B13: Willoughby 132/33kV S Stn | C13: 0.079 | E13: 329 | G13: 3 | H13: Y
A14: 680015 | B14: Nottingham East 132/33kV S Stn | C14: 0.032 | E14: 275 | G14: 3 | H14: Y
A15: 680016 | B15: Whitwell 132/33kV S Stn | C15: 0.427 | E15: 1320 | G15: 3 | H15: Y
A16: 680017 | B16: Worksop 132/33kV S Stn | C16: 0.144 | E16: 586 | G16: 3 | H16: Y
A17: 680018 | B17: Mansfield 132/33kV S Stn | C17: 0.1 | E17: 383 | G17: 3 | H17: Y
A18: 680019 | B18: Toton 132/33kV S Stn | C18: 0.096 | E18: 567 | G18: 3 | H18: Y
A19: 680020 | B19: Staythorpe B 132kV S Stn | C19: 0.2 | D19: Y | E19: 1000 | F19: Y | G19: 1 | H19: Y
A20: 680021 | B20: Retford 132/25kV S Stn | C20: 0.253 | E20: 1204 | G20: 1 | H20: Y
A21: 680022 | B21: Nottingham North 132/33/11kV S Stn | C21: 0.018 | E21: 160 | G21: 3 | H21: Y
A22: 680023 | B22: Nottingham 132/33kV S Stn | C22: 0.077 | E22: 601 | G22: 3 | H22: Y
A23: 680028 | B23: Buxton 33kV S Stn | C23: 0.7 | D23: Y | E23: 500 | F23: Y | G23: 3 | H23: Y
A24: 680029 | B24: Derby South 132/33kV S Stn | C24: 0.05 | E24: 481 | G24: 3 | H24: Y
A25: 680030 | B25: Spondon A 132kV S Stn | C25: 0.2 | D25: Y | E25: 1000 | F25: Y | G25: 1 | H25: Y
A26: 680031 | B26: Spondon 'B' 132/33kV S Stn | C26: 0.2 | D26: Y | E26: 1000 | F26: Y | G26: 3 | H26: Y
A27: 680032 | B27: Chesterfield 33kV S Stn | C27: 0.056 | E27: 1070 | G27: 3 | H27: Y
A28: 680033 | B28: Burton 132/33/11kV S Stn | C28: 0.019 | E28: 141 | G28: 3 | H28: Y
A29: 680034 | B29: Burnaston 132/11kV S Stn | C29: 0.091 | E29: 1237 | G29: 1 | H29: Y
A30: 680035 | B30: Gresley 132/33kV S Stn | C30: 0.117 | E30: 671 | G30: 3 | H30: Y
A31: 680036 | B31: Heanor 132/33kV S Stn | C31: 0.095 | E31: 522 | G31: 3 | H31: Y
A32: 680037 | B32: Alfreton 132/33kV S Stn | C32: 0.193 | E32: 752 | G32: 3 | H32: Y
A33: 680038 | B33: Goitside 132/33kV S Stn | C33: 0.092 | E33: 88 | G33: 3 | H33: Y
A34: 680039 | B34: Staveley 132/33kV S Stn | C34: 0.0486 | E34: 372 | G34: 3 | H34: Y
A35: 680040 | B35: Winster 132/33kV S Stn | C35: 0.2 | D35: Y | E35: 565 | G35: 3 | H35: Y
A36: 680041 | B36: Derby 132/33/11kV S Stn | C36: 0.084 | E36: 375 | G36: 3 | H36: Y
A37: 680042 | B37: Stanton 132/33kV S Stn | C37: 0.0732 | E37: 457 | G37: 3 | H37: Y
A38: 680043 | B38: Uttoxeter 132/33kV S Stn | C38: 0.156 | E38: 569 | G38: 3 | H38: Y
A39: 680068 | B39: Stoke Bardolph 400/132kV S Stn | C39: 0.2 | D39: Y | E39: 2800 | F39: Y | G39: 1 | H39: Y
A40: 680069 | B40: Loscoe 132kV S Stn | C40: 0.11 | E40: 576 | G40: 1 | H40: Y
A41: 690001 | B41: Berkswell 275/132kV S Stn | C41: 0.2 | D41: Y | E41: 350 | G41: 1 | H41: Y
A42: 690002 | B42: Coventry 275/132kV S Stn | C42: 0.2 | D42: Y | E42: 2800 | F42: Y | G42: 1 | H42: Y
A43: 690003 | B43: Bicker Fen 400/132kV S Stn | C43: 0.04 | E43: 710 | G43: 1 | H43: Y
A44: 690004 | B44: Enderby 400/132kV S Stn | C44: 0.065 | E44: 849 | G44: 1 | H44: Y
A45: 690005 | B45: Walpole 400/132kV S Stn | C45: 0.2 | D45: Y | E45: 2800 | F45: Y | G45: 1 | H45: Y
A46: 690006 | B46: Bradwell Abbey 132/33kV S Stn | C46: 0.094 | E46: 486 | G46: 3 | H46: Y
A47: 690007 | B47: Grendon 400/132kV S Stn | C47: 0.2 | D47: Y | E47: 2800 | F47: Y | G47: 1 | H47: Y
A48: 690008 | B48: Corby 132/33kV S Stn | C48: 0.2 | D48: Y | E48: 1000 | F48: Y | G48: 3 | H48: Y
A49: 690010 | B49: Harbury 132/33kV S Stn | C49: 0.06 | E49: 281 | G49: 3 | H49: Y
A50: 690011 | B50: Tamworth Town 132/33/11kV S Stn | C50: 0.034 | E50: 217 | G50: 3 | H50: Y
A51: 690012 | B51: Coventry North 132/33kV S Stn | C51: 0.073 | E51: 752 | G51: 3 | H51: Y
A52: 690013 | B52: Coventry Central 132/33kV S Stn | C52: 0.093 | E52: 331 | G52: 3 | H52: Y
A53: 690014 | B53: Coventry South 132/33kV S Stn | C53: 0.057 | E53: 553 | G53: 3 | H53: Y
A54: 690015 | B54: Coventry West 132/33kV S Stn | C54: 0.12 | E54: 1161 | G54: 3 | H54: Y
A55: 690016 | B55: Tamworth 132/33kV S Stn | C55: 0.047 | E55: 301 | G55: 3 | H55: Y
A56: 690017 | B56: Rugby 132/33/25/11kV S Stn | C56: 0.042 | E56: 361 | G56: 3 | H56: Y
A57: 690018 | B57: Nuneaton 132/33kV S Stn | C57: 0.085 | E57: 632 | G57: 3 | H57: Y
A58: 690020 | B58: Warwick 132/33/11kV S Stn | C58: 0.041 | E58: 274 | G58: 3 | H58: Y
A59: 690021 | B59: Middlemarsh 132kV S Stn | C59: 0.2 | D59: Y | E59: 1000 | F59: Y | G59: 1 | H59: Y
A60: 690022 | B60: Loughborough 132/33/11kV S Stn | C60: 0.092 | E60: 436 | G60: 3 | H60: Y
A61: 690023 | B61: Leicester North 132/33kV S Stn | C61: 0.1 | E61: 113 | G61: 3 | H61: Y
A62: 690024 | B62: Coalville 132/33kV S Stn | C62: 0.109 | E62: 382 | G62: 3 | H62: Y
A63: 690025 | B63: Leicester East 132/33kV S Stn | C63: 0.037 | E63: 68 | G63: 3 | H63: Y
A64: 690026 | B64: Leicester 132/33kV S Stn | C64: 0.043 | E64: 524 | G64: 1 | H64: Y
A65: 690027 | B65: Wigston 132/33/11kV S Stn | C65: 0.2 | D65: Y | E65: 393 | G65: 3 | H65: Y
A66: 690028 | B66: Kibworth 132/33kV S Stn | C66: 0.095 | E66: 319 | G66: 3 | H66: Y
A67: 690029 | B67: Hinckley 132/33/11kV S Stn | C67: 0.159 | E67: 872 | G67: 3 | H67: Y
A68: 690030 | B68: Skegness 132/33kV S Stn | C68: 0.051 | E68: 192 | G68: 3 | H68: Y
A69: 690031 | B69: Grantham North 132/25/11kV S Stn | C69: 0.104 | E69: 376 | G69: 1 | H69: Y
A70: 690032 | B70: Grantham South 132kV S Stn | C70: 0.2 | E70: 700 | G70: 1 | H70: Y
A71: 690033 | B71: Melton Mowbray 132/33kV S Stn | C71: 0.043 | E71: 242 | G71: 3 | H71: Y
A72: 690034 | B72: Asfordby 132kV S Stn | C72: 0.095 | E72: 185 | G72: 1 | H72: Y
A73: 690035 | B73: Stamford 132/33kV S Stn | C73: 0.056 | E73: 222 | G73: 3 | H73: Y
A74: 690036 | B74: Spalding 132/33kV S Stn | C74: 0.034 | E74: 147 | G74: 3 | H74: Y
A75: 690037 | B75: Sleaford 132/33kV S Stn | C75: 0.137 | E75: 349 | G75: 3 | H75: Y
A76: 690038 | B76: Oakham 132/33kV S Stn | C76: 0.087 | E76: 413 | G76: 3 | H76: Y
A77: 690039 | B77: Bourne West 132/25kV S Stn | C77: 0.174 | E77: 1366 | G77: 1 | H77: Y
A78: 690040 | B78: South Holland 132/33kV S Stn | C78: 0.039 | E78: 359 | G78: 3 | H78: Y
A79: 690041 | B79: Grantham 132/33kV S Stn | C79: 0.3 | E79: 1096 | G79: 3 | H79: Y
A80: 690042 | B80: Hawton 132/33kV S Stn | C80: 0.07 | E80: 469 | G80: 3 | H80: Y
A81: 690043 | B81: Boston 132/33kV S Stn | C81: 0.039 | E81: 257 | G81: 3 | H81: Y
A82: 690044 | B82: Bourne 132/33kV S Stn | C82: 0.09 | E82: 844 | G82: 3 | H82: Y
A83: 690045 | B83: Stony Stratford 132/33kV S Stn | C83: 0.092 | E83: 1074 | G83: 3 | H83: Y
A84: 690046 | B84: Bletchley 132/33kV S Stn | C84: 0.027 | E84: 166 | G84: 3 | H84: Y
A85: 690047 | B85: Brackley 132/33kV S Stn | C85: 0.1 | E85: 637 | G85: 3 | H85: Y
A86: 690048 | B86: Corby North 132kV S Stn | C86: 0.065 | E86: 1049 | G86: 1 | H86: Y
A87: 690049 | B87: Irthlingborough 132/33kV S Stn | C87: 0.065 | E87: 131 | G87: 3 | H87: Y
A88: 690050 | B88: Kettering 132/33kV S Stn | C88: 0.02 | E88: 168 | G88: 3 | H88: Y
A89: 690051 | B89: Wellingborough 132/33kV S Stn | C89: 0.045 | E89: 217 | G89: 3 | H89: Y
A90: 690052 | B90: Daventry 132/33kV S Stn | C90: 0.045 | E90: 147 | G90: 3 | H90: Y
A91: 690053 | B91: Northampton East 132/33kV S Stn | C91: 0.09 | E91: 637 | G91: 3 | H91: Y
A92: 690054 | B92: Northampton West 132/33kV S Stn | C92: 0.053 | E92: 1000 | F92: Y | G92: 3 | H92: Y
A93: 690055 | B93: Northampton 132/33kV S Stn | C93: 0.053 | E93: 570 | G93: 3 | H93: Y
A94: 690057 | B94: Lincoln Main 132/33/11kV S Stn | C94: 0.04 | E94: 236 | G94: 3 | H94: Y
A95: 690058 | B95: Lincoln Local 132kV S Stn | C95: 0.07 | E95: 261 | G95: 1 | H95: Y
A96: 690059 | B96: Warwick Grid 132/11kV S Stn | C96: 0.041 | E96: 274 | G96: 1 | H96: Y
A97: 690060 | B97: Willesley 33/11kV S Stn | C97: 0.232 | E97: 220 | G97: 3 | H97: Y
A98: 690061 | B98: East Claydon 400/132kV S Stn | C98: 0.039 | E98: 936 | G98: 1 | H98: Y
A99: 690063 | B99: North Greetwell 132kV S Stn | C99: 0.232 | E99: 1392 | G99: 1 | H99: Y
A100: 690064 | B100: Hatton Gas Compressor 132kV S Stn | C100: 0.15 | E100: 480 | G100: 1 | H100: Y
A101: 690067 | B101: Pailton 33kV S Stn | C101: 0.19 | E101: 807 | G101: 3 | H101: Y
A102: 690068 | B102: Sleaford REP 132kV S Stn | C102: 0.2 | D102: Y | E102: 1000 | F102: Y | G102: 1 | H102: Y
A103: 690069 | B103: Clay Lake Generation 33kV S Stn | C103: 0.7 | D103: Y | E103: 500 | F103: Y | G103: 3 | H103: Y
A104: 690070 | B104: Bowbridge STOR Generation 33kV S Stn | C104: 0.7 | D104: Y | E104: 500 | F104: Y | G104: 3 | H104: Y
A105: 690071 | B105: Old Dalby Lodge Wind Farm 33kV S Stn | C105: 0.139 | E105: 285 | G105: 3 | H105: Y
A106: 690073 | B106: Lincoln No 2 33kV S Stn | C106: 0.04 | E106: 236 | G106: 3 | H106: Y
A107: 690074 | B107: Raunds 33kV S Stn | C107: 0.12 | E107: 190 | G107: 3 | H107: Y
A108: 690075 | B108: East Claydon 132/33kV S Stn | C108: 0.039 | E108: 936 | G108: 3 | H108: Y
A109: 720004 | B109: Lea Marston 400/132kV S Stn | C109: 0.2 | D109: Y | E109: 2800 | F109: Y | G109: 1 | H109: Y
A110: 870004 | B110: Burton South 33kV S Stn | C110: 0.1 | E110: 843 | G110: 3 | H110: Y
A111: 870005 | B111: Derby South 33kV S Stn | C111: 0.05 | E111: 134 | G111: 3 | H111: Y
A112: 870006 | B112: Spondon 33kV S Stn | C112: 0.072 | E112: 984 | G112: 3 | H112: Y
A113: 870007 | B113: Heanor 33kV S Stn | C113: 0.095 | E113: 522 | G113: 3 | H113: Y
A114: 870009 | B114: Uttoxeter 33kV S Stn | C114: 0.156 | E114: 569 | G114: 3 | H114: Y
A115: 870010 | B115: Gresley 33kV S Stn | C115: 0.117 | E115: 671 | G115: 3 | H115: Y
A116: 870011 | B116: Stanton 33kV S Stn | C116: 0.0732 | E116: 457 | G116: 3 | H116: Y
A117: 870012 | B117: Derby 33kV S Stn | C117: 0.084 | E117: 375 | G117: 3 | H117: Y
A118: 870013 | B118: Barton Under Needwood 33/11kV S Stn | C118: 0.165 | E118: 185 | G118: 3 | H118: Y
A119: 870014 | B119: Trent Lane 33/11kV S Stn | C119: 0.226 | E119: 339 | G119: 3 | H119: Y
A120: 870015 | B120: Eagle Centre 33/11kV S Stn | C120: 0.1 | E120: 95 | G120: 3 | H120: Y
A121: 870016 | B121: Bombardier 33kV S Stn | C121: 0.054 | E121: 127 | G121: 3 | H121: Y
A122: 870017 | B122: Melbourne 33/11kV S Stn | C122: 0.129 | E122: 249 | G122: 3 | H122: Y
A123: 870019 | B123: Sinfin C 33kV S Stn | C123: 0.081 | E123: 148 | G123: 3 | H123: Y
A124: 870022 | B124: Heanor 33/11kV S Stn | C124: 0.095 | E124: 522 | G124: 3 | H124: Y
A125: 870026 | B125: Rocester 33/11kV S Stn | C125: 0.131 | E125: 197 | G125: 3 | H125: Y
A126: 870027 | B126: Church Street 33/11kV S Stn | C126: 0.015 | E126: 206 | G126: 3 | H126: Y
A127: 870028 | B127: Marchington 33/11kV S Stn | C127: 0.215 | E127: 338 | G127: 3 | H127: Y
A128: 870029 | B128: Wellington Street 33/11kV S Stn | C128: 0.085 | E128: 172 | G128: 3 | H128: Y
A129: 870030 | B129: Ashbourne 33/11kV S Stn | C129: 0.125 | E129: 230 | G129: 3 | H129: Y
A130: 870031 | B130: Hatton 33/11kV S Stn | C130: 0.044 | E130: 88 | G130: 3 | H130: Y
A131: 870032 | B131: Station Street 33/11kV S Stn | C131: 0.26 | E131: 248 | G131: 3 | H131: Y
A132: 870033 | B132: Ravensdale Park 33/11kV S Stn | C132: 0.202 | E132: 290 | G132: 3 | H132: Y
A133: 870034 | B133: Bretby 33/11kV S Stn | C133: 0.089 | E133: 130 | G133: 3 | H133: Y
A134: 870035 | B134: Trent Alloys 33/11kV S Stn | C134: 0.174 | E134: 216 | G134: 3 | H134: Y
A135: 870036 | B135: Derby 132/11kV S Stn | C135: 0.084 | E135: 375 | G135: 1 | H135: Y
A136: 870037 | B136: Woodville 33/11kV S Stn | C136: 0.282 | E136: 333 | G136: 3 | H136: Y
A137: 870038 | B137: Mackworth 33/11kV S Stn | C137: 0.098 | E137: 200 | G137: 3 | H137: Y
A138: 870039 | B138: Darley Abbey 33/11kV S Stn | C138: 0.09 | E138: 132 | G138: 3 | H138: Y
A139: 870040 | B139: Normanton 33/11kV S Stn | C139: 0.119 | E139: 238 | G139: 3 | H139: Y
A140: 870041 | B140: Sinfin Lane 33/11kV S Stn | C140: 0.081 | E140: 148 | G140: 3 | H140: Y
A141: 870042 | B141: Morley 33/11kV S Stn | C141: 0.104 | E141: 208 | G141: 3 | H141: Y
A142: 870043 | B142: Allenton 33/11kV S Stn | C142: 0.081 | E142: 229 | G142: 3 | H142: Y
A143: 870044 | B143: Chaddesden 33/11kV S Stn | C143: 0.088 | E143: 205 | G143: 3 | H143: Y
A144: 870045 | B144: Osmaston Road 33/6.6kv S Stn | C144: 0.7 | D144: Y | E144: 500 | F144: Y | G144: 3 | H144: Y
A145: 870046 | B145: Spondon 33/11kV S Stn | C145: 0.072 | E145: 984 | G145: 3 | H145: Y
A146: 870047 | B146: Castle Donington 33/11kV S Stn | C146: 0.136 | E146: 171 | G146: 3 | H146: Y
A147: 870048 | B147: Ilkeston 33/11kV S Stn | C147: 0.17 | E147: 276 | G147: 3 | H147: Y
A148: 870049 | B148: Little Hallam 33/11kV S Stn | C148: 0.175 | E148: 315 | G148: 3 | H148: Y
A149: 870050 | B149: Long Eaton 33/11kV S Stn | C149: 0.064 | E149: 115 | G149: 3 | H149: Y
A150: 870051 | B150: Sandiacre 33/11kV S Stn | C150: 0.098 | E150: 190 | G150: 3 | H150: Y
A151: 870053 | B151: Gresley 33/11kV S Stn | C151: 0.117 | E151: 671 | G151: 3 | H151: Y
A152: 874558 | B152: Burton 132/11kV S Stn | C152: 0.019 | E152: 141 | G152: 1 | H152: Y
A153: 874972 | B153: Smith Hall Farm Solar Plant 33kV S Stn | C153: 0.29 | E153: 235 | G153: 3 | H153: Y
A154: 874987 | B154: Aston House Solar Farm 33kV S Stn | C154: 0.235 | E154: 291 | G154: 3 | H154: Y
A155: 874992 | B155: Rolleston Park Solar Farm 33kV S Stn | C155: 0.16 | E155: 255 | G155: 3 | H155: Y
A156: 875000 | B156: Burton 33kV S Stn | C156: 0.019 | E156: 141 | G156: 3 | H156: Y
A157: 875036 | B157: Green Lane Marchinton PV 33kV S Stn | C157: 0.24 | E157: 411 | G157: 3 | H157: Y
A158: 875043 | B158: Moat Farm Draycott-In-The-Clay Solar Site 33kV S Stn | C158: 0.7 | D158: Y | E158: 500 | F158: Y | G158: 3 | H158: Y
A159: 875065 | B159: Holtwood Farm Solar Park 33kV S Stn | C159: 0.22 | E159: 274 | G159: 3 | H159: Y
A160: 875067 | B160: Drakelow Solar Farm 33kV S Stn | C160: 0.18 | E160: 119 | G160: 3 | H160: Y
A161: 875073 | B161: Derby Waste Sinfin Lane 33kV S Stn | C161: 0.125 | E161: 334 | G161: 3 | H161: Y
A162: 875086 | B162: Trafalgar Park Gas Peaking S15 33kV S Stn | C162: 0.23 | E162: 406 | G162: 3 | H162: Y
A163: 875119 | B163: Dayfields Farm PV 33kV S Stn | C163: 0.24 | E163: 278 | G163: 3 | H163: Y
A164: 875136 | B164: Infinity Park 33/11kv S Stn | C164: 0.148 | E164: 410 | G164: 3 | H164: Y
A165: 875141 | B165: Taylor Lane STOR 33kV S Stn | C165: 2 | E165: 522 | G165: 3 | H165: Y
A166: 875155 | B166: Nottingham Road STOR 33kV S Stn | C166: 0.7 | D166: Y | E166: 500 | F166: Y | G166: 3 | H166: Y
A167: 875157 | B167: Breach Farm 33kv S Stn | C167: 0.747 | E167: 1141 | G167: 3 | H167: Y
A168: 875166 | B168: Twin Oaks STOR 33kV S Stn | C168: 0.57 | E168: 816 | G168: 3 | H168: Y
A169: 880002 | B169: Nottingham East 33kV S Stn | C169: 0.032 | E169: 275 | G169: 3 | H169: Y
A170: 880003 | B170: Nottingham 33kV S Stn | C170: 0.077 | E170: 601 | G170: 3 | H170: Y
A171: 880004 | B171: Toton 33kV S Stn | C171: 0.096 | E171: 567 | G171: 3 | H171: Y
A172: 880005 | B172: Nottingham North 33kV S Stn | C172: 0.018 | E172: 160 | G172: 3 | H172: Y
A173: 880006 | B173: Willoughby 33kV S Stn | C173: 0.079 | E173: 329 | G173: 3 | H173: Y
A174: 880009 | B174: Toton 33/11kV S Stn | C174: 0.096 | E174: 567 | G174: 3 | H174: Y
A175: 880010 | B175: Chilwell 33/11kV S Stn | C175: 0.106 | E175: 190 | G175: 3 | H175: Y
A176: 880011 | B176: Hucknall 33/11kV S Stn | C176: 0.191 | E176: 285 | G176: 3 | H176: Y
A177: 880012 | B177: Beeston 33/11kV S Stn | C177: 0.1 | E177: 216 | G177: 3 | H177: Y
A178: 880013 | B178: Bilborough 33/11kV S Stn | C178: 0.131 | E178: 277 | G178: 3 | H178: Y
A179: 880014 | B179: Lenton 33/11kV S Stn | C179: 0.176 | E179: 412 | G179: 3 | H179: Y
A180: 880015 | B180: Cinderhill 33/11kV S Stn | C180: 0.09 | E180: 136 | G180: 3 | H180: Y
A181: 880016 | B181: Boots 33/11kV S Stn | C181: 0.153 | E181: 384 | G181: 3 | H181: Y
A182: 880017 | B182: North Wilford 33/11kV S Stn | C182: 0.066 | E182: 193 | G182: 3 | H182: Y
A183: 880018 | B183: Ratcliffe On Soar 33/11kV S Stn | C183: 0.0644 | E183: 1269 | G183: 3 | H183: Y
A184: 880019 | B184: Bulwell 33/11kV S Stn | C184: 0.076 | E184: 176 | G184: 3 | H184: Y
A185: 880020 | B185: Wollaton Road 33/11kV S Stn | C185: 0.065 | E185: 130 | G185: 3 | H185: Y
A186: 880021 | B186: Nottingham North 132/11kV S Stn | C186: 0.018 | E186: 160 | G186: 1 | H186: Y
A187: 880022 | B187: Talbot Street 33/11kV S Stn | C187: 0.135 | E187: 204 | G187: 3 | H187: Y
A188: 880023 | B188: East Leake 33/11kV S Stn | C188: 0.144 | E188: 215 | G188: 3 | H188: Y
A189: 880024 | B189: Clifton 33/11kV S Stn | C189: 0.097 | E189: 363 | G189: 3 | H189: Y
A190: 880025 | B190: Castle Road 33/11kV S Stn | C190: 0.073 | E190: 194 | G190: 3 | H190: Y
A191: 880026 | B191: Marlborough Road 33/11kV S Stn | C191: 0.161 | E191: 243 | G191: 3 | H191: Y
A192: 880027 | B192: Arnold 33/11kV S Stn | C192: 0.167 | E192: 326 | G192: 3 | H192: Y
A193: 880028 | B193: West Bridgford 33/11kV S Stn | C193: 0.078 | E193: 118 | G193: 3 | H193: Y
A194: 880029 | B194: Mapperley 33/11kV S Stn | C194: 0.096 | E194: 145 | G194: 3 | H194: Y
A195: 880030 | B195: Sneinton 33/11kV S Stn | C195: 0.092 | E195: 141 | G195: 3 | H195: Y
A196: 880031 | B196: Calverton 33/11kV S Stn | C196: 0.277 | E196: 300 | G196: 3 | H196: Y
A197: 880032 | B197: Willoughby 33/11kV S Stn | C197: 0.079 | E197: 329 | G197: 3 | H197: Y
A198: 880033 | B198: Keyworth 33/11kV S Stn | C198: 0.105 | E198: 211 | G198: 3 | H198: Y
A199: 880034 | B199: Gedling 33/11kV S Stn | C199: 0.088 | E199: 215 | G199: 3 | H199: Y
A200: 880035 | B200: Colwick 33/11kV S Stn | C200: 0.022 | E200: 175 | G200: 3 | H200: Y
... 539 more rows

Sheet Source-EM-Name (hidden)
B1: 1 | C1: 2 | D1: 3 | E1: 4 | F1: 5 | G1: 6 | H1: 7 | I1: 8
A2: SUBSTATION_NAME_EM | B2: SUBSTATION_NAME_TRUNC_EM | C2: SUBSTATION_NUMBER | D2: ZE | E2: Assumed ZE | F2: UE | G2: Assumed UE | H2: t | I2: Assumed t
A3: Abington 33/11kV S Stn | B3: Abington33/11kVSStn | C3: 940057 | D3: 0.14 | F3: 334 | H3: 3 | I3: Y
A4: ABR Foods 33kV S Stn | B4: ABRFoods33kVSStn | C4: 920064 | D4: 0.36 | F4: 734 | H4: 3 | I4: Y
A5: Acreage Lane 33/11kV S Stn | B5: AcreageLane33/11kVSStn | C5: 890035 | D5: 0.596 | F5: 1173 | H5: 3 | I5: Y
A6: Airfield Farm Windfarm 33kV S Stn | B6: AirfieldFarmWindfarm33kVSStn | C6: 926184 | D6: 0.17 | F6: 391 | H6: 3 | I6: Y
A7: Alford 33/11kV S Stn | B7: Alford33/11kVSStn | C7: 900014 | D7: 0.265 | F7: 441 | H7: 3 | I7: Y
A8: Alfreton 132/33kV S Stn | B8: Alfreton132/33kVSStn | C8: 680037 | D8: 0.193 | F8: 752 | H8: 3 | I8: Y
A9: Alfreton 33kV S Stn | B9: Alfreton33kVSStn | C9: 890014 | D9: 0.193 | F9: 752 | H9: 3 | I9: Y
A10: Allenton 33/11kV S Stn | B10: Allenton33/11kVSStn | C10: 870043 | D10: 0.081 | F10: 229 | H10: 3 | I10: Y
A11: Alliance & Leicester 33/11kV S Stn | B11: Alliance&Leicester33/11kVSStn | C11: 930095 | D11: 0.17 | F11: 357 | H11: 3 | I11: Y
A12: Ambergate 33/11kV S Stn | B12: Ambergate33/11kVSStn | C12: 890077 | D12: 0.065 | F12: 75 | H12: 3 | I12: Y
A13: Anderson Lane 33/11kV S Stn | B13: AndersonLane33/11kVSStn | C13: 900032 | D13: 0.121 | F13: 369 | H13: 3 | I13: Y
A14: Annesley 132/33kV S Stn | B14: Annesley132/33kVSStn | C14: 680011 | D14: 0.082 | F14: 370 | H14: 3 | I14: Y
A15: Annesley 33/11kV S Stn | B15: Annesley33/11kVSStn | C15: 890033 | D15: 0.082 | F15: 370 | H15: 3 | I15: Y
A16: Annesley 33kV S Stn | B16: Annesley33kVSStn | C16: 890007 | D16: 0.082 | F16: 370 | H16: 3 | I16: Y
A17: Ansty 33/11kV S Stn | B17: Ansty33/11kVSStn | C17: 930061 | D17: 0.095 | F17: 235 | H17: 3 | I17: Y
A18: Apollo 33/11kV S Stn | B18: Apollo33/11kVSStn | C18: 930068 | D18: 0.107 | F18: 261 | H18: 3 | I18: Y
A19: Arkwright Solar 33kV S Stn | B19: ArkwrightSolar33kVSStn | C19: 898436 | D19: 0.49 | F19: 821 | H19: 3 | I19: Y
A20: Arley 33/11kV S Stn | B20: Arley33/11kVSStn | C20: 930078 | D20: 0.14 | F20: 217 | H20: 3 | I20: Y
A21: Arnold 33/11kV S Stn | B21: Arnold33/11kVSStn | C21: 880027 | D21: 0.167 | F21: 326 | H21: 3 | I21: Y
A22: Asfordby 132/11kV S Stn | B22: Asfordby132/11kVSStn | C22: 910047 | D22: 0.095 | F22: 185 | H22: 1 | I22: Y
A23: Asfordby 132kV S Stn | B23: Asfordby132kVSStn | C23: 690034 | D23: 0.095 | F23: 185 | H23: 1 | I23: Y
A24: Ashbourne 33/11kV S Stn | B24: Ashbourne33/11kVSStn | C24: 870030 | D24: 0.125 | F24: 230 | H24: 3 | I24: Y
A25: Ashby De La Zouch 33/11kV S Stn | B25: AshbyDeLaZouch33/11kVSStn | C25: 930101 | D25: 0.107 | F25: 198 | H25: 3 | I25: Y
A26: Asher Lane STOR 33kV S Stn | B26: AsherLaneSTOR33kVSStn | C26: 898663 | D26: 0.7 | E26: Y | F26: 500 | G26: Y | H26: 3 | I26: Y
A27: Aston House Solar Farm 33kV S Stn | B27: AstonHouseSolarFarm33kVSStn | C27: 874987 | D27: 0.235 | F27: 291 | H27: 3 | I27: Y
A28: Astrazeneca 33/11kV S Stn | B28: Astrazeneca33/11kVSStn | C28: 920066 | D28: 0.093 | F28: 180 | H28: 3 | I28: Y
A29: Atherstone 33/11kV S Stn | B29: Atherstone33/11kVSStn | C29: 930076 | D29: 0.052 | F29: 90 | H29: 3 | I29: Y
A30: Atherstone Solar Farm 33kV S Stn | B30: AtherstoneSolarFarm33kVSStn | C30: 939140 | D30: 0.215 | F30: 381 | H30: 3 | I30: Y
A31: Averill Solar Farm 33kV S Stn | B31: AverillSolarFarm33kVSStn | C31: 898444 | D31: 0.13 | F31: 150 | H31: 3 | I31: Y
A32: Babelake St Packington 33kv S Stn | B32: BabelakeStPackington33kvSStn | C32: 939146 | D32: 0.2 | F32: 248 | H32: 3 | I32: Y
A33: Baddesley Energy Park 33kV S Stn | B33: BaddesleyEnergyPark33kVSStn | C33: 939417 | D33: 0.306 | F33: 727 | H33: 3 | I33: Y
A34: Bakewell 33/11kV S Stn | B34: Bakewell33/11kVSStn | C34: 890065 | D34: 0.3 | F34: 268 | H34: 3 | I34: Y
A35: Bambers Farm Wind Generation 33kV S Stn | B35: BambersFarmWindGeneration33kVSStn | C35: 900008 | D35: 0.2 | F35: 272 | H35: 3 | I35: Y
A36: Banbury Lane 33/11kV S Stn | B36: BanburyLane33/11kVSStn | C36: 940058 | D36: 0.57 | F36: 96 | H36: 3 | I36: Y
A37: Banbury Road 33/11kV S Stn | B37: BanburyRoad33/11kVSStn | C37: 930051 | D37: 0.123 | F37: 224 | H37: 3 | I37: Y
A38: Bardon 33/11kV S Stn | B38: Bardon33/11kVSStn | C38: 930091 | D38: 0.257 | F38: 540 | H38: 3 | I38: Y
A39: Barton Under Needwood 33/11kV S Stn | B39: BartonUnderNeedwood33/11kVSStn | C39: 870013 | D39: 0.165 | F39: 185 | H39: 3 | I39: Y
A40: Barwell 33/11kV S Stn | B40: Barwell33/11kVSStn | C40: 930099 | D40: 0.271 | F40: 473 | H40: 3 | I40: Y
A41: Beachampton Solar Farm 33kV S Stn | B41: BeachamptonSolarFarm33kVSStn | C41: 945510 | D41: 0.07 | F41: 105 | H41: 3 | I41: Y
A42: Beaumont Leys 33/11kV S Stn | B42: BeaumontLeys33/11kVSStn | C42: 920026 | D42: 0.13 | F42: 275 | H42: 3 | I42: Y
A43: Beeston 33/11kV S Stn | B43: Beeston33/11kVSStn | C43: 880012 | D43: 0.1 | F43: 216 | H43: 3 | I43: Y
A44: Beevor Street 33/11kV S Stn | B44: BeevorStreet33/11kVSStn | C44: 900009 | D44: 0.15 | F44: 300 | H44: 3 | I44: Y
A45: Belper 33/11kV S Stn | B45: Belper33/11kVSStn | C45: 890076 | D45: 0.083 | F45: 120 | H45: 3 | I45: Y
A46: Bentinck Generating Station 33kV S Stn | B46: BentinckGeneratingStation33kVSStn | C46: 898163 | D46: 1.3 | F46: 2275 | H46: 3 | I46: Y
A47: Berkswell 275/132kV S Stn | B47: Berkswell275/132kVSStn | C47: 690001 | D47: 0.2 | E47: Y | F47: 350 | H47: 1 | I47: Y
A48: Bevercotes 33/11kV S Stn | B48: Bevercotes33/11kVSStn | C48: 890055 | D48: 0.171 | F48: 171 | H48: 3 | I48: Y
A49: Bicker Fen 400/132kV S Stn | B49: BickerFen400/132kVSStn | C49: 690003 | D49: 0.04 | F49: 710 | H49: 1 | I49: Y
A50: Bicker Fen Wind Generation 33kV S Stn | B50: BickerFenWindGeneration33kVSStn | C50: 910019 | D50: 0.7 | E50: Y | F50: 500 | G50: Y | H50: 3 | I50: Y
A51: Bilborough 33/11kV S Stn | B51: Bilborough33/11kVSStn | C51: 880013 | D51: 0.131 | F51: 277 | H51: 3 | I51: Y
A52: Billingborough 33/11kV S Stn | B52: Billingborough33/11kVSStn | C52: 910035 | D52: 0.323 | F52: 633 | H52: 3 | I52: Y
A53: Bilsthorpe 33/11kV S Stn | B53: Bilsthorpe33/11kVSStn | C53: 890054 | D53: 0.2 | F53: 396 | H53: 3 | I53: Y
A54: Bilsthorpe P V Generation 33kV S Stn | B54: BilsthorpePVGeneration33kVSStn | C54: 898555 | D54: 0.24 | F54: 496 | H54: 3 | I54: Y
A55: Bilsthorpe Solar 33kV S Stn | B55: BilsthorpeSolar33kVSStn | C55: 898326 | D55: 0.27 | F55: 208 | H55: 3 | I55: Y
A56: Bingham 33/11kV S Stn | B56: Bingham33/11kVSStn | C56: 880039 | D56: 0.061 | F56: 73 | H56: 3 | I56: Y
A57: Birch Coppice 33/11kv S Stn | B57: BirchCoppice33/11kvSStn | C57: 939800 | D57: 0.133 | F57: 189 | H57: 3 | I57: Y
A58: Birstall 33/11kV S Stn | B58: Birstall33/11kVSStn | C58: 920029 | D58: 0.077 | F58: 182 | H58: 3 | I58: Y
A59: Biwaters 33/11kV S Stn | B59: Biwaters33/11kVSStn | C59: 890095 | D59: 0.262 | F59: 349 | H59: 3 | I59: Y
A60: Blackwell 33/11kV S Stn | B60: Blackwell33/11kVSStn | C60: 890026 | D60: 0.114 | F60: 201 | H60: 3 | I60: Y
A61: Bletchley 132/33kV S Stn | B61: Bletchley132/33kVSStn | C61: 690046 | D61: 0.027 | F61: 166 | H61: 3 | I61: Y
A62: Bletchley 33/11kV S Stn | B62: Bletchley33/11kVSStn | C62: 940042 | D62: 0.027 | F62: 166 | H62: 3 | I62: Y
A63: Bletchley 33kV S Stn | B63: Bletchley33kVSStn | C63: 940013 | D63: 0.027 | F63: 166 | H63: 3 | I63: Y
A64: Bletchley Landfill 33kV S Stn | B64: BletchleyLandfill33kVSStn | C64: 940020 | D64: 0.192 | F64: 416 | H64: 3 | I64: Y
A65: Blidworth 33/11kV S Stn | B65: Blidworth33/11kVSStn | C65: 890041 | D65: 0.644 | F65: 1173 | H65: 3 | I65: Y
A66: Bolsover 33/11kV S Stn | B66: Bolsover33/11kVSStn | C66: 890093 | D66: 0.15 | F66: 225 | H66: 3 | I66: Y
A67: Bolsover Moor Quarry PV Solar Farm 33kV S Stn | B67: BolsoverMoorQuarryPVSolarFarm33kVSStn | C67: 898563 | D67: 0.35 | F67: 487 | H67: 3 | I67: Y
A68: Bombardier 33kV S Stn | B68: Bombardier33kVSStn | C68: 870016 | D68: 0.054 | F68: 127 | H68: 3 | I68: Y
A69: Boothville 33/11kV S Stn | B69: Boothville33/11kVSStn | C69: 940065 | D69: 0.06 | F69: 138 | H69: 3 | I69: Y
A70: Boots 33/11kV S Stn | B70: Boots33/11kVSStn | C70: 880016 | D70: 0.153 | F70: 384 | H70: 3 | I70: Y
A71: Boston 132/33kV S Stn | B71: Boston132/33kVSStn | C71: 690043 | D71: 0.039 | F71: 257 | H71: 3 | I71: Y
A72: Boston 33kV S Stn | B72: Boston33kVSStn | C72: 900004 | D72: 0.039 | F72: 257 | H72: 3 | I72: Y
A73: Boston Biomass Generation 33kV S Stn | B73: BostonBiomassGeneration33kVSStn | C73: 907058 | D73: 0.096 | F73: 261 | H73: 3 | I73: Y
A74: Bottesford 33/11kV S Stn | B74: Bottesford33/11kVSStn | C74: 910038 | D74: 0.217 | F74: 260 | H74: 3 | I74: Y
A75: Bourne 132/33kV S Stn | B75: Bourne132/33kVSStn | C75: 690044 | D75: 0.09 | F75: 844 | H75: 3 | I75: Y
A76: Bourne 33/11kV S Stn | B76: Bourne33/11kVSStn | C76: 910032 | D76: 0.09 | F76: 844 | H76: 3 | I76: Y
A77: Bourne 33kV S Stn | B77: Bourne33kVSStn | C77: 910005 | D77: 0.09 | F77: 844 | H77: 3 | I77: Y
A78: Bourne West 132/25kV S Stn | B78: BourneWest132/25kVSStn | C78: 690039 | D78: 0.174 | F78: 1366 | H78: 1 | I78: Y
A79: Bowbridge STOR Generation 33kV S Stn | B79: BowbridgeSTORGeneration33kVSStn | C79: 690070 | D79: 0.7 | E79: Y | F79: 500 | G79: Y | H79: 3 | I79: Y
A80: Brackley 132/33kV S Stn | B80: Brackley132/33kVSStn | C80: 690047 | D80: 0.1 | F80: 637 | H80: 3 | I80: Y
A81: Brackley 33/11kV S Stn | B81: Brackley33/11kVSStn | C81: 947000 | D81: 0.1 | F81: 637 | H81: 3 | I81: Y
A82: Brackley 33kV S Stn | B82: Brackley33kVSStn | C82: 946100 | D82: 0.1 | F82: 637 | H82: 3 | I82: Y
A83: Brackley Town 33/11kV S Stn | B83: BrackleyTown33/11kVSStn | C83: 940028 | D83: 0.041 | F83: 80 | H83: 3 | I83: Y
A84: Brackmills 33/11kV S Stn | B84: Brackmills33/11kVSStn | C84: 940072 | D84: 0.06 | F84: 160 | H84: 3 | I84: Y
A85: Bradwell Abbey 132/33kV S Stn | B85: BradwellAbbey132/33kVSStn | C85: 690006 | D85: 0.094 | F85: 486 | H85: 3 | I85: Y
A86: Bradwell Abbey 33kV S Stn | B86: BradwellAbbey33kVSStn | C86: 940006 | D86: 0.094 | F86: 486 | H86: 3 | I86: Y
A87: Brafield On The Green PV 33kv S Stn | B87: BrafieldOnTheGreenPV33kvSStn | C87: 946276 | D87: 0.163 | F87: 263 | H87: 3 | I87: Y
A88: Branston South Solar Farm 33kV S Stn | B88: BranstonSouthSolarFarm33kVSStn | C88: 907556 | D88: 0.22 | F88: 418 | H88: 3 | I88: Y
A89: Braunstone 33/11kV S Stn | B89: Braunstone33/11kVSStn | C89: 920031 | D89: 0.093 | F89: 55 | H89: 3 | I89: Y
A90: Braunston Road 33/11kV S Stn | B90: BraunstonRoad33/11kVSStn | C90: 940047 | D90: 0.098 | F90: 245 | H90: 3 | I90: Y
A91: Breach Farm 33kv S Stn | B91: BreachFarm33kvSStn | C91: 875157 | D91: 0.747 | F91: 1141 | H91: 3 | I91: Y
A92: Bretby 33/11kV S Stn | B92: Bretby33/11kVSStn | C92: 870034 | D92: 0.089 | F92: 130 | H92: 3 | I92: Y
A93: British Gypsum 33/11kV S Stn | B93: BritishGypsum33/11kVSStn | C93: 920018 | D93: 0.113 | F93: 219 | H93: 3 | I93: Y
A94: Brownsover 33/11kV S Stn | B94: Brownsover33/11kVSStn | C94: 930066 | D94: 0.151 | F94: 411 | H94: 3 | I94: Y
A95: Bruntingthorpe 33/11kV S Stn | B95: Bruntingthorpe33/11kVSStn | C95: 930105 | D95: 0.21 | F95: 276 | H95: 3 | I95: Y
A96: Brush 33/11kV S Stn | B96: Brush33/11kVSStn | C96: 920021 | D96: 0.09 | F96: 176 | H96: 3 | I96: Y
A97: Buckingham 33/11kV S Stn | B97: Buckingham33/11kVSStn | C97: 940029 | D97: 0.067 | F97: 99 | H97: 3 | I97: Y
A98: Budby 33/11kV S Stn | B98: Budby33/11kVSStn | C98: 890045 | D98: 0.512 | F98: 737 | H98: 3 | I98: Y
A99: Bugbrooke 33/11kV S Stn | B99: Bugbrooke33/11kVSStn | C99: 940052 | D99: 0.104 | F99: 151 | H99: 3 | I99: Y
A100: Bulwell 33/11kV S Stn | B100: Bulwell33/11kVSStn | C100: 880019 | D100: 0.076 | F100: 176 | H100: 3 | I100: Y
A101: Burnaston 132/11kV S Stn | B101: Burnaston132/11kVSStn | C101: 680034 | D101: 0.091 | F101: 1237 | H101: 1 | I101: Y
A102: Burton 132/11kV S Stn | B102: Burton132/11kVSStn | C102: 874558 | D102: 0.019 | F102: 141 | H102: 1 | I102: Y
A103: Burton 132/33/11kV S Stn | B103: Burton132/33/11kVSStn | C103: 680033 | D103: 0.019 | F103: 141 | H103: 3 | I103: Y
A104: Burton 33kV S Stn | B104: Burton33kVSStn | C104: 875000 | D104: 0.019 | F104: 141 | H104: 3 | I104: Y
A105: Burton Latimer 33/11kV S Stn | B105: BurtonLatimer33/11kVSStn | C105: 920054 | D105: 0.062 | F105: 106 | H105: 3 | I105: Y
A106: Burton Pedwardine Solar Park 1 33kV S Stn | B106: BurtonPedwardineSolarPark133kVSStn | C106: 905663 | D106: 0.178 | F106: 267 | H106: 3 | I106: Y
A107: Burton South 132/33kV S Stn | B107: BurtonSouth132/33kVSStn | C107: 680009 | D107: 0.1 | F107: 2006 | H107: 3 | I107: Y
A108: Burton South 33kV S Stn | B108: BurtonSouth33kVSStn | C108: 870004 | D108: 0.1 | F108: 843 | H108: 3 | I108: Y
A109: Burton Wold North 33kV S Stn | B109: BurtonWoldNorth33kVSStn | C109: 925737 | D109: 0.7 | E109: Y | F109: 500 | G109: Y | H109: 3 | I109: Y
A110: Burton Wold Wind Farm Generation 33kV S Stn | B110: BurtonWoldWindFarmGeneration33kVSStn | C110: 920012 | D110: 0.136 | F110: 256 | H110: 3 | I110: Y
A111: Burton Wold Wind Farm South 33kV S Stn | B111: BurtonWoldWindFarmSouth33kVSStn | C111: 923189 | D111: 0.166 | F111: 187 | H111: 3 | I111: Y
A112: Buxton 33kV S Stn | B112: Buxton33kVSStn | C112: 680028 | D112: 0.7 | E112: Y | F112: 500 | G112: Y | H112: 3 | I112: Y
A113: Calvert 33/11kV S Stn | B113: Calvert33/11kVSStn | C113: 940030 | D113: 0.111 | F113: 173 | H113: 3 | I113: Y
A114: Calverton 33/11kV S Stn | B114: Calverton33/11kVSStn | C114: 880031 | D114: 0.277 | F114: 300 | H114: 3 | I114: Y
A115: Campbell Park 33/11kV S Stn | B115: CampbellPark33/11kVSStn | C115: 940067 | D115: 0.05 | F115: 75 | H115: 3 | I115: Y
A116: Campbell Street 33/11kV S Stn | B116: CampbellStreet33/11kVSStn | C116: 940059 | D116: 0.152 | F116: 391 | H116: 3 | I116: Y
A117: Campion Hills 33/11kV S Stn | B117: CampionHills33/11kVSStn | C117: 930053 | D117: 0.117 | F117: 220 | H117: 3 | I117: Y
A118: Cannon Street 33/11kV S Stn | B118: CannonStreet33/11kVSStn | C118: 920058 | D118: 0.048 | F118: 123 | H118: 3 | I118: Y
A119: Canopus Solar Farm 33kV S Stn | B119: CanopusSolarFarm33kVSStn | C119: 906775 | D119: 0.058 | F119: 119 | H119: 3 | I119: Y
A120: Carlton On Trent 33/11kV S Stn | B120: CarltonOnTrent33/11kVSStn | C120: 890061 | D120: 0.675 | F120: 989 | H120: 3 | I120: Y
A121: Castle Donington 33/11kV S Stn | B121: CastleDonington33/11kVSStn | C121: 870047 | D121: 0.136 | F121: 171 | H121: 3 | I121: Y
A122: Castle Road 33/11kV S Stn | B122: CastleRoad33/11kVSStn | C122: 880025 | D122: 0.073 | F122: 194 | H122: 3 | I122: Y
A123: Caterpillar Desford 33/11kV S Stn | B123: CaterpillarDesford33/11kVSStn | C123: 930094 | D123: 0.109 | F123: 124 | H123: 3 | I123: Y
A124: Caythorpe 33/11kV S Stn | B124: Caythorpe33/11kVSStn | C124: 880037 | D124: 0.305 | F124: 573 | H124: 3 | I124: Y
A125: Chaddesden 33/11kV S Stn | B125: Chaddesden33/11kVSStn | C125: 870044 | D125: 0.088 | F125: 205 | H125: 3 | I125: Y
A126: Chapel Brampton 33/11kV S Stn | B126: ChapelBrampton33/11kVSStn | C126: 940056 | D126: 0.083 | F126: 128 | H126: 3 | I126: Y
A127: Chapel St Leonards 33/11kV S Stn | B127: ChapelStLeonards33/11kVSStn | C127: 900015 | D127: 0.219 | F127: 438 | H127: 3 | I127: Y
A128: Checkerhouse 132/33kV S Stn | B128: Checkerhouse132/33kVSStn | C128: 680013 | D128: 0.21 | F128: 685 | H128: 3 | I128: Y
A129: Checkerhouse 33/11kV S Stn | B129: Checkerhouse33/11kVSStn | C129: 890010 | D129: 0.21 | F129: 685 | H129: 3 | I129: Y
A130: Checkerhouse 33kV S Stn | B130: Checkerhouse33kVSStn | C130: 890050 | D130: 0.21 | F130: 685 | H130: 3 | I130: Y
A131: Chelveston Energy Park 33kV S Stn | B131: ChelvestonEnergyPark33kVSStn | C131: 927000 | D131: 0.12 | F131: 211 | H131: 3 | I131: Y
A132: Chelveston Solar Park 33kV S Stn | B132: ChelvestonSolarPark33kVSStn | C132: 926237 | D132: 0.7 | E132: Y | F132: 500 | G132: Y | H132: 3 | I132: Y
A133: Chesterfield 275/132/33kV S Stn | B133: Chesterfield275/132/33kVSStn | C133: 680007 | D133: 0.056 | F133: 1070 | H133: 3 | I133: Y
A134: Chesterfield 33kV S Stn | B134: Chesterfield33kVSStn | C134: 680032 | D134: 0.056 | F134: 1070 | H134: 3 | I134: Y
A135: Childs Way 33/11kV S Stn | B135: ChildsWay33/11kVSStn | C135: 940039 | D135: 0.05 | F135: 125 | H135: 3 | I135: Y
A136: Chilwell 33/11kV S Stn | B136: Chilwell33/11kVSStn | C136: 880010 | D136: 0.106 | F136: 190 | H136: 3 | I136: Y
A137: Churchover 33/11kV S Stn | B137: Churchover33/11kVSStn | C137: 930086 | D137: 0.19 | F137: 190 | H137: 3 | I137: Y
A138: Church Street 33/11kV S Stn | B138: ChurchStreet33/11kVSStn | C138: 870027 | D138: 0.015 | F138: 206 | H138: 3 | I138: Y
A139: Cinderhill 33/11kV S Stn | B139: Cinderhill33/11kVSStn | C139: 880015 | D139: 0.09 | F139: 136 | H139: 3 | I139: Y
A140: Claverdon 33/11kV S Stn | B140: Claverdon33/11kVSStn | C140: 930048 | D140: 0.129 | F140: 187 | H140: 3 | I140: Y
A141: Clay Lake Generation 33kV S Stn | B141: ClayLakeGeneration33kVSStn | C141: 690069 | D141: 0.7 | E141: Y | F141: 500 | G141: Y | H141: 3 | I141: Y
A142: Clifton 33/11kV S Stn | B142: Clifton33/11kVSStn | C142: 880024 | D142: 0.097 | F142: 363 | H142: 3 | I142: Y
A143: Clipstone 132/33kV S Stn | B143: Clipstone132/33kVSStn | C143: 680012 | D143: 0.18 | F143: 477 | H143: 3 | I143: Y
A144: Clipstone 33/11kV S Stn | B144: Clipstone33/11kVSStn | C144: 890040 | D144: 0.18 | F144: 477 | H144: 3 | I144: Y
A145: Clipstone 33kV S Stn | B145: Clipstone33kVSStn | C145: 890006 | D145: 0.18 | F145: 477 | H145: 3 | I145: Y
A146: Clowne 33/11kV S Stn | B146: Clowne33/11kVSStn | C146: 890085 | D146: 0.5 | F146: 884 | H146: 3 | I146: Y
A147: Coalville 132/33kV S Stn | B147: Coalville132/33kVSStn | C147: 690024 | D147: 0.109 | F147: 382 | H147: 3 | I147: Y
A148: Coalville 33/11kV S Stn | B148: Coalville33/11kVSStn | C148: 930092 | D148: 0.109 | F148: 382 | H148: 3 | I148: Y
A149: Coalville 33kV S Stn | B149: Coalville33kVSStn | C149: 930020 | D149: 0.109 | F149: 382 | H149: 3 | I149: Y
A150: Cobb Farm Solar Generation 33kV S Stn | B150: CobbFarmSolarGeneration33kVSStn | C150: 898371 | D150: 0.196 | F150: 175 | H150: 3 | I150: Y
A151: Colwick 33/11kV S Stn | B151: Colwick33/11kVSStn | C151: 880035 | D151: 0.022 | F151: 175 | H151: 3 | I151: Y
A152: Copley Farm Solar Generation 33kV S Stn | B152: CopleyFarmSolarGeneration33kVSStn | C152: 917592 | D152: 0.15 | F152: 290 | H152: 3 | I152: Y
A153: Copsewood 33/11kV S Stn | B153: Copsewood33/11kVSStn | C153: 930044 | D153: 0.104 | F153: 253 | H153: 3 | I153: Y
A154: Corby 132/33kV S Stn | B154: Corby132/33kVSStn | C154: 690008 | D154: 0.2 | E154: Y | F154: 1000 | G154: Y | H154: 3 | I154: Y
A155: Corby Central 33/11kV S Stn | B155: CorbyCentral33/11kVSStn | C155: 920049 | D155: 0.151 | F155: 313 | H155: 3 | I155: Y
A156: Corby No2 33/11kV S Stn | B156: CorbyNo233/11kVSStn | C156: 920053 | D156: 0.074 | F156: 1221 | H156: 3 | I156: Y
A157: Corby No2 33kV S Stn | B157: CorbyNo233kVSStn | C157: 920007 | D157: 0.074 | F157: 1221 | H157: 3 | I157: Y
A158: Corby North 132kV S Stn | B158: CorbyNorth132kVSStn | C158: 690048 | D158: 0.065 | F158: 1049 | H158: 1 | I158: Y
A159: Corby North 33kV S Stn | B159: CorbyNorth33kVSStn | C159: 920063 | D159: 0.065 | F159: 1049 | H159: 3 | I159: Y
A160: Cotgrave 33/11kV S Stn | B160: Cotgrave33/11kVSStn | C160: 880036 | D160: 0.126 | F160: 177 | H160: 3 | I160: Y
A161: Coton Road 33/6.6kV S Stn | B161: CotonRoad33/6.6kVSStn | C161: 930069 | D161: 0.109 | F161: 222 | H161: 3 | I161: Y
A162: Courthouse Green 33/11kV S Stn | B162: CourthouseGreen33/11kVSStn | C162: 930033 | D162: 0.127 | F162: 70 | H162: 3 | I162: Y
A163: Courthouse Green 33/6.6kV S Stn | B163: CourthouseGreen33/6.6kVSStn | C163: 930035 | D163: 0.127 | F163: 70 | H163: 3 | I163: Y
A164: Coventry 275/132kV S Stn | B164: Coventry275/132kVSStn | C164: 690002 | D164: 0.2 | E164: Y | F164: 2800 | G164: Y | H164: 1 | I164: Y
A165: Coventry Arena 33/11kV S Stn | B165: CoventryArena33/11kVSStn | C165: 930083 | D165: 0.23 | F165: 202 | H165: 3 | I165: Y
A166: Coventry Central 132/33kV S Stn | B166: CoventryCentral132/33kVSStn | C166: 690013 | D166: 0.093 | F166: 331 | H166: 3 | I166: Y
A167: Coventry Central 33kV S Stn | B167: CoventryCentral33kVSStn | C167: 930013 | D167: 0.093 | F167: 331 | H167: 3 | I167: Y
A168: Coventry Colliery 33/11kV S Stn | B168: CoventryColliery33/11kVSStn | C168: 930036 | D168: 0.133 | F168: 262 | H168: 3 | I168: Y
A169: Coventry North 132/33kV S Stn | B169: CoventryNorth132/33kVSStn | C169: 690012 | D169: 0.073 | F169: 752 | H169: 3 | I169: Y
A170: Coventry North 33/11kV S Stn | B170: CoventryNorth33/11kVSStn | C170: 930046 | D170: 0.073 | F170: 752 | H170: 3 | I170: Y
A171: Coventry North 33kV S Stn | B171: CoventryNorth33kVSStn | C171: 930009 | D171: 0.073 | F171: 752 | H171: 3 | I171: Y
A172: Coventry South 132/33kV S Stn | B172: CoventrySouth132/33kVSStn | C172: 690014 | D172: 0.057 | F172: 553 | H172: 3 | I172: Y
A173: Coventry South 33/11kV S Stn | B173: CoventrySouth33/11kVSStn | C173: 930032 | D173: 0.057 | F173: 553 | H173: 3 | I173: Y
A174: Coventry South 33kV S Stn | B174: CoventrySouth33kVSStn | C174: 930012 | D174: 0.057 | F174: 553 | H174: 3 | I174: Y
A175: Coventry Waste Reduction 33kV S Stn | B175: CoventryWasteReduction33kVSStn | C175: 930082 | D175: 0.087 | F175: 232 | H175: 3 | I175: Y
A176: Coventry West 132/33kV S Stn | B176: CoventryWest132/33kVSStn | C176: 690015 | D176: 0.12 | F176: 1161 | H176: 3 | I176: Y
A177: Coventry West 33/6.6kV S Stn | B177: CoventryWest33/6.6kVSStn | C177: 930025 | D177: 0.12 | F177: 1161 | H177: 3 | I177: Y
A178: Coventry West 33kV S Stn | B178: CoventryWest33kVSStn | C178: 930014 | D178: 0.12 | F178: 1161 | H178: 3 | I178: Y
A179: Cox Street 33/6.6 Kv S Stn | B179: CoxStreet33/6.6KvSStn | C179: 930031 | D179: 0.091 | F179: 224 | H179: 3 | I179: Y
A180: Craggs Lane 33/11kV S Stn | B180: CraggsLane33/11kVSStn | C180: 890032 | D180: 0.156 | F180: 293 | H180: 3 | I180: Y
A181: Cranwell 33/11kV S Stn | B181: Cranwell33/11kVSStn | C181: 910031 | D181: 0.11 | F181: 220 | H181: 3 | I181: Y
A182: Crick 33/11kV S Stn | B182: Crick33/11kVSStn | C182: 940068 | D182: 0.082 | F182: 158 | H182: 3 | I182: Y
A183: Croft End Solar Farm 33kV S Stn | B183: CroftEndSolarFarm33kVSStn | C183: 905191 | D183: 0.07 | F183: 165 | H183: 3 | I183: Y
A184: Cromford 33/11kV S Stn | B184: Cromford33/11kVSStn | C184: 890073 | D184: 0.21 | F184: 422 | H184: 3 | I184: Y
A185: Crowland 33/11kV S Stn | B185: Crowland33/11kVSStn | C185: 910029 | D185: 0.138 | F185: 215 | H185: 3 | I185: Y
A186: Crown Farm 33/11kV S Stn | B186: CrownFarm33/11kVSStn | C186: 890037 | D186: 0.026 | F186: 487 | H186: 3 | I186: Y
A187: Daneshill Generation 33kV S Stn | B187: DaneshillGeneration33kVSStn | C187: 890017 | D187: 0.29 | F187: 335 | H187: 3 | I187: Y
A188: Danesmoor 33/11kV S Stn | B188: Danesmoor33/11kVSStn | C188: 890094 | D188: 0.263 | F188: 108 | H188: 3 | I188: Y
A189: Darley Abbey 33/11kV S Stn | B189: DarleyAbbey33/11kVSStn | C189: 870039 | D189: 0.09 | F189: 132 | H189: 3 | I189: Y
A190: Daventry 132/33kV S Stn | B190: Daventry132/33kVSStn | C190: 690052 | D190: 0.045 | F190: 147 | H190: 3 | I190: Y
A191: Daventry 33/11kV S Stn | B191: Daventry33/11kVSStn | C191: 940049 | D191: 0.045 | F191: 147 | H191: 3 | I191: Y
A192: Daventry 33kV S Stn | B192: Daventry33kVSStn | C192: 940008 | D192: 0.045 | F192: 147 | H192: 3 | I192: Y
A193: Dayfields Farm PV 33kV S Stn | B193: DayfieldsFarmPV33kVSStn | C193: 875119 | D193: 0.24 | F193: 278 | H193: 3 | I193: Y
A194: Decoy Farm Generation 33kV S Stn | B194: DecoyFarmGeneration33kVSStn | C194: 917572 | D194: 0.251 | F194: 314 | H194: 3 | I194: Y
A195: Deepdale Solar Farm 33kV S Stn | B195: DeepdaleSolarFarm33kVSStn | C195: 917435 | D195: 0.12 | F195: 123 | H195: 3 | I195: Y
A196: Deeping St Nicholas Wind Generation 33kV S Stn | B196: DeepingStNicholasWindGeneration33kVSStn | C196: 910015 | D196: 0.7 | E196: Y | F196: 500 | G196: Y | H196: 3 | I196: Y
A197: Denby 33/11kV S Stn | B197: Denby33/11kVSStn | C197: 890082 | D197: 0.118 | F197: 250 | H197: 3 | I197: Y
A198: Denton 33/11kV S Stn | B198: Denton33/11kVSStn | C198: 940066 | D198: 0.28 | F198: 425 | H198: 3 | I198: Y
A199: Derby 132/11kV S Stn | B199: Derby132/11kVSStn | C199: 870036 | D199: 0.084 | F199: 375 | H199: 1 | I199: Y
A200: Derby 132/33/11kV S Stn | B200: Derby132/33/11kVSStn | C200: 680041 | D200: 0.084 | F200: 375 | H200: 3 | I200: Y
... 539 more rows

Sheet Source-WM-Num (hidden)
A1: 1 | B1: 2 | C1: 3 | D1: 4 | E1: 5 | F1: 6 | G1: 7 | H1: 8
A2: SUBSTATION_NUMBER_WM | B2: SUBSTATION_NAME | C2: ZE | D2: Assumed ZE | E2: UE | F2: Assumed UE | G2: t | H2: Assumed t
A3: 670001 | B3: Iron Acton 275/132kV S Stn | C3: 0.09 | E3: 1503 | G3: 1 | H3: Y
A4: 670002 | B4: Bishops Wood 275/132kV S Stn | C4: 0.17 | E4: 3145 | G4: 1 | H4: Y
A5: 670003 | B5: Feckenham 275/66/11kV S Stn | C5: 0.073 | E5: 1030 | G5: 3 | H5: Y
A6: 670004 | B6: Bustleholm 275/132/11kV S Stn | C6: 0.1 | E6: 990 | G6: 1 | H6: Y
A7: 670005 | B7: Oldbury 132/11kV S Stn | C7: 0.076 | E7: 965 | G7: 1 | H7: Y
A8: 670006 | B8: Willenhall 275/132/33/25/11kV S Stn | C8: 0.07 | E8: 211 | G8: 3 | H8: Y
A9: 670007 | B9: Nechells East 275/132kV S Stn | C9: 0.07 | E9: 1540 | G9: 1 | H9: Y
A10: 670008 | B10: Port Ham 400/132kV S Stn | C10: 0.63 | E10: 561 | G10: 1 | H10: Y
A11: 670009 | B11: Penn 400/275/132kV S Stn | C11: 0.097 | E11: 1242 | G11: 1 | H11: Y
A12: 670010 | B12: Ocker Hill C 275/132kV S Stn | C12: 0.07 | E12: 1266 | G12: 1 | H12: Y
A13: 670011 | B13: Kitwell 275/132kV S Stn | C13: 0.126 | E13: 2528 | G13: 1 | H13: Y
A14: 670012 | B14: Castle Meads 132/33kV S Stn | C14: 0.074 | E14: 1037 | G14: 3 | H14: Y
A15: 670013 | B15: Hereford 132/66kV S Stn | C15: 0.129 | E15: 647 | G15: 3 | H15: Y
A16: 670014 | B16: Worcester 132/11kV S Stn | C16: 0.095 | E16: 486 | G16: 1 | H16: Y
A17: 670015 | B17: Ryeford 132/33/11kV S Stn | C17: 0.056 | E17: 209 | G17: 3 | H17: Y
A18: 670016 | B18: Walsall 132/33kV S Stn | C18: 0.136 | E18: 352 | G18: 3 | H18: Y
A19: 670017 | B19: Bushbury A 132kV S Stn | C19: 0.089 | E19: 1664 | G19: 1 | H19: Y
A20: 670019 | B20: Timberdine 132/11kV S Stn | C20: 0.08 | E20: 515 | G20: 1 | H20: Y
A21: 670020 | B21: Tividale 132/11kV S Stn | C21: 0.118 | E21: 900 | G21: 1 | H21: Y
A22: 670021 | B22: Upton Warren 132/66/11kV S Stn | C22: 0.104 | E22: 374 | G22: 3 | H22: Y
A23: 670022 | B23: Warndon 132/11kV S Stn | C23: 0.044 | E23: 290 | G23: 1 | H23: Y
A24: 670023 | B24: Wednesfield 132/11kV S Stn | C24: 0.147 | E24: 1102 | G24: 1 | H24: Y
A25: 670024 | B25: Wolverhampton 132/33/11kV S Stn | C25: 0.114 | E25: 376 | G25: 3 | H25: Y
A26: 670025 | B26: Wolverhampton West 132/33/11kV S Stn | C26: 0.133 | E26: 1157 | G26: 3 | H26: Y
A27: 670026 | B27: Woodside 132/11kV S Stn | C27: 0.071 | E27: 333 | G27: 1 | H27: Y
A28: 670027 | B28: Summer Lane 132/11kV S Stn | C28: 0.08 | E28: 240 | G28: 1 | H28: Y
A29: 670028 | B29: Hall Green 132/11kV S Stn | C29: 0.076 | E29: 516 | G29: 1 | H29: Y
A30: 670029 | B30: Dunlop 132kV S Stn | C30: 0.238 | E30: 2222 | G30: 1 | H30: Y
A31: 670030 | B31: Kitts Green 132/11kV S Stn | C31: 0.125 | E31: 635 | G31: 1 | H31: Y
A32: 670031 | B32: Lydney Local 132kV S Stn | C32: 0.21 | E32: 712 | G32: 1 | H32: Y
A33: 670032 | B33: Castle Bromwich 132/11kV S Stn | C33: 0.087 | E33: 383 | G33: 1 | H33: Y
A34: 670033 | B34: Hams Hall 132/33kV S Stn | C34: 0.105 | E34: 1775 | G34: 3 | H34: Y
A35: 670034 | B35: Erdington 132kV S Stn | C35: 0.121 | E35: 581 | G35: 1 | H35: Y
A36: 670035 | B36: University Of Birmingham 132/11kV S Stn | C36: 0.029 | E36: 275 | G36: 1 | H36: Y
A37: 670037 | B37: Bushbury B-C 132/33/11kV S Stn | C37: 0.12 | E37: 2077 | G37: 3 | H37: Y
A38: 670038 | B38: Winson Green 132/11kV S Stn | C38: 0.05 | E38: 279 | G38: 1 | H38: Y
A39: 670039 | B39: Selly Oak 132kV S Stn | C39: 0.086 | E39: 791 | G39: 1 | H39: Y
A40: 670040 | B40: Ladywood 132/11kV S Stn | C40: 0.173 | E40: 1358 | G40: 1 | H40: Y
A41: 670041 | B41: Bordesley 132/11kV S Stn | C41: 0.097 | E41: 286 | G41: 1 | H41: Y
A42: 670042 | B42: Chipping Sodbury 132/33/11kV S Stn | C42: 0.28 | E42: 974 | G42: 3 | H42: Y
A43: 670043 | B43: Hams Hall South 132/11kV S Stn | C43: 0.08 | E43: 1115 | G43: 1 | H43: Y
A44: 670045 | B44: Banbury 132/11kV S Stn | C44: 0.066 | E44: 211 | G44: 1 | H44: Y
A45: 670046 | B45: Bentley 132/11kV S Stn | C45: 0.089 | E45: 694 | G45: 1 | H45: Y
A46: 670047 | B46: Birchfield Lane 132/11kV S Stn | C46: 0.051 | E46: 418 | G46: 1 | H46: Y
A47: 670048 | B47: Black Lake 132/11kV S Stn | C47: 0.072 | E47: 532 | G47: 1 | H47: Y
A48: 670049 | B48: Longbridge 132/11kV S Stn | C48: 0.04 | E48: 449 | G48: 1 | H48: Y
A49: 670050 | B49: Bournville 132/11kV S Stn | C49: 0.068 | E49: 474 | G49: 1 | H49: Y
A50: 670051 | B50: Chad Valley 132/11kV S Stn | C50: 0.08 | E50: 336 | G50: 1 | H50: Y
A51: 670052 | B51: Cheapside 132/11kV S Stn | C51: 0.074 | E51: 610 | G51: 1 | H51: Y
A52: 670053 | B52: Cheltenham 132/66/11kV S Stn | C52: 0.052 | E52: 201 | G52: 3 | H52: Y
A53: 670054 | B53: Chester Street 132/11kV S Stn | C53: 0.384 | E53: 614 | G53: 1 | H53: Y
A54: 670055 | B54: Copt Heath 132/11kV S Stn | C54: 0.115 | E54: 566 | G54: 1 | H54: Y
A55: 670056 | B55: Coseley 132/11kV S Stn | C55: 0.101 | E55: 760 | G55: 1 | H55: Y
A56: 670057 | B56: Dudley 132/11kV S Stn | C56: 0.054 | E56: 437 | G56: 1 | H56: Y
A57: 670058 | B57: Eastern Avenue 132/11kV S Stn | C57: 0.039 | E57: 416 | G57: 1 | H57: Y
A58: 670059 | B58: Elmdon 132/11kV S Stn | C58: 0.06 | E58: 424 | G58: 1 | H58: Y
A59: 670060 | B59: Halesowen 132/11kV S Stn | C59: 0.085 | E59: 909 | G59: 1 | H59: Y
A60: 670061 | B60: Highters Heath 132/11kV S Stn | C60: 0.065 | E60: 469 | G60: 1 | H60: Y
A61: 670062 | B61: Hinksford 132/33/11kV S Stn | C61: 0.12 | E61: 1079 | G61: 3 | H61: Y
A62: 670063 | B62: Kidderminster 132/33/11kV S Stn | C62: 0.24 | E62: 1546 | G62: 3 | H62: Y
A63: 670064 | B63: Ludlow 132/66/33/11kV S Stn | C63: 0.15 | E63: 599 | G63: 3 | H63: Y
A64: 670065 | B64: Lye 132/11kV S Stn | C64: 0.043 | E64: 430 | G64: 1 | H64: Y
A65: 670066 | B65: Marle Hill 132/66/11kV S Stn | C65: 0.035 | E65: 160 | G65: 3 | H65: Y
A66: 670067 | B66: Malvern 132/11kV S Stn | C66: 0.048 | E66: 319 | G66: 1 | H66: Y
A67: 670068 | B67: Montpellier 132/11kV S Stn | C67: 0.044 | E67: 216 | G67: 1 | H67: Y
A68: 670069 | B68: Nechells West 132/25/11kV S Stn | C68: 0.11 | E68: 583 | G68: 1 | H68: Y
A69: 670070 | B69: Ocker Hill B 132/33/11kV S Stn | C69: 0.052 | E69: 854 | G69: 3 | H69: Y
A70: 670071 | B70: Perry Barr 132/11kV S Stn | C70: 0.112 | E70: 445 | G70: 1 | H70: Y
A71: 670072 | B71: Rednal 132/11kV S Stn | C71: 0.064 | E71: 620 | G71: 1 | H71: Y
A72: 670073 | B72: Rushall 132/11kV S Stn | C72: 0.16 | E72: 498 | G72: 1 | H72: Y
A73: 670074 | B73: Selly Oak 132/11kV S Stn | C73: 0.086 | E73: 791 | G73: 1 | H73: Y
A74: 670075 | B74: Shirley 132/11kV S Stn | C74: 0.065 | E74: 449 | G74: 1 | H74: Y
A75: 670076 | B75: Smethwick 132/11kV S Stn | C75: 0.153 | E75: 1121 | G75: 1 | H75: Y
A76: 670077 | B76: Solihull 132/11kV S Stn | C76: 0.09 | E76: 252 | G76: 1 | H76: Y
A77: 670078 | B77: Sparkbrook 132/11kV S Stn | C77: 0.04 | E77: 274 | G77: 1 | H77: Y
A78: 670079 | B78: Stourport 132/66/33/11kV S Stn | C78: 0.112 | E78: 618 | G78: 3 | H78: Y
A79: 670080 | B79: Sutton Coldfield 132/11kV S Stn | C79: 0.096 | E79: 703 | G79: 1 | H79: Y
A80: 670081 | B80: Tewkesbury 132/11kV S Stn | C80: 0.057 | E80: 337 | G80: 1 | H80: Y
A81: 670083 | B81: Tewkesbury 66/11kV S Stn | C81: 0.064 | E81: 532 | G81: 3 | H81: Y
A82: 670084 | B82: Abson 33kV S Stn | C82: 0.259 | E82: 328 | G82: 3 | H82: Y
A83: 670085 | B83: Moreton 66/11kV S Stn | C83: 0.114 | E83: 191 | G83: 3 | H83: Y
A84: 670086 | B84: Bishops Cleeve 66/11kV S Stn | C84: 0.115 | E84: 163 | G84: 3 | H84: Y
A85: 670087 | B85: Bloxham 66/11kV S Stn | C85: 0.31 | E85: 504 | G85: 3 | H85: Y
A86: 670088 | B86: Alderton 66/11kV S Stn | C86: 0.13 | E86: 179 | G86: 3 | H86: Y
A87: 670089 | B87: Broadway 66/11kV S Stn | C87: 0.37 | E87: 701 | G87: 3 | H87: Y
A88: 670090 | B88: Epwell 66/11kV S Stn | C88: 0.34 | E88: 308 | G88: 3 | H88: Y
A89: 670091 | B89: Stow 66/11kV S Stn | C89: 1.66 | E89: 2296 | G89: 3 | H89: Y
A90: 670092 | B90: Wormington 66/11kV S Stn | C90: 0.7 | D90: Y | E90: 500 | F90: Y | G90: 3 | H90: Y
A91: 670093 | B91: Shipston 66/11kV S Stn | C91: 0.148 | E91: 202 | G91: 3 | H91: Y
A92: 670094 | B92: Long Marston 66/11kV S Stn | C92: 0.101 | E92: 128 | G92: 3 | H92: Y
A93: 670095 | B93: Pershore 66/11kV S Stn | C93: 0.171 | E93: 324 | G93: 3 | H93: Y
A94: 670096 | B94: Hereford North 66/11kV S Stn | C94: 0.096 | E94: 141 | G94: 3 | H94: Y
A95: 670097 | B95: Evesham 66/11kV S Stn | C95: 0.145 | E95: 399 | G95: 3 | H95: Y
A96: 670098 | B96: Bevington 66/11kV S Stn | C96: 0.154 | E96: 248 | G96: 3 | H96: Y
A97: 670099 | B97: Peterchurch 66/11kV S Stn | C97: 0.22 | E97: 303 | G97: 3 | H97: Y
A98: 670100 | B98: Leominster 66/11kV S Stn | C98: 0.253 | E98: 441 | G98: 3 | H98: Y
A99: 670101 | B99: Stratford 66/11kV S Stn | C99: 0.12 | E99: 304 | G99: 3 | H99: Y
A100: 670102 | B100: Brotheridge Green 66/11kV S Stn | C100: 0.41 | E100: 614 | G100: 3 | H100: Y
A101: 670103 | B101: Hereford South 66/11kV S Stn | C101: 0.166 | E101: 266 | G101: 3 | H101: Y
A102: 670104 | B102: Strensham 66/11kV S Stn | C102: 0.202 | E102: 352 | G102: 3 | H102: Y
A103: 670105 | B103: Great Alne 66/11kV S Stn | C103: 0.159 | E103: 348 | G103: 3 | H103: Y
A104: 670106 | B104: Pontrilas 66/11kV S Stn | C104: 0.2 | E104: 380 | G104: 3 | H104: Y
A105: 670107 | B105: Arley 33kV S Stn | C105: 1.79 | E105: 1545 | G105: 3 | H105: Y
A106: 670108 | B106: Bromyard 66/11kV S Stn | C106: 0.223 | E106: 386 | G106: 3 | H106: Y
A107: 670109 | B107: Madley 66/11kV S Stn | C107: 0.29 | E107: 592 | G107: 3 | H107: Y
A108: 670110 | B108: Woofferton 66/11kV S Stn | C108: 0.14 | E108: 211 | G108: 3 | H108: Y
A109: 670111 | B109: Presteigne 66/11kV S Stn | C109: 0.44 | E109: 722 | G109: 3 | H109: Y
A110: 670112 | B110: Bodenham 66/11kV S Stn | C110: 0.46 | E110: 1334 | G110: 3 | H110: Y
A111: 670113 | B111: St Weonards 66/11kV S Stn | C111: 0.384 | E111: 472 | G111: 3 | H111: Y
A112: 670114 | B112: Kington 66/11kV S Stn | C112: 0.385 | E112: 454 | G112: 3 | H112: Y
A113: 670115 | B113: Droitwich 66/11kV S Stn | C113: 0.098 | E113: 141 | G113: 3 | H113: Y
A114: 670116 | B114: Kenswick 66/11kV S Stn | C114: 0.487 | E114: 360 | G114: 3 | H114: Y
A115: 670117 | B115: Lower Chadnor 66/11kV S Stn | C115: 0.355 | E115: 383 | G115: 3 | H115: Y
A116: 670118 | B116: Redditch South 66/11kV S Stn | C116: 0.074 | E116: 221 | G116: 3 | H116: Y
A117: 670119 | B117: Redditch North 66/11kV S Stn | C117: 0.122 | E117: 232 | G117: 3 | H117: Y
A118: 670120 | B118: Ipsley 66/11kV S Stn | C118: 0.068 | E118: 146 | G118: 3 | H118: Y
A119: 670121 | B119: Knighton 66/11kV S Stn | C119: 0.973 | E119: 973 | G119: 3 | H119: Y
A120: 670122 | B120: Albrighton 33/11kV S Stn | C120: 0.16 | E120: 200 | G120: 3 | H120: Y
A121: 670124 | B121: Four Ashes 33/11kV S Stn | C121: 0.189 | E121: 230 | G121: 3 | H121: Y
A122: 670125 | B122: Aldridge 33/6.6kV S Stn | C122: 0.062 | E122: 133 | G122: 3 | H122: Y
A123: 670126 | B123: Ross 66/11kV S Stn | C123: 0.1 | E123: 139 | G123: 3 | H123: Y
A124: 670128 | B124: Kingstanding 132/11kV S Stn | C124: 0.23 | E124: 265 | G124: 1 | H124: Y
A125: 670129 | B125: Ledbury 66/11kV S Stn | C125: 0.096 | E125: 294 | G125: 3 | H125: Y
A126: 670131 | B126: Chelmsley Wood 33/11kV S Stn | C126: 0.037 | E126: 37 | G126: 3 | H126: Y
A127: 670133 | B127: Newent 66/11kV S Stn | C127: 0.3 | E127: 851 | G127: 3 | H127: Y
A128: 670136 | B128: Erdington 132/11kV S Stn | C128: 0.2 | D128: Y | E128: 1000 | F128: Y | G128: 1 | H128: Y
A129: 670137 | B129: Boughton Rd 132/11kV S Stn | C129: 0.044 | E129: 498 | G129: 1 | H129: Y
A130: 670138 | B130: Bartley Green 132/11kV S Stn | C130: 0.093 | E130: 1038 | G130: 1 | H130: Y
A131: 670139 | B131: Bustleholm 132/11kV S Stn | C131: 0.1 | E131: 990 | G131: 1 | H131: Y
A132: 670140 | B132: Chelmsley Wood 132/11kV S Stn | C132: 0.029 | E132: 609 | G132: 1 | H132: Y
A133: 670141 | B133: Four Ashes E F W 33kV S Stn | C133: 0.7 | D133: Y | E133: 500 | F133: Y | G133: 3 | H133: Y
A134: 670142 | B134: Pattingham 33/11kV S Stn | C134: 0.12 | E134: 205 | G134: 3 | H134: Y
A135: 670143 | B135: Dymock 66/11kV S Stn | C135: 0.314 | E135: 891 | G135: 3 | H135: Y
A136: 670148 | B136: Barton Abrasives 33/11kV S Stn | C136: 0.151 | E136: 831 | G136: 3 | H136: Y
A137: 670150 | B137: Wolverhampton Waste Services 33kv S Stn | C137: 0.7 | D137: Y | E137: 500 | F137: Y | G137: 3 | H137: Y
A138: 670151 | B138: Hereford Central 66/11kv S Stn | C138: 0.156 | E138: 279 | G138: 3 | H138: Y
A139: 670152 | B139: Wickhamford 66kv S Stn | C139: 0.124 | E139: 214 | G139: 3 | H139: Y
A140: 670153 | B140: Garreg Lwyd Wind Farm 66kV S Stn | C140: 2.22 | E140: 2743 | G140: 3 | H140: Y
A141: 670154 | B141: Oldbury B 132/33/11kV S Stn | C141: 0.2 | D141: Y | E141: 1000 | F141: Y | G141: 3 | H141: Y
A142: 670161 | B142: Air Liquide 132kV S Stn | C142: 0.2 | D142: Y | E142: 1000 | F142: Y | G142: 1 | H142: Y
A143: 670170 | B143: Troughton Farm 132kV S Stn | C143: 0.2 | D143: Y | E143: 1000 | F143: Y | G143: 1 | H143: Y
A144: 670200 | B144: Hockley 132/11kv S Stn | C144: 0.08 | E144: 240 | G144: 1 | H144: Y
A145: 675348 | B145: Cambridge Arms 132kV S Stn | C145: 0.072 | E145: 614 | G145: 1 | H145: Y
A146: 680000 | B146: Ironbridge 400/132kV S Stn | C146: 0.06 | E146: 1245 | G146: 1 | H146: Y
A147: 680004 | B147: Shrewsbury 400/132/33kV S Stn | C147: 0.117 | E147: 1951 | G147: 3 | H147: Y
A148: 680008 | B148: Rugeley 400/132kV S Stn | C148: 0.075 | E148: 983 | G148: 1 | H148: Y
A149: 680024 | B149: Ketley 132/33/11kV S Stn | C149: 0.09 | E149: 720 | G149: 3 | H149: Y
A150: 680025 | B150: Ironbridge 132/33kV S Stn | C150: 0.04 | E150: 91 | G150: 3 | H150: Y
A151: 680026 | B151: Meaford C 132/33/11kV S Stn | C151: 0.11 | E151: 1013 | G151: 3 | H151: Y
A152: 680027 | B152: Barlaston 132kV S Stn | C152: 0.2 | D152: Y | E152: 1000 | F152: Y | G152: 1 | H152: Y
A153: 680043 | B153: Uttoxeter 132/33kV S Stn | C153: 0.2 | D153: Y | E153: 1000 | F153: Y | G153: 3 | H153: Y
A154: 680044 | B154: Kidsgrove 132/25kV S Stn | C154: 0.095 | E154: 826 | G154: 1 | H154: Y
A155: 680045 | B155: Newcastle 33/11kV S Stn | C155: 0.058 | E155: 681 | G155: 3 | H155: Y
A156: 680046 | B156: Whitfield 132kV S Stn | C156: 0.145 | E156: 1767 | G156: 1 | H156: Y
A157: 680048 | B157: Forsbrook 132/33kV S Stn | C157: 0.82 | E157: 6239 | G157: 3 | H157: Y
A158: 680049 | B158: Stafford South 132/11kV S Stn | C158: 0.041 | E158: 178 | G158: 1 | H158: Y
A159: 680050 | B159: Whitfield 132/33/11kV S Stn | C159: 0.14 | E159: 1249 | G159: 3 | H159: Y
A160: 680051 | B160: Rugeley 132kV S Stn | C160: 0.075 | E160: 983 | G160: 1 | H160: Y
A161: 680052 | B161: Boothen 132/33/11kV S Stn | C161: 0.074 | E161: 681 | G161: 3 | H161: Y
A162: 680053 | B162: Burntwood 132/11kV S Stn | C162: 0.115 | E162: 602 | G162: 1 | H162: Y
A163: 680054 | B163: Burslem 132/33/11kV S Stn | C163: 0.085 | E163: 280 | G163: 3 | H163: Y
A164: 680055 | B164: Cannock 132/11kV S Stn | C164: 0.042 | E164: 240 | G164: 1 | H164: Y
A165: 680056 | B165: Lichfield 132/11kV S Stn | C165: 0.098 | E165: 470 | G165: 1 | H165: Y
A166: 680057 | B166: Newcastle 132/11kV S Stn | C166: 0.11 | E166: 722 | G166: 1 | H166: Y
A167: 680058 | B167: Stafford 132/25/11kV S Stn | C167: 0.057 | E167: 304 | G167: 1 | H167: Y
A168: 680059 | B168: Stagefields 132/33/11kV S Stn | C168: 0.063 | E168: 632 | G168: 3 | H168: Y
A169: 680060 | B169: Hortonwood 132/11kV S Stn | C169: 0.111 | E169: 876 | G169: 1 | H169: Y
A170: 680061 | B170: Rugeley Town 132/11kV S Stn | C170: 0.21 | E170: 507 | G170: 1 | H170: Y
A171: 680062 | B171: Stafford South 132/11kV S Stn | C171: 0.04 | E171: 70 | G171: 1 | H171: Y
A172: 680065 | B172: Burslem 33/11/6.6kV S Stn | C172: 0.085 | E172: 280 | G172: 3 | H172: Y
A173: 680066 | B173: Bushbury D 132kV S Stn | C173: 0.089 | E173: 1664 | G173: 1 | H173: Y
A174: 680067 | B174: Cellarhead 400/132kV S Stn | C174: 0.105 | E174: 2405 | G174: 1 | H174: Y
A175: 690009 | B175: Tamworth Br 132/25kV S Stn | C175: 0.2 | D175: Y | E175: 1000 | F175: Y | G175: 1 | H175: Y
A176: 690072 | B176: Carlton Park 132/11kV S Stn | C176: 0.2 | D176: Y | E176: 1000 | F176: Y | G176: 1 | H176: Y
A177: 720004 | B177: Lea Marston 400/132kV S Stn | C177: 0.2 | D177: Y | E177: 2800 | F177: Y | G177: 1 | H177: Y
A178: 726003 | B178: Bloxwich Ess 33kV S Stn | C178: 0.7 | D178: Y | E178: 500 | F178: Y | G178: 3 | H178: Y
A179: 735832 | B179: I54 33/11kv S Stn | C179: 0.7 | D179: Y | E179: 500 | F179: Y | G179: 3 | H179: Y
A180: 735840 | B180: Union Road Generation 33kV S Stn | C180: 0.7 | D180: Y | E180: 500 | F180: Y | G180: 3 | H180: Y
A181: 736099 | B181: Wolverhampton Power 33kv S Stn | C181: 0.7 | D181: Y | E181: 500 | F181: Y | G181: 3 | H181: Y
A182: 736183 | B182: Hinksford Farm Generation 33kV S Stn | C182: 0.7 | D182: Y | E182: 500 | F182: Y | G182: 3 | H182: Y
A183: 745465 | B183: Henley Solar Farm 33kV S Stn | C183: 0.126 | E183: 252 | G183: 3 | H183: Y
A184: 745501 | B184: High Point Solar Pv 33kv S Stn | C184: 0.098 | E184: 128 | G184: 3 | H184: Y
A185: 745828 | B185: Rock Farm ESS 33kV S Stn | C185: 0.7 | D185: Y | E185: 500 | F185: Y | G185: 3 | H185: Y
A186: 750002 | B186: Tenbury 33/11kV S Stn | C186: 0.164 | E186: 379 | G186: 3 | H186: Y
A187: 750003 | B187: Craven Arms 33/11kV S Stn | C187: 0.15 | E187: 196 | G187: 3 | H187: Y
A188: 750004 | B188: Cleobury Mortimer 33/11kV S Stn | C188: 0.172 | E188: 241 | G188: 3 | H188: Y
A189: 756542 | B189: Larport Farm 66kV S Stn | C189: 0.7 | D189: Y | E189: 500 | F189: Y | G189: 3 | H189: Y
